{"text_format":"1","workbook":"xlsx","n_sheets":1,"sheets":["TRM Spreadsheet"],"not_rendered":{"charts":0,"images":0,"macros":1,"external_links":0,"defined_names":3,"comments":2,"pivot_tables":0},"unopened":[],"bounds":{"document_bytes":16777216,"sheet_cells":100000,"rows_first":2000,"rows_last":500,"rows_between":2000,"halvings":0,"cell_chars":16384,"cell_head_chars":4096},"cells_cut":0,"cells_raw":0,"read":"whole","date_system":"1900"}

{"sheet":"TRM Spreadsheet","index":0,"n_rows":424,"n_cols":120,"rows_kept":424,"cut":false,"hidden":false,"merged":[[3,34,3,35],[3,0,3,6],[3,26,3,33],[3,7,3,25]]}
["Evergy Technical Resource Manual - 2020-01-01 Update"]
["Measures updated with PY3 EM&V results",null,null,null,null,null,null,null,null,null,null,null,null,null,null,null,null,null,null,null,null,null,null,null,null,null,null,null,null,null,null,null,null,null,null,null,null,null,null,null,"Link to CDD","Link to HDD"]
["New Measures"]
["Measure Description",null,null,null,null,null,null,"Gross Measure Values",null,null,null,null,null,null,null,null,null,null,null,null,null,null,null,null,null,null,"Efficiency Values",null,null,null,null,null,null,null,"Algorithms",null,null,null,"Start/End Dates",null,"Quantities"]
["Program","Measure Name","Primary Key","Segment","End Use","Notes","Unit Definition","Incremental Measure Cost ($/Unit)","Incremental Measure Cost Source","Incremental Measure Cost Source Page Number","Electric Energy Savings (Annual kWh/unit)","Electric Energy Savings (Annual kWh/unit) Source","Electric Energy Savings (Annual kWh/unit) Source Page Number","Nameplate Demand Savings (kW/unit)","Peak Coincidence Factor","Peak Coincident Factor Source","Peak Coincident Factor Source Page Number","Coincident Peak Demand Savings (kW/unit)","Coincident Peak Demand Savings (kW/unit) Source","Coincident Peak Demand Savings (kW/unit) Source Page Number","Annual Operating Hours","Annual Operating Hours Source","Annual Operating Hours Source Page Number","Measure Life (Years)","Measure Life (Years) Source","Measure Life (Years) Source Page Number","Measure Definition","Measure Efficiency Value","Measure Efficiency Value Source","Measure Efficiency Value Source Page Number","Baseline Definition","Baseline Efficiency Value","Baseline Efficiency Value Source","Baseline Efficiency Value Source Page Number","Electric Energy Savings Algorithm","Electric Demand Savings Algorithm","Savings Algorithms Source","Savings Algorithms Source Page Number","Effective Start Date","Effective End Date","Cooling Degree Days (CDD)","Heating Degree Days (HDD)","Degree Days Source","Degree Days Source Page Number","Quantity 1","Quantity 1 Description","Quantity 1 Source","Quantity 1 Source Page Number","Quantity 2","Quantity 2 Description","Quantity 2 Source","Quantity 2 Source Page Number","Quantity 3","Quantity 3 Description","Quantity 3 Source","Quantity 3 Source Page Number","Quantity 4","Quantity 4 Description","Quantity 4 Source","Quantity 4 Source Page Number","Quantity 5","Quantity 5 Description","Quantity 5 Source","Quantity 5 Source Page Number","Quantity 6","Quantity 6 Description","Quantity 6 Source","Quantity 6 Source Page Number","Quantity 7","Quantity 7 Description","Quantity 7 Source","Quantity 7 Source Page Number","Quantity 8","Quantity 8 Description","Quantity 8 Source","Quantity 8 Source Page Number","Quantity 9","Quantity 9 Description","Quantity 9 Source","Quantity 9 Source Page Number","Quantity 10","Quantity 10 Description","Quantity 10 Source","Quantity 10 Source Page Number","Quantity 11","Quantity 11 Description","Quantity 11 Source","Quantity 11 Source Page Number","Quantity 12","Quantity 12 Description","Quantity 12 Source","Quantity 12 Source Page Number","Quantity 13","Quantity 13 Description","Quantity 13 Source","Quantity 13 Source Page Number","Quantity 14","Quantity 14 Description","Quantity 14 Source","Quantity 14 Source Page Number","Quantity 15","Quantity 15 Description","Quantity 15 Source","Quantity 15 Source Page Number","Quantity 16","Quantity 16 Description","Quantity 16 Source","Quantity 16 Source Page Number","Quantity 17","Quantity 17 Description","Quantity 17 Source","Quantity 17 Source Page Number","Quantity 18","Quantity 18 Description","Quantity 18 Source","Quantity 18 Source Page Number","Quantity 19","Quantity 19 Description","Quantity 19 Source","Quantity 19 Source Page Number"]
["Energy Saving Products","Screw In - LEDs",2.2000000000000002,"All","Lighting",null,"per lamp",3.93,"Program Tracking Data",null,{"$f":"ROUND(($AF6-$AB6)/1000*$U6*$AS6*$BA6,4)","v":39.013599999999997},"Calculated Value",null,{"$f":"K6/U6","v":3.3661432269197579E-2},0.13500000000000001,"IL TRM v7 vol3 - blended interior/exterior value",274,{"$f":"ROUND(($AF6-$AB6)/1000*O6*$AW6*$BA6,4)","v":4.7000000000000002E-3},"Calculated Value",null,1159,"IL TRM v7 vol3 - blended interior/exterior value",271,10,"IL TRM v7 vol3",268,"Screw In - LEDs",9,"Program Tracking Data",null,"43 watts based on halogen equivalent to average of bulbs sold in program ",43,"Program Tracking Database",null,{"$f":"cellformula(K6)","v":"=ROUND(($AF6-$AB6)/1000*$U6*$AS6*$BA6,4)"},{"$f":"cellformula(R6)","v":"=ROUND(($AF6-$AB6)/1000*O6*$AW6*$BA6,4)"},"IL TRM v7 vol3","269, 273","2020-01-01",null,null,null,null,null,1.0509999999999999,"Waste Heat Factor, Energy","IL TRM v7 vol3 - blended interior/exterior value",279,1.093,"Waste Heat Factor, Demand","IL TRM v7 vol3 - blended interior/exterior value",271,0.94199999999999995,"ISR","Navigant MEEIA Cycle 1 Research",null," "]
["Energy Saving Products","Screw In - Specialty LEDs",244.2,"All","Lighting",null,"per lamp",7.39,"IL TRM v5 vol3",265,{"$f":"ROUND((AF7-AB7)/1000*U7*AS7*BA7,4)","v":34.075000000000003},"Calculated Value",null,{"$f":"K7/U7","v":3.4558823529411767E-2},0.08,"IL TRM v5 vol3",258,{"$f":"ROUND(($AF7-$AB7)/1000*$O7*$AW7*$BA7,4)","v":2.8999999999999998E-3},"Calculated Value",null,986,"IL TRM v5 vol3",208,10,"IL TRM v5 vol3",205,"Screw In - Specialty LEDs",8.39,"Program Tracking Data",null,"43 watts based on halogen equivalent to average of bulbs sold in program ",43,"IL TRM v5 vol3",265,{"$f":"cellformula(K7)","v":"=ROUND((AF7-AB7)/1000*U7*AS7*BA7,4)"},{"$f":"cellformula(R7)","v":"=ROUND(($AF7-$AB7)/1000*$O7*$AW7*$BA7,4)"},"IL TRM v7 vol3","250, 259","2020-01-01",null,null,null,null,null,1.06,"Waste Heat Factor, Energy","IL TRM v5 vol3",249,1.1100000000000001,"Waste Heat Factor, Demand","IL TRM v5 vol3",251,0.94199999999999995,"ISR","Navigant MEEIA Cycle 1 Research",null," "]
["Energy Saving Products","Dehumidifiers",270,"All","Misc",null,"per unit",60,"IL TRM v6 vol3",14,{"$f":"ROUND(140,4)","v":140},"Calculated Value",null,null,0.37,"IL TRM v6 vol3",16,{"$f":"ROUND(0.032,4)","v":3.2000000000000001E-2},"Calculated Value",null,1632,"IL TRM v6 vol3",16,12,"IL TRM v6 vol2",14,"Dehumidifier that meets ENERGY STAR criteria"," ",null,null,"Non-ENERGY STAR dehumidifier",null,null,null,"Deemed Value","Deemed Value","IL TRM v6 vol3","15,16","2020-01-01"]
["Energy Saving Products","Room AC Units",271,"All","HVAC",null,"per unit",40,"IL TRM v6 vol3",34,{"$f":"ROUND((AS9*AW9*((1/BA9)-(1/BE9)))/1000,4)","v":14.6387},"Calculated Value",null,{"$f":"K9/U9","v":3.4202570093457944E-2},0.3,"IL TRM v6 vol3",34,{"$f":"ROUND(AW9*(((1/(BA9*1.01))-(1/(BE9*1.01))))/1000*O9,4)","v":1.0200000000000001E-2},"Calculated Value",null,428,"IL TRM v6 vol3",35,12,"IL TRM v6 vol3",34,"Room AC unit that meets ENERGY STAR criteria"," ","IL TRM v6 vol3",33,"Non-ENERGY STAR room AC",null,"IL TRM v6 vol3",34,{"$f":"cellformula(K9)","v":"=ROUND((AS9*AW9*((1/BA9)-(1/BE9)))/1000,4)"},{"$f":"cellformula(R9)","v":"=ROUND(AW9*(((1/(BA9*1.01))-(1/(BE9*1.01))))/1000*O9,4)"},"IL TRM v6 vol3",34,"2020-01-01",null,null,null,null,null,428,"FLH_RoomAC","IL TRM v6 vol3",35,8500,"Btu/H","IL TRM v6 vol3",35,10.9,"CEERbase","IL TRM v6 vol3",33,11.4,"CEERee","IL TRM v6 vol3",33]
["Energy Saving Products","Room Air Purifiers - CADR 51-100",272,"All","Misc",null,"per unit",70,"IL TRM v6 vol3",5,{"$f":"ROUND(AS10-AW10,4)","v":293},"Calculated Value",null,5.0136892539356603E-2,0.66700000000000004,"IL TRM v6 vol3",6,{"$f":"ROUND(K10/U10*O10,4)","v":3.3399999999999999E-2},"Calculated Value",null,5844,"IL TRM v6 vol3",6,9,"IL TRM v6 vol3",5,"Air purifier that meets ENERGY STAR criteria"," ",null,null,"Non-ENERGY STAR air purifier",null,null,null,"=ROUND(AS10-AW10,4)","=ROUND(K10/U10*O10,4)","IL TRM v6 vol3",6,"2020-01-01",null,null,null,null,null,441,"Baseline Unit Energy Consumption","IL TRM v6 vol3",6,148,"Energy Star Unit Energy Consumption","IL TRM v6 vol3",6]
["Energy Saving Products","Room Air Purifiers - CADR 101-150",412,"All","Misc",null,"per unit",70,"IL TRM v6 vol3",5,488,"Calculated Value",null,8.3504449007529083E-2,0.66700000000000004,"IL TRM v6 vol3",6,5.57E-2,"Calculated Value",null,5844,"IL TRM v6 vol3",6,9,"IL TRM v6 vol3",5,"Air purifier that meets ENERGY STAR criteria"," ",null,null,"Non-ENERGY STAR air purifier",null,null,null,"=ROUND(AS11-AW11,4)","=ROUND(K11/U11*O11,4)","IL TRM v6 vol3",6,"2020-01-01",null,null,null,null,null,733,"Baseline Unit Energy Consumption","IL TRM v6 vol3",6,245,"Energy Star Unit Energy Consumption","IL TRM v6 vol3",6]
["Energy Saving Products","Room Air Purifiers - CADR 151-200",413,"All","Misc",null,"per unit",70,"IL TRM v6 vol3",5,683,"Calculated Value",null,0.11687200547570158,0.66700000000000004,"IL TRM v6 vol3",6,7.8E-2,"Calculated Value",null,5844,"IL TRM v6 vol3",6,9,"IL TRM v6 vol3",5,"Air purifier that meets ENERGY STAR criteria","  ",null,null,"Non-ENERGY STAR air purifier",null,null,null,"=ROUND(AS12-AW12,4)","=ROUND(K12/U12*O12,4)","IL TRM v6 vol3",6,"2020-01-01",null,null,null,null,null,1025,"Baseline Unit Energy Consumption","IL TRM v6 vol3",6,342,"Energy Star Unit Energy Consumption","IL TRM v6 vol3",6]
["Energy Saving Products","Room Air Purifiers - CADR 201-250",414,"All","Misc",null,"per unit",70,"IL TRM v6 vol3",5,877,"Calculated Value",null,0.1500684462696783,0.66700000000000004,"IL TRM v6 vol3",6,0.10009999999999999,"Calculated Value",null,5844,"IL TRM v6 vol3",6,9,"IL TRM v6 vol3",5,"Air purifier that meets ENERGY STAR criteria"," ",null,null,"Non-ENERGY STAR air purifier",null,null,null,"=ROUND(AS13-AW13,4)","=ROUND(K13/U13*O13,4)","IL TRM v6 vol3",6,"2020-01-01",null,null,null,null,null,1317,"Baseline Unit Energy Consumption","IL TRM v6 vol3",6,440,"Energy Star Unit Energy Consumption","IL TRM v6 vol3",6]
["Energy Saving Products","Room Air Purifiers - CADR Over 250",415,"All","Misc",null,"per unit",70,"IL TRM v6 vol3",5,1169,"Calculated Value",null,0.20003422313483915,0.66700000000000004,"IL TRM v6 vol3",6,0.13339999999999999,"Calculated Value",null,5844,"IL TRM v6 vol3",6,9,"IL TRM v6 vol3",5,"Air purifier that meets ENERGY STAR criteria"," ",null,null,"Non-ENERGY STAR air purifier",null,null,null,"=ROUND(AS14-AW14,4)","=ROUND(K14/U14*O14,4)","IL TRM v6 vol3",6,"2020-01-01",null,null,null,null,null,1755,"Baseline Unit Energy Consumption","IL TRM v6 vol3",6,586,"Energy Star Unit Energy Consumption","IL TRM v6 vol3",6]
["Energy Saving Products","Smart Thermostat - ASHP heating / cooling SF",273,"Single Family","HVAC",null,"per unit",175,"IL TRM v6 vol3",160,{"$f":"ROUND((AS15*AW15*BA15*BE15*BI15)+(BM15*((BQ15*BU15*(1/BY15))/1000)*CC15*BI15),4)","v":862.72379999999998},"Calculated Value",null,null,0.34,"Calculated Value",null,{"$f":"ROUND(BM15*(CC15*BU15*(1/CG15))/1000*BI15*O15,4)","v":9.2999999999999999E-2},"Calculated Value",null,null,null,null,10,"IL TRM v6 vol3",160,"Smart thermostat",null,"IL TRM v6 vol3",160,"Actual thermostat replaced by smart thermostat, or 44% programmable and 56% manual thermostats may \nbe assumed"," ","IL TRM v6 vol3",160,"=ROUND((AS15*AW15*BA15*BE15*BI15)+(BM15*((BQ15*BU15*(1/BY15))/1000)*CC15*BI15),4)","=ROUND(BM15*(CC15*BU15*(1/CG15))/1000*BI15*O15,4)","IL TRM v6 vol3","161, 164","2020-01-01",null,null,null,null,null,1,"%ElectricHeat","IL TRM v6 vol3",161,8072,"Elec_Heating_Consumption","IL TRM v6 vol3",161,7.3999999999999996E-2,"Heating_Reduction","IL TRM v6 vol3",162,1,"HF","IL TRM v6 vol3",162,1,"Eff_ISR","IL TRM v6 vol3",162,0.87,"%AC","IL TRM v6 vol3",163,1035,"FLH","IL TRM v6 vol3",163,33600,"BTU/hr","IL TRM v6 vol3",163,9.1199999999999992,"SEER","IL TRM v6 vol3",163,0.08,"Cooling_Reduction","IL TRM v6 vol3",163,8.5500000000000007,"EER","IL TRM v6 vol3",164]
["Energy Saving Products","Smart Thermostat - ASHP heating / cooling MF",416,"Multi-Family","HVAC",null,"per unit",175,"IL TRM v6 vol3",160,515.70740000000001,"Calculated Value",null,null,0.34,"IL TRM v6 vol3",164,4.9200000000000001E-2,"Calculated Value",null,null,null,null,10,"IL TRM v6 vol3",160,"Smart thermostat",null,"IL TRM v6 vol3",160,"Actual thermostat replaced by smart thermostat, or 44% programmable and 56% manual thermostats may \nbe assumed"," ","IL TRM v6 vol3",160,"=ROUND((AS16*AW16*BA16*BE16*BI16)+(BM16*((BQ16*BU16*(1/BY16))/1000)*CC16*BI16),4)","=ROUND(BM16*(CC16*BU16*(1/CG16))/1000*BI16*O16,4)","IL TRM v6 vol3","161, 164","2020-01-01",null,null,null,null,null,1,"%ElectricHeat","IL TRM v6 vol3",161,8072,"Elec_Heating_Consumption","IL TRM v6 vol3",161,7.3999999999999996E-2,"Heating_Reduction","IL TRM v6 vol3",162,0.65,"HF","IL TRM v6 vol3",162,1,"Eff_ISR","IL TRM v6 vol3",162,0.46,"%AC","IL TRM v6 vol3",163,940,"FLH","IL TRM v6 vol3",163,33600,"BTU/hr","IL TRM v6 vol3",163,9.1199999999999992,"SEER","IL TRM v6 vol3",163,0.08,"Cooling_Reduction","IL TRM v6 vol3",163,8.5500000000000007,"EER","IL TRM v6 vol3",164]
["Energy Saving Products","Smart Thermostat - electric furnace heating / CAC SF",417,"Single Family","HVAC",null,"per unit",175,"IL TRM v6 vol3",160,1296.8710000000001,"Calculated Value",null,null,0.34,"IL TRM v6 vol3",164,9.7600000000000006E-2,"Calculated Value",null,null,null,null,10,"IL TRM v6 vol3",160,"Smart thermostat",null,"IL TRM v6 vol3",160,"Actual thermostat replaced by smart thermostat, or 44% programmable and 56% manual thermostats may \nbe assumed"," ","IL TRM v6 vol3",160,"=ROUND((AS17*AW17*BA17*BE17*BI17)+(BM17*((BQ17*BU17*(1/BY17))/1000)*CC17*BI17),4)","=ROUND(BM17*(CC17*BU17*(1/CG17))/1000*BI17*O17,4)","IL TRM v6 vol3","161, 164","2020-01-01",null,null,null,null,null,1,"%ElectricHeat","IL TRM v6 vol3",161,13722,"Elec_Heating_Consumption","IL TRM v6 vol3",161,7.3999999999999996E-2,"Heating_Reduction","IL TRM v6 vol3",162,1,"HF","IL TRM v6 vol3",162,1,"Eff_ISR","IL TRM v6 vol3",162,0.87,"%AC","IL TRM v6 vol3",163,1035,"FLH","IL TRM v6 vol3",163,33600,"BTU/hr","IL TRM v6 vol3",163,8.6,"SEER","IL TRM v6 vol3",163,0.08,"Cooling_Reduction","IL TRM v6 vol3",163,8.15,"EER","IL TRM v6 vol3",164]
["Energy Saving Products","Smart Thermostat - electric furnace heating / CAC MF",418,"Multi-Family","HVAC",null,"per unit",175,"IL TRM v6 vol3",160,795.17830000000004,"Calculated Value",null,null,0.34,"IL TRM v6 vol3",164,5.16E-2,"Calculated Value",null,null,null,null,10,"IL TRM v6 vol3",160,"Smart thermostat",null,"IL TRM v6 vol3",160,"Actual thermostat replaced by smart thermostat, or 44% programmable and 56% manual thermostats may \nbe assumed"," ","IL TRM v6 vol3",160,"=ROUND((AS18*AW18*BA18*BE18*BI18)+(BM18*((BQ18*BU18*(1/BY18))/1000)*CC18*BI18),4)","=ROUND(BM18*(CC18*BU18*(1/CG18))/1000*BI18*O18,4)","IL TRM v6 vol3","161, 164","2020-01-01",null,null,null,null,null,1,"%ElectricHeat","IL TRM v6 vol3",161,13722,"Elec_Heating_Consumption","IL TRM v6 vol3",161,7.3999999999999996E-2,"Heating_Reduction","IL TRM v6 vol3",162,0.65,"HF","IL TRM v6 vol3",162,1,"Eff_ISR","IL TRM v6 vol3",162,0.46,"%AC","IL TRM v6 vol3",163,940,"FLH","IL TRM v6 vol3",163,33600,"BTU/hr","IL TRM v6 vol3",163,8.6,"SEER","IL TRM v6 vol3",163,0.08,"Cooling_Reduction","IL TRM v6 vol3",163,8.15,"EER","IL TRM v6 vol3",164]
["Energy Saving Products","Smart Thermostat - Gas Heated / CAC SF",419,"Single Family","HVAC",null,"per unit",175,"IL TRM v6 vol3",160,{"$f":"ROUND((AS19*AW19*BA19*BE19*BI19)+(CO19*CK19*29.3)+(BM19*((BQ19*BU19*(1/BY19))/1000)*CC19*BI19),4)","v":326.64909999999998},"Calculated Value",null,null,0.34,"Calculated Value",null,9.7600000000000006E-2,"Calculated Value",null,null,null,null,10,"IL TRM v6 vol3",160,"Smart thermostat",null,"IL TRM v6 vol3",160,"Actual thermostat replaced by smart thermostat, or 44% programmable and 56% manual thermostats may \nbe assumed"," ","IL TRM v6 vol3",160,"=ROUND((AS19*AW19*BA19*BE19*BI19)+(CO19*CK19*29.3)+(BM19*((BQ19*BU19*(1/BY19))/1000)*CC19*BI19),4)","=ROUND(BM19*(CC19*BU19*(1/CG19))/1000*BI19*O19,4)","IL TRM v6 vol3","161, 164","2020-01-01",null,null,null,null,null,0,"%ElectricHeat","IL TRM v6 vol3",161,null,null,null,null,7.3999999999999996E-2,"Heating_Reduction","IL TRM v6 vol3",162,1,"HF","IL TRM v6 vol3",162,1,"Eff_ISR","IL TRM v6 vol3",162,0.87,"%AC","IL TRM v6 vol3",163,1035,"FLH","IL TRM v6 vol3",163,33600,"BTU/hr","IL TRM v6 vol3",163,8.6,"SEER","IL TRM v6 vol3",163,0.08,"Cooling_Reduction","IL TRM v6 vol3",163,8.15,"EER","IL TRM v6 vol3",164,3.1399999999999997E-2,"Fe","IL TRM v6 vol3",162,{"$f":"CS19*CW19*BA19*BE19*BI19","v":49.135999999999996},"Therms difference","IL TRM v6 vol3","Calculated",1,"%FossilHeat","IL TRM v6 vol3",165,664,"Gas Heating Consumption","IL TRM v6 vol3",165]
["Energy Saving Products","Smart Thermostat - Gas Heated / CAC MF",420,"Multi-Family","HVAC",null,"per unit",175,"IL TRM v6 vol3",160,{"$f":"ROUND((AS20*AW20*BA20*BE20*BI20)+(CO20*CK20*29.3)+(BM20*((BQ20*BU20*(1/BY20))/1000)*CC20*BI20),4)","v":164.5341},"Calculated Value",null,null,0.34,"Calculated Value",null,5.16E-2,"Calculated Value",null,null,null,null,10,"IL TRM v6 vol3",160,"Smart thermostat",null,"IL TRM v6 vol3",160,"Actual thermostat replaced by smart thermostat, or 44% programmable and 56% manual thermostats may \nbe assumed"," ","IL TRM v6 vol3",160,"=ROUND((AS20*AW20*BA20*BE20*BI20)+(CO20*CK20*29.3)+(BM20*((BQ20*BU20*(1/BY20))/1000)*CC20*BI20),4)","=ROUND(BM20*(CC20*BU20*(1/CG20))/1000*BI20*O20,4)","IL TRM v6 vol3","161, 164","2020-01-01",null,null,null,null,null,0,"%ElectricHeat","IL TRM v6 vol3",161,null,null,null,null,7.3999999999999996E-2,"Heating_Reduction","IL TRM v6 vol3",162,0.65,"HF","IL TRM v6 vol3",162,1,"Eff_ISR","IL TRM v6 vol3",162,0.46,"%AC","IL TRM v6 vol3",163,940,"FLH","IL TRM v6 vol3",163,33600,"BTU/hr","IL TRM v6 vol3",163,8.6,"SEER","IL TRM v6 vol3",163,0.08,"Cooling_Reduction","IL TRM v6 vol3",163,8.15,"EER","IL TRM v6 vol3",164,3.1399999999999997E-2,"Fe","IL TRM v6 vol3",162,{"$f":"CS20*CW20*BA20*BE20*BI20","v":31.938399999999998},"Therms difference","IL TRM v6 vol3","Calculated",1,"%FossilHeat","IL TRM v6 vol3",165,664,"Gas Heating Consumption","IL TRM v6 vol3",165]
["Energy Saving Products","Smart Power Strip - Wh7-Plug",312,"All","Electronics",null,"per unit",16,"Program Tracking Data",null,{"$f":"ROUND(103,4)","v":103},"Calculated Value",null,{"$f":"ROUND(K21/U21,4)","v":1.44E-2},0.8,"IL TRM v5 vol3",55,{"$f":"ROUND(0.0115,4)","v":1.15E-2},"Calculated Value",null,7129,"IL TRM v5 vol3",54,7,"IL TRM v6 vol3",53,"Smart strip",null,"IL TRM v6 vol3",53,"Standard outlet strip",null,"IL TRM v6 vol3",53,"=ROUND(103,4)","=ROUND(0.0115,4)","IL TRM v6 vol3",53,"2020-01-01"]
["Energy Saving Products","ENERGY STAR Refrigerators",399,"All","Appliances",null,"per unit",40,"IL TRM v6 vol3",28,{"$f":"ROUND(AS22-AW22,4)","v":43.14},"Calculated Value",null,null,null,"IL TRM v6 vol2",28,{"$f":"ROUND(K22/U22*BE22*BI22,4)","v":6.4999999999999997E-3},"Calculated Value",null,8766,"IL TRM v6 vol2",30,12,"IL TRM v6 vol2",28,"A refrigerator meeting the efficiency specifications of Energy Star"," ","IL TRM v6 vol2",27,"A refrigerator meeting the minimum federal efficiency standard for refrigerator efficiency"," ","IL TRM v6 vol2",27,"=ROUND(AS22-AW22,4)","=ROUND(K22/U22*BE22*BI22,4)","IL TRM v6 vol2","28, 30","2020-01-01",null,null,null,null,null,{"$f":"7.99*BA22+225","v":431.14200000000005},"Federal Baseline Maximum Energy Usage in kWh/year","IL TRM v6 vol2",26,{"$f":"7.19*BA22+202.5","v":388.00200000000001},"Federal Energy Star Maximum Energy Usage in kWh/YEAR","IL TRM v6 vol2",26,25.8,"Adjusted volume","Program Tracking Data",null,1.25,"Temperature Adjustment Factor","IL TRM v6 vol2",31,1.0569999999999999,"Load Shape Adjustment Factor","IL TRM v6 vol2",31]
["Energy Saving Products","ENERGY STAR Freezers",400,"All","Appliances",null,"per unit",35,"IL TRM v6 vol3",23,{"$f":"ROUND(AS23-AW23,4)","v":34.330500000000001},"Calculated Value",null,null,0.95,"IL TRM v6 vol3",23,{"$f":"ROUND(K23/U23*O23,4)","v":5.4999999999999997E-3},"Calculated Value",null,5890,"IL TRM v6 vol3",24,11,"IL TRM v6 vol3",23,"A freezer meeting the efficiency specifications of Energy Star "," ","IL TRM v6 vol3",22,"A freezer meeting the federal minimum standard efficiency"," ","IL TRM v6 vol3",23,"=ROUND(AS23-AW23,4)","=ROUND(K23/U23*O23,4)","IL TRM v6 vol3","23, 24","2020-01-01",null,null,null,null,null,{"$f":"8.62*BA23+228.3","v":343.87265000000002},"Federal Baseline Maximum Energy Usage in kWh/year","IL TRM v6 vol3",22,{"$f":"7.76*BA23+205.5","v":309.54219999999998},"Federal Energy Star Maximum Energy Usage in kWh/YEAR","IL TRM v6 vol3",22,{"$f":"1.73*7.75","v":13.407500000000001},"Adjusted volume","Program Tracking Data"]
["Energy Saving Products","LED String Lights",401,"All","Lighting",null,"per unit",10,"MN TRM v2.2",324,{"$f":"ROUND((AF24-AB24)/1000*AS24*AW24*U24,4)","v":29.751799999999999},"Calculated Value",null,null,0,"MN TRM v2.2",324,{"$f":"ROUND(0,4)","v":0},"Calculated Value",null,150,"MN TRM v2.2",324,8,"MN TRM v2.2",324,"LED string lights",{"$f":"50%*0.043+25%*2+25%*0.48","v":0.64149999999999996},"MN TRM v2.2",324,"Incandescent holiday light strings",{"$f":"50%*0.45+25%*7+25%*6","v":3.4750000000000001},"MN TRM v2.2",324,"=ROUND((AF24-AB24)/1000*AS24*AW24*U24,4)","=ROUND(0,4)","MN TRM v2.2",324,"2020-01-01",null,null,null,null,null,1,"Number of light strings","MN TRM v2.2",324,70,"Number of lights in string","MN TRM v2.2",324]
["Energy Saving Products","SMART Home Products (Alexa, Google Home, etc.)",402,"Single Family","Misc",null,"per unit",440.96292857142862,"Navigant energy model analysis",null,{"$f":"ROUND(1305.85412860453,4)","v":1305.8541},"Navigant energy model analysis",null," ",null,null,null,{"$f":"ROUND(0,4)","v":0},"Navigant energy model analysis",null," ",null,null,8,"Navigant energy model analysis",null,"Smart Home Products",null,null,null,"No Smart Home Products",null,null,null,"=ROUND(1305.85412860453,4)","=ROUND(0,4)","Navigant energy model analysis",null,"2020-01-01"]
["Energy Saving Products","ENERGY STAR Pool Pump and motor w/ auto controls - multi speed",403,"All","Misc",null,"per unit",235,"IL TRM v6 vol3",296,{"$f":"ROUND(((AS26*AW26*60)/BA26-((BE26*BI26*60)/BM26+(BQ26*BU26*60)/BY26))/1000*CC26,4)","v":1596.0278000000001},"Calculated Value",null,{"$f":"ROUND(CG26/AS26-CK26/CO26,4)","v":1.3765000000000001},0.83099999999999996,"Calculated Value",null,{"$f":"ROUND((CG26/AS26-CK26/CO26)*O26,4)","v":1.1438999999999999},"Calculated Value",null,null,null,null,10,"IL TRM v6 vol3",296,"Two speed pool pump",null,null,null,"Single speed residential pool pump",null,null,null,"=ROUND(((AS26*AW26*60)/BA26-((BE26*BI26*60)/BM26+(BQ26*BU26*60)/BY26))/1000*CC26,4)","=ROUND((CG26/AS26-CK26/CO26)*O26,4)","IL TRM v6 vol3","297, 298","2020-01-01",null,null,null,null,null,11.4,"Hours/Daybase","IL TRM v6 vol3",297,64.400000000000006,"GPMbase","IL TRM v6 vol3",297,2.1,"EFbase","IL TRM v6 vol3",297,2,"Hours/Day2spH","IL TRM v6 vol3",297,56,"GPM2spH","IL TRM v6 vol3",297,2.4,"EF2spH","IL TRM v6 vol3",297,15.7,"Hours/Day2spL","IL TRM v6 vol3",297,31,"GPM2spL","IL TRM v6 vol3",297,5.4,"EF2spL","IL TRM v6 vol3",297,125,"Days","IL TRM v6 vol3",297,20.98,"kWh/daybase","IL TRM v6 vol3",298,8.2100000000000009,"kWh/day2sp","IL TRM v6 vol3",298,17.7,"Hours/day2sp","IL TRM v6 vol3",298]
["Energy Saving Products","ENERGY STAR VFDs on Residential Swimming Pool Pumps",404,"All","Misc",null,"per unit",549,"IL TRM v6 vol3",296,{"$f":"ROUND(((AS27*AW27*60)/BA27-((BE27*BI27*60)/BM27+(BQ27*BU27*60)/BY27))/1000*CC27,4)","v":1921.6179},"Calculated Value",null,{"$f":"ROUND((CG27/AS27)-(CK27/CO27),4)","v":1.5291999999999999},0.83099999999999996,"Calculated Value",null,{"$f":"ROUND(((CG27/AS27)-(CK27/CO27))*O27,4)","v":1.2707999999999999},"Calculated Value",null,null,null,null,10,"IL TRM v6 vol3",296,"Variable speed pool pump",null,null,null,"Single speed residential pool pump",null,null,null,"=ROUND(((AS27*AW27*60)/BA27-((BE27*BI27*60)/BM27+(BQ27*BU27*60)/BY27))/1000*CC27,4)","=ROUND(((CG27/AS27)-(CK27/CO27))*O27,4)","IL TRM v6 vol3","297, 298","2020-01-01",null,null,null,null,null,11.4,"Hours/Daybase","IL TRM v6 vol3",297,64.400000000000006,"GPMbase","IL TRM v6 vol3",297,2.1,"EFbase","IL TRM v6 vol3",297,2,"Hours/DayvsH","IL TRM v6 vol3",297,50,"GPMvsH","IL TRM v6 vol3",297,3.8,"EFvsH","IL TRM v6 vol3",298,16,"Hours/DayvsL","IL TRM v6 vol3",298,30.6,"GPMvsL","IL TRM v6 vol3",298,7.3,"EFvsL","IL TRM v6 vol3",298,125,"Days","IL TRM v6 vol3",298,20.98,"kWh/daybase","IL TRM v6 vol3",298,5.6,"kWh/dayvar","IL TRM v6 vol3",298,18,"Hours/dayvar","IL TRM v6 vol3",298]
["Heating, Cooling & Home Comfort","Screw In - LEDs",8.4,"Single Family","Lighting","Kits","per lamp",3.93,"Program Tracking Data",null,{"$f":"ROUND(($AF28-$AB28)/1000*$U28*$AS28*$BA28,4)","v":39.013599999999997},"Calculated Value",null,{"$f":"K28/U28","v":3.3661432269197579E-2},0.128,"IL TRM v7 vol3",274,{"$f":"ROUND(($AF28-$AB28)/1000*O28*$AW28*$BA28,4)","v":4.4999999999999997E-3},"Calculated Value",null,1159,"IL TRM v7 vol3 - blended interior/exterior value",271,10,"IL TRM v7 vol3",268,"Screw In - LEDs",9,"Program Tracking Data",null,"43 watts based on halogen equivalent to average of bulbs sold in program ",43,"Program Tracking Database",null,"=ROUND(($AF28-$AB28)/1000*$U28*$AS28*$BA28,4)","=ROUND(($AF28-$AB28)/1000*O28*$AW28*$BA28,4)","IL TRM v7 vol3","269, 273","2020-01-01",null,null,null,null,null,1.0509999999999999,"Waste Heat Factor, Energy","IL TRM v7 vol3 - blended interior/exterior value",271,1.093,"Waste Heat Factor, Demand","IL TRM v7 vol3 - blended interior/exterior value",271,0.94199999999999995,"ISR","Navigant MEEIA Cycle 1 Research",null," "]
["Heating, Cooling & Home Comfort","Low Flow Faucet Aerator-Bathroom",245.2,"Single Family","Hot Water","Kits","per unit",8,"IL TRM v5 vol3",174,{"$f":"ROUND(((AF29-AB29)*AW29*BA29*365.25)*AS29*BE29,4)","v":43.119900000000001},"Calculated Value",null,3.0799928571428574,2.1999999999999999E-2,"IL TRM v5 vol3",179,{"$f":"ROUND((((AF29-AB29)*AW29*BA29*365.25)*AS29*BE29)/U29*O29,4)","v":6.7799999999999999E-2},"Calculated Value",null,14,"IL TRM v5 vol3",179,9,"IL TRM v5 vol3",174,"Low Flow (GPM)",1,"Program Tracking Data",null,"Standard (GPM)",2.2000000000000002,"Federal Baseline",null,"=ROUND(((AF29-AB29)*AW29*BA29*365.25)*AS29*BE29,4)","=ROUND((((AF29-AB29)*AW29*BA29*365.25)*AS29*BE29)/U29*O29,4)","IL TRM v5 vol3",175,"2020-01-01",null,null,null,null,null,7.9500000000000001E-2,"kWh per gallon hot water, bathroom","IL TRM v5 vol3",177,0.50883392226148416,"Faucet Coefficient, Bathroom: Minutes/day * Drain Factor / Faucets per Household","IL TRM v5 vol3",176177,2.56,"Persons per household","IL TRM v5 vol3",176,0.95,"Installation Rate","IL TRM v5 vol3",178]
["Heating, Cooling & Home Comfort","Low Flow Faucet Aerator-Kitchen",246.1,"Single Family","Hot Water","Kits","per unit",8,"IL TRM v5 vol3",174,{"$f":"ROUND(((AF30-AB30)*AW30*BA30*365.25)*AS30*BE30,4)","v":203.35239999999999},"Calculated Value",null,2.1633234042553191,2.1999999999999999E-2,"IL TRM v5 vol3",179,{"$f":"ROUND((((AF30-AB30)*AW30*BA30*365.25)*AS30*BE30)/U30*O30,4)","v":4.7600000000000003E-2},"Calculated Value",null,94,"IL TRM v5 vol3",179,9,"IL TRM v5 vol3",174,"Low Flow (GPM)",1.5,"Program Tracking Data",null,"Standard (GPM)",2.2000000000000002,"Federal Baseline",null,"=ROUND(((AF30-AB30)*AW30*BA30*365.25)*AS30*BE30,4)","=ROUND((((AF30-AB30)*AW30*BA30*365.25)*AS30*BE30)/U30*O30,4)","IL TRM v5 vol3",175,"2020-01-01",null,null,null,null,null,9.69E-2,"kWh per gallon hot water, kitchen","IL TRM v5 vol3",177,3.375,"Faucet Coefficient, Kitchen","IL TRM v5 vol3",176177,2.56,"Persons per household","IL TRM v5 vol3",176,0.95,"Installation Rate","IL TRM v5 vol3",178]
["Heating, Cooling & Home Comfort","Pipe Insulated",10.199999999999999,"Single Family","Hot Water","Kits","per unit",18,"IL TRM v5 vol3",160,{"$f":"ROUND(((((AS31*PI()*BA31)/AF31) - ((AW31*PI()*BA31)/AB31))*BE31)/BI31/3412,4)","v":72.064999999999998},"Calculated Value",null,{"$f":"K31/8766","v":8.2209673739447858E-3},1,"Calculated Value",null,{"$f":"ROUND(K31/8766,4)","v":8.2000000000000007E-3},"Calculated Value",null,8766,"IL TRM v5 vol3",161,15,"IL TRM v5 vol3",160,"Efficient R-Value due to added insulation",{"$f":"1+5","v":6},"Program Tracking Data",null,"R-Value of bare pipe",1,"IL TRM v5 vol3",161,"=ROUND(((((AS31*PI()*BA31)/AF31) - ((AW31*PI()*BA31)/AB31))*BE31)/BI31/3412,4)","=ROUND(K31/8766,4)","IL TRM v5 vol3",161162,"2020-01-01",null,null,null,null,null,{"$f":"0.75/12","v":6.25E-2},"Dbase = Pipe Diameter (ft)","IL TRM v5 vol3",161,{"$f":"(0.75+1*2)/12","v":0.22916666666666666},"Dee = Updated Pipe Diameter, due to added insulation (ft)","IL TRM v5 vol3",161,6,"Length of added pipe insulation","Program Tracking Data",null,{"$f":"60*8766","v":525960},"Pipe Insulated Coefficient 1 = ∆T * Hours = 60 * 8766","IL TRM v5 vol3",161,0.98,"Recovery efficiency of electric water heater","IL TRM v5 vol3",161]
["Heating, Cooling & Home Comfort","Low Flow Showerhead",11.2,"Single Family","Hot Water","Kits","per unit",12,"IL TRM v5 vol3",183,{"$f":"ROUND(((AF32-AB32)*AW32*BA32*365.25)*AS32*BE32,4)","v":327.9599},"Calculated Value",null,{"$f":"K32/U32","v":1.0859599337748345},2.7799999999999998E-2,"IL TRM v5 vol3",183,{"$f":"ROUND((((AF32-AB32)*AW32*BA32*365.25)*AS32*BE32)/U32*O32,4)","v":3.0200000000000001E-2},"Calculated Value",null,302,"IL TRM v5 vol3",187,10,"IL TRM v5 vol3",183,"Low Flow (GPM)",1.5,"Program Tracking Data",null,"Standard (GPM)",2.67,"IL TRM v5 vol3",184,"=ROUND(((AF32-AB32)*AW32*BA32*365.25)*AS32*BE32,4)","=ROUND((((AF32-AB32)*AW32*BA32*365.25)*AS32*BE32)/U32*O32,4)","IL TRM v5 vol3",184186,"2020-01-01",null,null,null,null,null,0.11700000000000001,"kWh per gallon hot water","IL TRM v5 vol3",185,2.6145251396648042,"Showerhead Coefficient: Minutes per day * Showers per day / Showers per household","IL TRM v5 vol3",185,2.56,"Persons per household","IL TRM v5 vol3",185,0.98,"Installation Rate","IL TRM v5 vol3",186]
["Heating, Cooling & Home Comfort","Water Heater Tank Wrap",12.1,"Single Family","Hot Water","Kits","per unit",20,"Program Tracking Data",null,{"$f":"ROUND((AS33/AW33-BA33/BE33)*BI33*BM33/BQ33/BU33,4)","v":134.09479999999999},"Calculated Value",null,{"$f":"ROUND(0.0153,4)","v":1.5299999999999999E-2},1,"IL TRM v7 vol3",203,{"$f":"ROUND(K33/U33,4)","v":1.5299999999999999E-2},"Calculated Value",null,8766,"IL TRM v7 vol3",204,5,"IL TRM v7 vol3",203,"Water heater insulation increased from R12 to R22, 50gal",null,"IL TRM v7 vol3",204,"R12, 50-gal water heater insulation (no wrap)",null,"IL TRM v7 vol3",204,"=ROUND((AS33/AW33-BA33/BE33)*BI33*BM33/BQ33/BU33,4)","=ROUND(K33/U33,4)","IL TRM v7 vol3","203, 205","2020-01-01",null,null,null,null,null,24.99,"Abase","IL TRM v7 vol3",204,12,"Rbase","IL TRM v7 vol3",204,27.06,"Ainsul","IL TRM v7 vol3",204,22,"Rinsul","IL TRM v7 vol3",204,60,"deltaT","IL TRM v7 vol3",204,8766,"Hours","IL TRM v7 vol3",204,0.98,"eta DHW","IL TRM v7 vol3",204,3412,"Conversion from BTU to kWh","IL TRM v7 vol3",204]
["Heating, Cooling & Home Comfort","Smart Power Strip - Wh7-Plug",13.2,"Single Family","Electronics","Kits","per unit",16,"Program Tracking Data",null,{"$f":"ROUND(103,4)","v":103},"Calculated Value",null,{"$f":"K34/U34","v":1.4448029176602609E-2},0.8,"IL TRM v5 vol3",55,{"$f":"ROUND(0.0115,4)","v":1.15E-2},"Calculated Value",null,7129,"IL TRM v5 vol3",54,7,"IL TRM v6 vol3",53,"Smart strip",null,"IL TRM v6 vol3",53,"Standard outlet strip",null,"IL TRM v6 vol3",53,{"$f":"cellformula(K34)","v":"=ROUND(103,4)"},{"$f":"cellformula(R34)","v":"=ROUND(0.0115,4)"},"IL TRM v6 vol3",53,"2020-01-01"]
["Heating, Cooling & Home Comfort","Air Sealing",14.3,"Single Family","HVAC - Shell",null,"per sq ft (floor area)",0.12,"Program Tracking Data, with 50% co-delivery costs shared with Spire Missouri",null,{"$f":"ROUND((BQ35*((AF35-AB35)/BE35*AS35*BM35*AO35)/BA35)/BU35+(((AF35-AB35)/BI35*AS35*AP35)/AW35)/BU35,4)","v":0.43369999999999997},"Calculated Value",null,5.8766937669376686E-4,0.72,"IL TRM v5 vol3",268,{"$f":"ROUND((((BQ35*((AF35-AB35)/BE35*AS35*BM35*AO35)/BA35)/BU35)/U35)*O35,8)","v":8.1819999999999999E-5},"Calculated Value",null,738,"EFLHcool, from 2017 MO TRM",122,15,"IL TRM v5 vol3",267,"Efficient CFM",3083.5941558441559,"IL TRM v5 vol3",268,"Baseline CFM",4342.9967532467535,"IL TRM v5 vol3",268,"=ROUND((BQ35*((AF35-AB35)/BE35*AS35*BM35*AO35)/BA35)/BU35+(((AF35-AB35)/BI35*AS35*AP35)/AW35)/BU35,4)","=ROUND((((BQ35*((AF35-AB35)/BE35*AS35*BM35*AO35)/BA35)/BU35)/U35)*O35,8)","IL TRM v5 vol3","268, 273","2020-01-01",null,1445,5155,"MO TRM and Navigant Analysis",null,25.919999999999998,"Air Sealing Coefficient: 60 * 24 * 0.018","IL TRM v5 vol3",269,6551.04,"Heating Coefficient: COP * 3,412\nCOP = 1.7 for units before 2006\nCOP = 1.92 for units between 2006-2014\nCOP = 2.4 for units after 2014","IL TRM v5 vol3",269,13000,"Cooling Coefficient","IL TRM v5 vol3: SEER * 1,000.  \nSEER 10 for units before 2006\nSEER 13 for units after 2006",269,35.799999999999997,"Ncool: Infiltration conversion factor","IL TRM v5 vol3",268,22.5,"Nheat: Infiltration conversion factor","IL TRM v5 vol3",270,0.75,"DUA: Discretionary Use Adjustment","IL TRM v5 vol3",269,3.6,"LM: Latent Cooling Multiplier","IL TRM v5 vol3",270,3263,"Square footage installed","Program tracking Data"]
["Heating, Cooling & Home Comfort","Increased Ceiling Insulation",15.3,"Single Family","HVAC - Shell",null,"per sq ft (ceiling area)",0.76,"Program Tracking Data, with 50% co-delivery costs shared with Spire Missouri",null,{"$f":"ROUND(((((1/AF36-1/AB36)*(1-BE36)*24*AO36*BA36)/AW36)*BI36)+((((1/AF36-1/AB36)*(1-BE36)*24*AP36)/AS36)*BM36),4)","v":0.40279999999999999},"Calculated Value",null,5.4579945799457989E-4,0.7,"IL TRM v5 vol3",293,{"$f":"ROUND((((((1/AF36-1/AB36)*(1-BE36)*24*AO36*BA36)/AW36)*BI36)/U36)*O36,8)","v":4.7280000000000001E-5},"Calculated Value",null,738,"EFLHcool, from 2017 MO TRM",122,25,"IL TRM v5 vol3",293,"Final R-value",41.031645569620252,"Program Tracking Data",null,"Previous R-value",17.2828025477707,"Program Tracking Data",null,"=ROUND(((((1/AF36-1/AB36)*(1-BE36)*24*AO36*BA36)/AW36)*BI36)+((((1/AF36-1/AB36)*(1-BE36)*24*AP36)/AS36)*BM36),4)","=ROUND((((((1/AF36-1/AB36)*(1-BE36)*24*AO36*BA36)/AW36)*BI36)/U36)*O36,8)","IL TRM v5 vol3","294, 297","2020-01-01",null,1445,5155,"MO TRM and Navigant Analysis",null,6551.04,"Heating Coefficient: COP * 3,412\nCOP = 1.7 for units before 2006\nCOP = 1.92 for units between 2006-2014\nCOP = 2.4 for units after 2014","IL TRM v5 vol3",296,13000,"Cooling Coefficient","IL TRM v5 vol3: SEER * 1,000.  \nSEER 10 for units before 2006\nSEER 13 for units after 2006",295,0.75,"DUA: Discretionary Use Adjustment","IL TRM v5 vol3",295,7.0000000000000007E-2,"Framing Factor, Ceiling","IL TRM v5 vol3",294,0.8,"ADJcool: adjustment for cooling savings from basement wall insulation","IL TRM v5 vol3",295,0.6,"ADJheat: adjustment for wall and attic insulation","IL TRM v5 vol3",296]
["Heating, Cooling & Home Comfort","Increased Wall Insulation",16.3,"Single Family","HVAC - Shell",null,"per sq ft (wall area)",1.32,"Program Tracking Data, with 50% co-delivery costs shared with Spire Missouri",null,0.84760000000000002,"Calculated Value",null,1.148509485094851E-3,0.7,"IL TRM v5 vol3",293,9.9510000000000001E-5,"Calculated Value",null,738,"EFLHcool, from 2017 MO TRM",122,25,"IL TRM v5 vol3",293,"Final R-value",17.234848484848484,"Program Tracking Data",null,"Previous R-value",6.8769230769230774,"Program Tracking Data",null,"=ROUND(((((1/AF37-1/AB37)*(1-BE37)*24*AO37*BA37)/AW37)*BI37)+((((1/AF37-1/AB37)*(1-BE37)*24*AP37)/AS37)*BM37),4)","=ROUND((((((1/AF37-1/AB37)*(1-BE37)*24*AO37*BA37)/AW37)*BI37)/U37)*O37,8)","IL TRM v5 vol3","294, 297","2020-01-01",null,1445,5155,"MO TRM and Navigant Analysis",null,6551.04,"Heating Coefficient: COP * 3,412\nCOP = 1.7 for units before 2006\nCOP = 1.92 for units between 2006-2014\nCOP = 2.4 for units after 2014","IL TRM v5 vol3",296,13000,"Cooling Coefficient","IL TRM v5 vol3: SEER * 1,000.  \nSEER 10 for units before 2006\nSEER 13 for units after 2006",295,0.75,"DUA: Discretionary Use Adjustment","IL TRM v5 vol3",295,0.25,"Framing Factor, Wall","IL TRM v5 vol3",294,0.8,"ADJcool: adjustment for cooling savings from basement wall insulation","IL TRM v5 vol3",295,0.6,"ADJheat: adjustment for wall and attic insulation","IL TRM v5 vol3",296]
["Heating, Cooling & Home Comfort","Heat Pump Ductless Mini Split",20.3,"Single Family","All",null,"per unit",3787.9746835443038,"IL TRM v5 vol3",134,{"$f":"ROUND((BM38*AS38*(1/AF38-1/AB38))/1000+(BQ38*AS38*(1/BA38-1/AW38)/1000),4)","v":2135.9704000000002},"Calculated Value",null,{"$f":"K38/U38","v":2.8942688346883472},0.43,"IL TRM v5 vol3",135,{"$f":"ROUND((AS38*(1/BI38-1/BE38)/1000)*O38,4)","v":0.19989999999999999},"Calculated Value",null,738,"MO TRM 2017 vol 3",85,18,"IL TRM v5 vol3",134,"SEER",22.94,"per PY2018 Metadata",null,"SEER",9.1199999999999992,"IL TRM v5 vol3",137,"=ROUND((BM38*AS38*(1/AF38-1/AB38))/1000+(BQ38*AS38*(1/BA38-1/AW38)/1000),4)","=ROUND((AS38*(1/BI38-1/BE38)/1000)*O38,4)","IL TRM v5 vol3",136138,"2020-01-01",null,null,null,null,null,12000,"Allows for Capacity input in Tons; converts tons to BTUs",null,null,11.124242424242427,"HSPFee","Calculated per PY2018 Metadata",null,5.44,"HSPFbase","IL TRM v5 vol3",136,12.784615384615384,"EERee","Calculated per PY2016 Metadata",null,8.5500000000000007,"EERbase","IL TRM v5 vol3",138,738,"EFLHcool","2017 MO TRM, vol 3",85,1376,"EFLHheat","The EFLH Cooling and Heating hours are based on a EnergyStar study that was normalized (based on HDD and CDD) to Kansas City. This was for both AC and HP units.",null," "]
["Heating, Cooling & Home Comfort","CAC SEER 15",21.3,"Single Family","HVAC",null,"per ton",238,"IL TRM v7 vol3",77,{"$f":"ROUND((BE39*AW39*(1/AF39-1/AB39))/1000,4)","v":95.516499999999994},"Calculated Value",null,0.12942615176151762,0.68,"IL TRM v7 vol3",81,{"$f":"ROUND(((AW39*((1/BA39)-(1/AS39)))/1000)*O39,4)","v":6.8500000000000005E-2},"Calculated Value",null,738,"EFLHcool, from 2017 MO TRM",122,18,"IL TRM v7 vol3",77,"SEER",15.12,"Based on SEER value of efficient equipment",null,"SEER",13,"IL TRM v7 vol3",79,"=ROUND((BE39*AW39*(1/AF39-1/AB39))/1000,4)","=ROUND(((AW39*((1/BA39)-(1/AS39)))/1000)*O39,4)","IL TRM v7 vol3",78,"2020-01-01",null,null,null,null,null,12.362112,"EERee","Based on calculation from SEER of installed equipment",null,12000,"Allows for Capacity input in Tons; converts tons to BTUs"," ",null,11.2,"EERbase","IL TRM v7 vol3",81,738,"EFLHcool","EFLHcool, from 2017 MO TRM",122,1376,"EFLHheat","The EFLH Cooling and Heating hours are based on a EnergyStar study that was normalized (based on HDD and CDD) to Kansas City. This was for both AC and HP units.",null," "]
["Heating, Cooling & Home Comfort","CAC SEER 15 - Early Replacement",22.3,"Single Family","HVAC",null,"per ton",{"$f":"DA40+DE40/DM40-DI40/DM40*(1+CW40)^(-X40)","v":231.51412400380718},"IL TRM v7 vol3",77,{"$f":"ROUND((BE40*AW40*(1/AF40-1/AB40))/1000,4)","v":301.0455},"Calculated Value",null,0.40792073170731707,0.68,"IL TRM v7 vol3",81,{"$f":"ROUND(((AW40*((1/BA40)-(1/AS40)))/1000)*O40,4)","v":0.22770000000000001},"Calculated Value",null,738,"EFLHcool, from 2017 MO TRM",122,6,"IL TRM v7 vol3",77,"SEER",15.15,"Based on SEER value of efficient equipment",null,"SEER",10,"IL TRM v7 vol3",79,"=ROUND((BE40*AW40*(1/AF40-1/AB40))/1000,4)","=ROUND(((AW40*((1/BA40)-(1/AS40)))/1000)*O40,4)","IL TRM v7 vol3",78,"2020-01-01",null,null,null,null,null,12.377550000000003,"EERee","Based on calculation from SEER of installed equipment",null,12000,"Allows for Capacity input in Tons; converts tons to BTUs"," ",null,9.1999999999999993,"EERexist","IL TRM v7 vol3",81,738,"EFLHcool","EFLHcool, from 2017 MO TRM",122,1376,"EFLHheat","The EFLH Cooling and Heating hours are based on a EnergyStar study that was normalized (based on HDD and CDD) to Kansas City. This was for both AC and HP units.",null," ",null,null,null,null,null,null,null,null,null,null,null,null,null,null,null,null,null,null,null,null,null,null,null,null,null,null,null,null,null,null,null,null,null,null,null,0.03,"Societal Discount Rate","Evergy Standard",null,952,"First Cost $/ton","IL TRM v7 vol3",77,108,"One-time per-system labor cost","IL TRM v7 vol3",77,3140,"Deferred cost savings, per UNIT","IL TRM v7 vol3",78,3.5,"Assumed average system tons","Tracking Data"]
["Heating, Cooling & Home Comfort","CAC SEER 15 - Early Replacement (future)",23.3,"Single Family","HVAC",null,"per ton",0,"IL TRM v7 vol3",77,{"$f":"ROUND((BM41*AW41*(1/BE41-1/AB41))/1000,4)","v":96.676299999999998},"Calculated Value",null,0.13099769647696477,0.68,"IL TRM v7 vol3",81,{"$f":"ROUND(((AW41*((1/BI41)-(1/AS41)))/1000)*O41,4)","v":6.93E-2},"Calculated Value",null,738,"EFLHcool, from 2017 MO TRM",122,12,"IL TRM v7 vol3",77,"SEER",15.15,"Based on SEER value of efficient equipment",null,{"$f":"BF41","v":"SEERbase"},{"$f":"BE41","v":13},"IL TRM v7 vol3",79,"=ROUND((BM41*AW41*(1/BE41-1/AB41))/1000,4)","=ROUND(((AW41*((1/BI41)-(1/AS41)))/1000)*O41,4)","IL TRM v7 vol3",78,"2020-01-01",null,null,null,null,null,12.377550000000003,"EERee","Based on calculation from SEER of installed equipment",null,12000,"Allows for Capacity input in Tons; converts tons to BTUs"," ",null,null,null,null,null,13,"SEERbase","IL TRM v7 vol3",79,11.2,"EERbase","IL TRM v7 vol3",81,738,"EFLHcool","EFLHcool, from 2017 MO TRM",122,1376,"EFLHheat","The EFLH Cooling and Heating hours are based on a EnergyStar study that was normalized (based on HDD and CDD) to Kansas City. This was for both AC and HP units.",null," ",null,null,null,null,null,null,null,null,null,null,null,null,null,null,null,null,null,null,null,null,null,null,null,null,null,null,null,0.03,"Societal Discount Rate","Evergy Standard",null,952,"First Cost $/ton","IL TRM v7 vol3",77,108,"One-time per-system labor cost","IL TRM v7 vol3",77,3140,"Deferred cost savings, per UNIT","IL TRM v7 vol3",78,3.5,"Assumed average system tons","Tracking Data"]
["Heating, Cooling & Home Comfort","CAC SEER 16",24.3,"Single Family","HVAC",null,"per ton",357,"IL TRM v7 vol3",77,{"$f":"ROUND((BE42*AW42*(1/AF42-1/AB42))/1000,4)","v":144.5035},"Calculated Value",null,0.19580420054200542,0.68,"IL TRM v7 vol3",81,{"$f":"ROUND(((AW42*((1/BA42)-(1/AS42)))/1000)*O42,4)","v":0.1026},"Calculated Value",null,738,"EFLHcool, from 2017 MO TRM",122,18,"IL TRM v7 vol3",77,"SEER",16.5,"Based on SEER value of efficient equipment",null,"SEER",13,"IL TRM v7 vol3",79,"=ROUND((BE42*AW42*(1/AF42-1/AB42))/1000,4)","=ROUND(((AW42*((1/BA42)-(1/AS42)))/1000)*O42,4)","IL TRM v7 vol3",78,"2020-01-01",null,null,null,null,null,13.035,"EERee","Based on calculation from SEER of installed equipment",null,12000,"Allows for Capacity input in Tons; converts tons to BTUs"," ",null,11.2,"EERbase","IL TRM v7 vol3",81,738,"EFLHcool","EFLHcool, from 2017 MO TRM",122,1376,"EFLHheat","The EFLH Cooling and Heating hours are based on a EnergyStar study that was normalized (based on HDD and CDD) to Kansas City. This was for both AC and HP units.",null," "]
["Heating, Cooling & Home Comfort","CAC SEER 16 - Early Replacement",25.3,"Single Family","HVAC",null,"per ton",{"$f":"DA43+DE43/DM43-DI43/DM43*(1+CW43)^(-X43)","v":263.7998382895214},"IL TRM v7 vol3",77,{"$f":"ROUND((BE43*AW43*(1/AF43-1/AB43))/1000,4)","v":349.84679999999997},"Calculated Value",null,0.47404715447154466,0.68,"IL TRM v7 vol3",81,{"$f":"ROUND(((AW43*((1/BA43)-(1/AS43)))/1000)*O43,4)","v":0.2616},"Calculated Value",null,738,"EFLHcool, from 2017 MO TRM",122,6,"IL TRM v7 vol3",77,"SEER",16.53,"Based on SEER value of efficient equipment",null,"SEER",10,"IL TRM v7 vol3",79,"=ROUND((BE43*AW43*(1/AF43-1/AB43))/1000,4)","=ROUND(((AW43*((1/BA43)-(1/AS43)))/1000)*O43,4)","IL TRM v7 vol3",78,"2020-01-01",null,null,null,null,null,13.048782000000003,"EERee","Based on calculation from SEER of installed equipment",null,12000,"Allows for Capacity input in Tons; converts tons to BTUs"," ",null,9.1999999999999993,"EERexist","IL TRM v7 vol3",81,738,"EFLHcool","EFLHcool, from 2017 MO TRM",122,1376,"EFLHheat","The EFLH Cooling and Heating hours are based on a EnergyStar study that was normalized (based on HDD and CDD) to Kansas City. This was for both AC and HP units.",null," ",null,null,null,null,null,null,null,null,null,null,null,null,null,null,null,null,null,null,null,null,null,null,null,null,null,null,null,null,null,null,null,null,null,null,null,0.03,"Societal Discount Rate","Evergy Standard",null,952,"First Cost $/ton","IL TRM v7 vol3",77,221,"One-time per-system labor cost","IL TRM v7 vol3",77,3140,"Deferred cost savings, per UNIT","IL TRM v7 vol3",78,3.5,"Assumed average system tons","Tracking Data"]
["Heating, Cooling & Home Comfort","CAC SEER 16 - Early Replacement (future)",26.3,"Single Family","HVAC",null,"per ton",0,"IL TRM v7 vol3",77,{"$f":"ROUND((BM44*AW44*(1/BE44-1/AB44))/1000,4)","v":145.4776},"Calculated Value",null,0.19712411924119241,0.68,"IL TRM v7 vol3",81,{"$f":"ROUND(((AW44*((1/BI44)-(1/AS44)))/1000)*O44,4)","v":0.1032},"Calculated Value",null,738,"EFLHcool, from 2017 MO TRM",122,12,"IL TRM v7 vol3",77,"SEER",16.53,"Based on SEER value of efficient equipment",null,{"$f":"BF44","v":"SEERbase"},{"$f":"BE44","v":13},"IL TRM v7 vol3",79,"=ROUND((BM44*AW44*(1/BE44-1/AB44))/1000,4)","=ROUND(((AW44*((1/BI44)-(1/AS44)))/1000)*O44,4)","IL TRM v7 vol3",78,"2020-01-01",null,null,null,null,null,13.048782000000003,"EERee","Based on calculation from SEER of installed equipment",null,12000,"Allows for Capacity input in Tons; converts tons to BTUs",null,null,null,null,null,null,13,"SEERbase","IL TRM v7 vol3",79,11.2,"EERbase","IL TRM v7 vol3",81,738,"EFLHcool","EFLHcool, from 2017 MO TRM",122,1376,"EFLHheat","The EFLH Cooling and Heating hours are based on a EnergyStar study that was normalized (based on HDD and CDD) to Kansas City. This was for both AC and HP units.",null," ",null,null,null,null,null,null,null,null,null,null,null,null,null,null,null,null,null,null,null,null,null,null,null,null,null,null,null,0.03,"Societal Discount Rate","Evergy Standard",null,952,"First Cost $/ton","IL TRM v7 vol3",77,221,"One-time per-system labor cost","IL TRM v7 vol3",77,3140,"Deferred cost savings, per UNIT","IL TRM v7 vol3",78,3.5,"Assumed average system tons","Tracking Data"]
["Heating, Cooling & Home Comfort","CAC SEER 17",27.3,"Single Family","HVAC",null,"per ton",368.51,"IL TRM v7 vol3",77,{"$f":"ROUND((BE45*AW45*(1/AF45-1/AB45))/1000,4)","v":160.28960000000001},"Calculated Value",null,0.21719457994579947,0.68,"IL TRM v7 vol3",81,{"$f":"ROUND(((AW45*((1/BA45)-(1/AS45)))/1000)*O45,4)","v":0.1132},"Calculated Value",null,738,"EFLHcool, from 2017 MO TRM",122,18,"IL TRM v7 vol3",77,"SEER",17,"Based on SEER value of efficient equipment",null,"SEER",13,"IL TRM v7 vol3",79,"=ROUND((BE45*AW45*(1/AF45-1/AB45))/1000,4)","=ROUND(((AW45*((1/BA45)-(1/AS45)))/1000)*O45,4)","IL TRM v7 vol3",78,"2020-01-01",null,null,null,null,null,13.260000000000002,"EERee","Based on calculation from SEER of installed equipment",null,12000,"Allows for Capacity input in Tons; converts tons to BTUs"," ",null,11.2,"EERbase","IL TRM v7 vol3",81,738,"EFLHcool","EFLHcool, from 2017 MO TRM",122,1376,"EFLHheat","The EFLH Cooling and Heating hours are based on a EnergyStar study that was normalized (based on HDD and CDD) to Kansas City. This was for both AC and HP units.",null," "]
["Heating, Cooling & Home Comfort","CAC SEER 17 - Early Replacement",28.3,"Single Family","HVAC",null,"per ton",{"$f":"DA46+DE46/DM46-DI46/DM46*(1+CW46)^(-X46)","v":377.7998382895214},"IL TRM v7 vol3",77,{"$f":"ROUND((BE46*AW46*(1/AF46-1/AB46))/1000,4)","v":364.65879999999999},"Calculated Value",null,0.49411761517615171,0.68,"IL TRM v7 vol3",81,{"$f":"ROUND(((AW46*((1/BA46)-(1/AS46)))/1000)*O46,4)","v":0.27160000000000001},"Calculated Value",null,738,"EFLHcool, from 2017 MO TRM",122,6,"IL TRM v7 vol3",77,"SEER",17,"Based on SEER value of efficient equipment",null,"SEER",10,"IL TRM v7 vol3",79,{"$f":"cellformula(K46)","v":"=ROUND((BE46*AW46*(1/AF46-1/AB46))/1000,4)"},{"$f":"cellformula(R46)","v":"=ROUND(((AW46*((1/BA46)-(1/AS46)))/1000)*O46,4)"},"IL TRM v7 vol3",78,"2020-01-01",null,null,null,null,null,13.260000000000002,"EERee","Based on calculation from SEER of installed equipment",null,12000,"Allows for Capacity input in Tons; converts tons to BTUs"," ",null,9.1999999999999993,"EERexist","IL TRM v7 vol3",81,738,"EFLHcool","EFLHcool, from 2017 MO TRM",122,1376,"EFLHheat","The EFLH Cooling and Heating hours are based on a EnergyStar study that was normalized (based on HDD and CDD) to Kansas City. This was for both AC and HP units.",null," ",null,null,null,null,null,null,null,null,null,null,null,null,null,null,null,null,null,null,null,null,null,null,null,null,null,null,null,null,null,null,null,null,null,null,null,0.03,"Societal Discount Rate","Evergy Standard",null,952,"First Cost $/ton","IL TRM v7 vol3",77,620,"One-time per-system labor cost","IL TRM v7 vol3",77,3140,"Deferred cost savings, per UNIT","IL TRM v7 vol3",78,3.5,"Assumed average system tons","Tracking Data"]
["Heating, Cooling & Home Comfort","CAC SEER 17 - Early Replacement (future)",29.3,"Single Family","HVAC",null,"per ton",0,"IL TRM v7 vol3",77,{"$f":"ROUND((BM47*AW47*(1/BE47-1/AB47))/1000,4)","v":160.28960000000001},"Calculated Value",null,0.21719457994579947,0.68,"IL TRM v7 vol3",81,{"$f":"ROUND(((AW47*((1/BI47)-(1/AS47)))/1000)*O47,4)","v":0.1132},"Calculated Value",null,738,"EFLHcool, from 2017 MO TRM",122,12,"IL TRM v7 vol3",77,"SEER",17,"Based on SEER value of efficient equipment",null,{"$f":"BF47","v":"SEERbase"},{"$f":"BE47","v":13},"IL TRM v7 vol3",79,"=ROUND((BM47*AW47*(1/BE47-1/AB47))/1000,4)","=ROUND(((AW47*((1/BI47)-(1/AS47)))/1000)*O47,4)","IL TRM v7 vol3",78,"2020-01-01",null,null,null,null,null,13.260000000000002,"EERee","Based on calculation from SEER of installed equipment",null,12000,"Allows for Capacity input in Tons; converts tons to BTUs"," ",null,null,null,null,null,13,"SEERbase","IL TRM v7 vol3",79,11.2,"EERbase","IL TRM v7 vol3",81,738,"EFLHcool","EFLHcool, from 2017 MO TRM",122,1376,"EFLHheat","The EFLH Cooling and Heating hours are based on a EnergyStar study that was normalized (based on HDD and CDD) to Kansas City. This was for both AC and HP units.",null," ",null,null,null,null,null,null,null,null,null,null,null,null,null,null,null,null,null,null,null,null,null,null,null,null,null,null,null,0.03,"Societal Discount Rate","Evergy Standard",null,952,"First Cost $/ton","IL TRM v7 vol3",77,620,"One-time per-system labor cost","IL TRM v7 vol3",77,3140,"Deferred cost savings, per UNIT","IL TRM v7 vol3",78,3.5,"Assumed average system tons","Tracking Data"]
["Heating, Cooling & Home Comfort","CAC Dual-Speed Compressor",395,"Single Family","HVAC",null,"per ton",{"$f":"(952*(AW48/12000)+620)/BU48","v":1262},"IL TRM v6 vol3",72,{"$f":"ROUND((AS48*AW48*(1/BA48-1/BE48))/1000/BU48,4)","v":265.38459999999998},"Calculated Value",null,{"$f":"ROUND(R48/O48,4)","v":0.21429999999999999},0.68,"Calculated Value",null,{"$f":"ROUND((AW48*(1/BI48-1/BM48))/1000*BQ48/BU48,4)","v":0.1457},"Calculated Value",null,1035,"IL TRM v6 vol3",74,18,"IL TRM v6 vol3",72,"SEER",18,"Daikin DX18TC Series Indoor Model Number: DV29PTCB14A",null,"SEER",13,"IL TRM v6 vol3",72,"=ROUND((AS48*AW48*(1/BA48-1/BE48))/1000/BU48,4)","=ROUND((AW48*(1/BI48-1/BM48))/1000*BQ48/BU48,4)","IL TRM v6 vol3","73, 75","2020-01-01",null,null,null,null,null,1035,"FLHcool","IL TRM v6 vol3",74,24000,"Capacity (Btu/hr)","Daikin DX18TC Series Indoor Model Number: DV29PTCB14A",null,13,"SEERbase","IL TRM v6 vol3",74,18,"SEERee","Daikin DX18TC Series Indoor Model Number: DV29PTCB14A",null,11.2,"EERbase","IL TRM v6 vol3",75,14,"EERee","Daikin DX18TC Series Indoor Model Number: DV29PTCB14A",null,0.68,"CF","IL TRM v6 vol3",75,{"$f":"AW48/12000","v":2},"Tons","IL TRM v6 vol3",null,"Daikin DX18TC Series Indoor Model Number: DV29PTCB14A"," "]
["Heating, Cooling & Home Comfort","CAC Variable-Speed Compressor",396,"Single Family","HVAC",null,"per ton",{"$f":"(952*(AW49/12000)+620)/BU49","v":1278.3157894736844},"IL TRM v6 vol3",72,{"$f":"ROUND((AS49*AW49*(1/BA49-1/BE49))/1000/BU49,4)","v":415.38459999999998},"Calculated Value",null,{"$f":"ROUND(R49/O49,4)","v":0.21429999999999999},0.68,"Calculated Value",null,{"$f":"ROUND((AW49*(1/BI49-1/BM49))/1000*BQ49/BU49,4)","v":0.1457},"Calculated Value",null,1035,"IL TRM v6 vol3",74,18,"IL TRM v6 vol3",72,"SEER",23,"Amana AVXC20 Indoor Model Number: AVPVC24C14A",null,"SEER",13,"IL TRM v6 vol3",72,"=ROUND((AS49*AW49*(1/BA49-1/BE49))/1000/BU49,4)","=ROUND((AW49*(1/BI49-1/BM49))/1000*BQ49/BU49,4)","IL TRM v6 vol3","73, 75","2020-01-01",null,null,null,null,null,1035,"FLHcool","IL TRM v6 vol3",74,22800,"Capacity (Btu/hr)","Amana AVXC20 Indoor Model Number: AVPVC24C14A",null,13,"SEERbase","IL TRM v6 vol3",74,23,"SEERee","Amana AVXC20 Indoor Model Number: AVPVC24C14A",null,11.2,"EERbase","IL TRM v6 vol3",75,14,"EERee","Amana AVXC20 Indoor Model Number: AVPVC24C14A",null,0.68,"CF","IL TRM v6 vol3",75,{"$f":"AW49/12000","v":1.9},"Tons","IL TRM v6 vol3",null,"Amana AVXC20 Indoor Model Number: AVPVC24C14A"," "]
["Heating, Cooling & Home Comfort","ASHP SEER 15",30.3,"Single Family","HVAC",null,"per ton",{"$f":"303/3.5","v":86.571428571428569},"IL TRM v7 vol3",64,{"$f":"ROUND(((U50*AS50*(1/(AF50*(1-BY50))-1/(AB50*CC50*(1-CG50))))/1000)+((BQ50*AS50*(1/(BA50*(1-CK50))-1/(AW50*CO50*(1-CS50))))/1000),4)","v":163.32400000000001},"Calculated Value",null,{"$f":"R50","v":0.1047},0.72,"IL TRM v7 vol3",65,{"$f":"ROUND((AS50*(1/(BI50*(1-BY50))-1/(BE50*(1-CG50))))/1000*O50,4)","v":0.1047},"Calculated Value",null,738,"EFLHcool, from 2017 MO TRM",85,16,"IL TRM v7 vol3",64,"SEERee",15.17,"per PY2018 Metadata WHE",null,"SEERbase",14,"IL TRM v7 vol3",67,"=ROUND(((U50*AS50*(1/(AF50*(1-BY50))-1/(AB50*CC50*(1-CG50))))/1000)+((BQ50*AS50*(1/(BA50*(1-CK50))-1/(AW50*CO50*(1-CS50))))/1000),4)","=ROUND((AS50*(1/(BI50*(1-BY50))-1/(BE50*(1-CG50))))/1000*O50,4)","IL TRM v7 vol3","65, 69","2020-01-01",null,null,null,null,null,12000,"Allows for Capacity input in Tons; converts tons to BTUs"," ",null,8.5833333333333339,"HSPFee","per PY2018 Metadata WHE",null,8.1999999999999993,"HSPFbase","IL TRM v7 vol3",68,12.5,"EERee","Calculated per PY2018 Metadata WHE",null,11,"EERbase","IL TRM v7 vol3",70,738,"EFLHcool","EFLHcool, from 2017 MO TRM",85,1376,"EFLHheat","The EFLH Cooling and Heating hours are based on a EnergyStar study that was normalized (based on HDD and CDD) to Kansas City. This was for both AC and HP units.",null,8.1999999999999993,"HSPFbase","IL TRM v7 vol3",68,0.1,"Derating_Cool_Base","IL TRM v7 vol3",67,1.0109999999999999,"SEERadj","IL TRM v7 vol3","69 (example)",0.1,"Derating_Cool_Eff","IL TRM v7 vol3",67,0.1,"Derating_Heat_Base","IL TRM v7 vol3",68,1.0009999999999999,"HSPFadj","IL TRM v7 vol3","69 (example)",0.1,"Derating_Heat_Eff","IL TRM v7 vol3",68]
["Heating, Cooling & Home Comfort","ASHP SEER 15 - Early Replacement",31.3,"Single Family","HVAC",null,"per ton",{"$f":"DA51+DE51/DM51-DI51*(1+CW51)^(-X51)","v":196.27032692564126},"IL TRM v7 vol3",64,1685.2530999999999,"Calculated Value",null,{"$f":"K51/U51","v":2.2835407859078591},0.72,"IL TRM v7 vol3",70,0.505,"Calculated Value",null,738,"EFLHcool, from 2017 MO TRM",85,6,"IL TRM v7 vol3",64,"SEERee",15.17,"per PY2018 Metadata WHE",null,"SEERexist",9.3000000000000007,"IL TRM v7 vol3",66,"=ROUND(((U51*AS51*(1/(AF51*(1-BY51))-1/(AB51*CC51*(1-CG51))))/1000)+((BQ51*AS51*(1/(BA51*(1-CK51))-1/(AW51*CO51*(1-CS51))))/1000),4)","=ROUND((AS51*(1/(BI51*(1-BY51))-1/(BE51*(1-CG51))))/1000*O51,4)","IL TRM v7 vol3","65, 69","2020-01-01",null,null,null,null,null,12000,"Allows for Capacity input in Tons; converts tons to BTUs"," ",null,8.7121428571428563,"HSPFee","per PY2018 Metadata WHE",null,5.44,"HSPFbase","IL TRM v7 vol3",68,{"$f":"(-0.02*AB51^2)+(1.12*AB51)","v":12.387822},"EERee","Calculated per PY2018 Metadata WHE",null,7.5,"EERexist","IL TRM v7 vol3",70,738,"EFLHcool","EFLHcool, from 2017 MO TRM",85,1376,"EFLHheat","The EFLH Cooling and Heating hours are based on a EnergyStar study that was normalized (based on HDD and CDD) to Kansas City. This was for both AC and HP units.",null,5.54,"HSPFexist","IL TRM v7 vol3",68,0.1,"Derating_Cool_Base","IL TRM v7 vol3",67,1.0109999999999999,"SEERadj","IL TRM v7 vol3","69 (example)",0.1,"Derating_Cool_Eff","IL TRM v7 vol3",67,0.1,"Derating_Heat_Base","IL TRM v7 vol3",68,1.0009999999999999,"HSPFadj","IL TRM v7 vol3","69 (example)",0.1,"Derating_Heat_Eff","IL TRM v7 vol3",68,0.03,"Societal Discount Rate","Evergy Standard",null,1381,"First Cost $/ton","IL TRM v7 vol3",64,303,"One-time per-system labor cost","IL TRM v7 vol3",64,1518,"Deferred cost savings","IL TRM v7 vol3",65,3.5,"Assumed average system tons","Tracking Data"]
["Heating, Cooling & Home Comfort","ASHP SEER 15 - Early Replacement (future)",32.299999999999997,"Single Family","HVAC",null,"per ton",0,"IL TRM v7 vol3",64,194.89510000000001,"Calculated Value",null,0.26408550135501357,0.72,"IL TRM v7 vol3",70,9.7799999999999998E-2,"Calculated Value",null,738,"EFLHcool, from 2017 MO TRM",85,10,"IL TRM v7 vol3",64,"SEERee",15.17,"per PY2018 Metadata WHE",null,"SEERbase",14,"IL TRM v7 vol3",66,"=ROUND(((U52*AS52*(1/(AF52*(1-BY52))-1/(AB52*CC52*(1-CG52))))/1000)+((BQ52*AS52*(1/(BA52*(1-CK52))-1/(AW52*CO52*(1-CS52))))/1000),4)","=ROUND((AS52*(1/(BI52*(1-BY52))-1/(BE52*(1-CG52))))/1000*O52,4)","IL TRM v7 vol3","65, 69","2020-01-01",null,null,null,null,null,12000,"Allows for Capacity input in Tons; converts tons to BTUs",null,null,8.7121428571428563,"HSPFee","per PY2018 Metadata WHE",null,8.1999999999999993,"HSPFexist","IL TRM v7 vol3",68,{"$f":"(-0.02*AB52^2)+(1.12*AB52)","v":12.387822},"EERee","Calculated per PY2018 Metadata WHE",null,11,"EERbase","IL TRM v7 vol3",70,738,"EFLHcool","EFLHcool, from 2017 MO TRM",85,1376,"EFLHheat","The EFLH Cooling and Heating hours are based on a EnergyStar study that was normalized (based on HDD and CDD) to Kansas City. This was for both AC and HP units.",null,8.1999999999999993,"HSPFbase","IL TRM v7 vol3",68,0.1,"Derating_Cool_Base","IL TRM v7 vol3",67,1.0109999999999999,"SEERadj","IL TRM v7 vol3","69 (example)",0.1,"Derating_Cool_Eff","IL TRM v7 vol3",67,0.1,"Derating_Heat_Base","IL TRM v7 vol3",68,1.0009999999999999,"HSPFadj","IL TRM v7 vol3","69 (example)",0.1,"Derating_Heat_Eff","IL TRM v7 vol3",68,0.03,"Societal Discount Rate","Evergy Standard",null,1381,"First Cost $/ton","IL TRM v7 vol3",64,303,"One-time per-system labor cost","IL TRM v7 vol3",64,1518,"Deferred cost savings","IL TRM v7 vol3",65,3.5,"Assumed average system tons","Tracking Data"]
["Heating, Cooling & Home Comfort","ASHP SEER 15 - Replace Electric Resistance Heat",33.299999999999997,"Single Family","HVAC",null,"per ton",{"$f":"303/3.5","v":86.571428571428569},"IL TRM v7 vol3",64,233.19329999999999,"Calculated Value",null,{"$f":"R53","v":0.1198},0.72,"IL TRM v7 vol3",65,0.1198,"Calculated Value",null,738,"EFLHcool, from 2017 MO TRM",85,16,"IL TRM v7 vol3",64,"SEERee",15.17,"per PY2018 Metadata WHE",null,"SEERbase",14,"IL TRM v7 vol3",67,"=ROUND(((U53*AS53*(1/(AF53*(1-BY53))-1/(AB53*CC53*(1-CG53))))/1000)+((BQ53*AS53*(1/(BA53*(1-CK53))-1/(AW53*CO53*(1-CS53))))/1000),4)","=ROUND((AS53*(1/(BI53*(1-BY53))-1/(BE53*(1-CG53))))/1000*O53,4)","IL TRM v7 vol3","65, 69","2020-01-01",null,null,null,null,null,12000,"Allows for Capacity input in Tons; converts tons to BTUs"," ",null,8.8736842105263154,"HSPFee","per PY2018 Metadata WHE",null,8.1999999999999993,"HSPFbase","IL TRM v7 vol3",68,12.75,"EERee","Calculated per PY2018 Metadata WHE",null,11,"EERbase","IL TRM v7 vol3",70,738,"EFLHcool","EFLHcool, from 2017 MO TRM",85,1376,"EFLHheat","The EFLH Cooling and Heating hours are based on a EnergyStar study that was normalized (based on HDD and CDD) to Kansas City. This was for both AC and HP units.",null,8.1999999999999993,"HSPFbase","IL TRM v7 vol3",68,0.1,"Derating_Cool_Base","IL TRM v7 vol3",67,1.0109999999999999,"SEERadj","IL TRM v7 vol3","69 (example)",0.1,"Derating_Cool_Eff","IL TRM v7 vol3",67,0.1,"Derating_Heat_Base","IL TRM v7 vol3",68,1.0009999999999999,"HSPFadj","IL TRM v7 vol3","69 (example)",0.1,"Derating_Heat_Eff","IL TRM v7 vol3",68]
["Heating, Cooling & Home Comfort","ASHP SEER 15 - Replace Electric Resistance Heat - Early Replacement",314.2,"Single Family","HVAC",null,"per ton",{"$f":"DA54+DE54/DM54-DI54*(1+CW54)^(-X54)","v":196.27032692564126},"IL TRM v7 vol3",64,3692.9582999999998,"Calculated Value",null,{"$f":"R54","v":0.505},0.72,"IL TRM v7 vol3",65,0.505,"Calculated Value",null,738,"EFLHcool, from 2017 MO TRM",85,6,"IL TRM v7 vol3",64,"SEERee",15.17,"per PY2018 Metadata WHE",null,"SEERexist",9.3000000000000007,"IL TRM v7 vol3",66,"=ROUND(((U54*AS54*(1/(AF54*(1-BY54))-1/(AB54*CC54*(1-CG54))))/1000)+((BQ54*AS54*(1/(BA54*(1-CK54))-1/(AW54*CO54*(1-CS54))))/1000),4)","=ROUND((AS54*(1/(BI54*(1-BY54))-1/(BE54*(1-CG54))))/1000*O54,4)","IL TRM v7 vol3","65, 69","2020-01-01",null,null,null,null,null,12000,"Allows for Capacity input in Tons; converts tons to BTUs"," ",null,8.7121428571428563,"HSPFee","per PY2018 Metadata WHE",null,3.41,"HSPFexist","IL TRM v7 vol3",68,{"$f":"(-0.02*AB54^2)+(1.12*AB54)","v":12.387822},"EERee","Calculated per PY2018 Metadata WHE",null,7.5,"EERexist","IL TRM v7 vol3",70,738,"EFLHcool","EFLHcool, from 2017 MO TRM",85,1376,"EFLHheat","The EFLH Cooling and Heating hours are based on a EnergyStar study that was normalized (based on HDD and CDD) to Kansas City. This was for both AC and HP units.",null,3.41,"HSPFexist","IL TRM v7 vol3",68,0.1,"Derating_Cool_Base","IL TRM v7 vol3",67,1.0109999999999999,"SEERadj","IL TRM v7 vol3","69 (example)",0.1,"Derating_Cool_Eff","IL TRM v7 vol3",67,0.1,"Derating_Heat_Base","IL TRM v7 vol3",68,1.0009999999999999,"HSPFadj","IL TRM v7 vol3","69 (example)",0.1,"Derating_Heat_Eff","IL TRM v7 vol3",68,0.03,"Societal Discount Rate","Evergy Standard",null,1381,"First Cost $/ton","IL TRM v7 vol3",64,303,"One-time per-system labor cost","IL TRM v7 vol3",64,1518,"Deferred cost savings","IL TRM v7 vol3",65,3.5,"Assumed average system tons","Tracking Data"]
["Heating, Cooling & Home Comfort","ASHP SEER 15 - Replace Electric Resistance Heat - Early Replacement (future)",315.2,"Single Family","HVAC",null,"per ton",0,"IL TRM v7 vol3",65,194.89510000000001,"Calculated Value",null,{"$f":"R55","v":9.7799999999999998E-2},0.72,"IL TRM v7 vol3",65,9.7799999999999998E-2,"Calculated Value",null,738,"EFLHcool, from 2017 MO TRM",85,10,"IL TRM v7 vol3",64,"SEERee",15.17,"per PY2018 Metadata WHE",null,"SEERbase",14,"IL TRM v7 vol3",67,"=ROUND(((U55*AS55*(1/(AF55*(1-BY55))-1/(AB55*CC55*(1-CG55))))/1000)+((BQ55*AS55*(1/(BA55*(1-CK55))-1/(AW55*CO55*(1-CS55))))/1000),4)","=ROUND((AS55*(1/(BI55*(1-BY55))-1/(BE55*(1-CG55))))/1000*O55,4)","IL TRM v7 vol3","65, 69","2020-01-01",null,null,null,null,null,12000,"Allows for Capacity input in Tons; converts tons to BTUs"," ",null,8.7121428571428563,"HSPFee","per PY2018 Metadata WHE",null,8.1999999999999993,"HSPFbase","IL TRM v7 vol3",68,{"$f":"(-0.02*AB55^2)+(1.12*AB55)","v":12.387822},"EERee","Calculated per PY2018 Metadata WHE",null,11,"EERbase","IL TRM v7 vol3",70,738,"EFLHcool","EFLHcool, from 2017 MO TRM",85,1376,"EFLHheat","The EFLH Cooling and Heating hours are based on a EnergyStar study that was normalized (based on HDD and CDD) to Kansas City. This was for both AC and HP units.",null,8.1999999999999993,"HSPFbase","IL TRM v7 vol3",68,0.1,"Derating_Cool_Base","IL TRM v7 vol3",67,1.0109999999999999,"SEERadj","IL TRM v7 vol3","69 (example)",0.1,"Derating_Cool_Eff","IL TRM v7 vol3",67,0.1,"Derating_Heat_Base","IL TRM v7 vol3",68,1.0009999999999999,"HSPFadj","IL TRM v7 vol3","69 (example)",0.1,"Derating_Heat_Eff","IL TRM v7 vol3",68,0.03,"Societal Discount Rate","Evergy Standard",null,1381,"First Cost $/ton","IL TRM v7 vol3",64,303,"One-time per-system labor cost","IL TRM v7 vol3",64,1518,"Deferred cost savings","IL TRM v7 vol3",65,3.5,"Assumed average system tons","Tracking Data"]
["Heating, Cooling & Home Comfort","ASHP SEER 16",34.299999999999997,"Single Family","HVAC",null,"per ton",{"$f":"438/3.5","v":125.14285714285714},"IL TRM v7 vol3",64,314.73919999999998,"Calculated Value",null,{"$f":"R56","v":0.13070000000000001},0.72,"IL TRM v7 vol3",65,0.13070000000000001,"Calculated Value",null,738,"EFLHcool, from 2017 MO TRM",85,16,"IL TRM v7 vol3",64,"SEERee",16.04,"per PY2018 Metadata WHE",null,"SEERbase",14,"IL TRM v7 vol3",67,"=ROUND(((U56*AS56*(1/(AF56*(1-BY56))-1/(AB56*CC56*(1-CG56))))/1000)+((BQ56*AS56*(1/(BA56*(1-CK56))-1/(AW56*CO56*(1-CS56))))/1000),4)","=ROUND((AS56*(1/(BI56*(1-BY56))-1/(BE56*(1-CG56))))/1000*O56,4)","IL TRM v7 vol3","65, 69","2020-01-01",null,null,null,null,null,12000,"Allows for Capacity input in Tons; converts tons to BTUs"," ",null,9.0791666666666675,"HSPFee","per PY2018 Metadata WHE",null,8.1999999999999993,"HSPFbase","IL TRM v7 vol3",68,12.9375,"EERee","Calculated per PY2018 Metadata WHE",null,11,"EERbase","IL TRM v7 vol3",70,738,"EFLHcool","EFLHcool, from 2017 MO TRM",85,1376,"EFLHheat","The EFLH Cooling and Heating hours are based on a EnergyStar study that was normalized (based on HDD and CDD) to Kansas City. This was for both AC and HP units.",null,8.1999999999999993,"HSPFbase","IL TRM v7 vol3",68,0.1,"Derating_Cool_Base","IL TRM v7 vol3",67,1.0109999999999999,"SEERadj","IL TRM v7 vol3","69 (example)",0.1,"Derating_Cool_Eff","IL TRM v7 vol3",67,0.1,"Derating_Heat_Base","IL TRM v7 vol3",68,1.0009999999999999,"HSPFadj","IL TRM v7 vol3","69 (example)",0.1,"Derating_Heat_Eff","IL TRM v7 vol3",68]
["Heating, Cooling & Home Comfort","ASHP SEER 16 - Early Replacement",35.299999999999997,"Single Family","HVAC",null,"per ton",{"$f":"DA57+DE57/DM57-DI57*(1+CW57)^(-X57)","v":196.27032692564126},"IL TRM v7 vol3",64,1804.8717999999999,"Calculated Value",null,{"$f":"K57/U57","v":2.4456257452574524},0.72,"IL TRM v7 vol3",70,0.53220000000000001,"Calculated Value",null,738,"EFLHcool, from 2017 MO TRM",85,6,"IL TRM v7 vol3",64,"SEER",16.079999999999998,"per PY2018 Metadata WHE",null,"SEER",9.1199999999999992,"IL TRM v7 vol3",66,"=ROUND(((U57*AS57*(1/(AF57*(1-BY57))-1/(AB57*CC57*(1-CG57))))/1000)+((BQ57*AS57*(1/(BA57*(1-CK57))-1/(AW57*CO57*(1-CS57))))/1000),4)","=ROUND((AS57*(1/(BI57*(1-BY57))-1/(BE57*(1-CG57))))/1000*O57,4)","IL TRM v7 vol3","65, 69","2020-01-01",null,null,null,null,null,12000,"Allows for Capacity input in Tons; converts tons to BTUs"," ",null,8.9785714285714295,"HSPFee","per PY2018 Metadata WHE",null,5.44,"HSPFbase","IL TRM v7 vol3",68,{"$f":"(-0.02*AB57^2)+(1.12*AB57)","v":12.838272},"EERee","Calculated per PY2018 Metadata WHE",null,7.5,"EERexist","IL TRM v7 vol3",70,738,"EFLHcool","EFLHcool, from 2017 MO TRM",85,1376,"EFLHheat","The EFLH Cooling and Heating hours are based on a EnergyStar study that was normalized (based on HDD and CDD) to Kansas City. This was for both AC and HP units.",null,5.54,"HSPFexist","IL TRM v7 vol3",68,0.1,"Derating_Cool_Base","IL TRM v7 vol3",67,1.0109999999999999,"SEERadj","IL TRM v7 vol3","69 (example)",0.1,"Derating_Cool_Eff","IL TRM v7 vol3",67,0.1,"Derating_Heat_Base","IL TRM v7 vol3",68,1.0009999999999999,"HSPFadj","IL TRM v7 vol3","69 (example)",0.1,"Derating_Heat_Eff","IL TRM v7 vol3",68,0.03,"Societal Discount Rate","Evergy Standard",null,1381,"First Cost $/ton","IL TRM v7 vol3",64,303,"One-time per-system labor cost","IL TRM v7 vol3",64,1518,"Deferred cost savings","IL TRM v7 vol3",65,3.5,"Assumed average system tons","Tracking Data"]
["Heating, Cooling & Home Comfort","ASHP SEER 16 - Early Replacement (future)",36.299999999999997,"Single Family","HVAC",null,"per ton",0,"IL TRM v7 vol3",64,108.9521,"Calculated Value",null,0.14763157181571815,0.72,"IL TRM v7 vol3",70,0.125,"Calculated Value",null,738,"EFLHcool, from 2017 MO TRM",85,10,"IL TRM v7 vol3",64,"SEER",16.079999999999998,"per PY2018 Metadata WHE",null,{"$f":"BN58","v":"SEERbase"},{"$f":"BM58","v":14},"IL TRM v7 vol3",66,"=ROUND(((U58*AS58*(1/(AF58*(1-BY58))-1/(AB58*CC58*(1-CG58))))/1000)+((BQ58*AS58*(1/(BA58*(1-CK58))-1/(AW58*CO58*(1-CS58))))/1000),4)","=ROUND((AS58*(1/(BI58*(1-BY58))-1/(BE58*(1-CG58))))/1000*O58,4)","IL TRM v7 vol3","65, 69","2020-01-01",null,null,null,null,null,12000,"Allows for Capacity input in Tons; converts tons to BTUs"," ",null,8.9785714285714295,"HSPFee","per PY2018 Metadata WHE",null,5.44,"HSPFexist","IL TRM v7 vol3",68,{"$f":"(-0.02*AB58^2)+(1.12*AB58)","v":12.838272},"EERee","Calculated per PY2018 Metadata WHE",null,11,"EERbase","IL TRM v7 vol3",70,14,"SEERbase","EFLHcool, from 2017 MO TRM",85,{"$f":"(-0.02*BM58^2)+(1.12*BM58)","v":11.760000000000002},"EERbase","Based on SEER base",null,8.1999999999999993,"HSPFbase","IL TRM v7 vol3",68,0.1,"Derating_Cool_Base","IL TRM v7 vol3",67,1.0109999999999999,"SEERadj","IL TRM v7 vol3","69 (example)",0.1,"Derating_Cool_Eff","IL TRM v7 vol3",67,0.1,"Derating_Heat_Base","IL TRM v7 vol3",68,1.0009999999999999,"HSPFadj","IL TRM v7 vol3","69 (example)",0.1,"Derating_Heat_Eff","IL TRM v7 vol3",68,0.03,"Societal Discount Rate","Evergy Standard",null,1381,"First Cost $/ton","IL TRM v7 vol3",64,303,"One-time per-system labor cost","IL TRM v7 vol3",64,1518,"Deferred cost savings","IL TRM v7 vol3",65,3.5,"Assumed average system tons","Tracking Data"]
["Heating, Cooling & Home Comfort","ASHP SEER 16 - Replace Electric Resistance Heat",37.299999999999997,"Single Family","HVAC",null,"per ton",793.15789473684208,"IL TRM v5",59,{"$f":"ROUND((BM59*AS59*(1/AF59-1/AB59))/1000+(BQ59*AS59*(1/BA59-1/AW59)/1000),4)","v":273.2928},"Calculated Value",null,0.37031544715447157,0.72,"Calculated Value",null,{"$f":"ROUND((AS59*(1/BI59-1/BE59)/1000)*O59,4)","v":4.7800000000000002E-2},"Calculated Value",null,738,"EFLHcool, from 2017 MO TRM",85,18,"IL TRM v5 vol3",59,"SEER",16.11,"per PY2018 Metadata",null,"SEERbase",14,"IL TRM v5 vol3",62,{"$f":"cellformula(K59)","v":"=ROUND((BM59*AS59*(1/AF59-1/AB59))/1000+(BQ59*AS59*(1/BA59-1/AW59)/1000),4)"},{"$f":"cellformula(R59)","v":"=ROUND((AS59*(1/BI59-1/BE59)/1000)*O59,4)"},"IL TRM v5 vol3","60, 63","2020-01-01",null,null,null,null,null,12000,"Allows for Capacity input in Tons; converts tons to BTUs"," ",null,9.0565217391304333,"HSPFee","Calculated per PY2016 Metadata",null,8.1999999999999993,"HSPFbase","IL TRM v5 vol3",63,12.625,"EERee","Calculated per PY2016 Metadata",null,11.8,"EERbase","IL TRM v5 vol3",64,738,"EFLHcool","EFLHcool, from 2017 MO TRM",85,1376,"EFLHheat","The EFLH Cooling and Heating hours are based on a EnergyStar study that was normalized (based on HDD and CDD) to Kansas City. This was for both AC and HP units.",null," "]
["Heating, Cooling & Home Comfort","ASHP SEER 16 - Replace Electric Resistance Heat - Early Replacement",316.2,"Single Family","HVAC",null,"per ton",{"$f":"DA60+DE60/DM60-DI60*(1+CW60)^(-X60)","v":234.8417554970697},"IL TRM v7 vol3",64,{"$f":"ROUND(((U60*AS60*(1/(AF60*(1-BY60))-1/(AB60*CC60*(1-CG60))))/1000)+((BQ60*AS60*(1/(BA60*(1-CK60))-1/(AW60*CO60*(1-CS60))))/1000),4)","v":3791.6941000000002},"Calculated Value",null,{"$f":"R60","v":0.53220000000000001},0.72,"IL TRM v7 vol3",65,{"$f":"ROUND((AS60*(1/(BI60*(1-BY60))-1/(BE60*(1-CG60))))/1000*O60,4)","v":0.53220000000000001},"Calculated Value",null,738,"EFLHcool, from 2017 MO TRM",85,6,"IL TRM v7 vol3",64,"SEERee",16.079999999999998,"per PY2018 Metadata WHE",null,"SEERexist",9.3000000000000007,"IL TRM v7 vol3",66,"=ROUND(((U60*AS60*(1/(AF60*(1-BY60))-1/(AB60*CC60*(1-CG60))))/1000)+((BQ60*AS60*(1/(BA60*(1-CK60))-1/(AW60*CO60*(1-CS60))))/1000),4)","=ROUND((AS60*(1/(BI60*(1-BY60))-1/(BE60*(1-CG60))))/1000*O60,4)","IL TRM v7 vol3","65, 69","2020-01-01",null,null,null,null,null,12000,"Allows for Capacity input in Tons; converts tons to BTUs"," ",null,8.9785714285714295,"HSPFee","per PY2018 Metadata WHE",null,3.41,"HSPFexist","IL TRM v7 vol3",68,{"$f":"(-0.02*AB60^2)+(1.12*AB60)","v":12.838272},"EERee","Calculated per PY2018 Metadata WHE",null,7.5,"EERexist","IL TRM v7 vol3",70,738,"EFLHcool","EFLHcool, from 2017 MO TRM",85,1376,"EFLHheat","The EFLH Cooling and Heating hours are based on a EnergyStar study that was normalized (based on HDD and CDD) to Kansas City. This was for both AC and HP units.",null,3.41,"HSPFexist","IL TRM v7 vol3",68,0.1,"Derating_Cool_Base","IL TRM v7 vol3",67,1.0109999999999999,"SEERadj","IL TRM v7 vol3","69 (example)",0.1,"Derating_Cool_Eff","IL TRM v7 vol3",67,0.1,"Derating_Heat_Base","IL TRM v7 vol3",68,1.0009999999999999,"HSPFadj","IL TRM v7 vol3","69 (example)",0.1,"Derating_Heat_Eff","IL TRM v7 vol3",68,0.03,"Societal Discount Rate","Evergy Standard",null,1381,"First Cost $/ton","IL TRM v7 vol3",64,438,"One-time per-system labor cost","IL TRM v7 vol3",64,1518,"Deferred cost savings","IL TRM v7 vol3",65,3.5,"Assumed average system tons","Tracking Data"]
["Heating, Cooling & Home Comfort","ASHP SEER 16 - Replace Electric Resistance Heat - Early Replacement (future)",317.2,"Single Family","HVAC",null,"per ton",0,"IL TRM v7 vol3",65,{"$f":"ROUND(((U61*AS61*(1/(AF61*(1-BY61))-1/(AB61*CC61*(1-CG61))))/1000)+((BQ61*AS61*(1/(BA61*(1-CK61))-1/(AW61*CO61*(1-CS61))))/1000),4)","v":293.6309},"Calculated Value",null,{"$f":"R61","v":0.125},0.72,"IL TRM v7 vol3",65,{"$f":"ROUND((AS61*(1/(BI61*(1-BY61))-1/(BE61*(1-CG61))))/1000*O61,4)","v":0.125},"Calculated Value",null,738,"EFLHcool, from 2017 MO TRM",85,10,"IL TRM v7 vol3",64,"SEERee",16.079999999999998,"per PY2018 Metadata WHE",null,"SEERbase",14,"IL TRM v7 vol3",67,"=ROUND(((U61*AS61*(1/(AF61*(1-BY61))-1/(AB61*CC61*(1-CG61))))/1000)+((BQ61*AS61*(1/(BA61*(1-CK61))-1/(AW61*CO61*(1-CS61))))/1000),4)","=ROUND((AS61*(1/(BI61*(1-BY61))-1/(BE61*(1-CG61))))/1000*O61,4)","IL TRM v7 vol3","65, 69","2020-01-01",null,null,null,null,null,12000,"Allows for Capacity input in Tons; converts tons to BTUs"," ",null,8.9785714285714295,"HSPFee","per PY2018 Metadata WHE",null,8.1999999999999993,"HSPFbase","IL TRM v7 vol3",68,{"$f":"(-0.02*AB61^2)+(1.12*AB61)","v":12.838272},"EERee","Calculated per PY2018 Metadata WHE",null,11,"EERbase","IL TRM v7 vol3",70,738,"EFLHcool","EFLHcool, from 2017 MO TRM",85,1376,"EFLHheat","The EFLH Cooling and Heating hours are based on a EnergyStar study that was normalized (based on HDD and CDD) to Kansas City. This was for both AC and HP units.",null,8.1999999999999993,"HSPFbase","IL TRM v7 vol3",68,0.1,"Derating_Cool_Base","IL TRM v7 vol3",67,1.0109999999999999,"SEERadj","IL TRM v7 vol3","69 (example)",0.1,"Derating_Cool_Eff","IL TRM v7 vol3",67,0.1,"Derating_Heat_Base","IL TRM v7 vol3",68,1.0009999999999999,"HSPFadj","IL TRM v7 vol3","69 (example)",0.1,"Derating_Heat_Eff","IL TRM v7 vol3",68,0.03,"Societal Discount Rate","Evergy Standard",null,1381,"First Cost $/ton","IL TRM v7 vol3",64,438,"One-time per-system labor cost","IL TRM v7 vol3",64,1518,"Deferred cost savings","IL TRM v7 vol3",65,3.5,"Assumed average system tons","Tracking Data"]
["Heating, Cooling & Home Comfort","ASHP SEER 17",38.299999999999997,"Single Family","HVAC",null,"per ton",411,"IL TRM v5",59,{"$f":"ROUND((BM62*AS62*(1/AF62-1/AB62))/1000+(BQ62*AS62*(1/BA62-1/AW62)/1000),4)","v":318.33319999999998},"Calculated Value",null,{"$f":"K62/U62","v":0.43134579945799456},0.72,"Calculated Value",null,{"$f":"ROUND((AS62*(1/BI62-1/BE62)/1000)*O62,4)","v":4.1000000000000002E-2},"Calculated Value",null,738,"EFLHcool, from 2017 MO TRM",85,18,"IL TRM v5 vol3",59,"SEER",17.25,"per PY2018 Metadata",null,"SEER",14,"IL TRM v5 vol3",62,"=ROUND((BM62*AS62*(1/AF62-1/AB62))/1000+(BQ62*AS62*(1/BA62-1/AW62)/1000),4)","=ROUND((AS62*(1/BI62-1/BE62)/1000)*O62,4)","IL TRM v5 vol3","60, 63","2020-01-01",null,null,null,null,null,12000,"Allows for Capacity input in Tons; converts tons to BTUs"," ",null,9.1,"HSPFee","Calculated per PY2016 Metadata",null,8.1999999999999993,"HSPFbase","IL TRM v5 vol3",63,12.5,"EERee","Calculated per PY2016 Metadata",null,11.8,"EERbase","IL TRM v5 vol3",64,738,"EFLHcool","EFLHcool, from 2017 MO TRM",85,1376,"EFLHheat","The EFLH Cooling and Heating hours are based on a EnergyStar study that was normalized (based on HDD and CDD) to Kansas City. This was for both AC and HP units.",null," "]
["Heating, Cooling & Home Comfort","ASHP SEER 17 - Early Replacement",39.299999999999997,"Single Family","HVAC",null,"per ton",{"$f":"DA63+DE63/DM63-DI63*(1+CW63)^(-X63)","v":196.27032692564126},"IL TRM v7 vol3",64,{"$f":"ROUND(((U63*AS63*(1/(AF63*(1-BY63))-1/(AB63*CC63*(1-CG63))))/1000)+((BQ63*AS63*(1/(BA63*(1-CK63))-1/(AW63*CO63*(1-CS63))))/1000),4)","v":2003.7331999999999},"Calculated Value",null,2.7150856368563683,0.72,"IL TRM v7 vol3",70,{"$f":"ROUND((AS63*(1/(BI63*(1-BY63))-1/(BE63*(1-CG63))))/1000*O63,4)","v":0.58499999999999996},"Calculated Value",null,738,"EFLHcool, from 2017 MO TRM",85,6,"IL TRM v7 vol3",64,"SEER",18.34,"per PY2018 Metadata WHE",null,"SEER",9.1199999999999992,"IL TRM v7 vol3",66,"=ROUND(((U63*AS63*(1/(AF63*(1-BY63))-1/(AB63*CC63*(1-CG63))))/1000)+((BQ63*AS63*(1/(BA63*(1-CK63))-1/(AW63*CO63*(1-CS63))))/1000),4)","=ROUND((AS63*(1/(BI63*(1-BY63))-1/(BE63*(1-CG63))))/1000*O63,4)","IL TRM v7 vol3","65, 69","2020-01-01",null,null,null,null,null,12000,"Allows for Capacity input in Tons; converts tons to BTUs"," ",null,9.5606060606060677,"HSPFee","per PY2018 Metadata WHE",null,5.44,"HSPFbase","IL TRM v7 vol3",68,{"$f":"(-0.02*AB63^2)+(1.12*AB63)","v":13.813688000000001},"EERee","Calculated per PY2018 Metadata WHE",null,7.5,"EERexist","IL TRM v7 vol3",70,738,"EFLHcool","EFLHcool, from 2017 MO TRM",85,1376,"EFLHheat","The EFLH Cooling and Heating hours are based on a EnergyStar study that was normalized (based on HDD and CDD) to Kansas City. This was for both AC and HP units.",null,5.54,"HSPFexist","IL TRM v7 vol3",68,0.1,"Derating_Cool_Base","IL TRM v7 vol3",67,1.0109999999999999,"SEERadj","IL TRM v7 vol3","69 (example)",0.1,"Derating_Cool_Eff","IL TRM v7 vol3",67,0.1,"Derating_Heat_Base","IL TRM v7 vol3",68,1.0009999999999999,"HSPFadj","IL TRM v7 vol3","69 (example)",0.1,"Derating_Heat_Eff","IL TRM v7 vol3",68,0.03,"Societal Discount Rate","Evergy Standard",null,1381,"First Cost $/ton","IL TRM v7 vol3",64,303,"One-time per-system labor cost","IL TRM v7 vol3",64,1518,"Deferred cost savings","IL TRM v7 vol3",65,3.5,"Assumed average system tons","Tracking Data"]
["Heating, Cooling & Home Comfort","ASHP SEER 17 - Early Replacement (future)",40.299999999999997,"Single Family","HVAC",null,"per ton",0,"IL TRM v7 vol3",64,{"$f":"ROUND(((U64*AS64*(1/(AF64*(1-BY64))-1/(AB64*CC64*(1-CG64))))/1000)+((BQ64*AS64*(1/(BA64*(1-CK64))-1/(AW64*CO64*(1-CS64))))/1000),4)","v":184.6019},"Calculated Value",null,0.25013807588075881,0.72,"IL TRM v7 vol3",70,{"$f":"ROUND((AS64*(1/(BI64*(1-BY64))-1/(BE64*(1-CG64))))/1000*O64,4)","v":0.17780000000000001},"Calculated Value",null,738,"EFLHcool, from 2017 MO TRM",85,10,"IL TRM v7 vol3",64,"SEER",18.34,"per PY2018 Metadata WHE",null,{"$f":"BN64","v":"SEERbase"},{"$f":"BM64","v":14},"IL TRM v7 vol3",66,"=ROUND(((U64*AS64*(1/(AF64*(1-BY64))-1/(AB64*CC64*(1-CG64))))/1000)+((BQ64*AS64*(1/(BA64*(1-CK64))-1/(AW64*CO64*(1-CS64))))/1000),4)","=ROUND((AS64*(1/(BI64*(1-BY64))-1/(BE64*(1-CG64))))/1000*O64,4)","IL TRM v7 vol3","65, 69","2020-01-01",null,null,null,null,null,12000,"Allows for Capacity input in Tons; converts tons to BTUs"," ",null,9.5606060606060677,"HSPFee","per PY2018 Metadata WHE",null,5.44,"HSPFexist","IL TRM v7 vol3",68,{"$f":"(-0.02*AB64^2)+(1.12*AB64)","v":13.813688000000001},"EERee","Calculated per PY2018 Metadata WHE",null,11,"EERbase","IL TRM v7 vol3",70,14,"SEERbase","EFLHcool, from 2017 MO TRM",85,{"$f":"(-0.02*BM64^2)+(1.12*BM64)","v":11.760000000000002},"EERbase","Based on SEER base",null,8.1999999999999993,"HSPFbase","IL TRM v7 vol3",68,0.1,"Derating_Cool_Base","IL TRM v7 vol3",67,1.0109999999999999,"SEERadj","IL TRM v7 vol3","69 (example)",0.1,"Derating_Cool_Eff","IL TRM v7 vol3",67,0.1,"Derating_Heat_Base","IL TRM v7 vol3",68,1.0009999999999999,"HSPFadj","IL TRM v7 vol3","69 (example)",0.1,"Derating_Heat_Eff","IL TRM v7 vol3",68,0.03,"Societal Discount Rate","Evergy Standard",null,1381,"First Cost $/ton","IL TRM v7 vol3",64,303,"One-time per-system labor cost","IL TRM v7 vol3",64,1518,"Deferred cost savings","IL TRM v7 vol3",65,3.5,"Assumed average system tons","Tracking Data"]
["Heating, Cooling & Home Comfort","ASHP SEER 17 - Replace Electric Resistance Heat",41.3,"Single Family","HVAC",null,"per ton",{"$f":"724/3.5","v":206.85714285714286},"IL TRM v7 vol3",64,{"$f":"ROUND(((U65*AS65*(1/(AF65*(1-BY65))-1/(AB65*CC65*(1-CG65))))/1000)+((BQ65*AS65*(1/(BA65*(1-CK65))-1/(AW65*CO65*(1-CS65))))/1000),4)","v":503.99110000000002},"Calculated Value",null,{"$f":"R65","v":0.26129999999999998},0.72,"IL TRM v7 vol3",65,{"$f":"ROUND((AS65*(1/(BI65*(1-BY65))-1/(BE65*(1-CG65))))/1000*O65,4)","v":0.26129999999999998},"Calculated Value",null,738,"EFLHcool, from 2017 MO TRM",85,16,"IL TRM v7 vol3",64,"SEERee",18.27,"per PY2018 Metadata WHE",null,"SEERbase",14,"IL TRM v7 vol3",66,"=ROUND(((U65*AS65*(1/(AF65*(1-BY65))-1/(AB65*CC65*(1-CG65))))/1000)+((BQ65*AS65*(1/(BA65*(1-CK65))-1/(AW65*CO65*(1-CS65))))/1000),4)","=ROUND((AS65*(1/(BI65*(1-BY65))-1/(BE65*(1-CG65))))/1000*O65,4)","IL TRM v7 vol3","65, 69","2020-01-01",null,null,null,null,null,12000,"Allows for Capacity input in Tons; converts tons to BTUs"," ",null,9.6285714285714299,"HSPFee","per PY2018 Metadata WHE",null,8.1999999999999993,"HSPFbase","IL TRM v7 vol3",68,15.700000000000001,"EERee","Calculated per PY2018 Metadata WHE",null,11,"EERbase","IL TRM v7 vol3",70,738,"EFLHcool","EFLHcool, from 2017 MO TRM",85,1376,"EFLHheat","The EFLH Cooling and Heating hours are based on a EnergyStar study that was normalized (based on HDD and CDD) to Kansas City. This was for both AC and HP units.",null,8.1999999999999993,"HSPFbase","IL TRM v7 vol3",68,0.1,"Derating_Cool_Base","IL TRM v7 vol3",67,1.0109999999999999,"SEERadj","IL TRM v7 vol3","69 (example)",0.1,"Derating_Cool_Eff","IL TRM v7 vol3",67,0.1,"Derating_Heat_Base","IL TRM v7 vol3",68,1.0009999999999999,"HSPFadj","IL TRM v7 vol3","69 (example)",0.1,"Derating_Heat_Eff","IL TRM v7 vol3",68]
["Heating, Cooling & Home Comfort","ASHP SEER 17 - Replace Electric Resistance Heat - Early Replacement",318.2,"Single Family","HVAC",null,"per ton",{"$f":"DA66+DE66/DM66-DI66*(1+CW66)^(-X66)","v":316.55604121135548},"IL TRM v7 vol3",64,{"$f":"ROUND(((U66*AS66*(1/(AF66*(1-BY66))-1/(AB66*CC66*(1-CG66))))/1000)+((BQ66*AS66*(1/(BA66*(1-CK66))-1/(AW66*CO66*(1-CS66))))/1000),4)","v":3990.5554999999999},"Calculated Value",null,{"$f":"R66","v":0.58499999999999996},0.72,"IL TRM v7 vol3",65,{"$f":"ROUND((AS66*(1/(BI66*(1-BY66))-1/(BE66*(1-CG66))))/1000*O66,4)","v":0.58499999999999996},"Calculated Value",null,738,"EFLHcool, from 2017 MO TRM",85,6,"IL TRM v7 vol3",64,"SEERee",18.34,"per PY2018 Metadata WHE",null,"SEERexist",9.3000000000000007,"IL TRM v7 vol3",66,"=ROUND(((U66*AS66*(1/(AF66*(1-BY66))-1/(AB66*CC66*(1-CG66))))/1000)+((BQ66*AS66*(1/(BA66*(1-CK66))-1/(AW66*CO66*(1-CS66))))/1000),4)","=ROUND((AS66*(1/(BI66*(1-BY66))-1/(BE66*(1-CG66))))/1000*O66,4)","IL TRM v7 vol3","65, 69","2020-01-01",null,null,null,null,null,12000,"Allows for Capacity input in Tons; converts tons to BTUs"," ",null,9.5606060606060677,"HSPFee","per PY2018 Metadata WHE",null,3.41,"HSPFexist","IL TRM v7 vol3",68,{"$f":"(-0.02*AB66^2)+(1.12*AB66)","v":13.813688000000001},"EERee","Calculated per PY2018 Metadata WHE",null,7.5,"EERexist","IL TRM v7 vol3",70,738,"EFLHcool","EFLHcool, from 2017 MO TRM",85,1376,"EFLHheat","The EFLH Cooling and Heating hours are based on a EnergyStar study that was normalized (based on HDD and CDD) to Kansas City. This was for both AC and HP units.",null,3.41,"HSPFexist","IL TRM v7 vol3",68,0.1,"Derating_Cool_Base","IL TRM v7 vol3",67,1.0109999999999999,"SEERadj","IL TRM v7 vol3","69 (example)",0.1,"Derating_Cool_Eff","IL TRM v7 vol3",67,0.1,"Derating_Heat_Base","IL TRM v7 vol3",68,1.0009999999999999,"HSPFadj","IL TRM v7 vol3","69 (example)",0.1,"Derating_Heat_Eff","IL TRM v7 vol3",68,0.03,"Societal Discount Rate","Evergy Standard",null,1381,"First Cost $/ton","IL TRM v7 vol3",64,724,"One-time per-system labor cost","IL TRM v7 vol3",64,1518,"Deferred cost savings","IL TRM v7 vol3",65,3.5,"Assumed average system tons","Tracking Data"]
["Heating, Cooling & Home Comfort","ASHP SEER 17 - Replace Electric Resistance Heat - Early Replacement (future)",319.2,"Single Family","HVAC",null,"per ton",0,"IL TRM v7 vol3",65,{"$f":"ROUND(((U67*AS67*(1/(AF67*(1-BY67))-1/(AB67*CC67*(1-CG67))))/1000)+((BQ67*AS67*(1/(BA67*(1-CK67))-1/(AW67*CO67*(1-CS67))))/1000),4)","v":492.4923},"Calculated Value",null,{"$f":"R67","v":0.17780000000000001},0.72,"IL TRM v7 vol3",65,{"$f":"ROUND((AS67*(1/(BI67*(1-BY67))-1/(BE67*(1-CG67))))/1000*O67,4)","v":0.17780000000000001},"Calculated Value",null,738,"EFLHcool, from 2017 MO TRM",85,10,"IL TRM v7 vol3",64,"SEERee",18.34,"per PY2018 Metadata WHE",null,"SEERbase",14,"IL TRM v7 vol3",67,"=ROUND(((U67*AS67*(1/(AF67*(1-BY67))-1/(AB67*CC67*(1-CG67))))/1000)+((BQ67*AS67*(1/(BA67*(1-CK67))-1/(AW67*CO67*(1-CS67))))/1000),4)","=ROUND((AS67*(1/(BI67*(1-BY67))-1/(BE67*(1-CG67))))/1000*O67,4)","IL TRM v7 vol3","65, 69","2020-01-01",null,null,null,null,null,12000,"Allows for Capacity input in Tons; converts tons to BTUs"," ",null,9.5606060606060677,"HSPFee","per PY2018 Metadata WHE",null,8.1999999999999993,"HSPFbase","IL TRM v7 vol3",68,{"$f":"(-0.02*AB67^2)+(1.12*AB67)","v":13.813688000000001},"EERee","Calculated per PY2018 Metadata WHE",null,11,"EERbase","IL TRM v7 vol3",70,738,"EFLHcool","EFLHcool, from 2017 MO TRM",85,1376,"EFLHheat","The EFLH Cooling and Heating hours are based on a EnergyStar study that was normalized (based on HDD and CDD) to Kansas City. This was for both AC and HP units.",null,8.1999999999999993,"HSPFbase","IL TRM v7 vol3",68,0.1,"Derating_Cool_Base","IL TRM v7 vol3",67,1.0109999999999999,"SEERadj","IL TRM v7 vol3","69 (example)",0.1,"Derating_Cool_Eff","IL TRM v7 vol3",67,0.1,"Derating_Heat_Base","IL TRM v7 vol3",68,1.0009999999999999,"HSPFadj","IL TRM v7 vol3","69 (example)",0.1,"Derating_Heat_Eff","IL TRM v7 vol3",68,0.03,"Societal Discount Rate","Evergy Standard",null,1381,"First Cost $/ton","IL TRM v7 vol3",64,724,"One-time per-system labor cost","IL TRM v7 vol3",64,1518,"Deferred cost savings","IL TRM v7 vol3",65,3.5,"Assumed average system tons","Tracking Data"]
["Heating, Cooling & Home Comfort","ASHP Dual-Speed Compressor",397,"Single Family","HVAC",null,"per ton",{"$f":"(1381*(AW68/12000)+438)/CK68","v":1603.7118644067798},"IL TRM v6 vol3",61,{"$f":"ROUND(((AS68*AW68*(1/BA68-1/BE68))/1000/CK68)+((BI68*BM68*(1/BQ68-1/BU68))/1000/CO68),4)","v":275.57580000000002},"Calculated Value",null,{"$f":"R68/O68","v":9.3888888888888883E-2},0.72,"Calculated Value",null,{"$f":"ROUND((AW68*(1/BY68-1/CC68))/1000*CG68/CK68,4)","v":6.7599999999999993E-2},"Calculated Value",null,null,null,null,18,"IL TRM v6 vol3",61,"SEER",16,"Goodman GSZC16 Indoor Units: CA*F3137*6A*+MBVC1200**-1A*+TX, G*VC80603B*C*",null,"SEER",14,"IL TRM v6 vol3",63,"=ROUND(((AS68*AW68*(1/BA68-1/BE68))/1000/CK68)+((BI68*BM68*(1/BQ68-1/BU68))/1000/CO68),4)","=ROUND((AW68*(1/BY68-1/CC68))/1000*CG68/CK68,4)","IL TRM v6 vol3","62, 65","2020-01-01",null,null,null,null,null,1035,"FLH_cooling","IL TRM v6 vol3",63,23600,"Capacity_cooling","Goodman GSZC16 Indoor Units: CA*F3137*6A*+MBVC1200**-1A*+TX, G*VC80603B*C*",null,14,"SEER_base","IL TRM v6 vol3",63,16,"SEER_ee","Goodman GSZC16 Indoor Units: CA*F3137*6A*+MBVC1200**-1A*+TX, G*VC80603B*C*",null,1266,"FLH_heat","IL TRM v6 vol3",64,22800,"Capacity_heating","Goodman GSZC16 Indoor Units: CA*F3137*6A*+MBVC1200**-1A*+TX, G*VC80603B*C*",null,8.1999999999999993,"HSPF_base","IL TRM v6 vol3",64,9,"HSPF_ee","Goodman GSZC16 Indoor Units: CA*F3137*6A*+MBVC1200**-1A*+TX, G*VC80603B*C*",null,11.8,"EER_base","IL TRM v6 vol3",66,13,"EER_ee","Goodman GSZC16 Indoor Units: CA*F3137*6A*+MBVC1200**-1A*+TX, G*VC80603B*C*",null,0.72,"CF","IL TRM v6 vol3",66,{"$f":"AW68/12000","v":1.9666666666666666},"Cooling Capacity Tons","Goodman GSZC16 Indoor Units: CA*F3137*6A*+MBVC1200**-1A*+TX, G*VC80603B*C*",null,{"$f":"BM68/12000","v":1.9},"Heating Capacity Tons","Goodman GSZC16 Indoor Units: CA*F3137*6A*+MBVC1200**-1A*+TX, G*VC80603B*C*",null," "]
["Heating, Cooling & Home Comfort","ASHP Variable-Speed Compressor",398,"Single Family","HVAC",null,"per ton",{"$f":"(1381*(AW69/12000)+724)/CK69","v":1752.2820512820513},"IL TRM v6 vol3",61,{"$f":"ROUND(((AS69*AW69*(1/BA69-1/BE69))/1000/CK69)+((BI69*BM69*(1/BQ69-1/BU69))/1000/CO69),4)","v":629.19719999999995},"Calculated Value",null,{"$f":"R69/O69","v":9.3888888888888883E-2},0.72,"Calculated Value",null,{"$f":"ROUND((AW69*(1/BY69-1/CC69))/1000*CG69/CK69,4)","v":6.7599999999999993E-2},"Calculated Value",null,null,null,null,18,"IL TRM v6 vol3",61,"SEER",21,"Daikin DZ20VC Inddor Units: CA*F3642*6D*+MBVC1200**-1A*+TXV",null,"SEER",14,"IL TRM v6 vol3",63,"=ROUND(((AS69*AW69*(1/BA69-1/BE69))/1000/CK69)+((BI69*BM69*(1/BQ69-1/BU69))/1000/CO69),4)","=ROUND((AW69*(1/BY69-1/CC69))/1000*CG69/CK69,4)","IL TRM v6 vol3","62, 65","2020-01-01",null,null,null,null,null,1035,"FLH_cooling","IL TRM v6 vol3",63,23400,"Capacity_cooling","Daikin DZ20VC Inddor Units: CA*F3642*6D*+MBVC1200**-1A*+TXV",null,14,"SEER_base","IL TRM v6 vol3",63,21,"SEER_ee","Daikin DZ20VC Inddor Units: CA*F3642*6D*+MBVC1200**-1A*+TXV",null,1266,"FLH_heat","IL TRM v6 vol3",64,23600,"Capacity_heating","Daikin DZ20VC Inddor Units: CA*F3642*6D*+MBVC1200**-1A*+TXV",null,8.1999999999999993,"HSPF_base","IL TRM v6 vol3",64,10,"HSPF_ee","Daikin DZ20VC Inddor Units: CA*F3642*6D*+MBVC1200**-1A*+TXV",null,11.8,"EER_base","IL TRM v6 vol3",66,13,"EER_ee","Daikin DZ20VC Inddor Units: CA*F3642*6D*+MBVC1200**-1A*+TXV",null,0.72,"CF","IL TRM v6 vol3",66,{"$f":"AW69/12000","v":1.95},"Cooling Capacity Tons","Daikin DZ20VC Inddor Units: CA*F3642*6D*+MBVC1200**-1A*+TXV",null,{"$f":"BM69/12000","v":1.9666666666666666},"Heating Capacity Tons","Daikin DZ20VC Inddor Units: CA*F3642*6D*+MBVC1200**-1A*+TXV",null," "]
["Heating, Cooling & Home Comfort","Furnace Filter Alarm",234.3,"Single Family","HVAC","Kits","per unit",2.8,"Program Tracking Data",null,{"$f":"ROUND((AS70*BI70*AW70*BA70)+(AS70*BE70*AW70*BA70),4)","v":75.152699999999996},"Calculated Value",null,{"$f":"K70/U70","v":4.5519503331314354E-2},0.64700000000000002,"PA TRM 2016",74,{"$f":"ROUND(((AS70*BE70*AW70*BA70)/BE70)*O70,4)","v":2.3E-2},"Calculated Value",null,1651,"MO TRM 2017 vol 3",85,14,"PA TRM 2016",73,"Furnace Filter Alarm",null,null,null,"No Filter",null,null," ","=ROUND((AS70*BI70*AW70*BA70)+(AS70*BE70*AW70*BA70),4)","=ROUND(((AS70*BE70*AW70*BA70)/BE70)*O70,4)","PA TRM 2016",73,"2020-01-01",null,null,null,null,null,0.5,"Average motor full load electric demand","PA TRM 2016",74,0.15,"Efficiency Improvement","PA TRM 2016",74,0.47399999999999998,"ISR","PA TRM 2016",74,738,"EFLHcool","MO TRM",85,1376,"EFLHheat","The EFLH Cooling and Heating hours are based on a EnergyStar study that was normalized (based on HDD and CDD) to Kansas City. This was for both AC and HP units.",null," "]
["Heating, Cooling & Home Comfort","Indoor Coil Cleaning_SF:CAC",262.2,"Single Family","HVAC",null,"per measure",35,"WI TRM 2017",143,{"$f":"ROUND(AW71*BA71/1000*(1/(BI71*BM71)-1/BI71),4)","v":148.14080000000001},"Calculated Value",null,{"$f":"BA71/1000*(1/(BE71*BM71)-1/BE71)","v":0.28550102631087915},0.9,"WI TRM 2017",144,{"$f":"ROUND(N71*O71,4)","v":0.25700000000000001},"Calculated Value",null,null,null,null,3,"WI TRM 2017",144,"Coil cleaning of packaged air conditioning unit.",null,"WI TRM 2017",143,"The baseline condition is an AC system with fouled condenser coils.",null,"WI TRM 2017",143,"=ROUND(AW71*BA71/1000*(1/(BI71*BM71)-1/BI71),4)","=ROUND(N71*O71,4)","WI TRM 2017","143, 144","2020-01-01",null,null,null,null,null,null,null,null,null,564,"Equivalent Full Load Hours for Mechanical Cooling","IL TRM v6 vol3",127,36000,"Unit Cooling Capacity in Btu/hour","Installed Equipment; actual value",null,{"$f":"-0.02*BI71^2+1.12*BI71","v":9.2000000000000011},"EER","Installed Equipment; actual nameplate EER",null,10,"SEER","Installed Equipment; actual nameplate EER",null,0.93200000000000005,"Condenser coil fouling efficiency degradation factor","WI TRM 2017",144," "]
["Heating, Cooling & Home Comfort","Indoor Coil Cleaning_SF:ASHP",263.2,"Single Family","HVAC",null,"per measure",35,"WI TRM 2017",143,{"$f":"ROUND(AW72*BA72/1000*(1/(BI72*BM72)-1/BI72),4)","v":148.14080000000001},"Calculated Value",null,{"$f":"BA72/1000*(1/(BE72*BM72)-1/BE72)","v":0.28550102631087915},0.9,"WI TRM 2017",144,{"$f":"ROUND(N72*O72,4)","v":0.25700000000000001},"Calculated Value",null,null,null,null,3,"WI TRM 2017",144,"Coil cleaning of packaged air conditioning unit.",null,"WI TRM 2017",143,"The baseline condition is an AC system with fouled condenser coils.",null,"WI TRM 2017",143,"=ROUND(AW72*BA72/1000*(1/(BI72*BM72)-1/BI72),4)","=ROUND(N72*O72,4)","WI TRM 2017","143, 144","2020-01-01",null,null,null,null,null,null,null,null,null,564,"Equivalent Full Load Hours for Mechanical Cooling","IL TRM v6 vol3",127,36000,"Unit Cooling Capacity in Btu/hour","Installed Equipment; actual value",null,{"$f":"-0.02*BI72^2+1.12*BI72","v":9.2000000000000011},"EER","Installed Equipment; actual nameplate EER",null,10,"SEER","Installed Equipment; actual nameplate EER",null,0.93200000000000005,"Condenser coil fouling efficiency degradation factor","WI TRM 2017",144," "]
["Heating, Cooling & Home Comfort","Outdoor Coil Cleaning_SF:CAC",264.2,"Single Family","HVAC",null,"per measure",35,"WI TRM 2017",143,{"$f":"ROUND(AW73*BA73/1000*(1/(BI73*BM73)-1/BI73),4)","v":148.14080000000001},"Calculated Value",null,{"$f":"BA73/1000*(1/(BE73*BM73)-1/BE73)","v":0.28550102631087915},0.9,"WI TRM 2017",144,{"$f":"ROUND(N73*O73,4)","v":0.25700000000000001},"Calculated Value",null,null,null,null,3,"WI TRM 2017",144,"Coil cleaning of packaged air conditioning unit."," ","WI TRM 2017",143,"The baseline condition is an AC system with fouled condenser coils.",null,"WI TRM 2017",143,{"$f":"cellformula(K73)","v":"=ROUND(AW73*BA73/1000*(1/(BI73*BM73)-1/BI73),4)"},{"$f":"cellformula(R73)","v":"=ROUND(N73*O73,4)"},"WI TRM 2017","143, 144","2020-01-01",null,null,null,null,null,null,null,null,null,564,"Equivalent Full Load Hours for Mechanical Cooling","IL TRM v6 vol3",127,36000,"Unit Cooling Capacity in Btu/hour","Installed Equipment; actual value",null,{"$f":"-0.02*BI73^2+1.12*BI73","v":9.2000000000000011},"EER","Installed Equipment; actual nameplate EER",null,10,"SEER","Installed Equipment; actual nameplate EER",null,0.93200000000000005,"Condenser coil fouling efficiency degradation factor","WI TRM 2017",144]
["Heating, Cooling & Home Comfort","Outdoor Coil Cleaning_SF:ASHP",265.2,"Single Family","HVAC",null,"per measure",35,"WI TRM 2017",143,{"$f":"ROUND(AW74*BA74/1000*(1/(BI74*BM74)-1/BI74),4)","v":148.14080000000001},"Calculated Value",null,{"$f":"BA74/1000*(1/(BE74*BM74)-1/BE74)","v":0.28550102631087915},0.9,"WI TRM 2017",144,{"$f":"ROUND(N74*O74,4)","v":0.25700000000000001},"Calculated Value",null,null,null,null,3,"WI TRM 2017",144,"Coil cleaning of packaged air conditioning unit."," ","WI TRM 2017",143,"The baseline condition is an AC system with fouled condenser coils.",null,"WI TRM 2017",143,"=ROUND(AW74*BA74/1000*(1/(BI74*BM74)-1/BI74),4)","=ROUND(N74*O74,4)","WI TRM 2017","143, 144","2020-01-01",null,null,null,null,null,null,null,null,null,564,"Equivalent Full Load Hours for Mechanical Cooling","IL TRM v6 vol3",127,36000,"Unit Cooling Capacity in Btu/hour","Installed Equipment; actual value",null,{"$f":"-0.02*BI74^2+1.12*BI74","v":9.2000000000000011},"EER","Installed Equipment; actual nameplate EER",null,10,"SEER","Installed Equipment; actual nameplate EER",null,0.93200000000000005,"Condenser coil fouling efficiency degradation factor","WI TRM 2017",144]
["Heating, Cooling & Home Comfort","Refrigerant Charge Adjustment (RCA)_SF: CAC",266.2,"Single Family","HVAC",null,"per measure",175,"IL TRM v5 vol3",124,{"$f":"ROUND((BM75*BA75*(1/BE75))/1000*AS75,4)","v":44.28},"Calculated Value",null,{"$f":"K75/BM75","v":6.0000000000000005E-2},0.68,"Calculated Value",null,{"$f":"ROUND(BA75*(1/BI75)/1000*AW75*O75,4)","v":1.77E-2},"Calculated Value",null,null,null,null,2,"IL TRM v5 vol3",124,"Sub-measure of HVAC Maintenance and Tune-up"," ","IL TRM v5 vol3",124,"The baseline condition is an AC system with incorrect refrigerant charge. ",null,"IL TRM v5 vol3",124,"=ROUND((BM75*BA75*(1/BE75))/1000*AS75,4)","=ROUND(BA75*(1/BI75)/1000*AW75*O75,4)","IL TRM v5 vol3","125, 127","2020-01-01",null,null,null,null,null,0.05,"MFe","IL TRM v5 vol3",125,0.02,"MFd","IL TRM v5 vol3",127,12000,"Allows for Capacity input in Tons; converts tons to BTUs",null,null,10,"SEERCAC","IL TRM v5 vol3",126,9.2000000000000011,"EER","IL TRM v5 vol3","Calculated Value",738,"EFLHcool","The EFLH Cooling and Heating hours are based on a EnergyStar study that was normalized (based on HDD and CDD) to Kansas City. This was for both AC and HP units.",null,1376,"EFLHheat","The EFLH Cooling and Heating hours are based on a EnergyStar study that was normalized (based on HDD and CDD) to Kansas City. This was for both AC and HP units.",null," "]
["Heating, Cooling & Home Comfort","Refrigerant Charge Adjustment (RCA)_SF: ASHP",267.2,"Single Family","HVAC",null,"per measure",175,"IL TRM v5 vol3",124,{"$f":"ROUND((BQ76*BA76*(1/BE76))/1000*AS76+(BU76*BA76*(1/BM76))/1000*AS76,4)","v":165.6918},"Calculated Value",null,{"$f":"K76/BQ76","v":0.22451463414634146},0.72,"Calculated Value",null,{"$f":"ROUND(BA76*(1/BI76)/1000*AW76*O76,4)","v":1.8800000000000001E-2},"Calculated Value",null,null,null,null,2,"IL TRM v5 vol3",124,"Sub-measure of HVAC Maintenance and Tune-up"," ","IL TRM v5 vol3",124,"The baseline condition is a heat pump system with incorrect refrigerant charge. ",null,"IL TRM v5 vol3",124,"=ROUND((BQ76*BA76*(1/BE76))/1000*AS76+(BU76*BA76*(1/BM76))/1000*AS76,4)","=ROUND(BA76*(1/BI76)/1000*AW76*O76,4)","IL TRM v5 vol3","125, 127","2020-01-01",null,null,null,null,null,0.05,"MFe","IL TRM v5 vol3",125,0.02,"MFd","IL TRM v5 vol3",127,12000,"Allows for Capacity input in Tons; converts tons to BTUs",null,null,10,"SEERASHP","IL TRM v5 vol3",126,9.2000000000000011,"EER","IL TRM v5 vol3","Calculated Value",6.8,"HSPFASHP","IL TRM v5 vol3",126,738,"EFLHcool","The EFLH Cooling and Heating hours are based on a EnergyStar study that was normalized (based on HDD and CDD) to Kansas City. This was for both AC and HP units.",null,1376,"EFLHheat","The EFLH Cooling and Heating hours are based on a EnergyStar study that was normalized (based on HDD and CDD) to Kansas City. This was for both AC and HP units.",null," "]
["Heating, Cooling & Home Comfort","HVAC Maintenance and Tune-up_SF: CAC",238.2,"Single Family","HVAC",null,"per measure",175,"IL TRM v7 vol3",127,{"$f":"AS77*BE77*(1/AW77)/1000*BA77","v":44.28},"Calculated Value",null,1.6500000000000001E-2,0.68,"IL TRM v7 vol3",127,{"$f":"AS77*(1/BI77)/1000*BM77*O77","v":1.7739130434782608E-2},"Calculated Value",null,738,"EFLHcool, from 2017 MO TRM",85,2,"IL TRM v7 vol3",127," Maintenance and Tune-up on CAC unit",null,null,null,"AC unit that has not been serviced for at least 3 years",null,"IL TRM v7 vol3",127,"=AS77*BE77*(1/AW77)/1000*BA77","=AS77*(1/BI77)/1000*BM77*O77","IL TRM v7 vol3",129,"2020-01-01",null,null,null,null,null,12000,"Cooling capacity (1 ton)","IL TRM v7 vol3",128,10,"SEERcac","IL TRM v7 vol3",128,0.05,"Maintenance Savings Factor","IL TRM v7 vol3",128,738,"EFLHcool, from 2017 MO TRM",85,128,{"$f":"-0.02*AW77^2+1.12*AW77","v":9.2000000000000011},"EER - calculated based on SEER","IL TRM v7 vol3",129,0.02,"Maintenance demand savings factor","IL TRM v7 vol3",130]
["Heating, Cooling & Home Comfort","GSHP - Early Replacement GSHP_SF: HVAC, replace ASHP",239.3,"Single Family","HVAC",null,"per unit",4859,"IL TRM v7 vol3",110,{"$f":"ROUND(((BY78*AS78*(1/AF78)-(1/AB78))/1000)+((CC78*AS78*(1/AW78)-(1/(BA78*3.412)))/1000)+((BE78*BI78*(1/BM78)*BQ78)/1000),4)","v":6211.8058000000001},"Calculated Value",null,{"$f":"K78/U78","v":8.4170810298102978},0.72,"IL TRM v7 vol3",111,{"$f":"ROUND(((AS78*(1/BU78)-(1/AB78))/1000)*O78,4)","v":1.0105},"Calculated Value",null,738,"EFLHcool, from 2017 MO TRM",85,18,"IL TRM v7 vol3",110,"Part Load EER Efficiency of efficient GSHP unit",23,"IL TRM v7 vol3",null,"SEER Efficiency of existing cooling unit\n= Actual, if available",8.5500000000000007,"IL TRM v7 vol3",113,"=ROUND(((BY78*AS78*(1/AF78)-(1/AB78))/1000)+((CC78*AS78*(1/AW78)-(1/(BA78*3.412)))/1000)+((BE78*BI78*(1/BM78)*BQ78)/1000),4)","=ROUND(((AS78*(1/BU78)-(1/AB78))/1000)*O78,4)","IL TRM v7 vol3",111,"2020-01-01",null,null,null,null,null,12000,"Allows for Capacity input in Tons; converts tons to BTUs"," ",null,5.44,"HSPFexist = Heating System Performance Factor of existing heating system\n5.44 for replacing ASHP\n3.41 for replacing Electric Resistance Heat","IL TRM v7 vol3",114,4.5,"COPpl = Part Load Coefficient of Performance, Actual installed value","This example value is the mean of values listed in ENERGY STAR criteria here: https://www.energystar.gov/index.cfm?c=most_efficient.me_geothermal_heat_pumps , https://data.energystar.gov/Active-Specifications/ENERGY-STAR-Most-Efficient-Geothermal-Heat-Pumps/4c82-7ysy . \nIdeally this value would come from the specs of the actual unit installed.",116,1,"ElecDHW:\n= 1 if HW system is electric\n= 0 if HW system is not electric","IL TRM v7 vol3",114,0.44,"%DHWdisplaced = Percentage of total DHW load the GSHP will provide.\n= Actual, if known\n= 0% if no desuperheater installed\n= 44% if desuperheater installed and actual is unknown","IL TRM v7 vol3",114,2.0004999999999997,"Efelec = Energy Factor of electric WH.\n= Actual, if known\n= 0.96 – (0.0003 * rated volume in gallons) for 55+ gallon DHW\n= 2.057 – (0.00113 * rated volume in gallons) for < 55 gallon DHW","IL TRM v7 vol3",115,9732988.4467200004,"GSHP Coefficient\n= GPD * Household * 365.25 * γWater * (Tout - Tin)","IL TRM v7 vol3",115,8.5500000000000007,"Energy Efficiency Ratio of existing cooling unit\n= Actual, if available\n= 8.55 for replacing ASHP\n= 8.15 for replacing Central AC","IL TRM v7 vol3",116,738,"EFLHcool","EFLHcool, from 2017 MO TRM",85,1376,"EFLHheat","The EFLH Cooling and Heating hours are based on a EnergyStar study that was normalized (based on HDD and CDD) to Kansas City. This was for both AC and HP units.",null," "]
["Heating, Cooling & Home Comfort","GSHP - Replace at Fail GSHP_SF: HVAC",240.3,"Single Family","HVAC",null,"per unit",3200,"IL TRM v7 vol3",110,4959.4715999999999,"Calculated Value",null,6.7201512195121946,0.72,"IL TRM v7 vol3",111,0.73219999999999996,"Calculated Value",null,738,"EFLHcool, from 2017 MO TRM",85,18,"IL TRM v7 vol3",110,"Part Load EER Efficiency of efficient GSHP unit",23,"IL TRM v7 vol3",null,"GSHP replacing Failed GSHP – 23 EER minimum (EER)",11,"IL TRM v7 vol3",113,"=ROUND(((BY79*AS79*(1/AF79)-(1/AB79))/1000)+((CC79*AS79*(1/AW79)-(1/(BA79*3.412)))/1000)+((BE79*BI79*(1/BM79)*BQ79)/1000),4)","=ROUND(((AS79*(1/BU79)-(1/AB79))/1000)*O79,4)","IL TRM v7 vol3",111,"2020-01-01",null,null,null,null,null,12000,"Allows for Capacity input in Tons; converts tons to BTUs"," ",null,8.1999999999999993,"HSPFbase = Heating System Performance Factor of new replacement baseline heating system\n8.2 for replacing ASHP\n3.41 for replacing Electric Resistance Heat","IL TRM v7 vol3",114,4.5,"COPpl = Part Load Coefficient of Performance, Actual installed value","This example value is the mean of values listed in ENERGY STAR criteria here: https://www.energystar.gov/index.cfm?c=most_efficient.me_geothermal_heat_pumps , https://data.energystar.gov/Active-Specifications/ENERGY-STAR-Most-Efficient-Geothermal-Heat-Pumps/4c82-7ysy . \nIdeally this value would come from the specs of the actual unit installed.",116,1,"ElecDHW:\n= 1 if HW system is electric\n= 0 if HW system is not electric","IL TRM Version 7 Volume 5",114,0.44,"%DHWdisplaced = Percentage of total DHW load the GSHP will provide.\n= Actual, if known\n= 0% if no desuperheater installed\n= 44% if desuperheater installed and actual is unknown","IL TRM Version 7 Volume 5",114,2.0004999999999997,"Efelec = Energy Factor of electric WH.\n= Actual, if known\n= 0.96 – (0.0003 * rated volume in gallons) for 55+ gallon DHW\n= 2.057 – (0.00113 * rated volume in gallons) for < 55 gallon DHW","IL TRM Version 7 Volume 5",115,9732988.4467200004,"GSHP Coefficient\n= GPD * Household * 365.25 * γWater * (Tout - Tin)","IL TRM v7 vol3",115,11.8,"EER Efficiency of new replacement ASHP","IL TRM v7 vol3",116,738,"EFLHcool","EFLHcool, from 2017 MO TRM",85,1376,"EFLHheat","The EFLH Cooling and Heating hours are based on a EnergyStar study that was normalized (based on HDD and CDD) to Kansas City. This was for both AC and HP units.",null," "]
["Heating, Cooling & Home Comfort","GSHP - AC + Early Replacement Electric Resistance Furnace_SF: HVAC",241.3,"Single Family","HVAC",null,"per unit",5250,"IL TRM v7 vol3",110,8069.5766999999996,"Calculated Value",null,10.934385772357723,0.72,"IL TRM v7 vol3",111,1.0601,"Calculated Value",null,738,"EFLHcool, from 2017 MO TRM",85,18,"IL TRM v7 vol3",110,"Part Load EER Efficiency of efficient GSHP unit",23,"IL TRM v7 vol3",null,"SEER Efficiency of existing cooling unit\n= Actual, if available",8.15,"IL TRM v7 vol3",113,"=ROUND(((BY80*AS80*(1/AF80)-(1/AB80))/1000)+((CC80*AS80*(1/AW80)-(1/(BA80*3.412)))/1000)+((BE80*BI80*(1/BM80)*BQ80)/1000),4)","=ROUND(((AS80*(1/BU80)-(1/AB80))/1000)*O80,4)","IL TRM v7 vol3",111,"2020-01-01",null,null,null,null,null,12000,"Allows for Capacity input in Tons; converts tons to BTUs"," ",null,3.41,"HSPFexist = Heating System Performance Factor of existing heating system\n5.44 for replacing ASHP\n3.41 for replacing Electric Resistance Heat","IL TRM v7 vol3",114,4.5,"COPpl = Part Load Coefficient of Performance, Actual installed value","This example value is the mean of values listed in ENERGY STAR criteria here: https://www.energystar.gov/index.cfm?c=most_efficient.me_geothermal_heat_pumps , https://data.energystar.gov/Active-Specifications/ENERGY-STAR-Most-Efficient-Geothermal-Heat-Pumps/4c82-7ysy . \nIdeally this value would come from the specs of the actual unit installed.",116,1,"ElecDHW:\n= 1 if HW system is electric\n= 0 if HW system is not electric","IL TRM Version 7 Volume 7",114,0.44,"%DHWdisplaced = Percentage of total DHW load the GSHP will provide.\n= Actual, if known\n= 0% if no desuperheater installed\n= 44% if desuperheater installed and actual is unknown","IL TRM Version 7 Volume 7",114,2.0004999999999997,"Efelec = Energy Factor of electric WH.\n= Actual, if known\n= 0.96 – (0.0003 * rated volume in gallons) for 55+ gallon DHW\n= 2.057 – (0.00113 * rated volume in gallons) for < 55 gallon DHW","IL TRM Version 7 Volume 7",115,9732988.4467200004,"GSHP Coefficient\n= GPD * Household * 365.25 * γWater * (Tout - Tin)","IL TRM v7 vol3",115,8.15,"Energy Efficiency Ratio of existing cooling unit\n= Actual, if available\n= 8.55 for replacing ASHP\n= 8.15 for replacing Central AC","IL TRM v7 vol3",116,738,"EFLHcool","EFLHcool, from 2017 MO TRM",85,1376,"EFLHheat","The EFLH Cooling and Heating hours are based on a EnergyStar study that was normalized (based on HDD and CDD) to Kansas City. This was for both AC and HP units.",null," "]
["Heating, Cooling & Home Comfort","GSHP - AC + Replace at Fail Electric Resistance Furnace_SF: HVAC",242.3,"Single Family","HVAC",null,"per unit",4717,"IL TRM v7 vol3",110,7788.0418,"Calculated Value",null,10.55290216802168,0.72,"IL TRM v7 vol3",111,0.78539999999999999,"Calculated Value",null,738,"EFLHcool, from 2017 MO TRM",85,18,"IL TRM v7 vol3",110,"Part Load EER Efficiency of efficient GSHP unit",23,"IL TRM v7 vol3",null,"GSHP replacing failed AC w/ electric furnace – 23 EER minimum (EER)",11,"IL TRM v7 vol3",113,"=ROUND(((BY81*AS81*(1/AF81)-(1/AB81))/1000)+((CC81*AS81*(1/AW81)-(1/(BA81*3.412)))/1000)+((BE81*BI81*(1/BM81)*BQ81)/1000),4)","=ROUND(((AS81*(1/BU81)-(1/AB81))/1000)*O81,4)","IL TRM v7 vol3",111,"2020-01-01",null,null,null,null,null,12000,"Allows for Capacity input in Tons; converts tons to BTUs"," ",null,3.41,"HSPFbase = Heating System Performance Factor of new replacement baseline heating system\n8.2 for replacing ASHP\n3.41 for replacing Electric Resistance Heat","IL TRM v7 vol3",114,4.5,"COPpl = Part Load Coefficient of Performance, Actual installed value","This example value is the mean of values listed in ENERGY STAR criteria here: https://www.energystar.gov/index.cfm?c=most_efficient.me_geothermal_heat_pumps , https://data.energystar.gov/Active-Specifications/ENERGY-STAR-Most-Efficient-Geothermal-Heat-Pumps/4c82-7ysy . \nIdeally this value would come from the specs of the actual unit installed.",116,1,"ElecDHW:\n= 1 if HW system is electric\n= 0 if HW system is not electric","IL TRM Version 7 Volume 9",114,0.44,"%DHWdisplaced = Percentage of total DHW load the GSHP will provide.\n= Actual, if known\n= 0% if no desuperheater installed\n= 44% if desuperheater installed and actual is unknown","IL TRM Version 7 Volume 9",114,2.0004999999999997,"Efelec = Energy Factor of electric WH.\n= Actual, if known\n= 0.96 – (0.0003 * rated volume in gallons) for 55+ gallon DHW\n= 2.057 – (0.00113 * rated volume in gallons) for < 55 gallon DHW","IL TRM Version 7 Volume 9",115,9732988.4467200004,"GSHP Coefficient\n= GPD * Household * 365.25 * γWater * (Tout - Tin)","IL TRM v7 vol3",115,11,"EER Efficiency of new replacement Central AC","IL TRM v7 vol3",116,738,"EFLHcool","EFLHcool, from 2017 MO TRM",85,1376,"EFLHheat","The EFLH Cooling and Heating hours are based on a EnergyStar study that was normalized (based on HDD and CDD) to Kansas City. This was for both AC and HP units.",null," "]
["Heating, Cooling & Home Comfort","GSHP - ASHP + Early Replacement _SF: HVAC",243.3,"Single Family","HVAC",null,"per unit",5250,"IL TRM v7 vol3",110,6211.8058000000001,"Calculated Value",null,8.4170810298102978,0.72,"IL TRM v7 vol3",111,1.0105,"Calculated Value",null,738,"EFLHcool, from 2017 MO TRM",85,18,"IL TRM v7 vol3",110,"Part Load EER Efficiency of efficient GSHP unit",23,"IL TRM v7 vol3",null,"SEER Efficiency of existing cooling unit\n= Actual, if available",8.5500000000000007,"IL TRM v7 vol3",113,"=ROUND(((BY82*AS82*(1/AF82)-(1/AB82))/1000)+((CC82*AS82*(1/AW82)-(1/(BA82*3.412)))/1000)+((BE82*BI82*(1/BM82)*BQ82)/1000),4)","=ROUND(((AS82*(1/BU82)-(1/AB82))/1000)*O82,4)","IL TRM v7 vol3",111,"2020-01-01",null,null,null,null,null,12000,"Allows for Capacity input in Tons; converts tons to BTUs"," ",null,5.44,"HSPFexist = Heating System Performance Factor of existing heating system\n5.44 for replacing ASHP\n3.41 for replacing Electric Resistance Heat","IL TRM v7 vol3",114,4.5,"COPpl = Part Load Coefficient of Performance, Actual installed value","This example value is the mean of values listed in ENERGY STAR criteria here: https://www.energystar.gov/index.cfm?c=most_efficient.me_geothermal_heat_pumps , https://data.energystar.gov/Active-Specifications/ENERGY-STAR-Most-Efficient-Geothermal-Heat-Pumps/4c82-7ysy . \nIdeally this value would come from the specs of the actual unit installed.",116,1,"ElecDHW:\n= 1 if HW system is electric\n= 0 if HW system is not electric","IL TRM Version 7 Volume 11",114,0.44,"%DHWdisplaced = Percentage of total DHW load the GSHP will provide.\n= Actual, if known\n= 0% if no desuperheater installed\n= 44% if desuperheater installed and actual is unknown","IL TRM Version 7 Volume 11",114,2.0004999999999997,"Efelec = Energy Factor of electric WH.\n= Actual, if known\n= 0.96 – (0.0003 * rated volume in gallons) for 55+ gallon DHW\n= 2.057 – (0.00113 * rated volume in gallons) for < 55 gallon DHW","IL TRM Version 7 Volume 11",115,9732988.4467200004,"GSHP Coefficient\n= GPD * Household * 365.25 * γWater * (Tout - Tin)","IL TRM v7 vol3",115,8.5500000000000007,"Energy Efficiency Ratio of existing cooling unit\n= Actual, if available\n= 8.55 for replacing ASHP\n= 8.15 for replacing Central AC","IL TRM v7 vol3",116,738,"EFLHcool","EFLHcool, from 2017 MO TRM",85,1376,"EFLHheat","The EFLH Cooling and Heating hours are based on a EnergyStar study that was normalized (based on HDD and CDD) to Kansas City. This was for both AC and HP units.",null," "]
["Heating, Cooling & Home Comfort","Duct Repair and Sealing",278,"Single Family","HVAC",null,"per home (25% to 10%)",497.62,"Program Tracking Data",null,{"$f":"ROUND(((((AS83-AW83)/AS83)*BA83*BE83*BI83)/1000/BM83)+(((((AS83-AW83)/AS83))*BQ83*BU83*BY83)/CC83/3412),4)","v":1218.8362},"Calculated Value",null,null,0.46600000000000003,"Calculated Value",null,{"$f":"ROUND(((((AS83-AW83)/AS83)*BA83*BE83*BI83)/1000/BM83)/BA83*O83,8)","v":9.1173909999999997E-2},"Calculated Value",null,null,null,null,20,"IL TRM v6 vol3",77,"Duct sealing using mastic sealant or metal \ntape",null,null,null,"Unsealed/leaking ductwork",null,null,null,"=ROUND(((((AS83-AW83)/AS83)*BA83*BE83*BI83)/1000/BM83)+(((((AS83-AW83)/AS83))*BQ83*BU83*BY83)/CC83/3412),4)","=ROUND(((((AS83-AW83)/AS83)*BA83*BE83*BI83)/1000/BM83)/BA83*O83,8)","IL TRM v6 vol3","78 - 85","2020-01-01",null,null,null,null,null,0.92,"Deafter","IL TRM v6 vol3, example rating",84,0.85,"Debefore","IL TRM v6 vol3, example rating",84,1035,"FLHcool","IL TRM v6 vol3 for Single Family Home",83,36000,"CapacityCool","IL TRM v6 vol3, Example Rating",82,1,"TRFcool","IL TRM v6 vol3",83,14,"ηCool","IL TRM v6 vol3 for heat pumps after 2015 (assuming upgrades as part of program participation)",83,1266,"FLHheat","IL TRM v6 vol3",84,36000,"OutputCapacityHeat","IL TRM v6 vol3",null,1,"TRFheat","IL TRM v6 vol3",84,1,"ηHeat","IL TRM v6 vol3",84]
["Income-Eligible Multi-Family","Screw In - LEDs (In-Unit)",53.4,"Multi-Family","Lighting","Kits","per lamp",3.93,"Program Tracking Data",null,{"$f":"ROUND(($AF84-$AB84)/1000*$U84*$AS84*$BA84,4)","v":37.313299999999998},"Calculated Value",null,{"$f":"K84/U84","v":3.4263820018365469E-2},0.128,"IL TRM v7 vol3",274,{"$f":"ROUND(($AF84-$AB84)/1000*O84*$AW84*$BA84,4)","v":4.4999999999999997E-3},"Calculated Value",null,1089,"IL TRM v7 vol3",271,10,"IL TRM v7 vol3",268,"Screw In - LEDs",9,"Program Tracking Data",null,"43 watts based on halogen equivalent to average of bulbs sold in program ",43,"Program Tracking Database",null,"=ROUND(($AF84-$AB84)/1000*$U84*$AS84*$BA84,4)","=ROUND(($AF84-$AB84)/1000*O84*$AW84*$BA84,4)","IL TRM v7 vol3","269, 273","2020-01-01",null,null,null,null,null,1.04,"Waste Heat Factor, Energy","IL TRM v7 vol3 - Multifamily in unit",279,1.07,"Waste Heat Factor, Demand","IL TRM v7 vol3 - Multifamily in unit",271,0.96899999999999997,"ISR","IL TRM v7 vol3",270," "]
["Income-Eligible Multi-Family","Low Flow Faucet Aerator-Bathroom",268.2,"Multi-Family","Hot Water","Kits","per unit",8,"IL TRM v5 vol3",174,{"$f":"ROUND(((AF85-AB85)*AW85*BA85*365.25)*AS85*BE85,4)","v":66.734899999999996},"Calculated Value",null,3.0334045454545451,2.1999999999999999E-2,"IL TRM v5 vol3",179,{"$f":"ROUND((((AF85-AB85)*AW85*BA85*365.25)*AS85*BE85)/U85*O85,4)","v":6.6699999999999995E-2},"Calculated Value",null,22,"IL TRM v5 vol3",179,9,"IL TRM v5 vol3",174,"Low Flow (GPM)",1,"Program Tracking Data",null,"Standard (GPM)",2.2000000000000002,"Federal Baseline",null,"=ROUND(((AF85-AB85)*AW85*BA85*365.25)*AS85*BE85,4)","=ROUND((((AF85-AB85)*AW85*BA85*365.25)*AS85*BE85)/U85*O85,4)","IL TRM v5 vol3",175,"2020-01-01",null,null,null,null,null,7.9500000000000001E-2,"kWh per gallon hot water, bathroom","IL TRM v5 vol3",177,{"$f":"1.6*0.9/1.5","v":0.96000000000000008},"Faucet Coefficient, Bathroom: Minutes/day * Drain Factor / Faucets per Household","IL TRM v5 vol3",176177,2.1,"Persons per household","IL TRM v5 vol3",176,0.95,"Installation Rate","IL TRM v5 vol3",178]
["Income-Eligible Multi-Family","Low Flow Faucet Aerator-Kitchen",269.2,"Multi-Family","Hot Water","Kits","per unit",8,"IL TRM v5 vol3",174,{"$f":"ROUND(((AF86-AB86)*AW86*BA86*365.25)*AS86*BE86,4)","v":159.78890000000001},"Calculated Value",null,2.0751805194805195,2.1999999999999999E-2,"IL TRM v5 vol3",179,{"$f":"ROUND((((AF86-AB86)*AW86*BA86*365.25)*AS86*BE86)/U86*O86,4)","v":4.5699999999999998E-2},"Calculated Value",null,77,"IL TRM v5 vol3",179,9,"IL TRM v5 vol3",174,"Low Flow (GPM)",1.5,"Program Tracking Data",null,"Standard (GPM)",2.2000000000000002,"Federal Baseline",null,"=ROUND(((AF86-AB86)*AW86*BA86*365.25)*AS86*BE86,4)","=ROUND((((AF86-AB86)*AW86*BA86*365.25)*AS86*BE86)/U86*O86,4)","IL TRM v5 vol3",175,"2020-01-01",null,null,null,null,null,9.69E-2,"kWh per gallon hot water, kitchen","IL TRM v5 vol3",177,{"$f":"4.5*0.75/1","v":3.375},"Faucet Coefficient, Kitchen","IL TRM v5 vol3",176177,2.1,"Persons per household","IL TRM v5 vol3",176,0.91,"Installation Rate","IL TRM v5 vol3",178]
["Income-Eligible Multi-Family","Pipe Insulated",55.3,"Multi-Family","Hot Water","Kits","per unit",18,"IL TRM v5 vol3",160,{"$f":"ROUND(((((AS87*PI()*BA87)/AF87) - ((AW87*PI()*BA87)/AB87))*BE87)/BI87/3412,4)","v":72.064999999999998},"Calculated Value",null,{"$f":"K87/8766","v":8.2209673739447858E-3},1,"Calculated Value",null,{"$f":"ROUND(K87/8766,4)","v":8.2000000000000007E-3},"Calculated Value",null,8766,"IL TRM v5 vol3",161,15,"IL TRM v5 vol3",160,"Efficient R-Value due to added insulation",{"$f":"1+5","v":6},"Program Tracking Data",null,"R-Value of bare pipe",1,"IL TRM v5 vol3",161,{"$f":"cellformula(K87)","v":"=ROUND(((((AS87*PI()*BA87)/AF87) - ((AW87*PI()*BA87)/AB87))*BE87)/BI87/3412,4)"},{"$f":"cellformula(R87)","v":"=ROUND(K87/8766,4)"},"IL TRM v5 vol3",161162,"2020-01-01",null,null,null,null,null,{"$f":"0.75/12","v":6.25E-2},"Dbase = Pipe Diameter (ft)","IL TRM v5 vol3",161,{"$f":"(0.75+1*2)/12","v":0.22916666666666666},"Dee = Updated Pipe Diameter, due to added insulation (ft)","IL TRM v5 vol3",161,6,"Length of added pipe insulation","Program Tracking Data",null,{"$f":"60*8766","v":525960},"Pipe Insulated Coefficient 1 = ∆T * Hours = 60 * 8766","IL TRM v5 vol3",161,0.98,"Recovery efficiency of electric water heater","IL TRM v5 vol3",161]
["Income-Eligible Multi-Family","Low Flow Showerhead",56.3,"Multi-Family","Hot Water","Kits","per unit",12,"IL TRM v5 vol3",183,{"$f":"ROUND(((AF88-AB88)*AW88*BA88*365.25)*AS88*BE88,4)","v":359.0933},"Calculated Value",null,{"$f":"K88/U88","v":1.4479568548387096},2.7799999999999998E-2,"IL TRM v5 vol3",183,{"$f":"ROUND((((AF88-AB88)*AW88*BA88*365.25)*AS88*BE88)/U88*O88,4)","v":4.0300000000000002E-2},"Calculated Value",null,248,"IL TRM v5 vol3",187,10,"IL TRM v5 vol3",183,"Low Flow (GPM)",1.5,"Program Tracking Data",null,"Standard (GPM)",2.67,"IL TRM v5 vol3",184,"=ROUND(((AF88-AB88)*AW88*BA88*365.25)*AS88*BE88,4)","=ROUND((((AF88-AB88)*AW88*BA88*365.25)*AS88*BE88)/U88*O88,4)","IL TRM v5 vol3",184186,"2020-01-01",null,null,null,null,null,0.11700000000000001,"kWh per gallon hot water","IL TRM v5 vol3",185,{"$f":"7.8*0.6/1.3","v":3.5999999999999996},"Showerhead Coefficient: Minutes per day * Showers per day / Showers per household","IL TRM v5 vol3",185,2.1,"Persons per household","IL TRM v5 vol3",185,0.95,"Installation Rate","IL TRM v5 vol3",186]
["Income-Eligible Multi-Family","Water Heater Tank Wrap",57.1,"Multi-Family","Hot Water","Kits","per unit",20,"Program Tracking Data",null,{"$f":"ROUND((AS89/AW89-BA89/BE89)*BI89*BM89/BQ89/BU89,4)","v":134.09479999999999},"Calculated Value",null,{"$f":"ROUND(0.0153,4)","v":1.5299999999999999E-2},1,"IL TRM v7 vol3",203,{"$f":"ROUND(0.0153,4)","v":1.5299999999999999E-2},"Calculated Value",null,8766,"IL TRM v7 vol3",204,5,"IL TRM v7 vol3",203,"Water heater insulation increased from R12 to R22, 50gal",null,"IL TRM v7 vol3",204,"R12, 50-gal water heater insulation (no wrap)",null,"IL TRM v7 vol3",204,"=ROUND((AS89/AW89-BA89/BE89)*BI89*BM89/BQ89/BU89,4)","=ROUND(0.0153,4)","IL TRM v7 vol3","203, 205","2020-01-01",null,null,null,null,null,24.99,"Abase","IL TRM v7 vol3",204,12,"Rbase","IL TRM v7 vol3",204,27.06,"Ainsul","IL TRM v7 vol3",204,22,"Rinsul","IL TRM v7 vol3",204,60,"deltaT","IL TRM v7 vol3",204,8766,"Hours","IL TRM v7 vol3",204,0.98,"eta DHW","IL TRM v7 vol3",204,3412,"Conversion from BTU to kWh","IL TRM v7 vol3",204]
["Income-Eligible Multi-Family","Smart Power Strip - Wh7-Plug",248.2,"Multi-Family","Electronics","Kits","per unit",26,"Program Tracking Data",null,{"$f":"ROUND(103,4)","v":103},"Calculated Value",null,{"$f":"K90/U90","v":1.4448029176602609E-2},0.8,"IL TRM v5 vol3",55,{"$f":"ROUND(0.0115,4)","v":1.15E-2},"Calculated Value",null,7129,"IL TRM v5 vol3",54,7,"IL TRM v6 vol3",53,"Smart strip",null,"IL TRM v6 vol3",53,"Standard outlet strip",null,"IL TRM v6 vol3",53,"=ROUND(103,4)","=ROUND(0.0115,4)","IL TRM v6 vol3",53,"2020-01-01"]
["Income-Eligible Multi-Family","LED Exit Sign",59.2,"Multi-Family","Lighting","Common Area - DI","per unit",30,"IL TRM v5 vol3",254,{"$f":"ROUND((AF91-AB91)/1000*U91*AS91,4)","v":82.049800000000005},"Calculated Value",null,{"$f":"(AF91-AB91)/1000*AW91","v":9.6299999999999997E-3},1,"IL TRM v5 vol3",254,{"$f":"ROUND(N91*O91,4)","v":9.5999999999999992E-3},"Calculated Value",null,8766,"IL TRM v5 vol3",255,16,"IL TRM v5 vol3",254,"LED (watts)",2,"IL TRM v5 vol3",255,"Fluorescent (watts)",11,"IL TRM v5 vol3",255,"=ROUND((AF91-AB91)/1000*U91*AS91,4)","=ROUND(N91*O91,4)","IL TRM v5 vol3",255256,"2020-01-01",null,null,null,null,null,1.04,"Waste Heat Factor (energy)","IL TRM v5 vol3",255,1.07,"Waste Heat Factor (demand)","IL TRM v5 vol3",256]
["Income-Eligible Multi-Family","High Bay Fluorescent Fixture w/ HE Electronic Ballast (T5 >4 lamps)",60.1,"Multi-Family","Lighting","Common Area - DI","per fixture",100,"IL TRM v6 vol2",413,{"$f":"ROUND((AF92-AB92)/1000*U92*AS92,4)","v":701.00689999999997},"Calculated Value",null,0.21574000000000002,0.66,"IL TRM v6 vol2",412,{"$f":"ROUND(N92*O92,4)","v":0.1424},"Calculated Value",null,3088,"IL TRM v6 vol2",338,15,"IL TRM v6 vol2",410,"High Bay - T5 >4 lamp",295,"Program Tracking Database (weighted average(",null,"Metal Halide (watts)",456,"IL TRM v6 vol2",412,{"$f":"_xlfn.FORMULATEXT(K92)","v":"=ROUND((AF92-AB92)/1000*U92*AS92,4)"},{"$f":"_xlfn.FORMULATEXT(R92)","v":"=ROUND(N92*O92,4)"},"IL TRM v6 vol2",411412,"2020-01-01",null,null,null,null,null,1.41,"Waste Heat Factor","IL TRM v6 vol2","337 (portfolio weighted average)",1.34,"Waste Heat Factor","IL TRM v6 vol2","337 (portfolio weighted average)"]
["Income-Eligible Multi-Family","Low Wattage T8 Lamp",61.1,"Multi-Family","Lighting","Common Area - DI","per lamp",2,"IL TRM v6 vol2",358,{"$f":"ROUND((AF93-AB93)/1000*U93*AS93,4)","v":21.1219},"Calculated Value",null,7.92E-3,0.66,"IL TRM v6 vol2",354,{"$f":"ROUND(N93*O93,4)","v":5.1999999999999998E-3},"Calculated Value",null,3088,"IL TRM v6 vol2",338,10,"IL TRM v6 vol2",361,"Low Wattage T8 (watts)",22,"IL TRM v6 vol2",358,"Standard T8 (watts)",28,"IL TRM v6 vol2",358,"=ROUND((AF93-AB93)/1000*U93*AS93,4)","=ROUND(N93*O93,4)","IL TRM v6 vol2",353354,"2020-01-01",null,null,null,null,null,1.1399999999999999,"Waste Heat Factor, Energy","IL TRM v6 vol2",338,1.32,"Waste Heat Factor, Demand","IL TRM v6 vol2",338]
["Income-Eligible Multi-Family","LED Flood Light (<15W) (Exterior)",62.2,"Multi-Family","Lighting","Common Area - DI","per lamp",3.93,"IL TRM v5 vol3",265,{"$f":"ROUND(($AF94-$AB94)/1000*$U94*$AS94*$BA94,4)","v":212.465},"Calculated Value",null,4.6010000000000002E-2,0,"IL TRM v6 vol2",338,{"$f":"ROUND(($AF94-$AB94)/1000*$O94*$AW94*$BA94,4)","v":0},null,null,4903,"IL TRM v6 vol2",338,10,"IL TRM v6 vol2",374,"LED (watts)",8.6999999999999993,"Program Tracking Data",null,"Metal Halide (watts)",51.7,"IL TRM v6 vol2",364,"=ROUND(($AF94-$AB94)/1000*$U94*$AS94*$BA94,4)","=ROUND(($AF94-$AB94)/1000*$O94*$AW94*$BA94,4)","IL TRM v6 vol2",364368,"2020-01-01",null,null,null,null,null,1.04,"Waste Heat Factor (energy)","IL TRM v5 vol3",null,1.07,"Waste Heat Factor (demand)","IL TRM v5 vol3",null,0.96899999999999997,"ISR","IL TRM v5 vol3",260]
["Income-Eligible Multi-Family","Screw In - LEDs - Common Area (Interior)",249.2,"Multi-Family","Lighting","Common Area - DI","per lamp",3.93,"IL TRM v5 vol3",265,{"$f":"ROUND(($AF95-$AB95)/1000*$U95*$AS95*$BA95,4)","v":29.579599999999999},"Calculated Value",null,{"$f":"K95/U95","v":3.4922786304604485E-2},8.1000000000000003E-2,"IL TRM v5 vol3",258,3.0000000000000001E-3,"Calculated Value",null,847,"IL TRM v5 vol3",208,5,"IL TRM v5 vol3",205,"LED (watts)",9,"Program Tracking Data",null,"EISA tier 1 compliant Halogen (watts)",43,"IL TRM v5 vol3",265,"=ROUND(($AF95-$AB95)/1000*$U95*$AS95*$BA95,4)","=ROUND(($AF95-$AB95)/1000*$O95*$AW95*$BA95,4)","IL TRM v5 vol3",259263,"2020-01-01",null,null,null,null,null,1.06,"Waste Heat Factor (energy)","IL TRM v5 vol3",261,1.1100000000000001,"Waste Heat Factor (demand)","IL TRM v5 vol3",264,0.96899999999999997,"ISR","IL TRM v5 vol3",260]
["Income-Eligible Multi-Family","Screw In - LEDs - Common Area (Exterior)",250.2,"Multi-Family","Lighting","Common Area - DI","per lamp",3.93,"IL TRM v5 vol3",265,{"$f":"ROUND(($AF96-$AB96)/1000*$U96*$AS96*$BA96,4)","v":81.541399999999996},"Calculated Value",null,3.2946020202020199E-2,0.27300000000000002,"IL TRM v5 vol3",258,8.9999999999999993E-3,"Calculated Value",null,2475,"IL TRM v5 vol3",208,5,"IL TRM v5 vol3",205,"LED (watts)",9,"Program Tracking Data",null,"EISA tier 1 compliant Halogen (watts)",43,"IL TRM v5 vol3",265,"=ROUND(($AF96-$AB96)/1000*$U96*$AS96*$BA96,4)","=ROUND(($AF96-$AB96)/1000*$O96*$AW96*$BA96,4)","IL TRM v5 vol3",259263,"2020-01-01",null,null,null,null,null,1,"Waste Heat Factor (energy)","IL TRM v5 vol3",261,1,"Waste Heat Factor (demand)","IL TRM v5 vol3",264,0.96899999999999997,"ISR","IL TRM v5 vol3",260]
["Income-Eligible Multi-Family","Air Sealing (Infiltration reduction) - 30% MF LI DI electric furnace base/electric resistance",441,"Multi-Family","HVAC - Shell",null,"per sq ft (floor area)",0.12,"Program tracking data, with 50% co-delivery costs shared with Spire Missouri",null,{"$f":"ROUND(0.285,4)","v":0.28499999999999998},"Calculated Value",null," ",0,"Calculated Value",null,{"$f":"ROUND(O97*K97,4)","v":0},"No cooling savings, no coincident savings",null," ",null,null,15,"MO TRM 2017",162,"air leaks are detected and sealed",null,null,null,"air leaks",null,null,null,"=ROUND(0.285,4)","=ROUND(O97*K97,4)",null,null,"2020-01-01",null,null,null,null,null,3263,"Square footage installed","PY2016 average"]
["Income-Eligible Multi-Family","Air Sealing (Infiltration reduction) - 30% MF LI DI ASHP base- Heating Only",442,"Multi-Family","HVAC - Shell",null,"per sq ft (floor area)",0.12,"Program tracking data, with 50% co-delivery costs shared with Spire Missouri",null,{"$f":"ROUND(0.208,4)","v":0.20799999999999999},"Calculated Value",null," ",0,"Calculated Value",null,{"$f":"ROUND(O98*K98,4)","v":0},"No cooling savings, no coincident savings",null," ",null,null,15,"MO TRM 2017",162,"air leaks are detected and sealed",null,null,null,"air leaks",null,null,null,"=ROUND(0.208,4)","=ROUND(O98*K98,4)",null,null,"2020-01-01",null,null,null,null,null,3263,"Square footage installed","PY2016 average"]
["Income-Eligible Multi-Family","Air Sealing (Infiltration reduction) - 30% MF LI DI CAC or ASHP- Cooling Only",452,"Multi-Family","HVAC - Shell",null,"per sq ft (floor area)",0.12,"Program tracking data, with 50% co-delivery costs shared with Spire Missouri",null,{"$f":"ROUND(0.043,4)","v":4.2999999999999997E-2},"Calculated Value",null," ",9.4741810000000004E-4,"Calculated Value",null,{"$f":"ROUND(K99*O99,8)","v":4.074E-5},"Calculated Value",null," ",null,null,15,"MO TRM 2017",162,"air leaks are detected and sealed",null,null,null,"air leaks",null,null,null,"=ROUND(0.043,4)","=ROUND(K99*O99,8)",null,null,"2020-01-01",null,null,null,null,null,3263,"Square footage installed","PY2016 average"]
["Income-Eligible Multi-Family","Interior Directional LED Lamp replacing 50-70W Lamp",321,"Multi-Family","Lighting",null,"per lamp",1.65,"IL TRM v7 vol3",251,{"$f":"ROUND((AF100-AB100)/1000*U100*AS100*BA100,4)","v":48.654699999999998},"Calculated Value",null,{"$f":"R100/O100","v":5.2343750000000001E-2},0.128,"IL TRM v7 vol3",251,{"$f":"ROUND((AF100-AB100)*AW100*BA100*O100/1000,4)","v":6.7000000000000002E-3},"Calculated Value",null,974,"IL TRM v7 vol3",255,10,"IL TRM v7 vol3",250,"Interior Directional LED Lamp",9.4960000000000004,"IL TRM v7 vol3",253,"50-70Watts Lamp",60,"IL TRM v7 vol3",253,"=ROUND((AF100-AB100)/1000*U100*AS100*BA100,4)","=ROUND((AF100-AB100)*AW100*BA100*O100/1000,4)","IL TRM v7 vol3","251, 259","2020-01-01",null,null,null,null,null,1.05,"Waste Heat Factor_Energy","IL TRM v7 vol3",255,1.1000000000000001,"Waste Heat Factor_Demand","IL TRM v7 vol3",259,0.94199999999999995,"ISR","Navigant MEEIA Cycle 1 Research"]
["Income-Eligible Multi-Family","Interior LED 2X4 Retrofit Kit replacing T8, T12 or T5/T5HO",322,"Multi-Family","Lighting",null,"per unit",26,"IL TRM v7 vol3",278,{"$f":"ROUND((AF101-AB101)/1000*U101*AS101*BA101,4)","v":63.679600000000001},"Calculated Value",null,{"$f":"R101/O101","v":6.8750000000000006E-2},0.128,"IL TRM v7 vol3",278,{"$f":"ROUND((AF101-AB101)*AW101*BA101*O101/1000,4)","v":8.8000000000000005E-3},"Calculated Value",null,974,"IL TRM v7 vol3",255,15,"IL TRM v7 vol3",277,"LED 2X4 Retrofit Kits",22.4,"IL TRM v7 vol3",278,"2x4 T8, T12 or T5 Fluorescents",88.5,"IL TRM v7 vol3",278,{"$f":"_xlfn.FORMULATEXT(K101)","v":"=ROUND((AF101-AB101)/1000*U101*AS101*BA101,4)"},{"$f":"_xlfn.FORMULATEXT(R101)","v":"=ROUND((AF101-AB101)*AW101*BA101*O101/1000,4)"},"IL TRM v7 vol3","278, 281","2020-01-01",null,null,null,null,null,1.05,"Waste Heat Factor_Energy","IL TRM v7 vol3",279,1.1000000000000001,"Waste Heat Factor_Demand","IL TRM v7 vol3",281,0.94199999999999995,"ISR","Navigant MEEIA Cycle 1 Research"]
["Income-Eligible Multi-Family","ECM Auto Fan Early Replacement - MF",390,"Multi-Family","Motor",null,"per unit",97,"WI TRM 2018",915,{"$f":"ROUND(AS102*BE102*12*(1/AW102-1/BA102)*BM102+BQ102*BU102+BY102*CC102,4)","v":1084.7825},"Calculated Value",null,0.81470588235294117,0.68,"WI TRM 2018",916,{"$f":"ROUND(AS102*12*(1/CG102-1/CK102)*O102*BM102,4)","v":0.55400000000000005},"Calculated Value",null," ",null,null,6,"WI TRM 2018 - total is 18 years",916,"ECM Blower Motor",null,null,null,"Non-ECM Blower Motor",null,null," ","=ROUND(AS102*BE102*12*(1/AW102-1/BA102)*BM102+BQ102*BU102+BY102*CC102,4)","=ROUND(AS102*12*(1/CG102-1/CK102)*O102*BM102,4)","WI TRM 2018",916,"2020-01-01",null,null,null,null,null,2.4249999999999998,"Air conditioner capacity in tons","WI TRM 2018",916,8.86,"SEERexist","This value is from IL TRM v6 vol3 but should be actual equipment SEER value. ",null,13,"SEERecm","WI TRM 2018",916,738,"FLH_cooling","MO TRM 2017",85,0.68,"CF","WI TRM 2018",916,0.92500000000000004,"Percentage of furnaces with AC","WI TRM 2018",916,1376,"EFLHheat","The EFLH Cooling and Heating hours are based on a EnergyStar study that was normalized (based on HDD and CDD) to Kansas City. This was for both AC and HP units.",null,0.11600000000000001,"Energy savings in heating","WI TRM 2018",916,1020,"Hours of fan-only operation","WI TRM 2018",916,0.20699999999999999,"Energy savings in fan-only","WI TRM 2018",916,{"$f":"-0.02*AW102^2+1.12*AW102","v":8.3532080000000004},"EERexist","Value Calculated from SEER",null,{"$f":"-0.02*BA102^2+1.12*BA102","v":11.180000000000003},"EERecm","Value Calculated from SEER",null," "]
["Income-Eligible Multi-Family","ECM Auto Fan Early Replacement (future) - MF",391,"Multi-Family","Motor",null,"per unit",0,"WI TRM 2018",915,498.09649999999999,"Calculated Value",null,0.14132352941176471,0.68,"WI TRM 2018",916,9.6100000000000005E-2,"Calculated Value",null," ",null,null,12,"WI TRM 2018 - total is 18 years",916,"ECM Blower Motor",null,null,null,"Non-ECM Blower Motor",null,null," ","=ROUND(AS103*BE103*12*(1/AW103-1/BA103)*BM103+BQ103*BU103+BY103*CC103,4)","=ROUND(AS103*12*(1/CG103-1/CK103)*O103*BM103,4)","WI TRM 2018",916,"2020-01-01",null,null,null,null,null,2.4249999999999998,"Air conditioner capacity in tons","WI TRM 2018",916,12,"SEERbase","WI TRM 2018",916,13,"SEERecm","WI TRM 2018",916,738,"FLH_cooling","MO TRM 2017",85,0.68,"CF","WI TRM 2018",916,0.92500000000000004,"Percentage of furnaces with AC","WI TRM 2018",916,1376,"EFLHheat","The EFLH Cooling and Heating hours are based on a EnergyStar study that was normalized (based on HDD and CDD) to Kansas City. This was for both AC and HP units.",null,0.11600000000000001,"Energy savings in heating","WI TRM 2018",916,1020,"Hours of fan-only operation","WI TRM 2018",916,0.20699999999999999,"Energy savings in fan-only","WI TRM 2018",916,10.560000000000002,"EERbase","WI TRM 2018",916,11.180000000000003,"EERecm","WI TRM 2018",916," "]
["Income-Eligible Multi-Family","ECM Continous Fan Early Replacement - MF",393,"Multi-Family","Motor",null,"per unit",97,"WI TRM 2018",915,1084.7825,"Calculated Value",null,0.81470588235294117,0.68,"WI TRM 2018",916,0.55400000000000005,"Calculated Value",null," ",null,null,6,"WI TRM 2018 - total is 18 years",916,"ECM Blower Motor",null,null,null,"Non-ECM Blower Motor",null,null," ","=ROUND(AS104*BE104*12*(1/AW104-1/BA104)*BM104+BQ104*BU104+BY104*CC104,4)","=ROUND(AS104*12*(1/CG104-1/CK104)*O104*BM104,4)","WI TRM 2018",916,"2020-01-01",null,null,null,null,null,2.4249999999999998,"Air conditioner capacity in tons","WI TRM 2018",916,8.86,"SEERexist","This value is from IL TRM v6 vol3 but should be actual equipment SEER value. ",null,13,"SEERecm","WI TRM 2018",916,738,"FLH_cooling","MO TRM 2017",85,0.68,"CF","WI TRM 2018",916,0.92500000000000004,"Percentage of furnaces with AC","WI TRM 2018",916,1376,"EFLHheat","The EFLH Cooling and Heating hours are based on a EnergyStar study that was normalized (based on HDD and CDD) to Kansas City. This was for both AC and HP units.",null,0.11600000000000001,"Energy savings in heating","WI TRM 2018",916,1020,"Hours of fan-only operation","WI TRM 2018",916,0.20699999999999999,"Energy savings in fan-only","WI TRM 2018",916,8.3532080000000004,"EERexist","Value Calculated from SEER",null,11.180000000000003,"EERecm","Value Calculated from SEER",null," "]
["Income-Eligible Multi-Family","ECM Continous Fan Early Replacement (future) - MF",394,"Multi-Family","Motor",null,"per unit",0,"WI TRM 2018",915,498.09649999999999,"Calculated Value",null,0.14132352941176471,0.68,"WI TRM 2018",916,9.6100000000000005E-2,"Calculated Value",null," ",null,null,12,"WI TRM 2018 - total is 18 years",916,"ECM Blower Motor",null,null,null,"Non-ECM Blower Motor",null,null," ","=ROUND(AS105*BE105*12*(1/AW105-1/BA105)*BM105+BQ105*BU105+BY105*CC105,4)","=ROUND(AS105*12*(1/CG105-1/CK105)*O105*BM105,4)","WI TRM 2018",916,"2020-01-01",null,null,null,null,null,2.4249999999999998,"Air conditioner capacity in tons","WI TRM 2018",916,12,"SEERbase","WI TRM 2018",916,13,"SEERecm","WI TRM 2018",916,738,"FLH_cooling","MO TRM 2017",85,0.68,"CF","WI TRM 2018",916,0.92500000000000004,"Percentage of furnaces with AC","WI TRM 2018",916,1376,"EFLHheat","The EFLH Cooling and Heating hours are based on a EnergyStar study that was normalized (based on HDD and CDD) to Kansas City. This was for both AC and HP units.",null,0.11600000000000001,"Energy savings in heating","WI TRM 2018",916,1020,"Hours of fan-only operation","WI TRM 2018",916,0.20699999999999999,"Energy savings in fan-only","WI TRM 2018",916,10.560000000000002,"EERbase","WI TRM 2018",916,11.180000000000003,"EERecm","WI TRM 2018",916," "]
["Income-Eligible Multi-Family","Refrigerator - Early Replacement -  MF",405,"Multi-Family","Appliances",null,"per unit",451,"IL TRM v6 vol3",28,{"$f":"ROUND((BI106-BE106),4)","v":696},"Calculated Value",null,null,null,null,null,{"$f":"ROUND((K106/DE106)*CW106*DA106,4)","v":0.10489999999999999},"Calculated Value",null,8766,"IL TRM v6 vol3",30,4,"IL TRM v6 vol3",28,"UEC",{"$f":"BE106","v":331.7},"IL TRM v6 vol3",28,"UEC",{"$f":"BI106","v":1027.7},"IL TRM v6 vol3",28,{"$f":"cellformula(K106)","v":"=ROUND((BI106-BE106),4)"},{"$f":"cellformula(R106)","v":"=ROUND((K106/DE106)*CW106*DA106,4)"},"IL TRM v6 vol3","28, 30","2020-01-01",null,null,null,null,null,14.75,"Fresh Volume_ee (ft3)","IL TRM v6 vol3",31,6.76,"Freezer Volume_ee (ft3)","IL TRM v6 vol3",31,{"$f":"ROUND(AS106+1.63*AW106,2)","v":25.77},"Adjusted Volume_ee","IL TRM v6 vol3",31,{"$f":"ROUND(6.11*BA106+174.2,1)","v":331.7},"UECEE","IL TRM v6 vol3",28,{"$f":"ROUND((83.32+(BM106*3.68)+(BQ106*485.04)+(BU106*27.15)+(BY106*406.78)+(CC106*161.86)+(CG106*CK106*15.37)+(CO106*CK106-11.07))*CS106,1)","v":1027.7},"UECEXIST","IL TRM v6 vol3",28,10,"Age","IL TRM v6 vol3",30,0,"Pre-1990","IL TRM v6 vol3",30,21.5,"Size (ft3)","IL TRM v6 vol3",30,1,"Side-by-side","IL TRM v6 vol3",30,1,"Proportion of Primary Appliances","IL TRM v6 vol3",30,{"$f":"1570/365","v":4.3013698630136989},"CDD/365","IL TRM v6 vol3",30,0,"Unconditioned","IL TRM v6 vol3",30,{"$f":"4379/365","v":11.997260273972604},"HDD/365","IL TRM v6 vol3",30,{"$f":"ROUND(0.814729665,4)","v":0.81469999999999998},"Part Use Factor","IL TRM v6 vol3",29,1.25,"TAF","IL TRM v6 vol3",30,1.0569999999999999,"LSAF","IL TRM v6 vol3",31,8766,"Hours","IL TRM v6 vol3",30]
["Income-Eligible Multi-Family","Refrigerator - Early Replacement (future) - MF ",406,"Multi-Family","Appliances",null,"per measure",0,"IL TRM v6 vol3",28,{"$f":"ROUND((BI107-BE107),4)","v":36.9},"Calculated Value",null,null,null,null,null,{"$f":"ROUND((K107/BU107)*BM107*BQ107,4)","v":5.5999999999999999E-3},"Calculated Value",null,8766,"IL TRM v6 vol3",30,8,"IL TRM v6 vol3",28,"UEC",{"$f":"BE107","v":331.7},"IL TRM v6 vol3",30,"UEC",{"$f":"BI107","v":368.6},"IL TRM v6 vol3",30,"=ROUND((BI107-BE107),4)","=ROUND((K107/BU107)*BM107*BQ107,4)","IL TRM v6 vol3","28, 30","2020-01-01",null,null,null,null,null,14.75,"Fresh Volume_ee (ft3)","IL TRM v6 vol3",31,6.76,"Freezer Volume_ee (ft3)","IL TRM v6 vol3",31,{"$f":"ROUND(AS107+1.63*AW107,2)","v":25.77},"Adjusted Volume_ee","IL TRM v6 vol3",31,{"$f":"ROUND(6.11*BA107+174.2,1)","v":331.7},"UECEE","IL TRM v6 vol3",30,{"$f":"ROUND(6.79*BA107+193.6,1)","v":368.6},"UECBASE","IL TRM v6 vol3",30,1.25,"TAF","IL TRM v6 vol3",30,1.0569999999999999,"LSAF","IL TRM v6 vol3",31,8766,"Hours","IL TRM v6 vol3",30]
["Income-Eligible Multi-Family","Commercial Grade Washing Machines",407,"Common Area MF","Appliances",null,"per unit",65,"IL TRM v6 vol3",8,{"$f":"ROUND((AS108*1/AW108*BA108*(BE108+(BI108*BM108)+(BQ108*BU108)))-(AS108*1/BY108*BA108*(CC108+(CG108*CK108)+(CO108*CS108))),4)","v":162.7706},"Calculated Value",null,{"$f":"K108/U108","v":{"$error":"#DIV/0!"}},3.7999999999999999E-2,"IL TRM v6 vol3",11,{"$f":"ROUND(K108/CW108*DA108,4)","v":2.1000000000000001E-2},"Calculated Value",null,null,null,null,14,"IL TRM v6 vol3",8,"IMEF",2.2599999999999998,"IL TRM v6 vol3",10,"IMEF",1.66,"IL TRM v6 vol3",9,"=ROUND((AS108*1/AW108*BA108*(BE108+(BI108*BM108)+(BQ108*BU108)))-(AS108*1/BY108*BA108*(CC108+(CG108*CK108)+(CO108*CS108))),4)","=ROUND(K108/CW108*DA108,4)","IL TRM v6 vol3","10, 11","2020-01-01",null,null,null,null,null,3.45,"Capacity","IL TRM v6 vol3",9,1.66,"IMEFbase","IL TRM v6 vol3",9,295,"Ncycles","IL TRM v6 vol3",9,7.5999999999999998E-2,"%Cwbase","IL TRM v6 vol3",10,0.312,"%DHWbase","IL TRM v6 vol3",10,1,"%Electric_DHW","IL TRM v6 vol3",10,0.61199999999999999,"%Dryerbase","IL TRM v6 vol3",10,1,"%Electric_dryer","IL TRM v6 vol3",10,2.2599999999999998,"IMEFeff","IL TRM v6 vol3",10,8.1000000000000003E-2,"%Cweff","IL TRM v6 vol3",10,0.23400000000000001,"%DHWeff","IL TRM v6 vol3",10,1,"%Electric_DHW","IL TRM v6 vol3",10,0.68500000000000005,"%Dryereff","IL TRM v6 vol3",10,1,"%Electric_Dryer","IL TRM v6 vol3",10,295,"Hours","IL TRM v6 vol3",11,3.7999999999999999E-2,"CF","IL TRM v6 vol3",9]
["Income-Eligible Multi-Family","Commercial Grade Dryers ",408,"Common Area MF","Appliances",null,"per unit",152,"IL TRM v6 vol3",46,{"$f":"ROUND((AS109/AW109-AS109/BA109)*BE109*BI109,4)","v":160.43680000000001},"Calculated Value",null,{"$f":"K109/U109","v":0.56691448763250885},3.7999999999999999E-2,"IL TRM v6 vol3",48,{"$f":"ROUND(K109/BM109*BQ109,4)","v":2.1499999999999998E-2},"Calculated Value",null,283,"IL TRM v6 vol3",48,14,"IL TRM v6 vol3",48,"CEF",3.93,"IL TRM v6 vol3",47,"CEF",3.11,"IL TRM v6 vol3",47,"=ROUND((AS109/AW109-AS109/BA109)*BE109*BI109,4)","=ROUND(K109/BM109*BQ109,4)","IL TRM v6 vol3","47, 48","2020-01-01",null,null,null,null,null,8.4499999999999993,"Load","IL TRM v6 vol3",47,3.11,"CEF_base","IL TRM v6 vol3",47,3.93,"CEF_eff","IL TRM v6 vol3",47,283,"N_cycles","IL TRM v6 vol3",48,1,"%Electric","IL TRM v6 vol3",48,283,"Hours","IL TRM v6 vol3",48,3.7999999999999999E-2,"CF","IL TRM v6 vol3",46]
["Income-Eligible Multi-Family","Shower Start 1.5 gpm electric water heater",409,"Multi-Family","Hot Water",null,"per unit",30,"IL TRM v5 vol3",198,{"$f":"ROUND((((AF110*AW110)*BA110*BE110*BI110)/BM110)*AS110*BQ110,4)","v":46.751800000000003},"Calculated Value",null,{"$f":"K110/U110","v":1.6520070671378093},2.2000000000000001E-3,"IL TRM v5 vol3",202,{"$f":"ROUND((((AF110-AB110)*AW110*BA110*365.25)*AS110*BQ110)/U110*O110,4)","v":6.8999999999999999E-3},"Calculated Value",null,28.3,"IL TRM v5 vol3",202,10,"IL TRM v5 vol3",198,"Low Flow (GPM)",1.5,"Program Tracking Data",null,"Standard (GPM)",2.67,"IL TRM Version 5",199,"=ROUND((((AF110*AW110)*BA110*BE110*BI110)/BM110)*AS110*BQ110,4)","=ROUND((((AF110-AB110)*AW110*BA110*365.25)*AS110*BQ110)/U110*O110,4)","IL TRM Version 5","199, 202","2020-01-01",null,null,null,null,null,0.11700000000000001,"kWh per gallon hot water","IL TRM v5 vol3",201,0.89,"Hot water waste time avoided","IL TRM v5 vol3",199,2.1,"Persons per household","IL TRM v5 vol3",200,0.3,"Showers per capita per day","IL TRM v5 vol3",200,365.25,"Days per year","IL TRM v5 vol3",200,1.3,"Showers per hoursehold","IL TRM v5 vol3",200,0.95,"In Service Rate","IL TRM v5 vol3",201]
["Income-Eligible Multi-Family","CAC Tune-up /Indoor Coil (Evaporator) Cleaning MF",410,"Multi-Family","HVAC",null,"per ton",35,"WI TRM 2017",143,{"$f":"ROUND(AW111*BA111/1000*(1/(BI111*BM111)-1/BI111),4)","v":148.14080000000001},"Calculated Value",null,{"$f":"BA111/1000*(1/(BE111*BM111)-1/BE111)","v":0.28550102631087915},0.9,"WI TRM 2017",144,{"$f":"ROUND(N111*O111,4)","v":0.25700000000000001},"Calculated Value",null,null,null,null,3,"WI TRM 2017",144,"Coil cleaning of packaged air conditioning unit.",null,"WI TRM 2017",143,"The baseline condition is an AC system with fouled condenser coils."," ","WI TRM 2017",143,"=ROUND(AW111*BA111/1000*(1/(BI111*BM111)-1/BI111),4)","=ROUND(N111*O111,4)","IL TRM v6 vol3","143, 144","2020-01-01",null,null,null,null,null,null,null,null,null,564,"Equivalent Full Load Hours for Mechanical Cooling","IL TRM v6 vol3",127,36000,"Unit Cooling Capacity in Btu/hour","Installed Equipment; actual value",null,{"$f":"-0.02*BI111^2+1.12*BI111","v":9.2000000000000011},"EER","Installed Equipment; actual nameplate EER",null,10,"SEER","Installed Equipment; actual nameplate EER",null,0.93200000000000005,"Condenser coil fouling efficiency degradation factor","WI TRM 2017",144," "]
["Income-Eligible Multi-Family","CAC Tune-up /Outdoor Coil (Condenser) Cleaning MF",411,"Multi-Family","HVAC","Kits","per ton",35,"WI TRM 2017",143,{"$f":"ROUND(AW112*BA112/1000*(1/(BI112*BM112)-1/BI112),4)","v":148.14080000000001},"Calculated Value",null,{"$f":"BA112/1000*(1/(BE112*BM112)-1/BE112)","v":0.28550102631087915},0.9,"WI TRM 2017",144,{"$f":"ROUND(N112*O112,4)","v":0.25700000000000001},"Calculated Value",null,null,null,null,3,"WI TRM 2017",144,"Coil cleaning of packaged air conditioning unit.",null,"WI TRM 2017",143,"The baseline condition is an AC system with fouled condenser coils."," ","WI TRM 2017",143,"=ROUND(AW112*BA112/1000*(1/(BI112*BM112)-1/BI112),4)","=ROUND(N112*O112,4)","IL TRM v6 vol3","143, 144","2020-01-01",null,null,null,null,null,null,null,null,null,564,"Equivalent Full Load Hours for Mechanical Cooling","IL TRM v6 vol3",127,36000,"Unit Cooling Capacity in Btu/hour","Installed Equipment; actual value",null,{"$f":"-0.02*BI112^2+1.12*BI112","v":9.2000000000000011},"EER","Installed Equipment; actual nameplate EER",null,10,"SEER","Installed Equipment; actual nameplate EER",null,0.93200000000000005,"Condenser coil fouling efficiency degradation factor","WI TRM 2017",144," "]
["Income-Eligible Multi-Family","CAC SEER 15 - Early Replacement: MF",443,"Multi-Family","HVAC",null,"per ton",{"$f":"DA113+DE113/DM113-DI113/DM113*(1+CW113)^(-X113)","v":231.51412400380718},"IL TRM v7 vol3",77,{"$f":"ROUND(((U113*AW113*(1/BA113-1/BI113))/1000),4)","v":295.2},"Calculated Value",null,{"$f":"R113/O113","v":0.30441176470588233},0.68,"IL TRM v6 vol3",73,{"$f":"ROUND(((AW113*(1/BM113-1/BU113))/1000*BY113),4)","v":0.20699999999999999},"Calculated Value",null,738,"EFLHcool, from 2017 MO TRM",122,6,"IL TRM v6 vol3",72,"SEER",15,"As Installed",null,"SEER",10,"IL TRM v6 vol3",74,"=ROUND(((U113*AW113*(1/BA113-1/BI113))/1000),4)","=ROUND(((AW113*(1/BM113-1/BU113))/1000*BY113),4)","IL TRM v6 vol3","Energy Page 73, Demand Page 75","2020-01-01",null,null,null,null,null,null,null,null,null,12000,"Capacity (Btu/hr)","IL TRM v6 vol3",74,10,"SEERexist","IL TRM v6 vol3",74,13,"SEERbase","IL TRM v6 vol3",74,15,"SEERee","Program Tracking Data",null,9.1999999999999993,"EERexist","IL TRM v6 vol3",75,11.2,"EERbase","IL TRM v6 vol3",75,12,"EERee","IL TRM v6 vol3",75,0.68,"CF","IL TRM v6 vol3",75,null,null,null,null,null,null,null,null,null,null,null,null,null,null,null,null,null,null,null,null,0.03,"Societal Discount Rate","Evergy Standard",null,952,"First Cost $/ton","IL TRM v7 vol3",77,108,"One-time per-system labor cost","IL TRM v7 vol3",77,3140,"Deferred cost savings, per UNIT","IL TRM v7 vol3",78,3.5,"Assumed average system tons","Tracking Data"]
["Income-Eligible Multi-Family","CAC SEER 15 - Early Replacement: MF (future)",444,"Multi-Family","HVAC",null,"per ton",0,"IL TRM v7 vol3",77,295.2,"Calculated Value",null,7.1470588235294105E-2,0.68,"IL TRM v6 vol3",73,{"$f":"ROUND(((AW114*(1/BQ114-1/BU114))/1000*BY114),4)","v":4.8599999999999997E-2},"Calculated Value",null,738,"EFLHcool, from 2017 MO TRM",122,12,"IL TRM v6 vol3",72,"SEER",15,"As Installed",null,"SEER",13,"IL TRM v6 vol3",74,"=ROUND(((U114*AW114*(1/BA114-1/BI114))/1000),4)","=ROUND(((AW114*(1/BQ114-1/BU114))/1000*BY114),4)","IL TRM v6 vol3","Energy Page 73, Demand Page 75","2020-01-01",null,null,null,null,null,null,null,null,null,12000,"Capacity (Btu/hr)","IL TRM v6 vol3",74,10,"SEERexist","IL TRM v6 vol3",74,13,"SEERbase","IL TRM v6 vol3",74,15,"SEERee","Program Tracking Data",null,9.1999999999999993,"EERexist","IL TRM v6 vol3",75,11.2,"EERbase","IL TRM v6 vol3",75,12,"EERee","IL TRM v6 vol3",75,0.68,"CF","IL TRM v6 vol3",75,null,null,null,null,null,null,null,null,null,null,null,null,null,null,null,null,null,null,null,null,0.03,"Societal Discount Rate","Evergy Standard",null,952,"First Cost $/ton","IL TRM v7 vol3",77,108,"One-time per-system labor cost","IL TRM v7 vol3",77,3140,"Deferred cost savings, per UNIT","IL TRM v7 vol3",78,3.5,"Assumed average system tons","Tracking Data"]
["Income-Eligible Multi-Family","CAC SEER 15 - Replace at Fail: MF",445,"Multi-Family","HVAC",null,"per ton",108,"IL TRM v7 vol3",77,295.2,"Calculated Value",null,7.1470588235294105E-2,0.68,"IL TRM v6 vol3",73,{"$f":"ROUND(((AW115*(1/BQ115-1/BU115))/1000*BY115),4)","v":4.8599999999999997E-2},"Calculated Value",null,738,"EFLHcool, from 2017 MO TRM",122,18,"IL TRM v6 vol3",72,"SEER",15,"As Installed",null,"SEER",13,"IL TRM v6 vol3",74,"=ROUND(((U115*AW115*(1/BA115-1/BI115))/1000),4)","=ROUND(((AW115*(1/BQ115-1/BU115))/1000*BY115),4)","IL TRM v6 vol3","Energy Page 73, Demand Page 75","2020-01-01",null,null,null,null,null,null,null,null,null,12000,"Capacity (Btu/hr)","IL TRM v6 vol3",74,10,"SEERexist","IL TRM v6 vol3",74,13,"SEERbase","IL TRM v6 vol3",74,15,"SEERee","Program Tracking Data",null,9.1999999999999993,"EERexist","IL TRM v6 vol3",75,11.2,"EERbase","IL TRM v6 vol3",75,12,"EERee","IL TRM v6 vol3",75,0.68,"CF","IL TRM v6 vol3",75]
["Income-Eligible Multi-Family","CAC SEER 16 - Early Replacement: MF",446,"Multi-Family","HVAC",null,"per ton",{"$f":"DA116+DE116/DM116-DI116/DM116*(1+CW116)^(-X116)","v":263.7998382895214},"IL TRM v7 vol3",77,332.1,"Calculated Value",null,0.30441176470588233,0.68,"IL TRM v6 vol3",73,{"$f":"ROUND(((AW116*(1/BM116-1/BU116))/1000*BY116),4)","v":0.20699999999999999},"Calculated Value",null,738,"EFLHcool, from 2017 MO TRM",122,6,"IL TRM v6 vol3",72,"SEER",16,"As Installed",null,"SEER",10,"IL TRM v6 vol3",74,"=ROUND(((U116*AW116*(1/BA116-1/BI116))/1000),4)","=ROUND(((AW116*(1/BM116-1/BU116))/1000*BY116),4)","IL TRM v6 vol3","Energy Page 73, Demand Page 75","2020-01-01",null,null,null,null,null,null,null,null,null,12000,"Capacity (Btu/hr)","IL TRM v6 vol3",74,10,"SEERexist","IL TRM v6 vol3",74,13,"SEERbase","IL TRM v6 vol3",74,16,"SEERee","Program Tracking Data",null,9.1999999999999993,"EERexist","IL TRM v6 vol3",75,11.2,"EERbase","IL TRM v6 vol3",75,12,"EERee","IL TRM v6 vol3",75,0.68,"CF","IL TRM v6 vol3",75,null,null,null,null,null,null,null,null,null,null,null,null,null,null,null,null,null,null,null,null,0.03,"Societal Discount Rate","Evergy Standard",null,952,"First Cost $/ton","IL TRM v7 vol3",77,221,"One-time per-system labor cost","IL TRM v7 vol3",77,3140,"Deferred cost savings, per UNIT","IL TRM v7 vol3",78,3.5,"Assumed average system tons","Tracking Data"]
["Income-Eligible Multi-Family","CAC SEER 16 - Early Replacement: MF (future)",447,"Multi-Family","HVAC",null,"per ton",0,"IL TRM v7 vol3",77,332.1,"Calculated Value",null,7.1470588235294105E-2,0.68,"IL TRM v6 vol3",73,{"$f":"ROUND(((AW117*(1/BQ117-1/BU117))/1000*BY117),4)","v":4.8599999999999997E-2},"Calculated Value",null,738,"EFLHcool, from 2017 MO TRM",122,12,"IL TRM v6 vol3",72,"SEER",16,"As Installed",null,"SEER",13,"IL TRM v6 vol3",74,"=ROUND(((U117*AW117*(1/BA117-1/BI117))/1000),4)","=ROUND(((AW117*(1/BQ117-1/BU117))/1000*BY117),4)","IL TRM v6 vol3","Energy Page 73, Demand Page 75","2020-01-01",null,null,null,null,null,null,null,null,null,12000,"Capacity (Btu/hr)","IL TRM v6 vol3",74,10,"SEERexist","IL TRM v6 vol3",74,13,"SEERbase","IL TRM v6 vol3",74,16,"SEERee","Program Tracking Data",null,9.1999999999999993,"EERexist","IL TRM v6 vol3",75,11.2,"EERbase","IL TRM v6 vol3",75,12,"EERee","IL TRM v6 vol3",75,0.68,"CF","IL TRM v6 vol3",75,null,null,null,null,null,null,null,null,null,null,null,null,null,null,null,null,null,null,null,null,0.03,"Societal Discount Rate","Evergy Standard",null,952,"First Cost $/ton","IL TRM v7 vol3",77,221,"One-time per-system labor cost","IL TRM v7 vol3",77,3140,"Deferred cost savings, per UNIT","IL TRM v7 vol3",78,3.5,"Assumed average system tons","Tracking Data"]
["Income-Eligible Multi-Family","CAC SEER 16 - Replace at Fail: MF",448,"Multi-Family","HVAC",null,"per ton",221,"IL TRM v7 vol3",77,332.1,"Calculated Value",null,7.1470588235294105E-2,0.68,"IL TRM v6 vol3",73,{"$f":"ROUND(((AW118*(1/BQ118-1/BU118))/1000*BY118),4)","v":4.8599999999999997E-2},"Calculated Value",null,738,"EFLHcool, from 2017 MO TRM",122,18,"IL TRM v6 vol3",72,"SEER",16,"As Installed",null,"SEER",13,"IL TRM v6 vol3",74,"=ROUND(((U118*AW118*(1/BA118-1/BI118))/1000),4)","=ROUND(((AW118*(1/BQ118-1/BU118))/1000*BY118),4)","IL TRM v6 vol3","Energy Page 73, Demand Page 75","2020-01-01",null,null,null,null,null,null,null,null,null,12000,"Capacity (Btu/hr)","IL TRM v6 vol3",74,10,"SEERexist","IL TRM v6 vol3",74,13,"SEERbase","IL TRM v6 vol3",74,16,"SEERee","Program Tracking Data",null,9.1999999999999993,"EERexist","IL TRM v6 vol3",75,11.2,"EERbase","IL TRM v6 vol3",75,12,"EERee","IL TRM v6 vol3",75,0.68,"CF","IL TRM v6 vol3",75]
["Income-Eligible Multi-Family","CAC SEER 17+ - Early Replacement: MF",449,"Multi-Family","HVAC",null,"per ton",{"$f":"DA119+DE119/DM119-DI119/DM119*(1+CW119)^(-X119)","v":377.7998382895214},"IL TRM v7 vol3",77,364.65879999999999,"Calculated Value",null,0.30441176470588233,0.68,"IL TRM v6 vol3",73,{"$f":"ROUND(((AW119*(1/BM119-1/BU119))/1000*BY119),4)","v":0.20699999999999999},"Calculated Value",null,738,"EFLHcool, from 2017 MO TRM",122,6,"IL TRM v6 vol3",72,"SEER",17,"As Installed",null,"SEER",10,"IL TRM v6 vol3",74,"=ROUND(((U119*AW119*(1/BA119-1/BI119))/1000),4)","=ROUND(((AW119*(1/BM119-1/BU119))/1000*BY119),4)","IL TRM v6 vol3","Energy Page 73, Demand Page 75","2020-01-01",null,null,null,null,null,null,null,null,null,12000,"Capacity (Btu/hr)","IL TRM v6 vol3",74,10,"SEERexist","IL TRM v6 vol3",74,13,"SEERbase","IL TRM v6 vol3",74,17,"SEERee","Program Tracking Data",null,9.1999999999999993,"EERexist","IL TRM v6 vol3",75,11.2,"EERbase","IL TRM v6 vol3",75,12,"EERee","IL TRM v6 vol3",75,0.68,"CF","IL TRM v6 vol3",75,null,null,null,null,null,null,null,null,null,null,null,null,null,null,null,null,null,null,null,null,0.03,"Societal Discount Rate","Evergy Standard",null,952,"First Cost $/ton","IL TRM v7 vol3",77,620,"One-time per-system labor cost","IL TRM v7 vol3",77,3140,"Deferred cost savings, per UNIT","IL TRM v7 vol3",78,3.5,"Assumed average system tons","Tracking Data"]
["Income-Eligible Multi-Family","CAC SEER 17+ - Early Replacement: MF (future)",450,"Multi-Family","HVAC",null,"per ton",0,"IL TRM v7 vol3",77,364.65879999999999,"Calculated Value",null,7.1470588235294105E-2,0.68,"IL TRM v6 vol3",73,{"$f":"ROUND(((AW120*(1/BQ120-1/BU120))/1000*BY120),4)","v":4.8599999999999997E-2},"Calculated Value",null,738,"EFLHcool, from 2017 MO TRM",122,12,"IL TRM v6 vol3",72,"SEER",17,"As Installed",null,"SEER",13,"IL TRM v6 vol3",74,"=ROUND(((U120*AW120*(1/BA120-1/BI120))/1000),4)","=ROUND(((AW120*(1/BQ120-1/BU120))/1000*BY120),4)","IL TRM v6 vol3","Energy Page 73, Demand Page 75","2020-01-01",null,null,null,null,null,null,null,null,null,12000,"Capacity (Btu/hr)","IL TRM v6 vol3",74,10,"SEERexist","IL TRM v6 vol3",74,13,"SEERbase","IL TRM v6 vol3",74,17,"SEERee","Program Tracking Data",null,9.1999999999999993,"EERexist","IL TRM v6 vol3",75,11.2,"EERbase","IL TRM v6 vol3",75,12,"EERee","IL TRM v6 vol3",75,0.68,"CF","IL TRM v6 vol3",75,null,null,null,null,null,null,null,null,null,null,null,null,null,null,null,null,null,null,null,null,0.03,"Societal Discount Rate","Evergy Standard",null,952,"First Cost $/ton","IL TRM v7 vol3",77,620,"One-time per-system labor cost","IL TRM v7 vol3",77,3140,"Deferred cost savings, per UNIT","IL TRM v7 vol3",78,3.5,"Assumed average system tons","Tracking Data"]
["Income-Eligible Multi-Family","CAC SEER 17+ - Replace at Fail: MF",451,"Multi-Family","HVAC",null,"per ton",620,"IL TRM v7 vol3",77,364.65879999999999,"Calculated Value",null,7.1470588235294105E-2,0.68,"IL TRM v6 vol3",73,{"$f":"ROUND(((AW121*(1/BQ121-1/BU121))/1000*BY121),4)","v":4.8599999999999997E-2},"Calculated Value",null,738,"EFLHcool, from 2017 MO TRM",122,18,"IL TRM v6 vol3",72,"SEER",17,"As Installed",null,"SEER",13,"IL TRM v6 vol3",74,"=ROUND(((U121*AW121*(1/BA121-1/BI121))/1000),4)","=ROUND(((AW121*(1/BQ121-1/BU121))/1000*BY121),4)","IL TRM v6 vol3","Energy Page 73, Demand Page 75","2020-01-01",null,null,null,null,null,null,null,null,null,12000,"Capacity (Btu/hr)","IL TRM v6 vol3",74,10,"SEERexist","IL TRM v6 vol3",74,13,"SEERbase","IL TRM v6 vol3",74,17,"SEERee","Program Tracking Data",null,9.1999999999999993,"EERexist","IL TRM v6 vol3",75,11.2,"EERbase","IL TRM v6 vol3",75,12,"EERee","IL TRM v6 vol3",75,0.68,"CF","IL TRM v6 vol3",75]
["Income-Eligible Multi-Family","Ductless ASHP Replace Electric Resistance - Early Replacement: MF",453,"Multi-Family","HVAC",null,"per ton",3000,"IL TRM v6 vol3",137,{"$f":"ROUND(2539.3656,4)","v":2539.3656000000001},"Calculated Value",null,0.53486111111111112,0.72,"IL TRM v6 vol3",138,{"$f":"ROUND(0.3851,4)","v":0.3851},"Calculated Value",null," ",null,null,6,"IL TRM v6 vol3",137,null,null,null,null,null,null,null,null,"=ROUND(2539.3656,4)","=ROUND(0.3851,4)","IL TRM v6 vol3",139142,"2020-01-01"]
["Income-Eligible Multi-Family","Ductless ASHP Replace Electric Resistance - Early Replacement: MF (future)",454,"Multi-Family","HVAC",null,"per ton",0,"IL TRM v6 vol3",137,{"$f":"ROUND(194.4823,4)","v":194.48230000000001},"Calculated Value",null,7.9444444444444443E-2,0.72,"IL TRM v6 vol3",138,{"$f":"ROUND(0.0572,4)","v":5.7200000000000001E-2},"Calculated Value",null," ",null,null,12,"IL TRM v6 vol3",137,null,null,null,null,null,null,null,null,"=ROUND(194.4823,4)","=ROUND(0.0572,4)","IL TRM v6 vol3",139142,"2020-01-01"]
["Income-Eligible Multi-Family","ASHP SEER 16 - replace electric furnace / CAC - Early Replacement: MF",462,"Multi-Family","HVAC",null,"per ton",{"$f":"DA124+DE124/DM124-DI124*(1+CW124)^(-X124)","v":234.8417554970697},"IL TRM v7 vol3",64,{"$f":"ROUND(((U124*AS124*(1/(AF124*(1-BY124))-1/(AB124*CC124*(1-CG124))))/1000)+((BQ124*AS124*(1/(BA124*(1-CK124))-1/(AW124*CO124*(1-CS124))))/1000),4)","v":3791.6941000000002},"Calculated Value",null,{"$f":"R124","v":0.49530000000000002},0.67,"IL TRM v7 vol3",65,{"$f":"ROUND((AS124*(1/(BI124*(1-BY124))-1/(BE124*(1-CG124))))/1000*O124,4)","v":0.49530000000000002},"Calculated Value",null,738,"EFLHcool, from 2017 MO TRM",85,6,"IL TRM v7 vol3",64,"SEERee",16.079999999999998,"per PY2018 Metadata WHE",null,"SEERexist",9.3000000000000007,"IL TRM v7 vol3",66,"=ROUND((BQ53*AW53*(1/AJ53-1/AF53))/1000+(BU53*AW53*(1/BE53-1/BA53)/1000),4)","=ROUND((AW53*(1/BM53-1/BI53)/1000)*S53,4)","IL TRM v7 vol3","65, 69","2020-01-01",null,null,null,null,null,12000,"Allows for Capacity input in Tons; converts tons to BTUs"," ",null,8.9785714285714295,"HSPFee","per PY2018 Metadata WHE",null,3.41,"HSPFbase","IL TRM v7 vol3",68,12.838272,"EERee","Calculated per PY2018 Metadata WHE",null,7.5,"EERexist","IL TRM v7 vol3",70,738,"EFLHcool","EFLHcool, from 2017 MO TRM",85,1376,"EFLHheat","The EFLH Cooling and Heating hours are based on a EnergyStar study that was normalized (based on HDD and CDD) to Kansas City. This was for both AC and HP units.",null,3.41,"HSPFexist","IL TRM v7 vol3",68,0.1,"Derating_Cool_Base","IL TRM v7 vol3",67,1.0109999999999999,"SEERadj","IL TRM v7 vol3","69 (example)",0.1,"Derating_Cool_Eff","IL TRM v7 vol3",67,0.1,"Derating_Heat_Base","IL TRM v7 vol3",68,1.0009999999999999,"HSPFadj","IL TRM v7 vol3","69 (example)",0.1,"Derating_Heat_Eff","IL TRM v7 vol3",68,0.03,"Societal Discount Rate","Evergy Standard",null,1381,"First Cost $/ton","IL TRM v7 vol3",64,438,"One-time per-system labor cost","IL TRM v7 vol3",64,1518,"Deferred cost savings","IL TRM v7 vol3",65,3.5,"Assumed average system tons","Tracking Data"]
["Income-Eligible Multi-Family","ASHP SEER 16 - replace electric furnace / CAC - Early Replacement: MF (future)",463,"Multi-Family","HVAC",null,"per ton",0,"IL TRM v7 vol3",65,293.6309,"Calculated Value",null,0.1163,0.67,"IL TRM v7 vol3",65,0.1163,"Calculated Value",null,738,"EFLHcool, from 2017 MO TRM",85,10,"IL TRM v7 vol3",64,"SEERee",16.079999999999998,"per PY2018 Metadata WHE",null,"SEERbase",14,"IL TRM v7 vol3",67,"=ROUND((CC54*AW54*(1/BQ54-1/AF54))/1000+(CG54*AW54*(1/BY54-1/BA54)/1000),4)","=ROUND((AW54*(1/BU54-1/BI54)/1000)*S54,4)","IL TRM v7 vol3","65, 69","2020-01-01",null,null,null,null,null,12000,"Allows for Capacity input in Tons; converts tons to BTUs"," ",null,8.9785714285714295,"HSPFee","per PY2018 Metadata WHE",null,8.1999999999999993,"HSPFexist","IL TRM v7 vol3",68,12.838272,"EERee","Calculated per PY2018 Metadata WHE",null,11,"EERbase","IL TRM v7 vol3",70,738,"EFLHcool","EFLHcool, from 2017 MO TRM",85,1376,"EFLHheat","The EFLH Cooling and Heating hours are based on a EnergyStar study that was normalized (based on HDD and CDD) to Kansas City. This was for both AC and HP units.",null,8.1999999999999993,"HSPFbase","IL TRM v7 vol3",68,0.1,"Derating_Cool_Base","IL TRM v7 vol3",67,1.0109999999999999,"SEERadj","IL TRM v7 vol3","69 (example)",0.1,"Derating_Cool_Eff","IL TRM v7 vol3",67,0.1,"Derating_Heat_Base","IL TRM v7 vol3",68,1.0009999999999999,"HSPFadj","IL TRM v7 vol3","69 (example)",0.1,"Derating_Heat_Eff","IL TRM v7 vol3",68,0.03,"Societal Discount Rate","Evergy Standard",null,1381,"First Cost $/ton","IL TRM v7 vol3",64,438,"One-time per-system labor cost","IL TRM v7 vol3",64,1518,"Deferred cost savings","IL TRM v7 vol3",65,3.5,"Assumed average system tons","Tracking Data"]
["Income-Eligible Multi-Family","ASHP SEER 16 - replace electric furnace / CAC: MF",455,"Multi-Family","HVAC",null,"per ton",{"$f":"438/3.5","v":125.14285714285714},"IL TRM v7 vol3",64,312.32810000000001,"Calculated Value",null,0.1045,0.67,"IL TRM v7 vol3",65,0.1045,"Calculated Value",null,738,"EFLHcool, from 2017 MO TRM",85,16,"IL TRM v7 vol3",64,"SEERee",16.11,"per PY2018 Metadata WHE",null,"SEERbase",14,"IL TRM v7 vol3",66,{"$f":"cellformula(K126)","v":"=ROUND(((U126*AS126*(1/(AF126*(1-BY126))-1/(AB126*CC126*(1-CG126))))/1000)+((BQ126*AS126*(1/(BA126*(1-CK126))-1/(AW126*CO126*(1-CS126))))/1000),4)"},{"$f":"cellformula(R126)","v":"=ROUND((AS126*(1/(BI126*(1-BY126))-1/(BE126*(1-CG126))))/1000*O126,4)"},"IL TRM v7 vol3","65, 69","2020-01-01",null,null,null,null,null,12000,"Allows for Capacity input in Tons; converts tons to BTUs"," ",null,9.0565217391304333,"HSPFee","per PY2018 Metadata WHE",null,8.1999999999999993,"HSPFbase","IL TRM v7 vol3",68,12.625,"EERee","Calculated per PY2018 Metadata WHE",null,11,"EERbase","IL TRM v7 vol3",70,738,"EFLHcool","EFLHcool, from 2017 MO TRM",85,1376,"EFLHheat","The EFLH Cooling and Heating hours are based on a EnergyStar study that was normalized (based on HDD and CDD) to Kansas City. This was for both AC and HP units.",null,8.1999999999999993,"HSPFbase","IL TRM v7 vol3",68,0.1,"Derating_Cool_Base","IL TRM v7 vol3",67,1.0109999999999999,"SEERadj","IL TRM v7 vol3","69 (example)",0.1,"Derating_Cool_Eff","IL TRM v7 vol3",67,0.1,"Derating_Heat_Base","IL TRM v7 vol3",68,1.0009999999999999,"HSPFadj","IL TRM v7 vol3","69 (example)",0.1,"Derating_Heat_Eff","IL TRM v7 vol3",68]
["Income-Eligible Multi-Family","ASHP SEER 17 - replace electric furnace / CAC: MF",456,"Multi-Family","HVAC",null,"per ton",{"$f":"724/3.5","v":206.85714285714286},"IL TRM v7 vol3",64,503.99110000000002,"Calculated Value",null,0.24310000000000001,0.67,"IL TRM v7 vol3",65,0.24310000000000001,"Calculated Value",null,738,"EFLHcool, from 2017 MO TRM",85,16,"IL TRM v7 vol3",64,"SEERee",18.27,"per PY2018 Metadata WHE",null,"SEERbase",14,"IL TRM v7 vol3",66,{"$f":"cellformula(K127)","v":"=ROUND(((U127*AS127*(1/(AF127*(1-BY127))-1/(AB127*CC127*(1-CG127))))/1000)+((BQ127*AS127*(1/(BA127*(1-CK127))-1/(AW127*CO127*(1-CS127))))/1000),4)"},{"$f":"cellformula(R127)","v":"=ROUND((AS127*(1/(BI127*(1-BY127))-1/(BE127*(1-CG127))))/1000*O127,4)"},"IL TRM v7 vol3","65, 69","2020-01-01",null,null,null,null,null,12000,"Allows for Capacity input in Tons; converts tons to BTUs"," ",null,9.6285714285714299,"HSPFee","per PY2018 Metadata WHE",null,8.1999999999999993,"HSPFbase","IL TRM v7 vol3",68,15.700000000000001,"EERee","Calculated per PY2018 Metadata WHE",null,11,"EERbase","IL TRM v7 vol3",70,738,"EFLHcool","EFLHcool, from 2017 MO TRM",85,1376,"EFLHheat","The EFLH Cooling and Heating hours are based on a EnergyStar study that was normalized (based on HDD and CDD) to Kansas City. This was for both AC and HP units.",null,8.1999999999999993,"HSPFbase","IL TRM v7 vol3",68,0.1,"Derating_Cool_Base","IL TRM v7 vol3",67,1.0109999999999999,"SEERadj","IL TRM v7 vol3","69 (example)",0.1,"Derating_Cool_Eff","IL TRM v7 vol3",67,0.1,"Derating_Heat_Base","IL TRM v7 vol3",68,1.0009999999999999,"HSPFadj","IL TRM v7 vol3","69 (example)",0.1,"Derating_Heat_Eff","IL TRM v7 vol3",68]
["Income-Eligible Multi-Family","ASHP SEER 18 - replace electric furnace / CAC: MF",457,"Multi-Family","HVAC",null,"per ton",{"$f":"724/3.5","v":206.85714285714286},"IL TRM v7 vol3",64,496.00009999999997,"Calculated Value",null,0.24310000000000001,0.67,"IL TRM v7 vol3",65,0.24310000000000001,"Calculated Value",null,738,"EFLHcool, from 2017 MO TRM",85,16,"IL TRM v7 vol3",64,"SEERee",18,"Measure Definition",null,"SEERbase",14,"IL TRM v7 vol3",66,{"$f":"cellformula(K128)","v":"=ROUND(((U128*AS128*(1/(AF128*(1-BY128))-1/(AB128*CC128*(1-CG128))))/1000)+((BQ128*AS128*(1/(BA128*(1-CK128))-1/(AW128*CO128*(1-CS128))))/1000),4)"},{"$f":"cellformula(R128)","v":"=ROUND((AS128*(1/(BI128*(1-BY128))-1/(BE128*(1-CG128))))/1000*O128,4)"},"IL TRM v7 vol3","65, 69","2020-01-01",null,null,null,null,null,12000,"Allows for Capacity input in Tons; converts tons to BTUs",null,null,9.6285714285714299,"HSPFee","per PY2018 Metadata WHE (borrowed from SEER 17 measure)",null,8.1999999999999993,"HSPFbase","IL TRM v7 vol3",68,15.700000000000001,"EERee","Calculated per PY2018 Metadata WHE (borrowed from SEER 17 measure)",null,11,"EERbase","IL TRM v7 vol3",70,738,"EFLHcool","EFLHcool, from 2017 MO TRM",85,1376,"EFLHheat","The EFLH Cooling and Heating hours are based on a EnergyStar study that was normalized (based on HDD and CDD) to Kansas City. This was for both AC and HP units.",null,8.1999999999999993,"HSPFbase","IL TRM v7 vol3",68,0.1,"Derating_Cool_Base","IL TRM v7 vol3",67,1.0109999999999999,"SEERadj","IL TRM v7 vol3","69 (example)",0.1,"Derating_Cool_Eff","IL TRM v7 vol3",67,0.1,"Derating_Heat_Base","IL TRM v7 vol3",68,1.0009999999999999,"HSPFadj","IL TRM v7 vol3","69 (example)",0.1,"Derating_Heat_Eff","IL TRM v7 vol3",68]
["Income-Eligible Multi-Family","ASHP SEER 17 - replace ASHP - Early Replacement: MF",458,"Multi-Family","HVAC",null,"per ton",{"$f":"DA129+DE129/DM129-DI129*(1+CW129)^(-X129)","v":316.55604121135548},"IL TRM v7 vol3",64,1797.7003,"Calculated Value",null,0.5444,0.67,"IL TRM v7 vol3",65,0.5444,"Calculated Value",null,738,"EFLHcool, from 2017 MO TRM",85,6,"IL TRM v7 vol3",64,"SEERee",18.34,"per PY2018 Metadata WHE",null,"SEERexist",9.3000000000000007,"IL TRM v7 vol3",66,"=ROUND((BQ58*AW58*(1/AJ58-1/AF58))/1000+(BU58*AW58*(1/BE58-1/BA58)/1000),4)","=ROUND((AW58*(1/BM58-1/BI58)/1000)*S58,4)","IL TRM v7 vol3","65, 69","2020-01-01",null,null,null,null,null,12000,"Allows for Capacity input in Tons; converts tons to BTUs",null,null,8.9785714285714295,"HSPFee","per PY2018 Metadata WHE",null,5.54,"HSPFbase","IL TRM v7 vol3",68,13.813688000000001,"EERee","Calculated per PY2018 Metadata WHE",null,7.5,"EERexist","IL TRM v7 vol3",70,738,"EFLHcool","EFLHcool, from 2017 MO TRM",85,1376,"EFLHheat","The EFLH Cooling and Heating hours are based on a EnergyStar study that was normalized (based on HDD and CDD) to Kansas City. This was for both AC and HP units.",null,5.54,"HSPFexist","IL TRM v7 vol3",68,0.1,"Derating_Cool_Base","IL TRM v7 vol3",67,1.0109999999999999,"SEERadj","IL TRM v7 vol3","69 (example)",0.1,"Derating_Cool_Eff","IL TRM v7 vol3",67,0.1,"Derating_Heat_Base","IL TRM v7 vol3",68,1.0009999999999999,"HSPFadj","IL TRM v7 vol3","69 (example)",0.1,"Derating_Heat_Eff","IL TRM v7 vol3",68,0.03,"Societal Discount Rate","Evergy Standard",null,1381,"First Cost $/ton","IL TRM v7 vol3",64,724,"One-time per-system labor cost","IL TRM v7 vol3",64,1518,"Deferred cost savings","IL TRM v7 vol3",65,3.5,"Assumed average system tons","Tracking Data"]
["Income-Eligible Multi-Family","ASHP SEER 17 - replace ASHP - Early Replacement: MF (future)",459,"Multi-Family","HVAC",null,"per ton",0,"IL TRM v7 vol3",65,395.4579,"Calculated Value",null,0.16539999999999999,0.67,"IL TRM v7 vol3",65,0.16539999999999999,"Calculated Value",null,738,"EFLHcool, from 2017 MO TRM",85,10,"IL TRM v7 vol3",64,"SEERee",18.34,"per PY2018 Metadata WHE",null,"SEERbase",14,"IL TRM v7 vol3",67,"=ROUND((CC59*AW59*(1/BQ59-1/AF59))/1000+(CG59*AW59*(1/BY59-1/BA59)/1000),4)","=ROUND((AW59*(1/BU59-1/BI59)/1000)*S59,4)","IL TRM v7 vol3","65, 69","2020-01-01",null,null,null,null,null,12000,"Allows for Capacity input in Tons; converts tons to BTUs",null,null,9.1,"HSPFee","per PY2018 Metadata WHE",null,8.1999999999999993,"HSPFexist","IL TRM v7 vol3",68,13.813688000000001,"EERee","Calculated per PY2018 Metadata WHE",null,11,"EERbase","IL TRM v7 vol3",70,738,"EFLHcool","EFLHcool, from 2017 MO TRM",85,1376,"EFLHheat","The EFLH Cooling and Heating hours are based on a EnergyStar study that was normalized (based on HDD and CDD) to Kansas City. This was for both AC and HP units.",null,8.1999999999999993,"HSPFbase","IL TRM v7 vol3",68,0.1,"Derating_Cool_Base","IL TRM v7 vol3",67,1.0109999999999999,"SEERadj","IL TRM v7 vol3","69 (example)",0.1,"Derating_Cool_Eff","IL TRM v7 vol3",67,0.1,"Derating_Heat_Base","IL TRM v7 vol3",68,1.0009999999999999,"HSPFadj","IL TRM v7 vol3","69 (example)",0.1,"Derating_Heat_Eff","IL TRM v7 vol3",68,0.03,"Societal Discount Rate","Evergy Standard",null,1381,"First Cost $/ton","IL TRM v7 vol3",64,724,"One-time per-system labor cost","IL TRM v7 vol3",64,1518,"Deferred cost savings","IL TRM v7 vol3",65,3.5,"Assumed average system tons","Tracking Data"]
["Income-Eligible Multi-Family","ASHP SEER 18 - replace ASHP - Early Replacement: MF",460,"Multi-Family","HVAC",null,"per ton",{"$f":"DA131+DE131/DM131-DI131*(1+CW131)^(-X131)","v":316.55604121135548},"IL TRM v7 vol3",64,1925.4818,"Calculated Value",null,0.62209999999999999,0.67,"IL TRM v7 vol3",65,0.62209999999999999,"Calculated Value",null,738,"EFLHcool, from 2017 MO TRM",85,6,"IL TRM v7 vol3",64,"SEERee",18,"Measure Definition",null,"SEERexist",9.3000000000000007,"IL TRM v7 vol3",66,{"$f":"cellformula(K131)","v":"=ROUND(((U131*AS131*(1/(AF131*(1-BY131))-1/(AB131*CC131*(1-CG131))))/1000)+((BQ131*AS131*(1/(BA131*(1-CK131))-1/(AW131*CO131*(1-CS131))))/1000),4)"},{"$f":"cellformula(R131)","v":"=ROUND((AS131*(1/(BI131*(1-BY131))-1/(BE131*(1-CG131))))/1000*O131,4)"},"IL TRM v7 vol3","65, 69","2020-01-01",null,null,null,null,null,12000,"Allows for Capacity input in Tons; converts tons to BTUs",null,null,9.6285714285714299,"HSPFee","per PY2018 Metadata WHE (borrowed from SEER 17 measure)",null,5.54,"HSPFbase","IL TRM v7 vol3",68,15.700000000000001,"EERee","Calculated per PY2018 Metadata WHE (borrowed from SEER 17 measure)",null,7.5,"EERexist","IL TRM v7 vol3",70,738,"EFLHcool","EFLHcool, from 2017 MO TRM",85,1376,"EFLHheat","The EFLH Cooling and Heating hours are based on a EnergyStar study that was normalized (based on HDD and CDD) to Kansas City. This was for both AC and HP units.",null,5.54,"HSPFexist","IL TRM v7 vol3",68,0.1,"Derating_Cool_Base","IL TRM v7 vol3",67,1.0109999999999999,"SEERadj","IL TRM v7 vol3","69 (example)",0.1,"Derating_Cool_Eff","IL TRM v7 vol3",67,0.1,"Derating_Heat_Base","IL TRM v7 vol3",68,1.0009999999999999,"HSPFadj","IL TRM v7 vol3","69 (example)",0.1,"Derating_Heat_Eff","IL TRM v7 vol3",68,0.03,"Societal Discount Rate","Evergy Standard",null,1381,"First Cost $/ton","IL TRM v7 vol3",64,724,"One-time per-system labor cost","IL TRM v7 vol3",64,1518,"Deferred cost savings","IL TRM v7 vol3",65,3.5,"Assumed average system tons","Tracking Data"]
["Income-Eligible Multi-Family","ASHP SEER 18 - replace ASHP - Early Replacement: MF (future)",461,"Multi-Family","HVAC",null,"per ton",0,"IL TRM v7 vol3",65,496.00009999999997,"Calculated Value",null,0.24310000000000001,0.67,"IL TRM v7 vol3",65,0.24310000000000001,"Calculated Value",null,738,"EFLHcool, from 2017 MO TRM",85,10,"IL TRM v7 vol3",64,"SEERee",18,"Measure Definition",null,"SEERbase",14,"IL TRM v7 vol3",67,"=ROUND(((U132*AS132*(1/(AF132*(1-BY132))-1/(AB132*CC132*(1-CG132))))/1000)+((BQ132*AS132*(1/(BA132*(1-CK132))-1/(AW132*CO132*(1-CS132))))/1000),4)","=ROUND((AS132*(1/(BI132*(1-BY132))-1/(BE132*(1-CG132))))/1000*O132,4)","IL TRM v7 vol3","65, 69","2020-01-01",null,null,null,null,null,12000,"Allows for Capacity input in Tons; converts tons to BTUs",null,null,9.6285714285714299,"HSPFee","per PY2018 Metadata WHE (borrowed from SEER 17 measure)",null,8.1999999999999993,"HSPFexist","IL TRM v7 vol3",68,15.700000000000001,"EERee","Calculated per PY2018 Metadata WHE (borrowed from SEER 17 measure)",null,11,"EERbase","IL TRM v7 vol3",70,738,"EFLHcool","EFLHcool, from 2017 MO TRM",85,1376,"EFLHheat","The EFLH Cooling and Heating hours are based on a EnergyStar study that was normalized (based on HDD and CDD) to Kansas City. This was for both AC and HP units.",null,8.1999999999999993,"HSPFbase","IL TRM v7 vol3",68,0.1,"Derating_Cool_Base","IL TRM v7 vol3",67,1.0109999999999999,"SEERadj","IL TRM v7 vol3","69 (example)",0.1,"Derating_Cool_Eff","IL TRM v7 vol3",67,0.1,"Derating_Heat_Base","IL TRM v7 vol3",68,1.0009999999999999,"HSPFadj","IL TRM v7 vol3","69 (example)",0.1,"Derating_Heat_Eff","IL TRM v7 vol3",68,0.03,"Societal Discount Rate","Evergy Standard",null,1381,"First Cost $/ton","IL TRM v7 vol3",64,724,"One-time per-system labor cost","IL TRM v7 vol3",64,1518,"Deferred cost savings","IL TRM v7 vol3",65,3.5,"Assumed average system tons","Tracking Data"]
["Residential Demand Response","Smart Thermostat",65.2,"All","HVAC",null,"per unit",350,"Program Tracking Data",null,{"$f":"ROUND(197,4)","v":197},"Navigant PY2017 Regression Analysis of participant monthly billing data from May 2017 through April 2018",null,null,null,null,null,{"$f":"ROUND(1.4,4)","v":1.4},"Navigant PY2017 Regression Analysis of participant hourly interval usage data for DR events during the summer of 2017",null,null,null,null,10,"IL TRM v6 vol3",160,"PCT",null,null,null,"No PCT",null,null,null,"=ROUND(197,4)","=ROUND(1.4,4)",null,null,"2020-01-01"]
["Residential Demand Response","Smart Thermostat - BYO",311,"All","HVAC",null,"per unit",250,"Program Tracking Data",null,{"$f":"ROUND(197,4)","v":197},"Navigant PY2017 Regression Analysis of participant monthly billing data from May 2017 through April 2018",null,null,null,null,null,{"$f":"ROUND(1.4,4)","v":1.4},"Navigant PY2017 Regression Analysis of participant hourly interval usage data for DR events during the summer of 2017",null,null,null,null,10,"IL TRM v6 vol3",160,"PCT",null,null,null,"No PCT",null,null,null,"=ROUND(197,4)","=ROUND(1.4,4)",null,null,"2020-01-01"]
["Residential Demand Response","DR Water Heater DLC",308,"All","Hot Water",null,"per customer",200,"MN TRM v2.2",357,{"$f":"ROUND(0.4,4)","v":0.4},"Calculated Value",null,null,null,null,null,{"$f":"ROUND(0.6,4)","v":0.6},"Calculated Value",null,null,null,null,15,"MN TRM v2.2",355,"Electric water heater during curtailment event."," ",null,null,"Electric water heater on non-curtailment event days.",null,null,null,"=ROUND(0.4,4)","=ROUND(0.6,4)",null,null,"2020-01-01",null,null,null,null,null,"Average # of events","Average number of load control events during a typical year, provided by utility, assumed to be 2 based on MN TRM v2.2."," "]
["Business Smart Thermostat","Smart Thermostat",66.2,"All","HVAC",null,"per unit",350,"Program Tracking Data",null,{"$f":"ROUND(197,4)","v":197},"Navigant PY2017 Regression Analysis of participant monthly billing data from May 2017 through April 2018",null,null,null,null,null,{"$f":"ROUND(1.4,4)","v":1.4},"Navigant PY2017 Regression Analysis of participant hourly interval usage data for DR events during the summer of 2017",null,null,null,null,10,"IL TRM v6 vol3",160,"PCT",null,null,null,"No PCT",null,null,null,"=ROUND(197,4)","=ROUND(1.4,4)",null,null,"2020-01-01"]
["Business Standard","Interior Daylighting Controls Replacing No Controls",67.2,"Small C&I","Lighting",null,"per sensor",66,"Program Tracking Data",null,692.63400000000001,"Calculated Value",null,0.21316318000000001,0.66,"IL TRM v6 vol2",338,0.14069999999999999,"Calculated Value",null,3088,"IL TRM v6 vol2",338,8,"IL TRM v6 vol2",402,"Photocell Occupancy Sensor",587,"Program Tracking Database (watts controlled)",null,"No Control",null,null,null,"=ROUND(AG235/1000*BF235*Z235*AX235,4)","=ROUND(S235*T235,4)","IL TRM v6 vol2","403, 404","2020-01-01",null,null,null,null,null,1.41,"Waste Heat Factor Energy","IL TRM v6 vol2","337 (portfolio weighted average)",1.34,"Waste Heat Factor Demand","IL TRM v6 vol2","337 (portfolio weighted average)",0.27100000000000002,"ESF","IL TRM v6 vol2","419 (portfolio weighted average)"]
["Business Standard","LED Exit Sign",68.3,"Small C&I","Lighting","Direct Install","per unit",30,"IL TRM v6 vol2",376,45.868299999999998,"Calculated Value",null,5.9522705441147454E-3,0.93373780930745376,"Navigant Field Work",null,5.5999999999999999E-3,"Calculated Value",null,7706.0165491512989,"Navigant Field Work",null,16,"IL TRM v6 vol2",376,"LED (watts)",3,"Program Tracking Data",null,"Fluorescent (watts)",7.666666666666667,null,"IL TRM V.5","=ROUND((AK237-AG237)/1000*Z237*AX237*BF237,4)","=ROUND(S237*T237,4)","IL TRM v6",376378,"2020-01-01",null,null,null,null,null,1.29,"Waste Heat Factor for energy","Navigant Field Work",null,1.29,"Waste Heat Factor for demand","Navigant Field Work",null,0.98874925981972495,"ISR - in service rate","Navigant field work",null," "]
["Business Standard","High‐Bay Fluorescent Fixture T5 > 4 Lamps w/ HE Electronic Ballast Replacing HID Fixture",69.2,"Small C&I","Lighting",null,"per fixture",100,"IL TRM v6 vol2",413,701.00689999999997,"Calculated Value",null,0.21574000000000002,0.66,"IL TRM v6 vol2","337 (portfolio weighted average)",0.1424,"Calculated Value",null,3088,"IL TRM v6 vol2",338,15,"IL TRM v6 vol2",410,"High Bay T5 (>4 lamps, wattage)",295,"IL TRM v6 vol2","413 (weighted average)","Metal Halide (watts)",456,"IL TRM v6 vol2","413 (weighted average)","=ROUND((AK238-AG238)/1000*Z238*AX238,4)","=ROUND(S238*T238,4)","IL TRM v6 vol2","364,368","2020-01-01",null,null,null,null,null,1.41,"Waste Heat Factor Energy","IL TRM v6 vol2","337 (portfolio weighted average)",1.34,"Waste Heat Factor Demand","IL TRM v6 vol2","337 (portfolio weighted average)"]
["Business Standard","Interior Directional LED Lamp replacing 71-110W Lamp",70.3,"Small C&I","Lighting",null,"per lamp",20,"Program Tracking Data",null,327.42680000000001,"Calculated Value",null,0.10076800000000001,0.66,"IL TRM v6 vol2",338,6.6500000000000004E-2,"Calculated Value",null,3088,"IL TRM v6 vol2",338,15,"IL TRM v6 vol2",363,"LED (watts)",14.8,"Program Tracking Data",null,"Incandescent (watts)",90,"Measure Midpoint Value",null,"=ROUND((AK241-AG241)/1000*Z241*AX241,4)","=ROUND(S241*T241,4)","IL TRM v6 vol2","364, 368","2020-01-01",null,null,null,null,null,1.41,"Waste Heat Factor Energy","IL TRM v6 vol2","337 (portfolio weighted average)",1.34,"Waste Heat Factor Demand","IL TRM v6 vol2","337 (portfolio weighted average)"]
["Business Standard","Remove 4ft Lamp from T8 or T12 system",72.2,"Small C&I","Lighting",null,"per lamp",12,"IL TRM v6 vol2",346,121.91419999999999,"Calculated Value",null,3.7520000000000005E-2,0.66,"IL TRM v6 vol2","337 (portfolio weighted average)",2.4799999999999999E-2,"Calculated Value",null,3088,"IL TRM v6 vol2",338,11,"IL TRM v6 vol2",346,"Remove T8",0,"Measure Definition",null,"T8 4 ft (watts)",28,"IL TRM v6 vol2","347 (portfolio weighted average)","=ROUND((AK242-AG242)/1000*Z242*AX242,4)","=ROUND(S242*T242,4)","IL TRM v6 vol2",347348,"2020-01-01",null,null,null,null,null,1.41,"Waste Heat Factor Energy","IL TRM v6 vol2","337 (portfolio weighted average)",1.34,"Waste Heat Factor Demand","IL TRM v6 vol2","337 (portfolio weighted average)"]
["Business Standard","Low Flow Faucet Aerator Kitchen",251.1,"C&I","Hot Water","Kitchen","per unit",8,"IL TRM v5 vol2",93,74.504900000000006,"Calculated Value",null,null,6.4000000000000003E-3,"IL TRM v5 vol2",97,1.9599999999999999E-2,"Calculated Value",null,null,"IL TRM v5 vol2",96,9,"IL TRM v5 vol2",93,"Low Flow (GPM)",0.94,"IL TRM v5 vol2",94,"Standard (GPM)",1.39,"IL TRM v5 vol2",94,"=ROUND(1*(AK244-AG244)/AK244*AX244*BB244*BF244,4)","=ROUND(P244/BJ244*T244,4)","IL TRM v5 vol2","94,97","2020-01-01",null,null,null,null,null,2500,"Usage - Estimated usage of mixed water (mixture of hot water from water heater line and cold water line) per faucet (gallons per year)","IL TRM v5 vol2",95,9.69E-2,"EPG_electric - Energy per gallon of mixed water used by faucet (electric water heater)","IL TRM v5 vol2",95,0.95,"ISR - in service rate","IL TRM v5 vol2",96,24.330357142857142,"Annual Recovery Hours - Annual electric DHW recovery hours for faucet use","IL TRM v5 vol2",96," "]
["Business Standard","Low Flow Faucet Aerator Bathroom",252.1,"C&I","Hot Water","Bathroom","per unit",8,"IL TRM v5 vol2",93,91.614400000000003,"Calculated Value",null,null,6.4000000000000003E-3,"IL TRM v5 vol2",97,2.41E-2,"Calculated Value",null,null,"IL TRM v5 vol2",96,9,"IL TRM v5 vol2",93,"Low Flow (GPM)",0.94,"IL TRM v5 vol2",94,"Standard (GPM)",1.8260000000000001,"IL TRM v5 vol2",94,"=ROUND(1*(AK245-AG245)/AK245*AX245*BB245*BF245,4)","=ROUND(P245/BJ245*T245,4)","IL TRM v5 vol2","94,97","2020-01-01",null,null,null,null,null,2500,"Usage - Estimated usage of mixed water (mixture of hot water from water heater line and cold water line) per faucet (gallons per year)","IL TRM v5 vol2",95,7.9500000000000001E-2,"EPG_electric - Energy per gallon of mixed water used by faucet (electric water heater)","IL TRM v5 vol2",95,0.95,"ISR - in service rate","IL TRM v5 vol2",96,24.330357142857142,"Annual Recovery Hours - Annual electric DHW recovery hours for faucet use","IL TRM v5 vol2",96," "]
["Business Standard","Water Heater Tank Wrap",76.099999999999994,"C&I","Hot Water",null,"per unit",20,"Program Tracking Data",null,134.09479999999999,"Calculated Value",null,1.5297148072096737E-2,1,"IL TRM v7 vol3",203,1.5299999999999999E-2,"Calculated Value",null,8766,"IL TRM v7 vol3",204,5,"IL TRM v7 vol3",203,"Water heater insulation increased from R12 to R22, 50gal",null,"IL TRM v7 vol3",204,"R12, 50-gal water heater insulation (no wrap)",null,"IL TRM v7 vol3",204,"=ROUND((AX246/BB246-BF246/BJ246)*BN246*BR246/BV246/BZ246,4)","=ROUND(P246/Z246,4)","IL TRM v7 vol3","203, 205","2020-01-01",null,null,null,null,null,24.99,"Abase","IL TRM v7 vol3",204,12,"Rbase","IL TRM v7 vol3",204,27.06,"Ainsul","IL TRM v7 vol3",204,22,"Rinsul","IL TRM v7 vol3",204,60,"deltaT","IL TRM v7 vol3",204,8766,"Hours","IL TRM v7 vol3",204,0.98,"eta DHW","IL TRM v7 vol3",204,3412,"Conversion from BTU to kWh","IL TRM v7 vol3",204]
["Business Standard","Pre-Rinse Spray Valves Small",253.1,"C&I","Hot Water","Small, quick- service restaurants","per unit",100,"IL TRM v5 vol2",62,2769.6197999999999,"Calculated Value",null,null,null,null,null,0,"Calculated Value",null,null,null,null,5,"IL TRM v5 vol2",62,"Low Flow (GPM)",1.06,"IL TRM v5 vol2",64,"Standard (GPM)",1.9,"IL TRM v5 vol2",64,"=ROUND((AK247-AG247)*60*BF247*312*8.33*1*AX247*1/BB247/3413*1,4)","=ROUND(0,4)","IL TRM v5 vol2",63,"2020-01-01",null,null,null,null,null,70,"Temp difference between water heater outlet water temperature","IL TRM v5 vol2",63,0.97,"EFF_Elec - Efficiency of electric water heater supplying hot water to pre-rinse spray valve","IL TRM v5 vol2",63,1,"Hours per day that the pre-rinse spray valve is used at the site - Hours/day","IL TRM v5 vol2",65]
["Business Standard","Pre-Rinse Spray Valves Medium",254.1,"C&I","Hot Water","Medium-sized casual dining restaurants","per unit",100,"IL TRM v5 vol2",62,4154.4296000000004,"Calculated Value",null,null,null,null,null,0,"Calculated Value",null,null,null,null,5,"IL TRM v5 vol2",62,"Low Flow (GPM)",1.06,"IL TRM v5 vol2",64,"Standard (GPM)",1.9,"IL TRM v5 vol2",64,"=ROUND((AK248-AG248)*60*BF248*312*8.33*1*AX248*1/BB248/3413*1,4)","=ROUND(0,4)","IL TRM v5 vol2",63,"2020-01-01",null,null,null,null,null,70,"Temp difference between water heater outlet water temperature","IL TRM v5 vol2",63,0.97,"EFF_Elec - Efficiency of electric water heater supplying hot water to pre-rinse spray valve","IL TRM v5 vol2",63,1.5,"Hours per day that the pre-rinse spray valve is used at the site - Hours/day","IL TRM v5 vol2",65]
["Business Standard","Pre-Rinse Spray Valves Large",255.1,"C&I","Hot Water","Large institutional establishments with cafeteria","per unit",100,"IL TRM v5 vol2",62,8308.8593000000001,"Calculated Value",null,null,null,null,null,0,"Calculated Value",null,null,null,null,5,"IL TRM v5 vol2",62,"Low Flow (GPM)",1.06,"IL TRM v5 vol2",64,"Standard (GPM)",1.9,"IL TRM v5 vol2",64,"=ROUND((AK249-AG249)*60*BF249*312*8.33*1*AX249*1/BB249/3413*1,4)","=ROUND(0,4)","IL TRM v5 vol2",63,"2020-01-01",null,null,null,null,null,70,"Temp difference between water heater outlet water temperature","IL TRM v5 vol2",63,0.97,"EFF_Elec - Efficiency of electric water heater supplying hot water to pre-rinse spray valve","IL TRM v5 vol2",63,3,"Hours per day that the pre-rinse spray valve is used at the site - Hours/day","IL TRM v5 vol2",65]
["Business Standard","High Efficiency Pool Pump",78.099999999999994,"C&I","Pools",null,"per unit",273.31999999999994,"Program Tracking Data",null,1301.2478000000001,"Calculated Value",null,null,1,"Calculated Value",null,0.14849999999999999,"Calculated Value",null,null,null,null,10,"IL TRM v6 vol3",296,"High Efficiency",null,"IL TRM v6 vol3",296,"Standard Pool Pump",null,"IL TRM v6 vol3",296,"=ROUND(1301.24777183601,4)","=ROUND(0.148544266191325,4)","IL TRM v6 vol2",479,"2020-01-01"]
["Business Standard","Pool Pump VSD",79.099999999999994,"C&I","Pools",null,"per unit",579,"Program Tracking Data",null,2461.4481999999998,"Calculated Value",null,null,1,"Calculated Value",null,0.28100000000000003,"Calculated Value",null,null,null,null,10,"IL TRM v6 vol3",296,"VSD",null,"IL TRM v6 vol3",296,"Standard Pool Pump",null,"IL TRM v6 vol3",296,"=ROUND(2461.44821213111,4)","=ROUND(0.280987238827752,4)","IL TRM v6 vol2",479,"2020-01-01"]
["Business Standard","ENERGY STAR Beverage Machine w/o software",256.10000000000002,"C&I","Refrigeration","kWh savings per machine w/o software","per unit",500,"IL TRM v6 vol2",445,1310,"Calculated Value",null,null,0,"Calculated Value",null,0,"Calculated Value",null,null,null,null,14,"IL TRM v6 vol2",452,"Energy Star Vending Machine",null,"IL TRM v5 vol2",452,"Standard Vending Machine",null,"IL TRM v5 vol2",452,"=ROUND(1310,4)","=ROUND(0,4)","IL TRM v6 vol2",452,"2020-01-01"]
["Business Standard","ENERGY STAR Beverage Machine w/ software",257.10000000000002,"C&I","Refrigeration","kWh savings per machine w/ software","per unit",500,"IL TRM v6 vol2",445,1842,"Calculated Value",null,null,0,"Calculated Value",null,0,"Calculated Value",null,null,null,null,14,"IL TRM v6 vol2",452,"Efficient Operating Watts",null,"IL TRM v5 vol2",452,"Watts Base",null,"IL TRM v5 vol2",452,"=ROUND(1842,4)","=ROUND(0,4)","IL TRM v6 vol2",452,"2020-01-01"]
["Business Standard","High Efficiency Reach-In Refrigerator",258.10000000000002,"C&I","Refrigeration","No unique savings for this measure. The savings is based on actual chilled or frozen compartment volume of the efficient unit. This measure life is for refrigerator","per unit",164,"IL TRM v6 vol2",22,286.72129999999999,"Calculated Value",null," ",0.93700000000000006,"IL TRM v5 vol2",24,3.0599999999999999E-2,"Calculated Value",null,8766,"IL TRM v5 vol2",24,12,"IL TRM v5 vol2",22,"High Efficiency kWh/day",2.7549999999999999,"IL TRM v5 vol2","23 (calculated)","Standard kWh/day",3.54,"IL TRM v5 vol2","23 (calculated)","=ROUND((AK254-AG254)*365.25,4)","=ROUND(P254/Z254*T254,4)","IL TRM v5 vol2","22,23","2020-01-01"]
["Business Standard","High Efficiency Reach-In Freezer",259.10000000000002,"C&I","Refrigeration","No unique savings for this measure. The savings is based on actual chilled or frozen compartment volume of the efficient unit. This measure life is for freezer","per unit",166,"IL TRM v6 vol2",22,869.29499999999996,"Calculated Value",null," ",0.93700000000000006,"IL TRM v5 vol2",24,9.2899999999999996E-2,"Calculated Value",null,8766,"IL TRM v5 vol2",24,12,"IL TRM v5 vol2",22,"High Efficiency kWh/day",5,"IL TRM v5 vol2","23 (calculated)","Standard kWh/day",7.38,"IL TRM v5 vol2","23 (calculated)","=ROUND((AK255-AG255)*365.25,4)","=ROUND(P255/Z255*T255,4)","IL TRM v5 vol2","22,23","2020-01-01"]
["Business Standard","Strip Curtains Freezer",260.10000000000002,"C&I","Refrigeration","per freezer with curtains installed","per unit",286.16000000000003,"IL TRM v5 vol2",456,2974,"Calculated Value",null,null,1,"Calculated Value",null,0.34,"Calculated Value",null,null,null,null,6,"IL TRM v5 vol2",456,"Strip Curtain",null,"IL TRM v5 vol2",456,"No strip curtain",null,"IL TRM v5 vol2",456,"=ROUND(2974,4)","=ROUND(0.34,4)","IL TRM v5 vol2",456457,"2020-01-01"]
["Business Standard","Strip Curtains Cooler",261.10000000000002,"C&I","Refrigeration","per cooler with curtains installed","per unit",286.16000000000003,"IL TRM v5 vol2",456,422,"Calculated Value",null,null,1,"Calculated Value",null,0.05,"Calculated Value",null,null,null,null,6,"IL TRM v5 vol2",456,"Strip Curtain",null,"IL TRM v5 vol2",456,"No strip curtain",null,"IL TRM v5 vol2",456,"=ROUND(422,4)","=ROUND(0.05,4)","IL TRM v5 vol2",456457,"2020-01-01"]
["Business Standard","LED Refrigerator Case Light",84.2,"C&I","Refrigeration",null,"per unit",133,null,null,224.97130000000001,null,null,3.8774790973090334E-2,0.69,"IL TRM v5 vol2",null,2.6800000000000001E-2,null,null,5802,"IL TRM v5 vol2",341,15,"IL TRM v5 vol2 ",369,"LED Display Lighting (watts)",30.4,"IL TRM v5 vol2 - Assume 4 ft lamp",null,"Base Refrigeration - Standard (watts)",60.8,null,null,"=ROUND((AK259-AG259)/1000*Z259*AX259*BF259,4)","=ROUND(S259*T259,4)",null,null,"2020-01-01",null,null,null,null,null,1.29,"Waste Heat Factor for Energy","IL TRM v5 vol2",null,1.29,"Waste Heat Factor Demand","IL TRM v5 vol2",null,0.98874925981972495,"ISR","Navigant field work",null," "]
["Business Standard","ECM Motors Walk-In Coolers & Freezers",85.1,"C&I","Refrigeration",null,"per motor",50,"IL TRM v5 vol2",448,401,"Calculated Value",null,null,1,"IL TRM v5 vol2",448,4.2000000000000003E-2,"Calculated Value",null,null,null,null,15,"IL TRM v5 vol2",448,"ECM Motor",null,"IL TRM v5 vol2",448,"Shaded pole motor",null,"IL TRM v5 vol2",448,"=ROUND(401,4)","=ROUND(0.042,4)","IL TRM v6 vol2",442443,"2020-01-01"]
["Business Standard","High Efficiency PTAC/PTHP",86.1,"C&I","HVAC",null,"per ton",84,"IL TRM v6 vol2",184,30.0701,"Calculated Value",null,null,0.91,"IL TRM v6 vol2",185,1.18E-2,"Calculated Value",null,null,null,null,15,"IL TRM v6 vol2",184,"EER",12,"Program Tracking Data",null,"EER",10.199999999999999,"IL TRM v6 vol2",186,"=ROUND(((1/AK262-1/AG262)*AT262 + BF262*AU262)*AX262/BB262,4)","=ROUND(0.0118300668666732,4)","IL TRM v6 vol2",185187,"2020-01-01",null,1325,5249,"MO TRM and Navigant Analysis",null,12000,"Btu/hr","IL TRM v6 vol2",150,11535.608280259705,"Unit size conversion","Program Tracking Data",null,1.7948350071736064E-3,"HSPF improvement factor"]
["Business Standard","Programmable Thermostat Controls",87.1,"C&I","HVAC",null,"per ton",36.200000000000003,"IL TRM v6 vol2",220,126.0527,"Calculated Value",null,null,null,null,null,0,"Calculated Value",null,null,null,null,8,"IL TRM v6 vol2",220,"Programmable Tstat",null,"IL TRM v6 vol2",220,"No Tstat",null,"IL TRM v6 vol2",220,"=ROUND(126.052734375,4)","=ROUND(0,4)","IL TRM v6 vol2",221,"2020-01-01"]
["Business Standard","CAC <65 kBtuh",90.1,"C&I","HVAC",null,"per ton",127,"IL TRM v6 vol2",203,81.56,"Calculated Value",null,8.1560000000000007E-2,0.91,"IL TRM v6 vol2",204,6.59E-2,"Calculated Value",null,1000,"IL TRM v6 vol2","133 (portfolio weighted average)",15,"IL TRM v6 vol2",203,"EER",14,"Program Tracking Data",null,"EER",13,"IL TRM v6 vol2",208,"=ROUND((1/AK268-1/AG268)*AT268*AX268/BB268,4)","=ROUND(0.065934065934066,4)","IL TRM v6 vol2","204, 209","2020-01-01",null,1325,5249,"MO TRM and Navigant Analysis",null,12000,"Btu/hr","IL TRM v6 vol2",150,1071.1454823833506,"Unit size conversion","Program Tracking Data"]
["Business Standard","CAC 65<135 kBtuh",91.1,"C&I","HVAC",null,"per ton",127,"IL TRM v6 vol2",203,56.6389,"Calculated Value",null,5.6638899999999999E-2,0.91,"IL TRM v6 vol2",204,4.58E-2,"Calculated Value",null,1000,"IL TRM v6 vol2","133 (portfolio weighted average)",15,"IL TRM v6 vol2",203,"EER",11.7,"Program Tracking Data",null,"EER",11.2,"IL TRM v6 vol2",208,"=ROUND((1/AK270-1/AG270)*AT270*AX270/BB270,4)","=ROUND(0.0457875457875458,4)","IL TRM v6 vol2","204, 209","2020-01-01",null,1325,5249,"MO TRM and Navigant Analysis",null,12000,"Btu/hr","IL TRM v6 vol2",150,1071.1454823833506,"Unit size conversion","Program Tracking Data"]
["Business Standard","CAC 135<240 kBtuh",92.1,"C&I","HVAC",null,"per ton",100,"IL TRM v6 vol2",203,80.736199999999997,"Calculated Value",null,8.0736199999999994E-2,0.91,"IL TRM v6 vol2",204,6.5299999999999997E-2,"Calculated Value",null,1000,"IL TRM v6 vol2","133 (portfolio weighted average)",15,"IL TRM v6 vol2",203,"EER",11.7,"Program Tracking Data",null,"EER",11,"IL TRM v6 vol2",208,"=ROUND((1/AK272-1/AG272)*AT272*AX272/BB272,4)","=ROUND(0.0652680652680653,4)","IL TRM v6 vol2","204, 209","2020-01-01",null,1325,5249,"MO TRM and Navigant Analysis",null,12000,"Btu/hr","IL TRM v6 vol2",150,1071.1454823833506,"Unit size conversion","Program Tracking Data"]
["Business Standard","CAC >240 kBtuh",93.1,"C&I","HVAC",null,"per ton",100,"IL TRM v6 vol2",203,70.685299999999998,"Calculated Value",null,7.0685299999999993E-2,0.91,"IL TRM v6 vol2",204,5.7099999999999998E-2,"Calculated Value",null,1000,"IL TRM v6 vol2","133 (portfolio weighted average)",15,"IL TRM v6 vol2",203,"EER",10.5,"Program Tracking Data",null,"EER",10,"IL TRM v6 vol2",208,"=ROUND((1/AK274-1/AG274)*AT274*AX274/BB274,4)","=ROUND(0.0571428571428573,4)","IL TRM v6 vol2","204, 209","2020-01-01",null,1325,5249,"MO TRM and Navigant Analysis",null,12000,"Btu/hr","IL TRM v6 vol2",150,1071.1454823833506,"Unit size conversion","Program Tracking Data"]
["Business Standard","Interior Directional LED Lamp replacing 50-70W Lamp",96.4,"C&I","Lighting",null,"per lamp",64.47,"IL TRM v5 vol2",377,214.65610000000001,"Calculated Value",null,6.6061999999999996E-2,0.61929999999999996,"IL TRM v5 vol2","340 (portfolio weighted average)",4.0899999999999999E-2,"Calculated Value",null,3088,"IL TRM v5 vol2",341,15,"IL TRM v5 vol2",369,"LED (watts)",10.7,"Program Tracking Data",null,"Incandescent (watts)",60,"Measure midpoint Value",null,"=ROUND((AK277-AG277)/1000*Z277*AX277,4)","=ROUND(S277*T277,4)","IL TRM v6 vol2","364,368","2020-01-01",null,null,null,null,null,1.41,"Waste Heat Factor Energy","IL TRM v5 vol2","340 (portfolio weighted average)",1.34,"Waste Heat Factor Demand","IL TRM v5 vol2","340 (portfolio weighted average)"]
["Business Standard","Interior Directional LED Lamp replacing 71-110W Lamp",97.4,"C&I","Lighting",null,"per lamp",64.47,"IL TRM v5 vol2",377,327.42680000000001,"Calculated Value",null,0.10076800000000001,0.61929999999999996,"IL TRM v5 vol2","340 (portfolio weighted average)",6.2399999999999997E-2,"Calculated Value",null,3088,"IL TRM v5 vol2",341,8,"IL TRM v5 vol2",369,"LED (watts)",14.8,"Program Tracking Data",null,"Incandescent (watts)",90,"Measure midpoint Value",null,"=ROUND((AK280-AG280)/1000*Z280*AX280,4)","=ROUND(S280*T280,4)","IL TRM v6 vol2","364,368","2020-01-01",null,null,null,null,null,1.41,"Waste Heat Factor Energy","IL TRM v5 vol2","340 (portfolio weighted average)",1.34,"Waste Heat Factor Demand","IL TRM v5 vol2","340 (portfolio weighted average)"]
["Business Standard","High Performance High-Bay Fluorescent Fixture T8 > 4 Lamps Replacing HID Fixture",98.2,"C&I","Lighting",null,"per fixture",200,"IL TRM v6 vol2",357,1084.1659,"Calculated Value",null,0.33366000000000001,0.66,"IL TRM v6 vol2","337 (portfolio weighted average)",0.22020000000000001,"Calculated Value",null,3088,"IL TRM v6 vol2",338,15,"IL TRM v6 vol2",352,"High Bay T8 (>4 lamps, wattage)",206,"Program Tracking Database (weighted average(",null,"Metal Halide (watts)",455,"IL TRM v6 vol2",357,"=ROUND((AK281-AG281)/1000*Z281*AX281,4)","=ROUND(S281*T281,4)","IL TRM v6 vol2",353354,"2020-01-01",null,null,null,null,null,1.41,"Waste Heat Factor Energy","IL TRM v6 vol2","337 (portfolio weighted average)",1.34,"Waste Heat Factor Demand","IL TRM v6 vol2","337 (portfolio weighted average)"]
["Business Standard","High Bay Fluorescent Fixture (HP T8 <=4 lamps)",99.1,"C&I","Lighting",null,"per fixture",225,"IL TRM v6 vol2",357,648.75789999999995,"Calculated Value",null,0.19966,0.66,"IL TRM v6 vol2","337 (portfolio weighted average)",0.1318,"Calculated Value",null,3088,"IL TRM v6 vol2",338,15,"IL TRM v6 vol2",352,"High Bay T8 (≤4 lamps, wattage)",146,"Program Tracking Database (weighted average(",null,"Metal Halide (watts)",295,"IL TRM v6 vol2",357,"=ROUND((AK282-AG282)/1000*Z282*AX282,4)","=ROUND(S282*T282,4)","IL TRM v6 vol2",353354,"2020-01-01",null,null,null,null,null,1.41,"Waste Heat Factor Energy","IL TRM v6 vol2","337 (portfolio weighted average)",1.34,"Waste Heat Factor Demand","IL TRM v6 vol2","337 (portfolio weighted average)"]
["Business Standard","High-Bay Fluorescent Fixture T5 > 4 Lamps w/ HE Electronic Ballast Replacing HID Fixture",100.2,"C&I","Lighting",null,"per fixture",100,"IL TRM v6 vol2",423,701.00689999999997,"Calculated Value",null,0.21574000000000002,0.66,"IL TRM v6 vol2","337 (portfolio weighted average)",0.1424,"Calculated Value",null,3088,"IL TRM v6 vol2",338,15,"IL TRM v6 vol2",410,"High Bay T5 (>4 lamps, wattage)",295,"Program Tracking Database (weighted average(",null,"Metal Halide (watts)",456,"IL TRM v6 vol2","357 (portfolio weighted average(","=ROUND((AK283-AG283)/1000*Z283*AX283,4)","=ROUND(S283*T283,4)","IL TRM v6 vol2",411412,"2020-01-01",null,null,null,null,null,1.41,"Waste Heat Factor Energy","IL TRM v6 vol2","337 (portfolio weighted average)",1.34,"Waste Heat Factor Demand","IL TRM v6 vol2","337 (portfolio weighted average)"]
["Business Standard","High-Bay Fluorescent Fixture T5 <= 4 Lamps w/ HE Electronic Ballast Replacing HID Fixture",101.2,"C&I","Lighting",null,"per fixture",100,"IL TRM v6 vol2",423,404.92939999999999,"Calculated Value",null,0.12462000000000001,0.66,"IL TRM v6 vol2","337 (portfolio weighted average)",8.2199999999999995E-2,"Calculated Value",null,3088,"IL TRM v6 vol2",338,15,"IL TRM v6 vol2",410,"High Bay T5 (≤4 lamps, wattage)",117,"Program Tracking Database (weighted average(",null,"Metal Halide (watts)",210,"IL TRM v6 vol2","357 (portfolio weighted average(","=ROUND((AK285-AG285)/1000*Z285*AX285,4)","=ROUND(S285*T285,4)","IL TRM v6 vol2",411412,"2020-01-01",null,null,null,null,null,1.41,"Waste Heat Factor Energy","IL TRM v6 vol2","337 (portfolio weighted average)",1.34,"Waste Heat Factor Demand","IL TRM v6 vol2","337 (portfolio weighted average)"]
["Business Standard","LED Exit Sign",102.3,"C&I","Lighting",null,"per lamp",30,"IL TRM v6 vol2",376,45.375799999999998,"Calculated Value",null,1.0600943136888825E-2,0.69103221292771599,"Navigant Field Work",null,7.3000000000000001E-3,"Calculated Value",null,5079.677101315252,"Navigant Field Work",null,16,"IL TRM v6 vol2",376,"LED (watts)",3,"Program Tracking Data",null,"Fluorescent (watts)",11,null,"IL TRM V.5","=ROUND((AK288-AG288)/1000*Z288*AX288*BF288,4)","=ROUND(S288*T288,4)","IL TRM v6 vol2",376378,"2020-01-01",null,null,null,null,null,1.1293068008335863,"Waste Heat Factor","Navigant Field Work",null,1.3401960901115688,"Waste Heat Factor","Navigant Field Work",null,0.98874925981972495,"ISR","Navigant field work",null," "]
["Business Standard","LED Flood Light (<15W)",103.1,"C&I","Lighting",null,"per lamp",35,"IL TRM v6 vol2",370,210.82900000000001,"Calculated Value",null,4.2999999999999997E-2,0,"IL TRM v6 vol2",338,0,"Calculated Value",null,4903,"IL TRM v6 vol2",338,15,"IL TRM v6 vol2",363,"LED (watts)",8.6999999999999993,"Program Tracking Data",null,"Metal Halide (watts)",51.7,null,null,"=ROUND((AK290-AG290)/1000*Z290*AX290,4)","=ROUND(S290*T290,4)","IL TRM v6 vol2","364,368","2020-01-01",null,null,null,null,null,1,"Waste Heat Factor Energy","IL TRM v6 vol2",338,1,"Waste Heat Factor Demand","IL TRM v6 vol2",338]
["Business Standard","LED Flood Light (>=15W)",104.1,"C&I","Lighting",null,"per lamp",45,"IL TRM v6 vol2",370,236.3246,"Calculated Value",null,4.82E-2,0,"IL TRM v6 vol2",338,0,"Calculated Value",null,4903,"IL TRM v6 vol2",338,15,"IL TRM v6 vol2",363,"LED (watts)",16.2,"Program Tracking Data",null,"Metal Halide (watts)",64.400000000000006,null,null,"=ROUND((AK292-AG292)/1000*Z292*AX292,4)","=ROUND(S292*T292,4)","IL TRM v6 vol2","364,368","2020-01-01",null,null,null,null,null,1,"Waste Heat Factor Energy","IL TRM v6 vol2",338,1,"Waste Heat Factor Demand","IL TRM v6 vol2",338]
["Business Standard","LED Recessed Fixture (1 ft x 4 ft)",106.1,"C&I","Lighting",null,"per fixture",36.17,"IL TRM v6 vol2",371,116.6893,"Calculated Value",null,3.5911999999999999E-2,0.66,"IL TRM v6 vol2","337 (portfolio weighted average)",2.3699999999999999E-2,"Calculated Value",null,3088,"IL TRM v6 vol2",338,15,"IL TRM v6 vol2",363,"Linear style LED (watts)",32.200000000000003,"Program Tracking Data",null,"Standard T8 (watts)",59,null,null,"=ROUND((AK294-AG294)/1000*Z294*AX294,4)","=ROUND(S294*T294,4)","IL TRM v6 vol2","364,368","2020-01-01",null,null,null,null,null,1.41,"Waste Heat Factor Energy","IL TRM v6 vol2","337 (portfolio weighted average)",1.34,"Waste Heat Factor Demand","IL TRM v6 vol2","337 (portfolio weighted average)"]
["Business Standard","LED Recessed Fixture (2 ft x 2 ft)",107.1,"C&I","Lighting",null,"per fixture",22.55,"IL TRM v6 vol2",371,70.100700000000003,"Calculated Value",null,2.1573999999999999E-2,0.66,"IL TRM v6 vol2","337 (portfolio weighted average)",1.4200000000000001E-2,"Calculated Value",null,3088,"IL TRM v6 vol2",338,15,"IL TRM v6 vol2",363,"Linear style LED (watts)",44.9,"Program Tracking Data",null,"T8 U-tube (watts)",61,null,null,"=ROUND((AK296-AG296)/1000*Z296*AX296,4)","=ROUND(S296*T296,4)","IL TRM v6 vol2","364,368","2020-01-01",null,null,null,null,null,1.41,"Waste Heat Factor Energy","IL TRM v6 vol2","337 (portfolio weighted average)",1.34,"Waste Heat Factor Demand","IL TRM v6 vol2","337 (portfolio weighted average)"]
["Business Standard","LED Recessed Fixture (2 ft x 4 ft)",108.1,"C&I","Lighting",null,"per fixture",55.5,"IL TRM v6 vol2",371,149.78039999999999,"Calculated Value",null,4.6096000000000005E-2,0.66,"IL TRM v6 vol2","337 (portfolio weighted average)",3.04E-2,"Calculated Value",null,3088,"IL TRM v6 vol2",338,15,"IL TRM v6 vol2",363,"Linear style LED (watts)",53.6,"Program Tracking Data",null,"Standard T8 (watts)",88,null,null,"=ROUND((AK298-AG298)/1000*Z298*AX298,4)","=ROUND(S298*T298,4)","IL TRM v6 vol2","364,368","2020-01-01",null,null,null,null,null,1.41,"Waste Heat Factor Energy","IL TRM v6 vol2","337 (portfolio weighted average)",1.34,"Waste Heat Factor Demand","IL TRM v6 vol2","337 (portfolio weighted average)"]
["Business Standard","Remove 4ft Lamp from T8 or T12 system",109.2,"C&I","Lighting",null,"per lamp",12,"IL TRM v6 vol2",346,121.91419999999999,"Calculated Value",null,3.7520000000000005E-2,0.66,"IL TRM v6 vol2","337 (portfolio weighted average)",2.4799999999999999E-2,"Calculated Value",null,3088,"IL TRM v6 vol2",338,11,"IL TRM v6 vol2",346,"Remove T8",0,"IL TRM v6 vol2",346,"T8 4 ft (watts)",28,"IL TRM v6 vol2",347,"=ROUND((AK299-AG299)/1000*Z299*AX299,4)","=ROUND(S299*T299,4)","IL TRM v6 vol2",347348,"2020-01-01",null,null,null,null,null,1.41,"Waste Heat Factor Energy","IL TRM v6 vol2","337 (portfolio weighted average)",1.34,"Waste Heat Factor Demand","IL TRM v6 vol2","337 (portfolio weighted average)"]
["Business Standard","Remove 8ft Lamp from T8 or T12 System",110.2,"C&I","Lighting",null,"per lamp",16,"IL TRM v6 vol2",346,252.53659999999999,"Calculated Value",null,7.7720000000000011E-2,0.66,"IL TRM v6 vol2","337 (portfolio weighted average)",5.1299999999999998E-2,"Calculated Value",null,3088,"IL TRM v6 vol2",338,11,"IL TRM v6 vol2",346,"Remove T8",0,"IL TRM v6 vol2",346,"T8 8 ft (watts)",58,"IL TRM v6 vol2",347,"=ROUND((AK300-AG300)/1000*Z300*AX300,4)","=ROUND(S300*T300,4)","IL TRM v6 vol2",347348,"2020-01-01",null,null,null,null,null,1.41,"Waste Heat Factor Energy","IL TRM v6 vol2","337 (portfolio weighted average)",1.34,"Waste Heat Factor Demand","IL TRM v6 vol2","337 (portfolio weighted average)"]
["Business Standard","Interior Omnidirectional LED Lamp replacing 40-60W Lamp",112.4,"C&I","Lighting",null,"per lamp",8,"IL TRM v6 vol2",370,178.2996,"Calculated Value",null,5.4873000000000005E-2,0.61929999999999996,"IL TRM v6 vol2","337 (portfolio weighted average)",3.4000000000000002E-2,"Calculated Value",null,3088,"IL TRM v6 vol2",338,15,"IL TRM v6 vol2",363,"LED (watts)",9.0500000000000007,"IL TRM v5 vol2",null,"EISA tier 1 compliant Halogen (watts)",50,null,"Midpoint Value","=ROUND((AK303-AG303)/1000*Z303*AX303,4)","=ROUND(S303*T303,4)","IL TRM v6 vol2","364,368","2020-01-01",null,null,null,null,null,1.41,"Waste Heat Factor Energy","IL TRM v6 vol2","337 (portfolio weighted average)",1.34,"Waste Heat Factor Demand","IL TRM v6 vol2","337 (portfolio weighted average)"]
["Business Standard","Interior Omnidirectional LED Lamp replacing 61-100W Lamp",113.4,"C&I","Lighting",null,"per lamp",12,"IL TRM v6 vol2",370,300.43150000000003,"Calculated Value",null,9.2460000000000014E-2,0.61929999999999996,"IL TRM v6 vol2","337 (portfolio weighted average)",5.7299999999999997E-2,"Calculated Value",null,3088,"IL TRM v6 vol2",338,15,"IL TRM v6 vol2",363,"LED (watts)",11,"Program Tracking Data",null,"EISA tier 1 compliant Halogen (watts)",80,null,"Midpoint Value","=ROUND((AK306-AG306)/1000*Z306*AX306,4)","=ROUND(S306*T306,4)","IL TRM v6 vol2","364,368","2020-01-01",null,null,null,null,null,1.41,"Waste Heat Factor Energy","IL TRM v6 vol2","337 (portfolio weighted average)",1.34,"Waste Heat Factor Demand","IL TRM v6 vol2","337 (portfolio weighted average)"]
["Business Standard","Interior Daylighting Controls Replacing No Controls",114.2,"C&I","Lighting",null,"per sensor",66,"IL TRM v6 vol2",402,692.63400000000001,"Calculated Value",null,0.21316318000000001,0.66,"IL TRM v6 vol2","337 (portfolio weighted average)",0.14069999999999999,"Calculated Value",null,3088,"IL TRM v6 vol2",338,8,"IL TRM v6 vol2",411,"Photocell Occupancy Sensor (watts controlled)",587,"Program Tracking Data",null,"No Control",null,"IL TRM v6 vol2",402,"=ROUND(AG307/1000*BF307*Z307*AX307,4)","=ROUND(S307*T307,4)","IL TRM v5 vol2",412413,"2020-01-01",null,null,null,null,null,1.41,"Waste Heat Factor Energy","IL TRM v6 vol2","337 (portfolio weighted average)",1.34,"Waste Heat Factor Demand","IL TRM v6 vol2","337 (portfolio weighted average)",0.27100000000000002,"ESF","IL TRM v6 vol2 (portfolio weighted averages)",404]
["Business Standard","Interior Occupancy or Vacancy Sensor Replacing No Controls",115.2,"C&I","Lighting",null,"per sensor",42,"IL TRM v6 vol2",402,457.17840000000001,"Calculated Value",null,0.14069999999999999,0.66,"IL TRM v6 vol2","337 (portfolio weighted average)",9.2899999999999996E-2,"Calculated Value",null,3088,"IL TRM v6 vol2",338,8,"IL TRM v6 vol2",411,"Wall-Mount Occupancy Sensor (watts controlled)",350,"Program Tracking Data",null,"No Control",null,"IL TRM v6 vol2",402,"=ROUND(AG308/1000*BF308*Z308*AX308,4)","=ROUND(S308*T308,4)","IL TRM v5 vol2",412413,"2020-01-01",null,null,null,null,null,1.41,"Waste Heat Factor Energy","IL TRM v6 vol2","337 (portfolio weighted average)",1.34,"Waste Heat Factor Demand","IL TRM v6 vol2","337 (portfolio weighted average)",0.3,"ESF","IL TRM v6 vol2 (portfolio weighted averages)",404]
["Business Standard","High Volume Low Speed Fans (20ft Diameter)",116.1,"C&I","Pumps/Fans",null,"per fan",4150,"IL TRM v6 vol2",9,6577,"Calculated Value",null,null,null,null,null,2.4,"Calculated Value",null,null,null,null,10,"IL TRM v6 vol2",9,null,null,null,null,null,null,null,null,"=ROUND(6577,4)","=ROUND(2.4,4)","IL TRM v6 vol2","9,10","2020-01-01"]
["Business Standard","High Volume Low Speed Fans (22ft Diameter)",117.1,"C&I","Pumps/Fans",null,"per fan",4180,"IL TRM v6 vol2",9,8543,"Calculated Value",null,null,null,null,null,3.1,"Calculated Value",null,null,null,null,10,"IL TRM v6 vol2",9,null,null,null,null,null,null,null,null,"=ROUND(8543,4)","=ROUND(3.1,4)","IL TRM v6 vol2","9,10","2020-01-01"]
["Business Standard","High Volume Low Speed Fans (24ft Diameter)",118.1,"C&I","Pumps/Fans",null,"per fan",4225,"IL TRM v6 vol2",9,10018,"Calculated Value",null,null,null,null,null,3.7,"Calculated Value",null,null,null,null,10,"IL TRM v6 vol2",9,null,null,null,null,null,null,null,null,"=ROUND(10018,4)","=ROUND(3.7,4)","IL TRM v6 vol2","9,10","2020-01-01"]
["Business Standard","Compressed Air - Engineered Nozzle 1/4\"",119.1,"C&I","Pumps/Fans",null,"per unit",57,"IL TRM v6 vol2",472,1086.6379999999999,"Calculated Value",null,null,null,null,null,0.51100000000000001,"Calculated Value",null,null,null,null,15,"IL TRM v6 vol2",472,null,null,null,null,null,null,null,null,"=ROUND(1086.638,4)","=ROUND(0.511,4)","IL TRM v6 vol2",473474,"2020-01-01"]
["Business Standard","Compressed Air - Engineered Nozzle 1/8\"",120.1,"C&I","Pumps/Fans",null,"per unit",42,"IL TRM v6 vol2",472,393.43799999999999,"Calculated Value",null,null,null,null,null,0.16300000000000001,"Calculated Value",null,null,null,null,15,"IL TRM v6 vol2",472,null,null,null,null,null,null,null,null,"=ROUND(393.438,4)","=ROUND(0.163,4)","IL TRM v6 vol2",473474,"2020-01-01"]
["Business Standard","Compressed Air - No Loss Condensate Drain/Valve",121.2,"C&I","Pumps/Fans",null,"per unit",700,"IL TRM v6 vol2",470,1969.65,"Calculated Value",null,null,null,null,null,0.30499999999999999,"Calculated Value",null,null,null,null,15,"IL TRM v6 vol2",470,null,null,null,null,null,null,null,null,"=ROUND(1969.65,4)","=ROUND(0.30495,4)","IL TRM v6 vol2",471472,"2020-01-01"]
["Business Standard","Variable Speed Drive Compressor - 1 shift weekdays",122.1,"C&I","Pumps/Fans",null,"per HP",140.37,"IL TRM v6 vol2",466,329,"Calculated Value",null,null,null,null,null,0.15820000000000001,"Calculated Value",null,null,null,null,10,"IL TRM v6 vol2",466,null,null,null,null,null,null,null,null,"=ROUND(329,4)","=ROUND(0.15818,4)","IL TRM v6 vol2",466467,"2020-01-01"]
["Business Standard","Variable Speed Drive Compressor - 2 shift weekdays",123.1,"C&I","Pumps/Fans",null,"per HP",140.37,"IL TRM v6 vol2",466,658,"Calculated Value",null,null,null,null,null,0.15820000000000001,"Calculated Value",null,null,null,null,10,"IL TRM v6 vol2",466,null,null,null,null,null,null,null,null,"=ROUND(658,4)","=ROUND(0.15818,4)","IL TRM v6 vol2",466467,"2020-01-01"]
["Business Standard","Variable Speed Drive Compressor - 3 shift weekdays",124.1,"C&I","Pumps/Fans",null,"per HP",140.37,"IL TRM v6 vol2",466,987,"Calculated Value",null,null,null,null,null,0.15820000000000001,"Calculated Value",null,null,null,null,10,"IL TRM v6 vol2",466,null,null,null,null,null,null,null,null,"=ROUND(987,4)","=ROUND(0.15818,4)","IL TRM v6 vol2",466467,"2020-01-01"]
["Business Standard","Variable Speed Drive Compressor - 3 shift weekdays plus weekends",125.1,"C&I","Pumps/Fans",null,"per HP",140.37,"IL TRM v6 vol2",466,1385.3,"Calculated Value",null,null,null,null,null,0.15820000000000001,"Calculated Value",null,null,null,null,10,"IL TRM v6 vol2",466,null,null,null,null,null,null,null,null,"=ROUND(1385.3,4)","=ROUND(0.15818,4)","IL TRM v6 vol2",466467,"2020-01-01"]
["Business Standard","Advanced Rooftop Unit Controls, 2000-4000 annual hours occupancy",137.1,"C&I","HVAC",null,"Per unit",3412.06,"IL TRM v7 vol2",351,{"$f":"ROUND(AS192*BA192,4)","v":1062.2},"Calculated Value",null,null,0.91300000000000003,"IL TRM v7 vol2",351,{"$f":"ROUND(AW192*BA192,4)","v":0.36599999999999999},"Calculated Value",null,null,null,null,15,"IL TRM v7 vol2",350,"RTU DCV controls with VFD and 2-speed fan control",null,"IL TRM v7 vol2",354,"No RTU DCV controls",null,"IL TRM v7 vol2",354,"=ROUND(AS354*BA354,4)","=ROUND(AW354*BA354,4)","IL TRM v7 vol3","353, 355","2020-01-01",null,null,null,null,null,1062.2,"Normalized Electric Energy Savings (kWh/ton) - Springfield - Office Low Rise (update this value as needed per building type in Table 4)","IL TRM v7 vol2",354,0.36599999999999999,"Normalized peak electric demand savings (kW/ton) - Springfield Office Low-Rise (update this value as needed per building type in Table 4)","IL TRM v7 vol2",355,1,"Cooling equipment tonnage (update this value as needed per equipment specifications)"]
["Business Standard","Advanced Rooftop Unit Controls, > 4000 annual hours occupancy",138.1,"C&I","HVAC",null,"Per unit",3412.06,"IL TRM v7 vol2",351,{"$f":"ROUND(AS193*BA193,4)","v":1062.2},"Calculated Value",null,null,0.91300000000000003,"IL TRM v7 vol2",351,{"$f":"ROUND(AW193*BA193,4)","v":0.36599999999999999},"Calculated Value",null,null,null,null,15,"IL TRM v7 vol2",350,"RTU DCV controls with VFD and 2-speed fan control",null,"IL TRM v7 vol2",354,"No RTU DCV controls",null,"IL TRM v7 vol2",354,"=ROUND(AS356*BA356,4)","=ROUND(AW356*BA356,4)","IL TRM v7 vol3","353, 355","2020-01-01",null,null,null,null,null,1062.2,"Normalized Electric Energy Savings (kWh/ton) - Springfield - Office Low Rise (update this value as needed per building type in Table 4)","IL TRM v7 vol2",354,0.36599999999999999,"Normalized peak electric demand savings (kW/ton) - Springfield Office Low-Rise (update this value as needed per building type in Table 4)","IL TRM v7 vol2",355,1,"Cooling equipment tonnage (update this value as needed per equipment specifications)"]
["Business Standard","Variable Speed ECM Pump, <100 Watts Max Input, Domestic Hot Water Recirculation",139.1,"C&I","Pumps/Fans",null,"per pump",690.79,"WI TRM 2018",222,1312.09,"Calculated Value",null,null,null,null,null,0.22800000000000001,"Calculated Value",null,null,null,null,15,"WI TRM 2018",218,null,null,null,null,null,null,null,null,"=ROUND(1312.09,4)","=ROUND(0.228,4)","WI TRM 2018",222,"2020-01-01"]
["Business Standard","Variable Speed ECM Pump, 100 - 500 Watts Max Input, Domestic Hot Water Recirculation",140.1,"C&I","Pumps/Fans",null,"per pump",1324.75,"WI TRM 2018",222,6555.36,"Calculated Value",null,null,null,null,null,1.139,"Calculated Value",null,null,null,null,15,"WI TRM 2018",218,null,null,null,null,null,null,null,null,"=ROUND(6555.36,4)","=ROUND(1.139,4)","WI TRM 2018",222,"2020-01-01"]
["Business Standard","Variable Speed ECM Pump, <100 Watts Max Input, Heating Water Circulation",142.1,"C&I","Pumps/Fans",null,"per pump",690.79,"WI TRM 2018",222,359.03,"Calculated Value",null,null,null,null,null,0,"Calculated Value",null,null,null,null,15,"WI TRM 2018",218,null,null,null,null,null,null,null,null,"=ROUND(359.03,4)","=ROUND(0,4)","WI TRM 2018",222,"2020-01-01"]
["Business Standard","Variable Speed ECM Pump, 100 - 500 Watts Max Input, Heating Water Circulation",143.1,"C&I","Pumps/Fans",null,"per pump",1324.75,"WI TRM 2018",222,1793.58,"Calculated Value",null,null,null,null,null,0,"Calculated Value",null,null,null,null,15,"WI TRM 2018",218,null,null,null,null,null,null,null,null,"=ROUND(1793.58,4)","=ROUND(0,4)","WI TRM 2018",222,"2020-01-01"]
["Business Standard","Variable Speed ECM Pump, >500 Watts Max Input, Heating Water Circulation",144.1,"C&I","Pumps/Fans",null,"per pump",1844.58,"WI TRM 2018",222,7174.33,"Calculated Value",null,null,null,null,null,0,"Calculated Value",null,null,null,null,15,"WI TRM 2018",218,null,null,null,null,null,null,null,null,"=ROUND(7174.33,4)","=ROUND(0,4)","WI TRM 2018",222,"2020-01-01"]
["Business Standard","Parking Garage 4ft 3 Lamp T5/T5HO or T8 replacing > 175W Fixture",146.19999999999999,"C&I","Lighting","Annual Operating Hours, Measure Life and CF source:  IL TRM","per fixture",136,"IL TRM v6 vol2","T8: 356,357 T5:413,414",902.89800000000002,"Calculated Value",null,0.10299999999999999,1,"IL TRM v6 vol2",337,0.10299999999999999,"Calculated Value",null,8766,"IL TRM v6 vol2",337,6,"IL TRM v6 vol2 (calculated value based on lifetime hours)","415+","4-ft 3L to 4L 4' T5, T5HO or T8",155,"Program Tracking Data",null,"200W - 250W HID Fixture",258,"IL TRM v6 vol2","413+ (portfolio weighted average)","=ROUND((AK327-AG327)*(AX327)*Z327/1000,4)","=ROUND(S327*T327,4)","IL TRM v6 vol2","T8:353,354 T5:411,412","2020-01-01",null,null,null,null,null,1,"Waste Heat Factor Energy","IL TRM v6 vol2",338,1,"Waste Heat Factor_Demand","IL TRM v6 vol2",338]
["Business Standard","Parking Garage 4ft 2 Lamp T5/T5HO or T8 replacing 101W-175W Fixture",147.30000000000001,"C&I","Lighting","Annual Operating Hours, Measure Life and CF source:  IL TRM","per fixture",105,"IL TRM v6 vol2","T8: 356,357 T5:413,414",578.55600000000004,"Calculated Value",null,6.6000000000000003E-2,1,"IL TRM v6 vol2",337,6.6000000000000003E-2,"Calculated Value",null,8766,"IL TRM v6 vol2",337,6,"IL TRM v6 vol2 (calculated value based on lifetime hours)","415+","4-ft 2L to 3L 4' T5, T5HO or T8",84,"Program Tracking Data",null,"125W - 175W HID Fixture",150,null,"Midpoint Value","=ROUND((AK330-AG330)*(AX330)*Z330/1000,4)","=ROUND(S330*T330,4)","IL TRM v6 vol2","T8:353,354 T5:411,412","2020-01-01",null,null,null,null,null,1,"Waste Heat Factor Energy","IL TRM v6 vol2",338,1,"Waste Heat Factor_Demand","IL TRM v6 vol2",338]
["Business Standard","Parking Garage 4ft 1 Lamp T5/T5HO or T8 replacing <= 100W Fixture",148.19999999999999,"C&I","Lighting","Annual Operating Hours, Measure Life and CF source:  IL TRM","per fixture",74,"IL TRM v6 vol2","T8: 356,357 T5:413,414",613.62,"Calculated Value",null,7.0000000000000007E-2,1,"IL TRM v6 vol2",337,7.0000000000000007E-2,"Calculated Value",null,8766,"IL TRM v6 vol2",337,6,"IL TRM v6 vol2 (calculated value based on lifetime hours)","415+","4-ft 1L to 2L 4' T5, T5HO or T8 ",54,"Program Tracking Data",null,"≤ 100 W HID Fixture",124,"IL TRM v6 vol2","413+ (portfolio weighted average)","=ROUND((AK332-AG332)*(AX332)*Z332/1000,4)","=ROUND(S332*T332,4)","IL TRM v6 vol2","T8:353,354 T5:411,412","2020-01-01",null,null,null,null,null,1,"Waste Heat Factor Energy","IL TRM v6 vol2",338,1,"Waste Heat Factor_Demand","IL TRM v6 vol2",338]
["Business Standard","Exterior LED replacing > 400W Fixture or Mogul Screw-Base Lamp",149.30000000000001,"C&I","Lighting","Annual Operating Hours and CF source:  IN TRM, Measure Life source: IL TRM","per fixture",1182.5,"IL TRM v6 vol2",372,3838.61,"Calculated Value",null,0.89270000000000005,0,"IL TRM v6 vol2",338,0,"Calculated Value",null,4300,"Navigant Analysis",null,12,"IL TRM v6 vol2 (calculated value based on lifetime hours)","370+","LED Exterior Lighting Fixtures (Includes Street and Area, Decorative, Soffit and Canopy, Wall-mounted, and Landscape and Flood lighting)",185.3,"Program Tracking Data",null,"> 400 W HID Fixture",1078,"IL TRM v6 vol2","370+ (portfolio weighted average)","=ROUND((AK334-AG334)*(AX334)*Z334/1000,4)","=ROUND(S334*T334,4)","IL TRM v6 vol2",364368,"2020-01-01",null,null,null,null,null,1,"Waste Heat Factor Energy","IL TRM v6 vol2",338,1,"Waste Heat Factor_Demand","IL TRM v6 vol2",338]
["Business Standard","Exterior LED replacing 251W-400W Fixture or Mogul Screw‐Base Lamp",150.30000000000001,"C&I","Lighting","Annual Operating Hours and CF source:  IN TRM, Measure Life source: IL TRM","per fixture",535,"IL TRM v6 vol2",372,796.79,"Calculated Value",null,0.18530000000000002,0,"IL TRM v6 vol2",338,0,"Calculated Value",null,4300,"Navigant Analysis",null,12,"IL TRM v6 vol2 (calculated value based on lifetime hours)","370+","LED Exterior Lighting Fixtures (Includes Street and Area, Decorative, Soffit and Canopy, Wall-mounted, and Landscape and Flood lighting)",139.69999999999999,"Program Tracking Data",null,"320 W Pulse Start and 400W MH/HPS Fixture",325,null,"Midpoint Value","=ROUND((AK336-AG336)*(AX336)*Z336/1000,4)","=ROUND(S336*T336,4)","IL TRM v6 vol2",364368,"2020-01-01",null,null,null,null,null,1,"Waste Heat Factor Energy","IL TRM v6 vol2",338,1,"Waste Heat Factor_Demand","IL TRM v6 vol2",338]
["Business Standard","Exterior LED replacing 175W-250W Fixture or Mogul Screw-Base Lamp",151.30000000000001,"C&I","Lighting","Annual Operating Hours and CF source:  IN TRM, Measure Life source: IL TRM","per fixture",398.8,"IL TRM v6 vol2",372,600.28,"Calculated Value",null,0.1396,0,"IL TRM v6 vol2",338,0,"Calculated Value",null,4300,"Navigant Analysis",null,12,"IL TRM v6 vol2 (calculated value based on lifetime hours)","370+","LED Exterior Lighting Fixtures (Includes Street and Area, Decorative, Soffit and Canopy, Wall-mounted, and Landscape and Flood lighting)",73.400000000000006,"Program Tracking Data",null,"175 W HID - 250 W HID Fixture",213,null,"Midpoint Value","=ROUND((AK338-AG338)*(AX338)*Z338/1000,4)","=ROUND(S338*T338,4)","IL TRM v6 vol2",364368,"2020-01-01",null,null,null,null,null,1,"Waste Heat Factor Energy","IL TRM v6 vol2",338,1,"Waste Heat Factor_Demand","IL TRM v6 vol2",338]
["Business Standard","Exterior LED replacing < 175W Fixture or Mogul Screw-Base Lamp",152.30000000000001,"C&I","Lighting","Annual Operating Hours and CF source:  IN TRM, Measure Life source: IL TRM","per fixture",299.75,"IL TRM v6 vol2",372,532.34,"Calculated Value",null,0.12379999999999999,0,"IL TRM v6 vol2",338,0,"Calculated Value",null,4300,"Navigant Analysis",null,12,"IL TRM v6 vol2 (calculated value based on lifetime hours)","370+","LED Exterior Lighting Fixtures (Includes Street and Area, Decorative, Soffit and Canopy, Wall-mounted, and Landscape and Flood lighting)",27.2,"Program Tracking Data",null,"< 175 W HID Fixture",151,null,"Program Tracking Database","=ROUND((AK340-AG340)*(AX340)*Z340/1000,4)","=ROUND(S340*T340,4)","IL TRM v6 vol2",364368,"2020-01-01",null,null,null,null,null,1,"Waste Heat Factor Energy","IL TRM v6 vol2",338,1,"Waste Heat Factor_Demand","IL TRM v6 vol2",338]
["Business Standard","Parking Garage LED replacing > 175W Fixture or Mogul Screw-Base Lamp",153.30000000000001,"C&I","Lighting","Annual Operating Hours source, Measure Life and CF source:  IL TRM","per fixture",520,"IL TRM v6 vol2",371372,1377.1386,"Calculated Value",null,0.15709999999999999,1,"IL TRM v6 vol2",337,0.15709999999999999,"Calculated Value",null,8766,"IL TRM v6 vol2",337,6,"IL TRM v6 vol2 (calculated value based on lifetime hours)","370+","LED Parking Garage Lighting Fixtures",100.9,"Program Tracking Data",null,"200W - 250W HID Fixture",258,null,"Program Tracking Database","=ROUND((AK343-AG343)*(AX343)*Z343/1000,4)","=ROUND(S343*T343,4)","IL TRM v6 vol2",364368,"2020-01-01",null,null,null,null,null,1,"Waste Heat Factor Energy","IL TRM v6 vol2",338,1,"Waste Heat Factor_Demand","IL TRM v6 vol2",338]
["Business Standard","Parking Garage LED replacing 101W-175W Fixture or Mogul Screw-Base Lamp",154.30000000000001,"C&I","Lighting","Annual Operating Hours source, Measure Life and CF source:  IL TRM","per fixture",380,"IL TRM v6 vol2",371372,706.53959999999995,"Calculated Value",null,8.0599999999999991E-2,1,"IL TRM v6 vol2",337,8.0600000000000005E-2,"Calculated Value",null,8766,"IL TRM v6 vol2",337,6,"IL TRM v6 vol2 (calculated value based on lifetime hours)","370+","LED Parking Garage Lighting Fixtures",56.4,"Program Tracking Data",null,"125W - 175W HID Fixture",137,null,"Midpoint Value","=ROUND((AK346-AG346)*(AX346)*Z346/1000,4)","=ROUND(S346*T346,4)","IL TRM v6 vol2",364368,"2020-01-01",null,null,null,null,null,1,"Waste Heat Factor Energy","IL TRM v6 vol2",338,1,"Waste Heat Factor_Demand","IL TRM v6 vol2",338]
["Business Standard","Parking Garage LED replacing <= 100W Fixture or Mogul Screw-Base Lamp",155.19999999999999,"C&I","Lighting","Annual Operating Hours source, Measure Life and CF source:  IL TRM","per fixture",320,"IL TRM v6 vol2",371372,613.62,"Calculated Value",null,7.0000000000000007E-2,1,"IL TRM v6 vol2",337,7.0000000000000007E-2,"Calculated Value",null,8766,"IL TRM v6 vol2",337,6,"IL TRM v6 vol2 (calculated value based on lifetime hours)","370+","LED Parking Garage Lighting Fixtures",54,"Program Tracking Data",null,"≤ 100 W HID Fixture",124,"IL TRM v6 vol2","370+ (portfolio weighted average)","=ROUND((AK348-AG348)*(AX348)*Z348/1000,4)","=ROUND(S348*T348,4)","IL TRM v6 vol2",364368,"2020-01-01",null,null,null,null,null,1,"Waste Heat Factor Energy","IL TRM v6 vol2",338,1,"Waste Heat Factor_Demand","IL TRM v6 vol2",338]
["Business Standard","Interior LED Linear Lamp Replacing 4ft T8, T12, or T5 Lamp",166.3,"C&I","Lighting","Annual Operating Hours:  Weighted Average IN TRM, Measure Life: IL TRM, CF source: Weighted Average IN TRM","per lamp",24,"IL TRM v5 vol2",378,70.464100000000002,"Calculated Value",null,1.8538776149620236E-2,0.69769894861771964,"IL TRM v6 vol2",337,1.29E-2,"Calculated Value",null,4408.8858506099996,"IL TRM v6 vol2","337 (portfolio weighted average)",11,"IL TRM v6 vol2 (calculated value based on lifetime hours)","370+","4-ft LED Linear Replacement Lamps",14.9,"Program Tracking Data",null,"32W 4-ft T8 with Electronic NBF Ballast",29,"IL TRM v6 vol2","370+ (portfolio weighted average)","=ROUND((W186-T186)*(AE186)*P186/1000,4)","=ROUND(K186*L186,4)","IL TRM v5 vol2",370375,"2020-01-01",null,null,null,null,null,1.1334958992183046,"Waste Heat Factor Energy","IL TRM v6 vol2","337 (portfolio weighted average)",1.3148068191220026,"Waste Heat Factor_Demand","IL TRM v6 vol2","337 (portfolio weighted average)"]
["Business Standard","Interior LED Linear Lamp Replacing 2ft T8, T12, or T5 Lamp",167.2,"C&I","Lighting","Annual Operating Hours:  Weighted Average IN TRM, Measure Life: IL TRM, CF source: Weighted Average IN TRM","per lamp",13,"IL TRM v5 vol2",378,34.675199999999997,"Calculated Value",null,1.0500000000000001E-2,0.75,"IL TRM v6 vol2",337,7.9000000000000008E-3,"Calculated Value",null,4128,"IL TRM v6 vol2","337 (portfolio weighted average)",12,"IL TRM v6 vol2 (calculated value based on lifetime hours)","370+","2-ft LED Linear Replacement Lamps",10,"Program Tracking Data",null,"17W 2-ft T8 with Electronic NBF Ballast",17,"IL TRM v6 vol2","370+ (portfolio weighted average)","=ROUND((AK352-AG352)*(AX352)*Z352/1000,4)","=ROUND(S352*T352,4)","IL TRM v5 vol2",370375,"2020-01-01",null,null,null,null,null,1.2,"Waste Heat Factor Energy","IL TRM v6 vol2","337 (portfolio weighted average)",1.5,"Waste Heat Factor_Demand","IL TRM v6 vol2","337 (portfolio weighted average)"]
["Business Standard","Interior LED 1X4 Retrofit Kit replacing T8, T12 or T5/T5HO fixture",168.3,"C&I","Lighting","Annual Operating Hours:  Weighted Average IN TRM, Measure Life: IL TRM, CF source: Weighted Average IN TRM","per fixture",155,"IL TRM v6 vol2",370371,236.42959999999999,"Calculated Value",null,7.1593275000000012E-2,0.75,"IL TRM v6 vol2",337,5.3699999999999998E-2,"Calculated Value",null,4128,"IL TRM v6 vol2","337 (portfolio weighted average)",12,"IL TRM v6 vol2 (calculated value based on lifetime hours)","370+","LED 1X4 Retrofit Kits",29.6,"Program Tracking Data",null,"1x4 T8, T5, or T5HO Fluorescents",77.328850000000003,"IL TRM v6 vol2","370+ (portfolio weighted average)","=ROUND((AK354-AG354)*(AX354)*Z354/1000,4)","=ROUND(S354*T354,4)","IL TRM v6 vol2",364368,"2020-01-01",null,null,null,null,null,1.2,"Waste Heat Factor Energy","IL TRM v6 vol2","337 (portfolio weighted average)",1.5,"Waste Heat Factor_Demand","IL TRM v6 vol2","337 (portfolio weighted average)"]
["Business Standard","Interior LED 2X4 Retrofit Kit replacing T8, T12 or T5/T5HO fixture",169.3,"C&I","Lighting","Annual Operating Hours:  Weighted Average IN TRM, Measure Life: IL TRM, CF source: Weighted Average IN TRM","per fixture",145,"IL TRM v6 vol2",370371,300.279,"Calculated Value",null,8.2859541957690339E-2,0.67314062591104151,"IL TRM v6 vol2",337,5.5800000000000002E-2,"Calculated Value",null,4143.0865648262179,"IL TRM v6 vol2","337 (portfolio weighted average)",12,"IL TRM v6 vol2 (calculated value based on lifetime hours)","370+","LED 2X4 Retrofit Kits",35.1,"Program Tracking Data",null,"2x4 T8, T5, or T5HO Fluorescents",98.057149580000001,"IL TRM v6 vol2","370+ (portfolio weighted average)","=ROUND((AK356-AG356)*(AX356)*Z356/1000,4)","=ROUND(S356*T356,4)","IL TRM v6 vol2",364368,"2020-01-01",null,null,null,null,null,1.1512134336091124,"Waste Heat Factor Energy","IL TRM v6 vol2","337 (portfolio weighted average)",1.3161260080938109,"Waste Heat Factor_Demand","IL TRM v6 vol2","337 (portfolio weighted average)"]
["Business Standard","Interior LED 2X2 Retrofit Kit replacing T8, T12 or T5/T5HO fixture",170.3,"C&I","Lighting","Annual Operating Hours:  Weighted Average IN TRM, Measure Life: IL TRM, CF source: Weighted Average IN TRM","per fixture",130,"IL TRM v6 vol2",370371,233.45750000000001,"Calculated Value",null,7.0693275E-2,0.75,"IL TRM v6 vol2",337,5.2999999999999999E-2,"Calculated Value",null,4128,"IL TRM v6 vol2","337 (portfolio weighted average)",12,"IL TRM v6 vol2 (calculated value based on lifetime hours)","370+","LED 2X2 Retrofit Kits",30.2,"Program Tracking Data",null,"2x2 T8, T5 or T5HO Fluorescents",77.328850000000003,"IL TRM v6 vol2","370+ (portfolio weighted average)","=ROUND((AK358-AG358)*(AX358)*Z358/1000,4)","=ROUND(S358*T358,4)","IL TRM v6 vol2",364368,"2020-01-01",null,null,null,null,null,1.2,"Waste Heat Factor Energy","IL TRM v6 vol2","337 (portfolio weighted average)",1.5,"Waste Heat Factor_Demand","IL TRM v6 vol2","337 (portfolio weighted average)"]
["Business Standard","Interior LED 1X4 Troffer or Linear Ambient replacing T8, T12 or T5/T5HO fixture",171.3,"C&I","Lighting","Annual Operating Hours:  Weighted Average IN TRM, Measure Life: IL TRM, CF source: Weighted Average IN TRM","per fixture",180,"IL TRM v5 vol2",378379,177.48179999999999,"Calculated Value",null,5.3743275000000007E-2,0.75,"IL TRM v6 vol2",337,4.0300000000000002E-2,"Calculated Value",null,4128,"IL TRM v6 vol2","337 (portfolio weighted average)",12,"IL TRM v6 vol2 (calculated value based on lifetime hours)","370+","LED 1X4 Troffer or Linear Ambient Fixtures",41.5,"Program Tracking Data",null,"1X4 Troffer or Linear Ambient T8, or T5/T5HO",77.328850000000003,"IL TRM v6 vol2","370+ (portfolio weighted average)","=ROUND((AK360-AG360)*(AX360)*Z360/1000,4)","=ROUND(S360*T360,4)","IL TRM v6 vol2",364368,"2020-01-01",null,null,null,null,null,1.2,"Waste Heat Factor Energy","IL TRM v6 vol2","337 (portfolio weighted average)",1.5,"Waste Heat Factor_Demand","IL TRM v6 vol2","337 (portfolio weighted average)"]
["Business Standard","Interior LED 2X4 Troffer or Linear Ambient replacing T8, T12 or T5/T5HO fixture",172.2,"C&I","Lighting","Annual Operating Hours:  Weighted Average IN TRM, Measure Life: IL TRM, CF source: Weighted Average IN TRM","per fixture",170,"IL TRM v5 vol2",378379,257.87029999999999,"Calculated Value",null,7.8085724370000012E-2,0.75,"IL TRM v6 vol2",337,5.8599999999999999E-2,"Calculated Value",null,4128,"IL TRM v6 vol2","337 (portfolio weighted average)",12,"IL TRM v6 vol2 (calculated value based on lifetime hours)","370+","LED 2X4 Troffer or Linear Ambient replacing T8, T12 or T5/T5HO fixture",46,"Program Tracking Data",null,"2X4 Troffer or Linear Ambient T8, or T5/T5HO",98.057149580000001,"IL TRM v6 vol2","370+ (portfolio weighted average)","=ROUND((AK361-AG361)*(AX361)*Z361/1000,4)","=ROUND(S361*T361,4)","IL TRM v6 vol2",364368,"2020-01-01",null,null,null,null,null,1.2,"Waste Heat Factor Energy","IL TRM v6 vol2","337 (portfolio weighted average)",1.5,"Waste Heat Factor_Demand","IL TRM v6 vol2","337 (portfolio weighted average)"]
["Business Standard","Interior LED 2X2 Troffer or Linear Ambient replacing T8, T12 or T5/T5HO fixture",173.3,"C&I","Lighting","Annual Operating Hours:  Weighted Average IN TRM, Measure Life: IL TRM, CF source: Weighted Average IN TRM","per fixture",155,"IL TRM v5 vol2",378379,223.0549,"Calculated Value",null,6.7543275000000014E-2,0.75,"IL TRM v6 vol2",337,5.0700000000000002E-2,"Calculated Value",null,4128,"IL TRM v6 vol2","337 (portfolio weighted average)",12,"IL TRM v6 vol2 (calculated value based on lifetime hours)","370+","LED 2X2 Troffer or Linear Ambient replacing T8, T12 or T5/T5HO fixture",32.299999999999997,"Program Tracking Data",null,"2X2 Troffer or Linear Ambient T8 or T5/T5HO",77.328850000000003,"IL TRM v6 vol2","370+ (portfolio weighted average)","=ROUND((AK363-AG363)*(AX363)*Z363/1000,4)","=ROUND(S363*T363,4)","IL TRM v6 vol2",364368,"2020-01-01",null,null,null,null,null,1.2,"Waste Heat Factor Energy","IL TRM v6 vol2","337 (portfolio weighted average)",1.5,"Waste Heat Factor_Demand","IL TRM v6 vol2","337 (portfolio weighted average)"]
["Business Standard","LED Refrig Case Lights w/Doors 4ft 5ft or 6ft repl Fluor Refrig Case Lights w/Doors 4ft 5ft or 6ft",174.3,"C&I","Lighting","Annual Operating Hours source, Measure Life and CF source:  IL TRM","per door",230,"Program Tracking Data",null,710.42290000000003,"Calculated Value",null,0.18003664000000003,0.92,"IL TRM v6 vol2",337,0.1656,"Calculated Value",null,6205,"IL TRM v5 vol2",341,8,"IL TRM v6 vol2 (calculated value based on lifetime hours)","370+","LED Refrigerated (Medium Temp) Case Light Fixtures (4, 5, and 6-foot)",20.8,"Program Tracking Data",null,"Linear Fluorescent T8 Fixtures",102,"IL TRM v6 vol2","370+ (portfolio weighted average)","=ROUND((AK365-AG365)/1000*Z365*AX365,4)","=ROUND(S365*T365,4)","IL TRM v6 vol2",364368,"2020-01-01",null,null,null,null,null,1.41,"Waste Heat Factor Energy","IL TRM v6 vol2","337 (portfolio weighted average)",1.41,"Waste Heat Factor_Demand","IL TRM v6 vol2","337 (portfolio weighted average)"]
["Business Standard","LED Freezer Case Lights w/Doors 4ft 5ft or 6ft repl Fluor Frezer Case Lights w/Doors 4ft 5ft or 6ft",175.3,"C&I","Lighting","Annual Operating Hours source, Measure Life and CF source:  IL TRM","per door",230,"Program Tracking Data",null,761.13009999999997,"Calculated Value",null,0.18709488000000002,0.92,"IL TRM v6 vol2",337,0.1721,"Calculated Value",null,6205,"IL TRM v5 vol2",341,8,"IL TRM v6 vol2 (calculated value based on lifetime hours)","370+","LED Freezer (Low Temp) Case Light Fixtures (4, 5, and 6-foot)",21.3,"Program Tracking Data",null,"Linear Fluorescent T8 Fixtures",102,"IL TRM v6 vol2","370+ (portfolio weighted average)","=ROUND((AK367-AG367)/1000*Z367*AX367,4)","=ROUND(S367*T367,4)","IL TRM v6 vol2",364368,"2020-01-01",null,null,null,null,null,1.52,"Waste Heat Factor Energy","IL TRM v6 vol2","337 (portfolio weighted average)",1.52,"Waste Heat Factor_Demand","IL TRM v6 vol2","337 (portfolio weighted average)"]
["Business Standard","Interior LED Downlight or Retrofit Kit replacing 45-60W Fixture",176.3,"C&I","Lighting","Annual Operating Hours:  Weighted Average IN TRM, Measure Life: IL TRM, CF source: Weighted Average IN TRM","per fixture",27,"IL TRM v6 vol2",370,199.9537,"Calculated Value",null,6.1910000000000007E-2,0.7,"IL TRM v6 vol2",337,4.3299999999999998E-2,"Calculated Value",null,3933,"IL TRM v6 vol2","337 (portfolio weighted average)",13,"IL TRM v6 vol2 (calculated value based on lifetime hours)","370+","LED Downlight or Retrofit Kit ≤ 13W",11,"Program Tracking Data",null,"Incandescent and Halogen Downlights < 1000 lumens",52,null,"Midpoint Value","=ROUND((AK369-AG369)*(AX369)*Z369/1000,4)","=ROUND(S369*T369,4)","IL TRM v6 vol2",364368,"2020-01-01",null,null,null,null,null,1.24,"Waste Heat Factor Energy","IL TRM v6 vol2","337 (portfolio weighted average)",1.51,"Waste Heat Factor_Demand","IL TRM v6 vol2","337 (portfolio weighted average)"]
["Business Standard","Interior LED Downlight or Retrofit Kit replacing 61-100W Fixture",177.3,"C&I","Lighting","Annual Operating Hours:  Weighted Average IN TRM, Measure Life: IL TRM, CF source: Weighted Average IN TRM","per fixture",27,"IL TRM v6 vol2",370,302.36900000000003,"Calculated Value",null,9.3620000000000009E-2,0.7,"IL TRM v6 vol2",337,6.5500000000000003E-2,"Calculated Value",null,3933,"IL TRM v6 vol2","337 (portfolio weighted average)",13,"IL TRM v6 vol2 (calculated value based on lifetime hours)","370+","LED Downlight or Retrofit Kit 14 to 21W",18,"Program Tracking Data",null,"Incandescent and Halogen Downlights 1000 to 2000 lumens",80,null,"Midpoint Value","=ROUND((AK371-AG371)*(AX371)*Z371/1000,4)","=ROUND(S371*T371,4)","IL TRM v6 vol2",364368,"2020-01-01",null,null,null,null,null,1.24,"Waste Heat Factor Energy","IL TRM v6 vol2","337 (portfolio weighted average)",1.51,"Waste Heat Factor_Demand","IL TRM v6 vol2","337 (portfolio weighted average)"]
["Business Standard","Interior LED Downlight or Retrofit Kit replacing 101-155W Fixture",178.3,"C&I","Lighting","Annual Operating Hours:  Weighted Average IN TRM, Measure Life: IL TRM, CF source: Weighted Average IN TRM","per fixture",27,"IL TRM v6 vol2",370,511.58890000000002,"Calculated Value",null,0.15839900000000001,0.7,"IL TRM v6 vol2",337,0.1109,"Calculated Value",null,3933,"IL TRM v6 vol2","337 (portfolio weighted average)",13,"IL TRM v6 vol2 (calculated value based on lifetime hours)","370+","LED Downlight or Retrofit Kit ≥ 22W",23.1,"Program Tracking Data",null,"Incandescent, HID and Halogen Downlights > 2000 lumens",128,null,"Midpoint Value","=ROUND((AK373-AG373)*(AX373)*Z373/1000,4)","=ROUND(S373*T373,4)","IL TRM v6 vol2",364368,"2020-01-01",null,null,null,null,null,1.24,"Waste Heat Factor Energy","IL TRM v6 vol2","337 (portfolio weighted average)",1.51,"Waste Heat Factor_Demand","IL TRM v6 vol2","337 (portfolio weighted average)"]
["Business Standard","Interior Directional LED Lamp replacing 50-70W Lamp",179.3,"Small C&I","Lighting",null,"per lamp",15,"IL TRM v6 vol2",370,273.39460000000003,"Calculated Value",null,6.6061999999999996E-2,0.7,"IL TRM v6 vol2","337 (portfolio weighted average)",4.6199999999999998E-2,"Calculated Value",null,3933,"IL TRM v6 vol2","337 (portfolio weighted average)",6,"IL TRM v6 vol2 (calculated value based on lifetime hours)","370+","LED (watts)",10.7,"Program Tracking Data",null,"Incandescent (watts)",60,null,"Midpoint Value","=ROUND((AK375-AG375)*(AX375)*Z375/1000,4)","=ROUND(S375*T375,4)","IL TRM v6 vol2",364368,"2020-01-01",null,null,null,null,null,1.41,"Waste Heat Factor Energy","IL TRM v6 vol2","337 (portfolio weighted average)",1.34,"Waste Heat Factor Demand","IL TRM v6 vol2","337 (portfolio weighted average)"]
["Business Standard","High Performance High-Bay Fluorescent Fixture T8 > 4 Lamps Replacing HID Fixture",181.2,"Small C&I","Lighting",null,"per fixture",220,"IL TRM v6 vol2",357,1478.4695999999999,"Calculated Value",null,0.3216,0.78,"IL TRM v6 vol2","337 (portfolio weighted average)",0.25080000000000002,"Calculated Value",null,4369,"IL TRM v6 vol2","337 (portfolio weighted average)",15,"IL TRM v6 vol2",352,"High Bay T8 (>4 lamps, wattage)",240,"Program Tracking Data",null,"Metal Halide (watts)",480,"IL TRM v6 vol2","413+ (portfolio weighted average)","=ROUND((AK376-AG376)*(AX376)*Z376/1000,4)","=ROUND(S376*T376,4)","IL TRM v6 vol2",353354,"2020-01-01",null,null,null,null,null,1.41,"Waste Heat Factor Energy","IL TRM v6 vol2","337 (portfolio weighted average)",1.34,"Waste Heat Factor Demand","IL TRM v6 vol2","337 (portfolio weighted average)"]
["Business Standard","High‐Bay Fluorescent Fixture T5 <= 4 Lamps w/ HE Electronic Ballast Replacing HID Fixture",183.2,"Small C&I","Lighting",null,"per fixture",200,"IL TRM v6 vol2",414,677.63189999999997,"Calculated Value",null,0.1474,0.78,"IL TRM v6 vol2","337 (portfolio weighted average)",0.115,"Calculated Value",null,4369,"IL TRM v6 vol2","337 (portfolio weighted average)",15,"IL TRM v6 vol2",410,"High Bay T5 (≤4 lamps, wattage)",110,"Program Tracking Data",null,"Metal Halide (watts)",220,"IL TRM v6 vol2","413+ (portfolio weighted average)","=ROUND((AK377-AG377)*(AX377)*Z377/1000,4)","=ROUND(S377*T377,4)","IL TRM v6 vol2",411412,"2020-01-01",null,null,null,null,null,1.41,"Waste Heat Factor Energy","IL TRM v6 vol2","337 (portfolio weighted average)",1.34,"Waste Heat Factor Demand","IL TRM v6 vol2","337 (portfolio weighted average)"]
["Business Standard","Remove 8ft Lamp from T8 or T12 System",186.2,"Small C&I","Lighting",null,"per lamp",30,"IL TRM v5 vol2",346,337.58780000000002,"Calculated Value",null,7.7720000000000011E-2,0.75,"IL TRM v6 vol2",337,5.8299999999999998E-2,"Calculated Value",null,4128,"IL TRM v6 vol2","337 (portfolio weighted average)",12,"IL TRM v6 vol2",346,"Remove T8",0,"IL TRM v5 vol3",349,"T8 8 ft (watts)",58,"IL TRM v5 vol3","351 (portfolio weighted average)","=ROUND((AK378-AG378)/1000*Z378*AX378,4)","=ROUND(S378*T378,4)","IL TRM v6 vol2",353354,"2020-01-01",null,null,null,null,null,1.41,"Waste Heat Factor Energy","IL TRM v6 vol2",338,1.34,"Waste Heat Factor Demand","IL TRM v6 vol2","337 (portfolio weighted average)"]
["Business Standard","Interior Omnidirectional LED Lamp replacing 40-60W Lamp",187.3,"Small C&I","Lighting",null,"per lamp",1.96,"IL TRM v6 vol2",370,222.07499999999999,"Calculated Value",null,5.6280000000000004E-2,0.65,"IL TRM v6 vol2","337 (portfolio weighted average)",3.6600000000000001E-2,"Calculated Value",null,3750,"IL TRM v6 vol2","337 (portfolio weighted average)",7,"IL TRM v6 vol2 (calculated value based on lifetime hours)","370+","LED (watts)",8,"Program Tracking Data",null,"EISA tier 1 compliant Halogen (watts)",50,null,"Midpoint Value","=ROUND((AK380-AG380)/1000*Z380*AX380,4)","=ROUND(S380*T380,4)","IL TRM v6 vol2",364368,"2020-01-01",null,null,null,null,null,1.41,"Waste Heat Factor Energy","IL TRM v6 vol2","337 (portfolio weighted average)",1.34,"Waste Heat Factor Demand","IL TRM v6 vol2","337 (portfolio weighted average)"]
["Business Standard","Interior Omnidirectional LED Lamp replacing 61-100W Lamp",188.3,"Small C&I","Lighting",null,"per lamp",1.96,"IL TRM v6 vol2",370,382.64159999999998,"Calculated Value",null,9.2460000000000014E-2,0.7,"IL TRM v6 vol2","337 (portfolio weighted average)",6.4699999999999994E-2,"Calculated Value",null,3933,"IL TRM v6 vol2","337 (portfolio weighted average)",6,"IL TRM v6 vol2 (calculated value based on lifetime hours)","370+","LED (watts)",11,"Program Tracking Data",null,"EISA tier 1 compliant Halogen (watts)",80,null,"Midpoint Value","=ROUND((AK382-AG382)/1000*Z382*AX382,4)","=ROUND(S382*T382,4)","IL TRM v6 vol2",364368,"2020-01-01",null,null,null,null,null,1.41,"Waste Heat Factor Energy","IL TRM v6 vol2","337 (portfolio weighted average)",1.34,"Waste Heat Factor Demand","IL TRM v6 vol2","337 (portfolio weighted average)"]
["Business Standard","Interior Occupancy or Vacancy Sensor Replacing No Controls",190.2,"Small C&I","Lighting",null,"per sensor",84,"IL TRM v6 vol2",402,323.03660000000002,"Calculated Value",null,7.4370000000000006E-2,0.95,"IL TRM v6 vol2","337 (portfolio weighted average)",7.0699999999999999E-2,"Calculated Value",null,4128,"IL TRM v6 vol2","337 (portfolio weighted average)",8,"IL TRM v6 vol2",402,"Wall-Mount Occupancy Sensor",185,"Program Tracking Database (watts controlled)",null,"No Control",null,"IL TRM v6 vol2",402,"=ROUND(AG383/1000*BF383*Z383*AX383,4)","=ROUND(S383*T383,4)","IL TRM v6 vol2",403404,"2020-01-01",null,null,null,null,null,1.41,"Waste Heat Factor Energy","IL TRM v6 vol2","337 (portfolio weighted average)",1.34,"Waste Heat Factor Demand","IL TRM v6 vol2","337 (portfolio weighted average)",0.3,"ESF","IL TRM v6 vol2","404 (portfolio weighted average)"]
["Business Standard","Parking Garage 4'3L T5, T5HP, or T8 replacing >175W fixture",191.2,"Small C&I","Lighting",null,"per fixture",136,"IL TRM v6 vol2","T8: 356,357 T5:413,414",902.89800000000002,"Calculated Value",null,0.10299999999999999,1,"IL TRM v6 vol2",337,0.10299999999999999,"Calculated Value",null,8766,"IL TRM v6 vol2",337,6,"IL TRM v6 vol2 (calculated value based on lifetime hours)","415+","4-ft 3L to 4L 4' T5, T5HO or T8",155,"Program Tracking Data",null,"200W - 250W HID Fixture",258,"IL TRM v6 vol2","413+ (portfolio weighted average)","=ROUND((AK385-AG385)*(AX385)*Z385/1000,4)","=ROUND(S385*T385,4)","IL TRM v6 vol2","T8:353,354 T5:411,412","2020-01-01",null,null,null,null,null,1,"Waste Heat Factor Energy","IL TRM v6 vol2",338,1,"Waste Heat Factor Demand","IL TRM v6 vol2",338]
["Business Standard","Parking Garage 4'2L T5, T5HP, or T8 replacing 101W-175W fixture",192.3,"Small C&I","Lighting",null,"per fixture",105,"IL TRM v6 vol2","T8: 356,357 T5:413,414",578.55600000000004,"Calculated Value",null,6.6000000000000003E-2,1,"IL TRM v6 vol2",337,6.6000000000000003E-2,"Calculated Value",null,8766,"IL TRM v6 vol2",337,6,"IL TRM v6 vol2 (calculated value based on lifetime hours)","415+","4-ft 2L to 3L 4' T5, T5HO or T8",84,"Program Tracking Data",null,"125W - 175W HID Fixture",150,null,"Midpoint Value","=ROUND((AK388-AG388)*(AX388)*Z388/1000,4)","=ROUND(S388*T388,4)","IL TRM v6 vol2","T8:353,354 T5:411,412","2020-01-01",null,null,null,null,null,1,"Waste Heat Factor Energy","IL TRM v6 vol2",338,1,"Waste Heat Factor Demand","IL TRM v6 vol2",338]
["Business Standard","Parking Garage 4'1L T5, T5HP, or T8 replacing <=100W fixture",193.2,"Small C&I","Lighting",null,"per fixture",74,"IL TRM v6 vol2","T8: 356,357 T5:413,414",613.62,"Calculated Value",null,7.0000000000000007E-2,1,"IL TRM v6 vol2",337,7.0000000000000007E-2,"Calculated Value",null,8766,"IL TRM v6 vol2",337,6,"IL TRM v6 vol2 (calculated value based on lifetime hours)","415+","4-ft 1L to 2L 4' T5, T5HO or T8 ",54,"Program Tracking Data",null,"≤ 100 W HID Fixture",124,"IL TRM v6 vol2","413+ (portfolio weighted average)","=ROUND((AK390-AG390)*(AX390)*Z390/1000,4)","=ROUND(S390*T390,4)","IL TRM v6 vol2","T8:353,354 T5:411,412","2020-01-01",null,null,null,null,null,1,"Waste Heat Factor Energy","IL TRM v6 vol2",338,1,"Waste Heat Factor Demand","IL TRM v6 vol2",338]
["Business Standard","Exterior LED replacing > 400W Fixture or Mogul Screw-Base Lamp",194.3,"Small C&I","Lighting",null,"per fixture",1182.5,"IL TRM v6 vol2",372,3839.9,"Calculated Value",null,0.89300000000000002,0,"IL TRM v6 vol2",338,0,"Calculated Value",null,4300,"IL TRM v6 vol2","337 (portfolio weighted average)",12,"IL TRM v6 vol2 (calculated value based on lifetime hours)","370+","LED Exterior Lighting Fixtures (Includes Street and Area, Decorative, Soffit and Canopy, Wall-mounted, and Landscape and Flood lighting)",185,"Program Tracking Data",null,"> 400 W HID Fixture",1078,"IL TRM v6 vol2","370+ (portfolio weighted average)","=ROUND((AK393-AG393)*(AX393)*Z393/1000,4)","=ROUND(S393*T393,4)","IL TRM v6 vol2",364368,"2020-01-01",null,null,null,null,null,1,"Waste Heat Factor Energy","IL TRM v6 vol2",338,1,"Waste Heat Factor Demand","IL TRM v6 vol2",338]
["Business Standard","Exterior LED replacing 251W-400W Fixture or Mogul Screw‐Base Lamp",195.3,"Small C&I","Lighting",null,"per fixture",535,"IL TRM v6 vol2",372,795.5,"Calculated Value",null,0.185,0,"IL TRM v6 vol2",338,0,"Calculated Value",null,4300,"IL TRM v6 vol2","337 (portfolio weighted average)",12,"IL TRM v6 vol2 (calculated value based on lifetime hours)","370+","LED Exterior Lighting Fixtures (Includes Street and Area, Decorative, Soffit and Canopy, Wall-mounted, and Landscape and Flood lighting)",140,"Program Tracking Data",null,"320 W Pulse Start and 400W MH/HPS Fixture",325,null,"Midpoint Value","=ROUND((AK395-AG395)*(AX395)*Z395/1000,4)","=ROUND(S395*T395,4)","IL TRM v6 vol2",364368,"2020-01-01",null,null,null,null,null,1,"Waste Heat Factor Energy","IL TRM v6 vol2",338,1,"Waste Heat Factor Demand","IL TRM v6 vol2",338]
["Business Standard","Exterior LED replacing 175W-250W Fixture or Mogul Screw-Base Lamp",196.3,"Small C&I","Lighting",null,"per fixture",398.8,"IL TRM v6 vol2",372,602,"Calculated Value",null,0.14000000000000001,0,"IL TRM v6 vol2",338,0,"Calculated Value",null,4300,"IL TRM v6 vol2","337 (portfolio weighted average)",12,"IL TRM v6 vol2 (calculated value based on lifetime hours)","370+","LED Exterior Lighting Fixtures (Includes Street and Area, Decorative, Soffit and Canopy, Wall-mounted, and Landscape and Flood lighting)",73,"Program Tracking Data",null,"175 W HID - 250 W HID Fixture",213,null,"Midpoint Value","=ROUND((AK397-AG397)*(AX397)*Z397/1000,4)","=ROUND(S397*T397,4)","IL TRM v6 vol2",364368,"2020-01-01",null,null,null,null,null,1,"Waste Heat Factor Energy","IL TRM v6 vol2",338,1,"Waste Heat Factor Demand","IL TRM v6 vol2",338]
["Business Standard","Exterior LED replacing < 175W Fixture or Mogul Screw-Base Lamp",197.3,"Small C&I","Lighting",null,"per fixture",299.75,"IL TRM v6 vol2",372,533.20000000000005,"Calculated Value",null,0.124,0,"IL TRM v6 vol2",338,0,"Calculated Value",null,4300,"IL TRM v6 vol2","337 (portfolio weighted average)",12,"IL TRM v6 vol2 (calculated value based on lifetime hours)","370+","LED Exterior Lighting Fixtures (Includes Street and Area, Decorative, Soffit and Canopy, Wall-mounted, and Landscape and Flood lighting)",27,"Program Tracking Data",null,"< 175 W HID Fixture",151,"IL TRM v6 vol2","370+ (portfolio weighted average)","=ROUND((AK399-AG399)*(AX399)*Z399/1000,4)","=ROUND(S399*T399,4)","IL TRM v6 vol2",364368,"2020-01-01",null,null,null,null,null,1,"Waste Heat Factor Energy","IL TRM v6 vol2",338,1,"Waste Heat Factor Demand","IL TRM v6 vol2",338]
["Business Standard","Parking Garage LED replacing > 175W Fixture or Mogul Screw-Base Lamp",198.3,"Small C&I","Lighting",null,"per fixture",520,"IL TRM v6 vol2",371372,1377.1386,"Calculated Value",null,0.15709999999999999,1,"IL TRM v6 vol2",337,0.15709999999999999,"Calculated Value",null,8766,"IL TRM v6 vol2",337,6,"IL TRM v6 vol2 (calculated value based on lifetime hours)","370+","LED Parking Garage Lighting Fixtures",100.9,"Program Tracking Data",null,"200W - 250W HID Fixture",258,"IL TRM v6 vol2","370+ (portfolio weighted average)","=ROUND((AK402-AG402)*(AX402)*Z402/1000,4)","=ROUND(S402*T402,4)","IL TRM v6 vol2",364368,"2020-01-01",null,null,null,null,null,1,"Waste Heat Factor Energy","IL TRM v6 vol2",338,1,"Waste Heat Factor Demand","IL TRM v6 vol2",338]
["Business Standard","Parking Garage LED replacing 101W-175W Fixture or Mogul Screw-Base Lamp",199.3,"Small C&I","Lighting",null,"per fixture",380,"IL TRM v6 vol2",371372,706.53959999999995,"Calculated Value",null,8.0599999999999991E-2,1,"IL TRM v6 vol2",337,8.0600000000000005E-2,"Calculated Value",null,8766,"IL TRM v6 vol2",337,6,"IL TRM v6 vol2 (calculated value based on lifetime hours)","370+","LED Parking Garage Lighting Fixtures",56.4,"Program Tracking Data",null,"125W - 175W HID Fixture",137,null,"Midpoint Value","=ROUND((AK405-AG405)*(AX405)*Z405/1000,4)","=ROUND(S405*T405,4)","IL TRM v6 vol2",364368,"2020-01-01",null,null,null,null,null,1,"Waste Heat Factor Energy","IL TRM v6 vol2",338,1,"Waste Heat Factor Demand","IL TRM v6 vol2",338]
["Business Standard","Parking Garage LED replacing <= 100W Fixture or Mogul Screw-Base Lamp",200.2,"Small C&I","Lighting",null,"per fixture",320,"IL TRM v6 vol2",371372,613.62,"Calculated Value",null,7.0000000000000007E-2,1,"IL TRM v6 vol2",337,7.0000000000000007E-2,"Calculated Value",null,8766,"IL TRM v6 vol2",337,6,"IL TRM v6 vol2 (calculated value based on lifetime hours)","370+","LED Parking Garage Lighting Fixtures",54,"Program Tracking Data",null,"≤ 100 W HID Fixture",124,"IL TRM v6 vol2","370+ (portfolio weighted average)","=ROUND((AK407-AG407)*(AX407)*Z407/1000,4)","=ROUND(S407*T407,4)","IL TRM v6 vol2",364368,"2020-01-01",null,null,null,null,null,1,"Waste Heat Factor Energy","IL TRM v6 vol2",338,1,"Waste Heat Factor Demand","IL TRM v6 vol2",338]
["Business Standard","Interior LED Linear Lamp Replacing 4ft T8, T12, or T5 Lamp",201.3,"Small C&I","Lighting",null,"per fixture",24,"IL TRM v5 vol2",378,69.350399999999993,"Calculated Value",null,2.1000000000000001E-2,0.75,"IL TRM v6 vol2",337,1.5800000000000002E-2,"Calculated Value",null,4128,"IL TRM v6 vol2","337 (portfolio weighted average)",12,"IL TRM v6 vol2 (calculated value based on lifetime hours)","370+","4-ft LED Linear Replacement Lamps",15,"Program Tracking Data",null,"32W 4-ft T8 with Electronic NBF Ballast",29,"IL TRM v6 vol2","370+ (portfolio weighted average)","=ROUND((AK409-AG409)*(AX409)*Z409/1000,4)","=ROUND(S409*T409,4)","IL TRM v5 vol2",370375,"2020-01-01",null,null,null,null,null,1.2,"Waste Heat Factor Energy","IL TRM v6 vol2","337 (portfolio weighted average)",1.5,"Waste Heat Factor Demand","IL TRM v6 vol2","337 (portfolio weighted average)"]
["Business Standard","Interior LED Linear Lamp Replacing 2ft T8, T12, or T5 Lamp",202.2,"Small C&I","Lighting",null,"per fixture",13,"IL TRM v5 vol2",378,34.675199999999997,"Calculated Value",null,1.0500000000000001E-2,0.75,"IL TRM v6 vol2",337,7.9000000000000008E-3,"Calculated Value",null,4128,"IL TRM v6 vol2","337 (portfolio weighted average)",12,"IL TRM v6 vol2 (calculated value based on lifetime hours)","370+","2-ft LED Linear Replacement Lamps",10,"Program Tracking Data",null,"17W 2-ft T8 with Electronic NBF Ballast",17,"IL TRM v6 vol2","370+ (portfolio weighted average)","=ROUND((AK411-AG411)*(AX411)*Z411/1000,4)","=ROUND(S411*T411,4)","IL TRM v5 vol2",370375,"2020-01-01",null,null,null,null,null,1.2,"Waste Heat Factor Energy","IL TRM v6 vol2","337 (portfolio weighted average)",1.5,"Waste Heat Factor Demand","IL TRM v6 vol2","337 (portfolio weighted average)"]
["Business Standard","Interior LED 1X4 Retrofit Kit replacing T8, T12 or T5/T5HO fixture",203.3,"Small C&I","Lighting",null,"per fixture",155,"IL TRM v6 vol2",370371,234.44820000000001,"Calculated Value",null,7.0993275000000008E-2,0.75,"IL TRM v6 vol2",337,5.3199999999999997E-2,"Calculated Value",null,4128,"IL TRM v6 vol2","337 (portfolio weighted average)",12,"IL TRM v6 vol2 (calculated value based on lifetime hours)","370+","LED 1X4 Retrofit Kits",30,"Program Tracking Data",null,"1x4 T8, T5, or T5HO Fluorescents",77.328850000000003,"IL TRM v6 vol2","370+ (portfolio weighted average)","=ROUND((AK413-AG413)*(AX413)*Z413/1000,4)","=ROUND(S413*T413,4)","IL TRM v6 vol2",364368,"2020-01-01",null,null,null,null,null,1.2,"Waste Heat Factor Energy","IL TRM v6 vol2","337 (portfolio weighted average)",1.5,"Waste Heat Factor Demand","IL TRM v6 vol2","337 (portfolio weighted average)"]
["Business Standard","Interior LED 2X4 Retrofit Kit replacing T8, T12 or T5/T5HO fixture",204.3,"Small C&I","Lighting",null,"per fixture",145,"IL TRM v6 vol2",370371,312.35989999999998,"Calculated Value",null,9.4585724370000013E-2,0.75,"IL TRM v6 vol2",337,7.0900000000000005E-2,"Calculated Value",null,4128,"IL TRM v6 vol2","337 (portfolio weighted average)",12,"IL TRM v6 vol2 (calculated value based on lifetime hours)","370+","LED 2X4 Retrofit Kits",35,"Program Tracking Data",null,"2x4 T8, T5, or T5HO Fluorescents",98.057149580000001,"IL TRM v6 vol2","370+ (portfolio weighted average)","=ROUND((AK415-AG415)*(AX415)*Z415/1000,4)","=ROUND(S415*T415,4)","IL TRM v6 vol2",364368,"2020-01-01",null,null,null,null,null,1.2,"Waste Heat Factor Energy","IL TRM v6 vol2","337 (portfolio weighted average)",1.5,"Waste Heat Factor Demand","IL TRM v6 vol2","337 (portfolio weighted average)"]
["Business Standard","Interior LED 2X2 Retrofit Kit replacing T8, T12 or T5/T5HO fixture",205.3,"Small C&I","Lighting",null,"per fixture",130,"IL TRM v6 vol2",370371,234.44820000000001,"Calculated Value",null,7.0993275000000008E-2,0.75,"IL TRM v6 vol2",337,5.3199999999999997E-2,"Calculated Value",null,4128,"IL TRM v6 vol2","337 (portfolio weighted average)",12,"IL TRM v6 vol2 (calculated value based on lifetime hours)","370+","LED 2X2 Retrofit Kits",30,"Program Tracking Data",null,"2x2 T8, T5 or T5HO Fluorescents",77.328850000000003,"IL TRM v6 vol2","370+ (portfolio weighted average)","=ROUND((AK417-AG417)*(AX417)*Z417/1000,4)","=ROUND(S417*T417,4)","IL TRM v6 vol2",364368,"2020-01-01",null,null,null,null,null,1.2,"Waste Heat Factor Energy","IL TRM v6 vol2","337 (portfolio weighted average)",1.5,"Waste Heat Factor Demand","IL TRM v6 vol2","337 (portfolio weighted average)"]
["Business Standard","Interior LED 1X4 Troffer or Linear Ambient replacing T8, T12 or T5/T5HO fixture",206.3,"Small C&I","Lighting",null,"per fixture",180,"IL TRM v5 vol2",378379,175.005,"Calculated Value",null,5.2993275000000006E-2,0.75,"IL TRM v6 vol2",337,3.9699999999999999E-2,"Calculated Value",null,4128,"IL TRM v6 vol2","337 (portfolio weighted average)",12,"IL TRM v6 vol2 (calculated value based on lifetime hours)","370+","LED 1X4 Troffer or Linear Ambient Fixtures",42,"Program Tracking Data",null,"1X4 Troffer or Linear Ambient T8, or T5/T5HO",77.328850000000003,"IL TRM v6 vol2","370+ (portfolio weighted average)","=ROUND((AK419-AG419)*(AX419)*Z419/1000,4)","=ROUND(S419*T419,4)","IL TRM v6 vol2",364368,"2020-01-01",null,null,null,null,null,1.2,"Waste Heat Factor Energy","IL TRM v6 vol2","337 (portfolio weighted average)",1.5,"Waste Heat Factor Demand","IL TRM v6 vol2","337 (portfolio weighted average)"]
["Business Standard","Interior LED 2X4 Troffer or Linear Ambient replacing T8, T12 or T5/T5HO fixture",207.2,"Small C&I","Lighting",null,"per fixture",170,"IL TRM v5 vol2",378379,257.87029999999999,"Calculated Value",null,7.8085724370000012E-2,0.75,"IL TRM v6 vol2","337 (portfolio weighted average)",5.8599999999999999E-2,"Calculated Value",null,4128,"IL TRM v6 vol2","337 (portfolio weighted average)",12,"IL TRM v6 vol2 (calculated value based on lifetime hours)","370+","LED 2X4 Troffer or Linear Ambient replacing T8, T12 or T5/T5HO fixture",46,"Program Tracking Data",null,"2X4 Troffer or Linear Ambient T8, or T5/T5HO",98.057149580000001,"IL TRM v6 vol2","370+ (portfolio weighted average)","=ROUND((AK420-AG420)*(AX420)*Z420/1000,4)","=ROUND(S420*T420,4)","IL TRM v6 vol2",364368,"2020-01-01",null,null,null,null,null,1.2,"Waste Heat Factor Energy","IL TRM v6 vol2","337 (portfolio weighted average)",1.5,"Waste Heat Factor Demand","IL TRM v6 vol2","337 (portfolio weighted average)"]
["Business Standard","Interior LED 2X2 Troffer or Linear Ambient replacing T8, T12 or T5/T5HO fixture",208.3,"Small C&I","Lighting",null,"per fixture",155,"IL TRM v5 vol2",378379,224.541,"Calculated Value",null,6.7993275000000006E-2,0.75,"IL TRM v6 vol2","337 (portfolio weighted average)",5.0999999999999997E-2,"Calculated Value",null,4128,"IL TRM v6 vol2","337 (portfolio weighted average)",12,"IL TRM v6 vol2 (calculated value based on lifetime hours)","370+","LED 2X2 Troffer or Linear Ambient replacing T8, T12 or T5/T5HO fixture",32,"Program Tracking Data",null,"2X2 Troffer or Linear Ambient T8 or T5/T5HO",77.328850000000003,"IL TRM v6 vol2","370+ (portfolio weighted average)","=ROUND((AK422-AG422)*(AX422)*Z422/1000,4)","=ROUND(S422*T422,4)","IL TRM v6 vol2",364368,"2020-01-01",null,null,null,null,null,1.2,"Waste Heat Factor Energy","IL TRM v6 vol2","337 (portfolio weighted average)",1.5,"Waste Heat Factor Demand","IL TRM v6 vol2","337 (portfolio weighted average)"]
["Business Standard","LED Refrig Case Lights w/Doors 4ft 5ft or 6ft repl Fluor Refrig Case Lights w/Doors 4ft 5ft or 6ft",209.3,"Small C&I","Lighting",null,"per fixture",230,"Program Tracking Data",null,710.42290000000003,"Calculated Value",null,0.11449200000000001,0.92,"IL TRM v6 vol2","337 (portfolio weighted average)",0.1053,"Calculated Value",null,6205,"IL TRM v5 vol2",341,8,"IL TRM v6 vol2 (calculated value based on lifetime hours)","370+","LED Refrigerated (Medium Temp) Case Light Fixtures (4, 5, and 6-foot)",20.8,"Program Tracking Data",null,"Linear Fluorescent T8 Fixtures",102,"IL TRM v6 vol2","370+ (portfolio weighted average)","=ROUND((AK424-AG424)*(AX424)*Z424/1000,4)","=ROUND(S424*T424,4)","IL TRM v6 vol2",364368,"2020-01-01",null,null,null,null,null,1.41,"Waste Heat Factor Energy","IL TRM v6 vol2","337 (portfolio weighted average)",1.41,"Waste Heat Factor Demand","IL TRM v6 vol2","337 (portfolio weighted average)"]
["Business Standard","LED Freezer Case Lights w/Doors 4ft 5ft or 6ft repl Fluor Frezer Case Lights w/Doors 4ft 5ft or 6ft",210.3,"Small C&I","Lighting",null,"per fixture",230,"Program Tracking Data",null,761.13009999999997,"Calculated Value",null,0.122664,0.92,"IL TRM v6 vol2","337 (portfolio weighted average)",0.1129,"Calculated Value",null,6205,"IL TRM v5 vol2",341,8,"IL TRM v6 vol2 (calculated value based on lifetime hours)","370+","LED Freezer (Low Temp) Case Light Fixtures (4, 5, and 6-foot)",21.3,"Program Tracking Data",null,"Linear Fluorescent T8 Fixtures",102,"IL TRM v6 vol2","370+ (portfolio weighted average)","=ROUND((AK427-AG427)*(AX427)*Z427/1000,4)","=ROUND(S427*T427,4)","IL TRM v6 vol2",364368,"2020-01-01",null,null,null,null,null,1.52,"Waste Heat Factor Energy","IL TRM v6 vol2","337 (portfolio weighted average)",1.52,"Waste Heat Factor Demand","IL TRM v6 vol2","337 (portfolio weighted average)"]
["Business Standard","Interior LED Downlight or Retrofit Kit replacing 45-60W Fixture",211.3,"Small C&I","Lighting",null,"per fixture",27,"IL TRM v6 vol2",370,199.9537,"Calculated Value",null,6.1910000000000007E-2,0.7,"IL TRM v6 vol2","337 (portfolio weighted average)",4.3299999999999998E-2,"Calculated Value",null,3933,"IL TRM v6 vol2","337 (portfolio weighted average)",13,"IL TRM v6 vol2 (calculated value based on lifetime hours)","370+","LED Downlight or Retrofit Kit ≤ 13W",11,"Program Tracking Data",null,"Incandescent and Halogen Downlights < 1000 lumens",52,null,"Midpoint Value","=ROUND((AK430-AG430)*(AX430)*Z430/1000,4)","=ROUND(S430*T430,4)","IL TRM v6 vol2",364368,"2020-01-01",null,null,null,null,null,1.24,"Waste Heat Factor Energy","IL TRM v6 vol2","337 (portfolio weighted average)",1.51,"Waste Heat Factor Demand","IL TRM v6 vol2","337 (portfolio weighted average)"]
["Business Standard","Interior LED Downlight or Retrofit Kit replacing 61-100W Fixture",212.3,"Small C&I","Lighting",null,"per fixture",27,"IL TRM v6 vol2",370,302.36900000000003,"Calculated Value",null,9.3620000000000009E-2,0.7,"IL TRM v6 vol2","337 (portfolio weighted average)",6.5500000000000003E-2,"Calculated Value",null,3933,"IL TRM v6 vol2","337 (portfolio weighted average)",13,"IL TRM v6 vol2 (calculated value based on lifetime hours)","370+","LED Downlight or Retrofit Kit 14 to 21W",18,"Program Tracking Data",null,"Incandescent and Halogen Downlights 1000 to 2000 lumens",80,null,"Midpoint Value","=ROUND((AK433-AG433)*(AX433)*Z433/1000,4)","=ROUND(S433*T433,4)","IL TRM v6 vol2",364368,"2020-01-01",null,null,null,null,null,1.24,"Waste Heat Factor Energy","IL TRM v6 vol2","337 (portfolio weighted average)",1.51,"Waste Heat Factor Demand","IL TRM v6 vol2","337 (portfolio weighted average)"]
["Business Standard","Interior LED Downlight or Retrofit Kit replacing 101-155W Fixture",213.3,"Small C&I","Lighting",null,"per fixture",27,"IL TRM v6 vol2",370,512.07659999999998,"Calculated Value",null,0.15855000000000002,0.7,"IL TRM v6 vol2","337 (portfolio weighted average)",0.111,"Calculated Value",null,3933,"IL TRM v6 vol2","337 (portfolio weighted average)",13,"IL TRM v6 vol2 (calculated value based on lifetime hours)","370+","LED Downlight or Retrofit Kit ≥ 22W",23,"Program Tracking Data",null,"Incandescent, HID and Halogen Downlights > 2000 lumens",128,null,"Midpoint Value","=ROUND((AK436-AG436)*(AX436)*Z436/1000,4)","=ROUND(S436*T436,4)","IL TRM v6 vol2",364368,"2020-01-01",null,null,null,null,null,1.24,"Waste Heat Factor Energy","IL TRM v6 vol2","337 (portfolio weighted average)",1.51,"Waste Heat Factor Demand","IL TRM v6 vol2","337 (portfolio weighted average)"]
["Business Standard","LED Low Bay Fixture replacing 150W-300W fixture",214.3,"Small C&I","Lighting",null,"per fixture",305,"IL TRM v5 vol2",379,668.08550000000002,"Calculated Value",null,0.14539000000000002,0.83,"IL TRM v6 vol2","337 (portfolio weighted average)",0.1207,"Calculated Value",null,4367,"IL TRM v6 vol2","337 (portfolio weighted average)",11,"IL TRM v6 vol2 (calculated value based on lifetime hours)","370+","LED Low Bay (watts)",116.5,"Program Tracking Data",null,"Pulse Start Metal Halide (watts)",225,null,"Midpoint Value","=ROUND((AK438-AG438)*(AX438)*Z438/1000,4)","=ROUND(S438*T438,4)","IL TRM v5 vol2",370375,"2020-01-01",null,null,null,null,null,1.41,"Waste Heat Factor Energy","IL TRM v6 vol2","337 (portfolio weighted average)",1.34,"Waste Heat Factor Demand","IL TRM v6 vol2","337 (portfolio weighted average)"]
["Business Standard","LED Low/High Bay Fixture replacing 301W-450W fixture",215.3,"Small C&I","Lighting",null,"per fixture",330,"IL TRM v5 vol2",379,1234.5726999999999,"Calculated Value",null,0.26867000000000002,0.83,"IL TRM v6 vol2","337 (portfolio weighted average)",0.223,"Calculated Value",null,4367,"IL TRM v6 vol2","337 (portfolio weighted average)",11,"IL TRM v6 vol2 (calculated value based on lifetime hours)","370+","LED High/Low Bay (watts)",174.5,"Program Tracking Data",null,"Pulse Start Metal Halide (watts)",375,null,"Midpoint Value","=ROUND((AK440-AG440)*(AX440)*Z440/1000,4)","=ROUND(S440*T440,4)","IL TRM v5 vol2",370375,"2020-01-01",null,null,null,null,null,1.41,"Waste Heat Factor Energy","IL TRM v6 vol2","337 (portfolio weighted average)",1.34,"Waste Heat Factor Demand","IL TRM v6 vol2","337 (portfolio weighted average)"]
["Business Standard","LED High Bay Fixture replacing 451W - 750W fixture",216.3,"Small C&I","Lighting",null,"per fixture",430,"IL TRM v5 vol2",379,2567.0491999999999,"Calculated Value",null,0.55864599999999998,0.83,"IL TRM v6 vol2","337 (portfolio weighted average)",0.4637,"Calculated Value",null,4367,"IL TRM v6 vol2","337 (portfolio weighted average)",11,"IL TRM v6 vol2 (calculated value based on lifetime hours)","370+","LED High Bay (watts)",183.1,"Program Tracking Data",null,"Pulse Start Metal Halide (watts)",600,null,"Midpoint Value","=ROUND((AK442-AG442)*(AX442)*Z442/1000,4)","=ROUND(S442*T442,4)","IL TRM v5 vol2",370375,"2020-01-01",null,null,null,null,null,1.41,"Waste Heat Factor Energy","IL TRM v6 vol2","337 (portfolio weighted average)",1.34,"Waste Heat Factor Demand","IL TRM v6 vol2","337 (portfolio weighted average)"]
["Business Standard","LED High Bay fixture replacing > 750W fixture",217.3,"Small C&I","Lighting",null,"per fixture",725,"IL TRM v5 vol2",379,5131.6355000000003,"Calculated Value",null,1.1167560000000001,0.83,"IL TRM v6 vol2","337 (portfolio weighted average)",0.92689999999999995,"Calculated Value",null,4367,"IL TRM v6 vol2","337 (portfolio weighted average)",11,"IL TRM v6 vol2 (calculated value based on lifetime hours)","370+","LED High Bay (watts)",244.6,"Program Tracking Data",null,"Pulse Start Metal Halide (watts)",1078,"IL TRM v6 vol2","370+ (portfolio weighted average)","=ROUND((AK444-AG444)*(AX444)*Z444/1000,4)","=ROUND(S444*T444,4)","IL TRM v5 vol2",370375,"2020-01-01",null,null,null,null,null,1.41,"Waste Heat Factor Energy","IL TRM v6 vol2","337 (portfolio weighted average)",1.34,"Waste Heat Factor Demand","IL TRM v6 vol2","337 (portfolio weighted average)"]
["Business Standard","28W - 4 ft fluorescent T8 lamp",218.2,"Small C&I","Lighting",null,"per lamp",1,"IL TRM v5 vol2",364,22.058,"Calculated Value",null,5.3600000000000002E-3,0.72,"IL TRM v6 vol2","337 (portfolio weighted average)",3.8999999999999998E-3,"Calculated Value",null,3911,"IL TRM v6 vol2","337 (portfolio weighted average)",15,"IL TRM v5 vol2",356,"28W - 4 ft fluorescent T8 lamp",28,"Program Tracking Data",null,"32W 4 ft fluorescent T8 lamp",32,"IL TRM v6 vol2","413+ (portfolio weighted average)","=ROUND((AK446-AG446)*(AX446)*Z446/1000,4)","=ROUND(S446*T446,4)","IL TRM v5 vol2",357359,"2020-01-01",null,null,null,null,null,1.41,"Waste Heat Factor Energy","IL TRM v6 vol2","337 (portfolio weighted average)",1.34,"Waste Heat Factor Demand","IL TRM v6 vol2","337 (portfolio weighted average)"]
["Business Standard","25W - 4 ft fluorescent T8 lamp",219.2,"Small C&I","Lighting",null,"per lamp",2.5,"IL TRM v5 vol2",364,38.601599999999998,"Calculated Value",null,9.3800000000000012E-3,0.72,"IL TRM v6 vol2","337 (portfolio weighted average)",6.7999999999999996E-3,"Calculated Value",null,3911,"IL TRM v6 vol2","337 (portfolio weighted average)",15,"IL TRM v5 vol2",356,"25W - 4 ft fluorescent T8 lamp",25,"Program Tracking Data",null,"32W 4 ft fluorescent T8 lamp",32,"IL TRM v6 vol2","413+ (portfolio weighted average)","=ROUND((AK448-AG448)*(AX448)*Z448/1000,4)","=ROUND(S448*T448,4)","IL TRM v5 vol2",357359,"2020-01-01",null,null,null,null,null,1.41,"Waste Heat Factor Energy","IL TRM v6 vol2","337 (portfolio weighted average)",1.34,"Waste Heat Factor Demand","IL TRM v6 vol2","337 (portfolio weighted average)"]
["Business Standard","LED Low Bay Fixture replacing 150W-300W fixture",220.3,"C&I","Lighting",null,"per fixture",305,"IL TRM v5 vol2",379,668.08550000000002,"Calculated Value",null,0.14539000000000002,0.83,"IL TRM v6 vol2","337 (portfolio weighted average)",0.1207,"Calculated Value",null,4367,"IL TRM v6 vol2","337 (portfolio weighted average)",11,"IL TRM v6 vol2 (calculated value based on lifetime hours)","370+","LED Low Bay (watts)",116.5,"Program Tracking Data",null,"Pulse Start Metal Halide (watts)",225,null,"Midpoint Value","=ROUND((AK450-AG450)*(AX450)*Z450/1000,4)","=ROUND(S450*T450,4)","IL TRM v5 vol2",370375,"2020-01-01",null,null,null,null,null,1.41,"Waste Heat Factor Energy","IL TRM v6 vol2","337 (portfolio weighted average)",1.34,"Waste Heat Factor Demand","IL TRM v6 vol2","337 (portfolio weighted average)"]
["Business Standard","LED Low/High Bay Fixture replacing 301W‐450W fixture",221.4,"C&I","Lighting",null,"per fixture",330,"IL TRM v5 vol2",379,949.02700000000004,"Calculated Value",null,0.24280220200149882,0.66077261181013702,"IL TRM v6 vol2","337 (portfolio weighted average)",0.16039999999999999,"Calculated Value",null,4431.5553592345677,"IL TRM v6 vol2","337 (portfolio weighted average)",11,"IL TRM v6 vol2 (calculated value based on lifetime hours)","370+","LED High/Low Bay (watts)",174.5,"Program Tracking Data",null,"Pulse Start Metal Halide (watts)",375,null,"Midpoint Value","=ROUND((AK452-AG452)/1000*Z452*AX452,4)","=ROUND(S452*T452,4)","IL TRM v5 vol2",370375,"2020-01-01",null,null,null,null,null,1.0680904520679591,"Waste Heat Factor Energy","IL TRM v6 vol2","337 (portfolio weighted average)",1.2109835511296698,"Waste Heat Factor Demand","IL TRM v6 vol2","337 (portfolio weighted average)"]
["Business Standard","LED High Bay Fixture replacing 451W - 750W fixture",222.3,"C&I","Lighting",null,"per fixture",430,"IL TRM v5 vol2",379,2567.0491999999999,"Calculated Value",null,0.55864599999999998,0.83,"IL TRM v6 vol2","337 (portfolio weighted average)",0.4637,"Calculated Value",null,4367,"IL TRM v6 vol2","337 (portfolio weighted average)",11,"IL TRM v6 vol2 (calculated value based on lifetime hours)","370+","LED High Bay (watts)",183.1,"Program Tracking Data",null,"Pulse Start Metal Halide (watts)",600,null,"Midpoint Value","=ROUND((AK454-AG454)*(AX454)*Z454/1000,4)","=ROUND(S454*T454,4)","IL TRM v5 vol2",370375,"2020-01-01",null,null,null,null,null,1.41,"Waste Heat Factor Energy","IL TRM v6 vol2","337 (portfolio weighted average)",1.34,"Waste Heat Factor Demand","IL TRM v6 vol2","337 (portfolio weighted average)"]
["Business Standard","LED High Bay fixture replacing > 750W fixture",223.3,"C&I","Lighting",null,"per fixture",725,"IL TRM v5 vol2",379,5131.6355000000003,"Calculated Value",null,1.1167560000000001,0.83,"IL TRM v6 vol2","337 (portfolio weighted average)",0.92689999999999995,"Calculated Value",null,4367,"IL TRM v6 vol2","337 (portfolio weighted average)",11,"IL TRM v6 vol2 (calculated value based on lifetime hours)","370+","LED High Bay (watts)",244.6,"Program Tracking Data",null,"Pulse Start Metal Halide (watts)",1078,"IL TRM v6 vol2","370+ (portfolio weighted average)","=ROUND((AK457-AG457)*(AX457)*Z457/1000,4)","=ROUND(S457*T457,4)","IL TRM v5 vol2",370375,"2020-01-01",null,null,null,null,null,1.41,"Waste Heat Factor Energy","IL TRM v6 vol2","337 (portfolio weighted average)",1.34,"Waste Heat Factor Demand","IL TRM v6 vol2","337 (portfolio weighted average)"]
["Business Standard","28W 4ft T8 Lamp Replacing 32W 4ft T8 Lamp",224.3,"C&I","Lighting",null,"per lamp",1,"IL TRM v5 vol2",364,22.058,"Calculated Value",null,5.3600000000000002E-3,0.72,"IL TRM v6 vol2","337 (portfolio weighted average)",3.8999999999999998E-3,"Calculated Value",null,3911,"IL TRM v6 vol2","337 (portfolio weighted average)",15,"IL TRM v5 vol2",356,"28W - 4 ft fluorescent T8 lamp",28,"Program Tracking Data",null,"32W 4 ft fluorescent T8 lamp",32,"IL TRM v6 vol2","413+ (portfolio weighted average)","=ROUND((AK459-AG459)*(AX459)*Z459/1000,4)","=ROUND(S459*T459,4)","IL TRM v5 vol2",357359,"2020-01-01",null,null,null,null,null,1.41,"Waste Heat Factor Energy","IL TRM v6 vol2","337 (portfolio weighted average)",1.34,"Waste Heat Factor Demand","IL TRM v6 vol2","337 (portfolio weighted average)"]
["Business Standard","25W 4ft T8 Lamp Replacing 32W 4ft T8 Lamp",225.3,"C&I","Lighting",null,"per lamp",2.5,"IL TRM v5 vol2",364,38.601599999999998,"Calculated Value",null,9.3800000000000012E-3,0.72,"IL TRM v6 vol2","337 (portfolio weighted average)",6.7999999999999996E-3,"Calculated Value",null,3911,"IL TRM v6 vol2","337 (portfolio weighted average)",15,"IL TRM v5 vol2",356,"25W - 4 ft fluorescent T8 lamp",25,"Program Tracking Data",null,"32W 4 ft fluorescent T8 lamp",32,"IL TRM v6 vol2","413+ (portfolio weighted average)","=ROUND((AK461-AG461)*(AX461)*Z461/1000,4)","=ROUND(S461*T461,4)","IL TRM v5 vol2",357359,"2020-01-01",null,null,null,null,null,1.41,"Waste Heat Factor Energy","IL TRM v6 vol2","337 (portfolio weighted average)",1.34,"Waste Heat Factor Demand","IL TRM v6 vol2","337 (portfolio weighted average)"]
["Business Standard","LED low bay mogul screw-base lamp/retrofit kit replacing 150W - 300W fixture",226.2,"C&I","Lighting",null,"per fixture",100,"IL TRM v6 vol2",371,1073.2470000000001,"Calculated Value",null,0.23356200000000005,0.83,"IL TRM v6 vol2","337 (portfolio weighted average)",0.19389999999999999,"Calculated Value",null,4367,"IL TRM v6 vol2","337 (portfolio weighted average)",11,"IL TRM v6 vol2 (calculated value based on lifetime hours)","370+","LED Low Bay (watts)",50.7,"Program Tracking Data",null,"Pulse Start Metal Halide (watts)",225,null,"Midpoint Value","=ROUND((AK463-AG463)*(AX463)*Z463/1000,4)","=ROUND(S463*T463,4)","IL TRM v6 vol2",364368,"2020-01-01",null,null,null,null,null,1.41,"Waste Heat Factor Energy","IL TRM v6 vol2","337 (portfolio weighted average)",1.34,"Waste Heat Factor Demand","IL TRM v6 vol2","337 (portfolio weighted average)"]
["Business Standard","LED low/high bay mogul screw-base lamp/retrofit kit replacing 301W - 450W fixture",227.2,"C&I","Lighting",null,"per fixture",150,"IL TRM v6 vol2",371,1858.3244,"Calculated Value",null,0.40441200000000005,0.83,"IL TRM v6 vol2","337 (portfolio weighted average)",0.3357,"Calculated Value",null,4367,"IL TRM v6 vol2","337 (portfolio weighted average)",11,"IL TRM v6 vol2 (calculated value based on lifetime hours)","370+","LED High/Low Bay (watts)",73.2,"Program Tracking Data",null,"Pulse Start Metal Halide (watts)",375,null,"Midpoint Value","=ROUND((AK465-AG465)*(AX465)*Z465/1000,4)","=ROUND(S465*T465,4)","IL TRM v6 vol2",364368,"2020-01-01",null,null,null,null,null,1.41,"Waste Heat Factor Energy","IL TRM v6 vol2","337 (portfolio weighted average)",1.34,"Waste Heat Factor Demand","IL TRM v6 vol2","337 (portfolio weighted average)"]
["Business Standard","LED high bay mogul screw-base lamp/retrofit kit replacing 451W - 750W fixture",228.2,"C&I","Lighting",null,"per fixture",200,"IL TRM v6 vol2",371,3109.5223999999998,"Calculated Value",null,0.67670000000000008,0.83,"IL TRM v6 vol2","337 (portfolio weighted average)",0.56169999999999998,"Calculated Value",null,4367,"IL TRM v6 vol2","337 (portfolio weighted average)",11,"IL TRM v6 vol2 (calculated value based on lifetime hours)","370+","LED High Bay (watts)",95,"Program Tracking Data",null,"Pulse Start Metal Halide (watts)",600,null,"Midpoint Value","=ROUND((AK467-AG467)*(AX467)*Z467/1000,4)","=ROUND(S467*T467,4)","IL TRM v6 vol2",364368,"2020-01-01",null,null,null,null,null,1.41,"Waste Heat Factor Energy","IL TRM v6 vol2","337 (portfolio weighted average)",1.34,"Waste Heat Factor Demand","IL TRM v6 vol2","337 (portfolio weighted average)"]
["Business Standard","LED high bay mogul screw-base lamp/retrofit kit replacing > 750W fixture",229.1,"C&I","Lighting",null,"per fixture",350,"IL TRM v6 vol2",371,4482.6382000000003,"Calculated Value",null,0.97552000000000005,0.83,"IL TRM v6 vol2","337 (portfolio weighted average)",0.80969999999999998,"Calculated Value",null,4367,"IL TRM v6 vol2","337 (portfolio weighted average)",12,"IL TRM v6 vol2 (calculated value based on lifetime hours)","370+","LED High Bay (watts)",350,"Program Tracking Data",null,"Pulse Start Metal Halide (watts)",1078,"IL TRM v6 vol2","370+ (portfolio weighted average)","=ROUND((AK468-AG468)*(AX468)*Z468/1000,4)","=ROUND(S468*T468,4)","IL TRM v6 vol2",364368,"2020-01-01",null,null,null,null,null,1.41,"Waste Heat Factor Energy","IL TRM v6 vol2","337 (portfolio weighted average)",1.34,"Waste Heat Factor Demand","IL TRM v6 vol2","337 (portfolio weighted average)"]
["Business Standard","Interior 8' LED Linear Lamp Replacing 8ft T8 or T12 Lamp",313.10000000000002,"C&I","Lighting",null,"per lamp",28,"Program Tracking Data",null,88.555499999999995,"Calculated Value",null,3.09E-2,0.65826050861528551,"IL TRM v5 vol2","340+",2.0299999999999999E-2,"Calculated Value",null,3582.3430662623045,"IL TRM v5 vol2",340,10,"Calculated Value based on HOU and lifetime hours",null,"8' LED Lamp",37.4,"Program Tracking Data",null,"96\", T-8 lamp, Instant Start Ballast, NLO",58,"IL TRM v5 vol2","370+","=ROUND((AK469-AG469)/1000*Z469*AX469,4)","=ROUND(S469*T469,4)","IL TRM v5 vol2","370, 374","2020-01-01",null,null,null,null,null,1.2,"Waste Heat Factor Energy","IL TRM v5 vol2","340+",1.5,"Waste Heat Factor Demand","IL TRM v5 vol2","340+"]
["Business Standard","Networked Lighting Controls",284.10000000000002,"C&I","Lighting",null,"per square foot",0.33,"Program Tracking Data",null,1.0693999999999999,"Calculated Value",null," ",0.77,"Wisconsin Focus on Energy 2018 TRM page 251",null,2.0000000000000001E-4,"Calculated Value",null," ",null,null,16,"WI TRM 2018",251,"Control system that meets the DLC networked lighting control specifications."," ","WI TRM 2018",251,"LED or Fluorescent lighting system with no existing or basic lighting controls."," ","WI TRM 2018",251,"=ROUND(AX471/1000*BB471*BF471,4)","=ROUND(AX471/1000*BB471*BJ471,4)","WI TRM 2018",252,"2020-01-01",null,null,null,null,null,0.61,"Lighting Wattage Controlled per Sq.Ft. (LPDcontrolled)","Wisconsin Focus on Energy 2018 TRM page 251",null,0.47,"Savings Factor for advanced lighting controls (SF)","Wisconsin Focus on Energy 2018 TRM page 251",null,3730,"Average annual run hours (HOU)","Wisconsin Focus on Energy 2018 TRM page 251",null,0.77,"Coincidence Factor (CF)","Wisconsin Focus on Energy 2018 TRM page 251",null," "]
["Business Standard","VSD Pumps/Fan (Chilled Water Pump)",283.10000000000002,"C&I","Pumps/Fans",null,"per HP",1898,"IL TRM v6 vol2",216,1201.1805999999999,"Calculated Value",null,null,"NA","Calculated Value",null,0.32150000000000001,"Calculated Value",null,null,null,null,15,"IL TRM v6 vol2",216,"VSD is applied to a motor which does not have a VSD",null,"IL TRM v6 vol2",216,"Motor without a VSD",null,"IL TRM v6 vol2",216,"=ROUND(AX472/BB472*BF472*BJ472,4)","=ROUND(AX472/BB472*BN472,4)","IL TRM v6 vol2",217218,"2020-01-01",null,null,null,null,null,1,"System Brake Horsepower (BHP = Nominal Motor HP*Motor Load Factor)\nWhere, Motor Load Factor = 65%, if actual value is unknown","IL TRM v6 vol2",216,0.93,"EFFi (Motor Efficiency)","IL TRM v6 vol2",216,2718,"Cooling Run Hours","IL TRM v6 vol2",216,0.41099999999999998,"Energy Savings Factor (ESF)","IL TRM v6 vol2",216,0.29899999999999999,"Demand Savings Factor (DSF)","IL TRM v6 vol2",216]
["Business Standard","VSD Pumps/Fan (Hot Water Pump)",323,"C&I","Pumps/Fans",null,"per HP",1898,"IL TRM v6 vol2",216,2119.5441000000001,"Calculated Value",null,null,"NA","Calculated Value",null,0,"Calculated Value",null,null,null,null,15,"IL TRM v6 vol2",216,"VSD is applied to a motor which does not have a VSD",null,"IL TRM v6 vol2",216,"Motor without a VSD",null,"IL TRM v6 vol2",216,"=ROUND(AX473/BB473*BF473*BJ473,4)","=ROUND(AX473/BB473*BN473,4)","IL TRM v6 vol2",217218,"2020-01-01",null,null,null,null,null,1,"System Brake Horsepower (BHP = Nominal Motor HP*Motor Load Factor)\nWhere, Motor Load Factor = 65%, if actual value is unknown","IL TRM v6 vol2",216,0.93,"EFFi (Motor Efficiency)","IL TRM v6 vol2",216,4649,"Heating Run Hours","IL TRM v6 vol2",216,0.42399999999999999,"Energy Savings Factor (ESF)","IL TRM v6 vol2",216,0,"Demand Savings Factor (DSF)","IL TRM v6 vol2",216]
["Business Standard","VSD Pumps/Fan (Cooling Tower Fan)",324,"C&I","Pumps/Fans",null,"per HP",1898,"IL TRM v6 vol2",216,368.24520000000001,"Calculated Value",null,null,"NA","Calculated Value",null,0.40649999999999997,"Calculated Value",null,null,null,null,15,"IL TRM v6 vol2",216,"VSD is applied to a motor which does not have a VSD",null,"IL TRM v6 vol2",216,"Motor without a VSD",null,"IL TRM v6 vol2",216,"=ROUND(AX474/BB474*BF474*BJ474,4)","=ROUND(AX474/BB474*BN474,4)","IL TRM v6 vol2",217218,"2020-01-01",null,null,null,null,null,1,"System Brake Horsepower (BHP = Nominal Motor HP*Motor Load Factor)\nWhere, Motor Load Factor = 65%, if actual value is unknown","IL TRM v6 vol2",216,0.93,"EFFi (Motor Efficiency)","IL TRM v6 vol2",216,2718,"Cooling Run Hours","IL TRM v6 vol2",216,0.126,"Energy Savings Factor (ESF)","IL TRM v6 vol2",216,0.378,"Demand Savings Factor (DSF)","IL TRM v6 vol2",216]
["Business Standard","Automatic door closer for walk-in  freezers",300,"Small C&I","Refrigeration",null,"per unit",156.82,"IL TRM v6 vol2",434,2307,"Calculated Value",null,null,"NA","IL TRM v6 vol2",434,0.309,"Calculated Value",null,null,null,null,8,"IL TRM v6 vol2",434,"Installation of an automatic, hydraulic-type door closer ",null,"IL TRM v6 vol2",434,"Walk-in freezer without an automatic closure",null,"IL TRM v6 vol2",434,"=ROUND(2307,4)","=ROUND(0.309,4)","IL TRM v6 vol2",434,"2020-01-01"]
["Business Standard","Automatic door closer for walk-in coolers ",299,"Small C&I","Refrigeration",null,"per unit",156.82,"IL TRM v6 vol2",434,943,"Calculated Value",null,null,"NA","IL TRM v6 vol2",434,0.13700000000000001,"Calculated Value",null,null,null,null,8,"IL TRM v6 vol2",434,"Installation of an automatic, hydraulic-type door closer ",null,"IL TRM v6 vol2",434,"Walk-in cooler without an automatic closure",null,"IL TRM v6 vol2",434,"=ROUND(943,4)","=ROUND(0.137,4)","IL TRM v6 vol2",434,"2020-01-01"]
["Business Standard","Door heater controls for cooler (Humidity-based controls)",301,"Small C&I","Refrigeration",null,"per unit",300,"IL TRM v6 vol2",439,541.14269999999999,"Calculated Value",null,null,0,"IL TRM v6 vol2",439,0,"Calculated Value",null,null,null,null,12,"IL TRM v6 vol2",439,"Door heater control utilizing humidity or conductivity control",null,"IL TRM v6 vol2",439,"Standard heated door with no controls installed",null,"IL TRM v6 vol2",439,"=ROUND(AX477*BB477*BF477*BJ477*BN477,4)","=ROUND(0,4)","IL TRM v6 vol2",440,"2020-01-01",null,null,null,null,null,9.1999999999999998E-2,"kWbase","IL TRM v6 vol2",440,1,"Numdoors","IL TRM v6 vol2",440,0.55000000000000004,"Energy Savings Factor (ESF)","IL TRM v6 vol2",439,1.22,"Bonus Factor (BF)","IL TRM v6 vol2",440,8766,"Annual hours of operation","IL TRM v6 vol2",440]
["Business Standard","Door heater controls for cooler (Conductivity-based controls)",325,"Small C&I","Refrigeration",null,"per unit",200,"IL TRM v6 vol2",439,688.72709999999995,"Calculated Value",null,null,0,"IL TRM v6 vol2",439,0,"Calculated Value",null,null,null,null,12,"IL TRM v6 vol2",439,"Door heater control utilizing humidity or conductivity control",null,"IL TRM v6 vol2",439,"Standard heated door with no controls installed",null,"IL TRM v6 vol2",439,"=ROUND(AX478*BB478*BF478*BJ478*BN478,4)","=ROUND(0,4)","IL TRM v6 vol2",440,"2020-01-01",null,null,null,null,null,9.1999999999999998E-2,"kWbase","IL TRM v6 vol2",440,1,"Numdoors","IL TRM v6 vol2",440,0.7,"Energy Savings Factor (ESF)","IL TRM v6 vol2",439,1.22,"Bonus Factor (BF)","IL TRM v6 vol2",440,8766,"Annual hours of operation","IL TRM v6 vol2",440]
["Business Standard","Door heater controls for freezer (Humidity-based controls)",302,"Small C&I","Refrigeration",null,"per unit",300,"IL TRM v6 vol2",439,1278.6088,"Calculated Value",null,null,0,"IL TRM v6 vol2",439,0,"Calculated Value",null,null,null,null,12,"IL TRM v6 vol2",439,"Door heater control utilizing humidity or conductivity control",null,"IL TRM v6 vol2",439,"Standard heated door with no controls installed",null,"IL TRM v6 vol2",439,"=ROUND(AX479*BB479*BF479*BJ479*BN479,4)","=ROUND(0,4)","IL TRM v6 vol2",440,"2020-01-01",null,null,null,null,null,0.19500000000000001,"kWbase","IL TRM v6 vol2",440,1,"Numdoors","IL TRM v6 vol2",440,0.55000000000000004,"Energy Savings Factor (ESF)","IL TRM v6 vol2",439,1.36,"Bonus Factor (BF)","IL TRM v6 vol2",440,8766,"Annual hours of operation","IL TRM v6 vol2",440]
["Business Standard","Door heater controls for freezer (Conductivity-based controls)",326,"Small C&I","Refrigeration",null,"per unit",200,"IL TRM v6 vol2",439,1627.3202000000001,"Calculated Value",null,null,0,"IL TRM v6 vol2",439,0,"Calculated Value",null,null,null,null,12,"IL TRM v6 vol2",439,"Door heater control utilizing humidity or conductivity control",null,"IL TRM v6 vol2",439,"Standard heated door with no controls installed",null,"IL TRM v6 vol2",439,"=ROUND(AX480*BB480*BF480*BJ480*BN480,4)","=ROUND(0,4)","IL TRM v6 vol2",440,"2020-01-01",null,null,null,null,null,0.19500000000000001,"kWbase","IL TRM v6 vol2",440,1,"Numdoors","IL TRM v6 vol2",440,0.7,"Energy Savings Factor (ESF)","IL TRM v6 vol2",439,1.36,"Bonus Factor (BF)","IL TRM v6 vol2",440,8766,"Annual hours of operation","IL TRM v6 vol2",440]
["Business Standard","ECM Motors Walk-In Coolers & Freezers",303,"Small C&I","Refrigeration",null,"per motor",177,"IL TRM v6 vol2",442,408,"Calculated Value",null,null,1,"IL TRM v6 vol2",442,4.6600000000000003E-2,"Calculated Value",null,null,null,null,15,"IL TRM v6 vol2",442,"ECM Motor",null,"IL TRM v6 vol2",442,"Standard Motor",null,"IL TRM v6 vol2",442,"=ROUND(BB481*AX481,4)","=ROUND(P481/BF481*BJ481,4)","IL TRM v6 vol2",442443,"2020-01-01",null,null,null,null,null,1,"Number of Motors","IL TRM v6 vol2",442,408,"Savings per motor","IL TRM v6 vol2",442,8760,"Full Load hours per year","IL TRM v6 vol2",442,1,"Summer Peak Coincidence Factor (CF)","IL TRM v6 vol2",442]
["Business Standard","LED A-19 - 9W",293,"Small C&I","Lighting","Direct Install","per unit",1.96,"IL TRM v6 vol2",370,128.93969999999999,"Calculated Value",null,null,0.66,"Calculated Value",null,3.3599999999999998E-2,"Calculated Value",null,null,null,null,15,"IL TRM v6 vol2",363,"ENERGY STAR labeled LED lamp",null,"IL TRM v6 vol2",363,"Non-ENERGY STAR lamp",null,"IL TRM v6 vol2",363,"=ROUND(((AX482-BB482)/1000)*BF482*BJ482*BR482,4)","=ROUND(((AX482-BB482)/1000)*BN482*BR482*BV482,4)","IL TRM v6 vol2",364368,"2020-01-01",null,null,null,null,null,43,"WATTSbase","IL TRM v6 vol2",363,9,"WATTSee","Program Tracking Data",null,2954,"Hours","IL TRM v6 vol2",338,1.31,"Waste Heat Factor Energy (WHFe)","IL TRM v6 vol2",338,1.53,"Waste Heat Factor Demand (WHFd)","IL TRM v6 vol2",338,0.98,"In Service Rate (ISR)","IL TRM v6 vol2",363,0.66,"Coincidence Factor (CF)","IL TRM v6 vol2",338]
["Business Standard","LED BR20 - 7.5W",296,"Small C&I","Lighting","Direct Install","per unit",1.65,"IL TRM v6 vol2",370,142.21289999999999,"Calculated Value",null,null,0.66,"Calculated Value",null,3.7100000000000001E-2,"Calculated Value",null,null,null,null,15,"IL TRM v6 vol2",363,"ENERGY STAR labeled LED lamp",null,"IL TRM v6 vol2",363,"Non-ENERGY STAR lamp",null,"IL TRM v6 vol2",363,"=ROUND(((AX483-BB483)/1000)*BF483*BJ483*BR483,4)","=ROUND(((AX483-BB483)/1000)*BN483*BR483*BV483,4)","IL TRM v6 vol2",364368,"2020-01-01",null,null,null,null,null,45,"WATTSbase","IL TRM v6 vol2",363,7.5,"WATTSee","Program Tracking Data",null,2954,"Hours","IL TRM v6 vol2",338,1.31,"Waste Heat Factor Energy (WHFe)","IL TRM v6 vol2",338,1.53,"Waste Heat Factor Demand (WHFd)","IL TRM v6 vol2",338,0.98,"In Service Rate (ISR)","IL TRM v6 vol2",363,0.66,"Coincidence Factor (CF)","IL TRM v6 vol2",338]
["Business Standard","LED BR30 - 8W",295,"Small C&I","Lighting","Direct Install","per unit",1.65,"IL TRM v6 vol2",370,159.27850000000001,"Calculated Value",null,null,0.66,"Calculated Value",null,4.1599999999999998E-2,"Calculated Value",null,null,null,null,15,"IL TRM v6 vol2",363,"ENERGY STAR labeled LED lamp",null,"IL TRM v6 vol2",363,"Non-ENERGY STAR lamp",null,"IL TRM v6 vol2",363,"=ROUND(((AX484-BB484)/1000)*BF484*BJ484*BR484,4)","=ROUND(((AX484-BB484)/1000)*BN484*BR484*BV484,4)","IL TRM v6 vol2",364368,"2020-01-01",null,null,null,null,null,50,"WATTSbase","IL TRM v6 vol2",363,8,"WATTSee","Program Tracking Data",null,2954,"Hours","IL TRM v6 vol2",338,1.31,"Waste Heat Factor Energy (WHFe)","IL TRM v6 vol2",338,1.53,"Waste Heat Factor Demand (WHFd)","IL TRM v6 vol2",338,0.98,"In Service Rate (ISR)","IL TRM v6 vol2",363,0.66,"Coincidence Factor (CF)","IL TRM v6 vol2",338]
["Business Standard","LED BR30 -12W",294,"Small C&I","Lighting","Direct Install","per unit",1.65,"IL TRM v6 vol2",370,200.99430000000001,"Calculated Value",null,null,0.66,"Calculated Value",null,5.2400000000000002E-2,"Calculated Value",null,null,null,null,15,"IL TRM v6 vol2",363,"ENERGY STAR labeled LED lamp",null,"IL TRM v6 vol2",363,"Non-ENERGY STAR lamp",null,"IL TRM v6 vol2",363,"=ROUND(((AX485-BB485)/1000)*BF485*BJ485*BR485,4)","=ROUND(((AX485-BB485)/1000)*BN485*BR485*BV485,4)","IL TRM v6 vol2",364368,"2020-01-01",null,null,null,null,null,65,"WATTSbase","IL TRM v6 vol2",363,12,"WATTSee","Program Tracking Data",null,2954,"Hours","IL TRM v6 vol2",338,1.31,"Waste Heat Factor Energy (WHFe)","IL TRM v6 vol2",338,1.53,"Waste Heat Factor Demand (WHFd)","IL TRM v6 vol2",338,0.98,"In Service Rate (ISR)","IL TRM v6 vol2",363,0.66,"Coincidence Factor (CF)","IL TRM v6 vol2",338]
["Business Standard","LED G25 - 8W",297,"Small C&I","Lighting","Direct Install","per unit",1.66,"IL TRM v6 vol2",370,197.202,"Calculated Value",null,null,0.66,"Calculated Value",null,5.1499999999999997E-2,"Calculated Value",null,null,null,null,15,"IL TRM v6 vol2",363,"ENERGY STAR labeled LED lamp",null,"IL TRM v6 vol2",363,"Non-ENERGY STAR lamp",null,"IL TRM v6 vol2",363,"=ROUND(((AX486-BB486)/1000)*BF486*BJ486*BR486,4)","=ROUND(((AX486-BB486)/1000)*BN486*BR486*BV486,4)","IL TRM v6 vol2",364368,"2020-01-01",null,null,null,null,null,60,"WATTSbase","IL TRM v6 vol2",363,8,"WATTSee","Program Tracking Data",null,2954,"Hours","IL TRM v6 vol2",338,1.31,"Waste Heat Factor Energy (WHFe)","IL TRM v6 vol2",338,1.53,"Waste Heat Factor Demand (WHFd)","IL TRM v6 vol2",338,0.98,"In Service Rate (ISR)","IL TRM v6 vol2",363,0.66,"Coincidence Factor (CF)","IL TRM v6 vol2",338]
["Business Standard","Low Flow Faucet Aerator - Kitchen",287,"Small C&I","Hot Water","Direct Install","per unit",8,"IL TRM v6 vol2",90,74.504900000000006,"Calculated Value",null,null,6.4000000000000003E-3,"IL TRM v6 vol2",94,1.9900000000000001E-2,"Calculated Value",null,null,null,null,9,"IL TRM v6 vol2",90,"Energy Efficient Faucet Aerator rated at 2.2 GPM or less",null,null,null,"Standard Faucet Aerator rated at 2.75 GPM or more",null,"IL TRM v6 vol2",91,"=ROUND(AX487*((BB487-BF487)/BB487)*BJ487*BN487*BR487,4)","=ROUND((P487/BV487)*BZ487,4)","IL TRM v6 vol2","91,93","2020-01-01",null,null,null,null,null,1,"%Electric DHW","IL TRM v6 vol2",91,1.39,"GPM_base","IL TRM v6 vol2",91,0.94,"GPM_low","IL TRM v6 vol2",91,2500,"Usage","IL TRM v6 vol2",92,9.69E-2,"EPG_electric","IL TRM v6 vol2",92,0.95,"In Service Rate (ISR)","IL TRM v6 vol2",93,24,"Annual Recovery Hours","IL TRM v6 vol2",93,6.4000000000000003E-3,"Coincidence Factor","IL TRM v6 vol2",94]
["Business Standard","Low Flow Faucet Aerator - Bathroom",327,"Small C&I","Hot Water","Direct Install","per unit",8,"IL TRM v6 vol2",90,61.126300000000001,"Calculated Value",null,null,6.4000000000000003E-3,"IL TRM v6 vol2",94,1.6299999999999999E-2,"Calculated Value",null,null,null,null,9,"IL TRM v6 vol2",90,"Energy Efficient Faucet Aerator rated at 1.5 GPM or less",null,null,null,"Standard Faucet Aerator rated at 2.25 GPM or more",null,"IL TRM v6 vol2",91,"=ROUND(AX488*((BB488-BF488)/BB488)*BJ488*BN488*BR488,4)","=ROUND((P488/BV488)*BZ488,4)","IL TRM v6 vol2","91,93","2020-01-01",null,null,null,null,null,1,"%Electric DHW","IL TRM v6 vol2",91,1.39,"GPM_base","IL TRM v6 vol2",91,0.94,"GPM_low","IL TRM v6 vol2",91,2500,"Usage","IL TRM v6 vol2",92,7.9500000000000001E-2,"EPG_electric","IL TRM v6 vol2",92,0.95,"In Service Rate (ISR)","IL TRM v6 vol2",93,24,"Annual Recovery Hours","IL TRM v6 vol2",93,6.4000000000000003E-3,"Coincidence Factor","IL TRM v6 vol2",94]
["Business Standard","Pre-Rinse Spray Valves Small",286,"Small C&I","Hot Water","Direct Install","per unit",92.9,"IL TRM v6 vol2",60,2769.6197999999999,"Calculated Value",null,null,0,"IL TRM v6 vol2",60,0,"Calculated Value",null,null,null,null,5,"IL TRM v6 vol2",60,"Low Flow (GPM)",1.06,"IL TRM v6 vol2",62,"Standard (GPM)",1.9,"IL TRM v6 vol2",62,"=ROUND(((AX489-BB489)*60*BF489*BJ489)*8.33*1*(BR489-BN489)*(1/BV489)/3413*BZ489,4)","=ROUND(0,4)","IL TRM v6 vol2",61,"2020-01-01",null,null,null,null,null,1.9,"FLObase","IL TRM v6 vol2",62,1.06,"FLOeff","IL TRM v6 vol2",62,1,"HOURSday","IL TRM v6 vol2",63,312,"Days per year","IL TRM v6 vol2",63,54.1,"Tin","IL TRM v6 vol2",61,124.1,"Tout","IL TRM v6 vol2",61,0.97,"Eff_Elec","IL TRM v6 vol2",61,1,"FLAG (1 for electric, 0 for gas)","IL TRM v6 vol2",61]
["Business Standard","Refrigerated Vending Machine Controls",291,"Small C&I","Refrigeration","Direct Install","per unit",180,"IL TRM v6 vol2",436,1612.944,"Calculated Value",null,null,0,"Calculated Value",null,0,"Calculated Value",null,null,null,null,5,"IL TRM v6 vol2",436,"Standard efficiency refrigerated vending machine with a control system.",null,"IL TRM v6 vol2",436,"Standard efficiency refrigerated vending machine without a control system.",null,"IL TRM v6 vol2",436,"=ROUND(AX490/1000*BB490*BF490,4)","=ROUND(0,4)","IL TRM v6 vol2",437,"2020-01-01",null,null,null,null,null,400,"WATTSbase","IL TRM v6 vol2",436,8766,"Hours","IL TRM v6 vol2",436,0.46,"Energy Savings Factor (ESF)","IL TRM v6 vol2",436]
["Business Standard","Low Flow Showerhead",289,"Small C&I","Hot Water","Direct Install","per unit",12,"IL TRM v6 vol2",98,1308.4014,"Calculated Value",null,null,2.7799999999999998E-2,"IL TRM v6 vol2",98,5.3999999999999999E-2,"Calculated Value",null,null,null,null,10,"IL TRM v6 vol2",98,"Energy efficient showerhead rated at 2.0 GPM or less",null,"IL TRM v6 vol2",98,"Standard showerhead rated at 2.5 GPM or above",null,"IL TRM v6 vol2",98,"=ROUND(AX491*((BB491*BJ491-BF491*BN491)*BR491*365.25)*BV491*BZ491,4)","=ROUND(P491*CH491/(((BB491*BJ491)*BR491*365.25)*0.773/CD491),4)","IL TRM v6 vol2",99100,"2020-01-01",null,null,null,null,null,1,"%Electric DHW","IL TRM v6 vol2",98,2.67,"GPM_base","IL TRM v6 vol2",98,1.5,"GPM_low","IL TRM v6 vol2",98,8.1999999999999993,"L_base","IL TRM v6 vol2",98,8.1999999999999993,"L_low","IL TRM v6 vol2",98,3,"NSPD","IL TRM v6 vol2",98,0.127,"EPG_electric","IL TRM v6 vol2",98,0.98,"ISR","IL TRM v6 vol2",98,27.51,"Gallons per hour recovery of electric water heater","IL TRM v6 vol2",98,2.7799999999999998E-2,"Coincidence Factor","IL TRM v6 vol2",98]
["Business Standard","Smart Power Strip",288,"Small C&I","Electronics","Direct Install","per unit",26,"Program Tracking Data",null,108.5759,"Calculated Value",null,null,0,"IL TRM v6 vol2",498,0,"Calculated Value",null,null,null,null,7,"IL TRM v6 vol2",498,"Advanced power strip with a load-sensing master plug and at least two controlled plugs",null,"IL TRM v6 vol2",498,"Standard power strip with surge protection that does not control connected loads",null,"IL TRM v6 vol2",498,"=ROUND(((AX493*(BB493-BF493)+BJ493*(BN493-BR493))*BV493)*BZ493,4)","=ROUND(0,4)","IL TRM v6 vol2",499,"2020-01-01",null,null,null,null,null,3.15E-2,"kWwkday","IL TRM v6 vol2",498,106,"hrswkday","IL TRM v6 vol2",498,50,"hrswkday-open","IL TRM v6 vol2",498,6.1700000000000001E-3,"kWwkend","IL TRM v6 vol2",498,62,"hrswkend","IL TRM v6 vol2",498,0,"hrswkend-open","IL TRM v6 vol2",498,52.2,"weeks/year","IL TRM v6 vol2",498,0.96899999999999997,"ISR","IL TRM v6 vol2",498]
["Business Standard","Smart Thermostat",292,"Small C&I","HVAC","Direct Install","per unit",181,"Program Tracking Data",null,121.97799999999999,"Calculated Value",null,null,0,"IL TRM v6 vol2",220,0,"Calculated Value",null,null,null,null,8,"IL TRM v6 vol2",220,"Thermostat that has capability to adjust temperature setpoints without manual intervention",null,"IL TRM v6 vol2",220,"Non-programmable thermostat requiring manual intervention to change temperature setpoints",null,"IL TRM v6 vol2",220,"=ROUND((AX494+BN494*(0.83*BB494+0.83*BF494+1.67*BR494-293.018)-0.0922*BB494*BF494+1.291*BR494)-(AX494+CH494*(0.83*BV494+0.83*BZ494+1.67*BR494-293.018)-0.0922*BV494*BZ494+1.291*BR494),4)","=ROUND(0,4)","IL TRM v6 vol2",221,"2020-01-01",null,null,null,null,null,928.92399999999998,"Climate zone coefficient (CZ)","IL TRM v6 vol2",222,0,"Degrees of cooling setback_base","IL TRM v6 vol2",221,0,"Degrees of heating setback_base","IL TRM v6 vol2",221,"Continuous","Fan mode during occupied period_base (Fo_base)","IL TRM v6 vol2",222,0,"Fan mode during unoccupied period_base (Fu_base)","IL TRM v6 vol2",222,98,"Weekly hours thermostat is in occupied mode","IL TRM v6 vol2",222,10,"Degrees of cooling setback_ee","IL TRM v6 vol2",221,10,"Degrees of heating setback_ee","IL TRM v6 vol2",221,"Continuous","Fan mode during occupied period_ee (Fo_ee)","IL TRM v6 vol2",222,1,"Fan mode during unoccupied period_ee (Fu_ee)","IL TRM v6 vol2",222]
["Business Standard","Strip curtain for walk-in freezers - Convenience Store (No strip curtain)",305,"Small C&I","Refrigeration",null,"sq.ft of door opening",10.220000000000001,"IL TRM v6 vol2",450,27,"Calculated Value",null,null,1,"Calculated Value",null,3.0999999999999999E-3,"Calculated Value",null,null,null,null,4,"IL TRM v6 vol2",450,"Strip curtain at least 0.06 inches thick",null,"IL TRM v6 vol2",450,"No strip curtain",null,"IL TRM v6 vol2",450,"=ROUND(AX495,4)","=ROUND(P495/8766*BF495,4)","IL TRM v6 vol2",451452,"2020-01-01",null,null,null,null,null,27,"ΔkWh/sq ft","IL TRM v6 vol2",450,21,"Area","IL TRM v6 vol2",450,1,"Coincidence Factor (CF)","IL TRM v6 vol2",450]
["Business Standard","Strip curtain for walk-in freezers - Convenience Store (Old strip curtain)",328,"Small C&I","Refrigeration",null,"sq.ft of door opening",10.220000000000001,"IL TRM v6 vol2",450,8,"Calculated Value",null,null,1,"Calculated Value",null,8.9999999999999998E-4,"Calculated Value",null,null,null,null,4,"IL TRM v6 vol2",450,"Strip curtain at least 0.06 inches thick",null,"IL TRM v6 vol2",450,"Old, ineffective strip curtain",null,"IL TRM v6 vol2",450,"=ROUND(AX496,4)","=ROUND(P496/8766*BF496,4)","IL TRM v6 vol2",451452,"2020-01-01",null,null,null,null,null,8,"ΔkWh/sq ft","IL TRM v6 vol2",450,21,"Area","IL TRM v6 vol2",450,1,"Coincidence Factor (CF)","IL TRM v6 vol2",450]
["Business Standard","Strip curtain for walk-in freezers - Restaurant (No strip curtain)",307,"Small C&I","Refrigeration",null,"sq.ft of door opening",10.220000000000001,"IL TRM v6 vol2",450,119,"Calculated Value",null,null,1,"Calculated Value",null,1.3599999999999999E-2,"Calculated Value",null,null,null,null,4,"IL TRM v6 vol2",450,"Strip curtain at least 0.06 inches thick",null,"IL TRM v6 vol2",450,"No strip curtain",null,"IL TRM v6 vol2",450,"=ROUND(AX497,4)","=ROUND(P497/8766*BF497,4)","IL TRM v6 vol2",451452,"2020-01-01",null,null,null,null,null,119,"ΔkWh/sq ft","IL TRM v6 vol2",450,21,"Area","IL TRM v6 vol2",450,1,"Coincidence Factor (CF)","IL TRM v6 vol2",450]
["Business Standard","Strip curtain for walk-in freezers - Restaurant (Old strip curtain)",329,"Small C&I","Refrigeration",null,"sq.ft of door opening",10.220000000000001,"IL TRM v6 vol2",450,34,"Calculated Value",null,null,1,"Calculated Value",null,3.8999999999999998E-3,"Calculated Value",null,null,null,null,4,"IL TRM v6 vol2",450,"Strip curtain at least 0.06 inches thick",null,"IL TRM v6 vol2",450,"Old, ineffective strip curtain",null,"IL TRM v6 vol2",450,"=ROUND(AX498,4)","=ROUND(P498/8766*BF498,4)","IL TRM v6 vol2",451452,"2020-01-01",null,null,null,null,null,34,"ΔkWh/sq ft","IL TRM v6 vol2",450,21,"Area","IL TRM v6 vol2",450,1,"Coincidence Factor (CF)","IL TRM v6 vol2",450]
["Business Standard","Strip curtain for walk-in coolers - Convenience Store (No strip curtain)",304,"Small C&I","Refrigeration",null,"sq.ft of door opening",10.220000000000001,"IL TRM v6 vol2",450,20,"Calculated Value",null,null,1,"Calculated Value",null,2.3E-3,"Calculated Value",null,null,null,null,4,"IL TRM v6 vol2",450,"Strip curtain at least 0.06 inches thick",null,"IL TRM v6 vol2",450,"No strip curtain",null,"IL TRM v6 vol2",450,"=ROUND(AX499,4)","=ROUND(P499/8766*BF499,4)","IL TRM v6 vol2",451452,"2020-01-01",null,null,null,null,null,20,"ΔkWh/sq ft","IL TRM v6 vol2",450,21,"Area","IL TRM v6 vol2",450,1,"Coincidence Factor (CF)","IL TRM v6 vol2",450]
["Business Standard","Strip curtain for walk-in coolers - Convenience Store (Old strip curtain)",330,"Small C&I","Refrigeration",null,"sq.ft of door opening",10.220000000000001,"IL TRM v6 vol2",450,5,"Calculated Value",null,null,1,"Calculated Value",null,5.9999999999999995E-4,"Calculated Value",null,null,null,null,4,"IL TRM v6 vol2",450,"Strip curtain at least 0.06 inches thick",null,"IL TRM v6 vol2",450,"Old, ineffective strip curtain",null,"IL TRM v6 vol2",450,"=ROUND(AX500,4)","=ROUND(P500/8766*BF500,4)","IL TRM v6 vol2",451452,"2020-01-01",null,null,null,null,null,5,"ΔkWh/sq ft","IL TRM v6 vol2",450,21,"Area","IL TRM v6 vol2",450,1,"Coincidence Factor (CF)","IL TRM v6 vol2",450]
["Business Standard","Strip curtain for walk-in coolers - Restaurant (No strip curtain)",306,"Small C&I","Refrigeration",null,"sq.ft of door opening",10.220000000000001,"IL TRM v6 vol2",450,30,"Calculated Value",null,null,1,"Calculated Value",null,3.3999999999999998E-3,"Calculated Value",null,null,null,null,4,"IL TRM v6 vol2",450,"Strip curtain at least 0.06 inches thick",null,"IL TRM v6 vol2",450,"No strip curtain",null,"IL TRM v6 vol2",450,"=ROUND(AX501,4)","=ROUND(P501/8766*BF501,4)","IL TRM v6 vol2",451452,"2020-01-01",null,null,null,null,null,30,"ΔkWh/sq ft","IL TRM v6 vol2",450,21,"Area","IL TRM v6 vol2",450,1,"Coincidence Factor (CF)","IL TRM v6 vol2",450]
["Business Standard","Strip curtain for walk-in coolers - Restaurant (Old strip curtain)",331,"Small C&I","Refrigeration",null,"sq.ft of door opening",10.220000000000001,"IL TRM v6 vol2",450,8,"Calculated Value",null,null,1,"Calculated Value",null,8.9999999999999998E-4,"Calculated Value",null,null,null,null,4,"IL TRM v6 vol2",450,"Strip curtain at least 0.06 inches thick",null,"IL TRM v6 vol2",450,"Old, ineffective strip curtain",null,"IL TRM v6 vol2",450,"=ROUND(AX502,4)","=ROUND(P502/8766*BF502,4)","IL TRM v6 vol2",451452,"2020-01-01",null,null,null,null,null,8,"ΔkWh/sq ft","IL TRM v6 vol2",450,21,"Area","IL TRM v6 vol2",450,1,"Coincidence Factor (CF)","IL TRM v6 vol2",450]
["Business Standard","Water Heater Pipe Insulation",290,"Small C&I","Hot Water","Direct Install","per foot",15,"IL TRM v7 vol3",171,102.71429999999999,"Calculated Value",null,1.171735112936345E-2,1,"IL TRM v7 vol3",171,1.17E-2,"Calculated Value",null,8766,"IL TRM v7 vol3",172,15,"IL TRM v7 vol3",171,"5 linear feet of insulation",null,null,null,"none",null,null,null,"=ROUND((AX503/BB503-BF503/BJ503)*BJ503*BR503*BV503/BZ503/CD503,4)","=ROUND(P503/Z503,4)","IL TRM v7 vol3","171, 172","2020-01-01",null,null,null,null,null,0.19600000000000001,"Cexist","IL TRM v7 vol3",172,1,"Rexist","IL TRM v7 vol3",172,0.32700000000000001,"Cnew","IL TRM v7 vol3",172,5,"Rnew","IL TRM v7 vol3",172,5,"L","Tracking Data",null,60,"DeltaT","IL TRM v7 vol3",172,8766,"Hours","IL TRM v7 vol3",172,0.98,"eta DHW","IL TRM v7 vol3",172,3412,"Conversion from BTU to kWh","IL TRM v7 vol3",172]
["Business Standard","LED low bay mogul screw-base lamp/retrofit kit replacing 150W - 300W fixture",230.2,"Small C&I","Lighting",null,"per fixture",100,"IL TRM v6 vol2",371,1073.2470000000001,"Calculated Value",null,0.23356200000000005,0.83,"IL TRM v6 vol2","337 (portfolio weighted average)",0.19389999999999999,"Calculated Value",null,4367,"IL TRM v6 vol2","337 (portfolio weighted average)",11,"IL TRM v6 vol2 (calculated value based on lifetime hours)","370+","LED Low Bay (watts)",50.7,"Program Tracking Data",null,"Pulse Start Metal Halide (watts)",225,null,"Midpoint Value","=ROUND((AK505-AG505)*(AX505)*Z505/1000,4)","=ROUND(S505*T505,4)","IL TRM v6 vol2",364368,"2020-01-01",null,null,null,null,null,1.41,"Waste Heat Factor Energy","IL TRM v6 vol2","337 (portfolio weighted average)",1.34,"Waste Heat Factor Demand","IL TRM v6 vol2","337 (portfolio weighted average)"]
["Business Standard","LED low/high bay mogul screw-base lamp/retrofit kit replacing 301W - 450W fixture",231.2,"Small C&I","Lighting",null,"per fixture",150,"IL TRM v6 vol2",371,1858.3244,"Calculated Value",null,0.40441200000000005,0.83,"IL TRM v6 vol2","337 (portfolio weighted average)",0.3357,"Calculated Value",null,4367,"IL TRM v6 vol2","337 (portfolio weighted average)",11,"IL TRM v6 vol2 (calculated value based on lifetime hours)","370+","LED High/Low Bay (watts)",73.2,"Program Tracking Data",null,"Pulse Start Metal Halide (watts)",375,null,"Midpoint Value","=ROUND((AK507-AG507)*(AX507)*Z507/1000,4)","=ROUND(S507*T507,4)","IL TRM v6 vol2",364368,"2020-01-01",null,null,null,null,null,1.41,"Waste Heat Factor Energy","IL TRM v6 vol2","337 (portfolio weighted average)",1.34,"Waste Heat Factor Demand","IL TRM v6 vol2","337 (portfolio weighted average)"]
["Business Standard","LED high bay mogul screw-base lamp/retrofit kit replacing 451W - 750W fixture",232.2,"Small C&I","Lighting",null,"per fixture",200,"IL TRM v6 vol2",371,3109.5223999999998,"Calculated Value",null,0.67670000000000008,0.83,"IL TRM v6 vol2","337 (portfolio weighted average)",0.56169999999999998,"Calculated Value",null,4367,"IL TRM v6 vol2","337 (portfolio weighted average)",11,"IL TRM v6 vol2",373374,"LED High Bay (watts)",95,"Program Tracking Data",null,"Pulse Start Metal Halide (watts)",600,null,"Midpoint Value","=ROUND((AK509-AG509)*(AX509)*Z509/1000,4)","=ROUND(S509*T509,4)","IL TRM v6 vol2",364368,"2020-01-01",null,null,null,null,null,1.41,"Waste Heat Factor Energy","IL TRM v6 vol2","337 (portfolio weighted average)",1.34,"Waste Heat Factor Demand","IL TRM v6 vol2","337 (portfolio weighted average)"]
["Business Standard","LED high bay mogul screw-base lamp/retrofit kit replacing > 750W fixture",233.1,"Small C&I","Lighting",null,"per fixture",350,"IL TRM v6 vol2",371,4482.6382000000003,"Calculated Value",null,0.97552000000000005,0.83,"IL TRM v6 vol2","337 (portfolio weighted average)",0.80969999999999998,"Calculated Value",null,4367,"IL TRM v6 vol2","337 (portfolio weighted average)",12,"IL TRM v6 vol2",373374,"LED High Bay (watts)",350,"Program Tracking Data",null,"Pulse Start Metal Halide (watts)",1078,"IL TRM v6 vol2","370+ (portfolio weighted average)","=ROUND((AK510-AG510)*(AX510)*Z510/1000,4)","=ROUND(S510*T510,4)","IL TRM v6 vol2",364368,"2020-01-01",null,null,null,null,null,1.41,"Waste Heat Factor Energy","IL TRM v6 vol2","337 (portfolio weighted average)",1.34,"Waste Heat Factor Demand","IL TRM v6 vol2","337 (portfolio weighted average)"]
["Business Standard","Clothes Washer (Electric DHW; Electric Dryer)",332,"C&I","Misc",null,"per unit",210,"IL TRM v6 vol3",8,650.90679999999998,"Calculated Value",null,null,3.7999999999999999E-2,"IL TRM v6 vol3",9,1.5699999999999999E-2,"Calculated Value",null,null,null,null,11,"MO TRM 2017",7,"MEFeff",2.2000000000000002,"MO TRM 2017",8,"MEFbase",1.7,"MO TRM 2017",8,"=ROUND(((AX511*1/AK511*BB511)*(BF511+(BN511*CD511)+(BV511*CH511)))-(AX511*1/AG511*BB511)*(BJ511+(BR511*CD511)+(BZ511*CH511)),4)","=ROUND(P511/CP511*T511,4)","MO TRM 2017",8,"2020-01-01",null,null,null,null,null,3.1,"Capacity (cubic feet)","MO TRM 2017",8,1570.575,"Ncycles","IL TRM v6 vol2",492,6.5000000000000002E-2,"%CWbase","MO TRM 2017",9,3.5000000000000003E-2,"%CWeff","MO TRM 2017",9,0.25900000000000001,"%DHWbase","MO TRM 2017",9,0.14099999999999999,"%DHWeff","MO TRM 2017",9,0.67600000000000005,"%Dryerbase","MO TRM 2017",9,0.82399999999999995,"%Dryereff","MO TRM 2017",9,1,"%ElectricDHW","MO TRM 2017",9,1,"%ElectricDryer","MO TRM 2017",9,365.25,"Days","IL TRM v6 vol2","492 (actual)",1570.575,"Cycles","IL TRM v6 vol2",492]
["Business Standard","Clothes Washer (Gas DHW; Electric Dryer)",333,"C&I","Misc",null,"per unit",210,"IL TRM v6 vol3",8,221.1781,"Calculated Value",null,null,3.7999999999999999E-2,"IL TRM v6 vol3",9,5.4000000000000003E-3,"Calculated Value",null,null,null,null,11,"MO TRM 2017",7,"MEFeff",2.2000000000000002,"MO TRM 2017",8,"MEFbase",1.7,"MO TRM 2017",8,"=ROUND(((AX512*1/AK512*BB512)*(BF512+(BN512*CD512)+(BV512*CH512)))-(AX512*1/AG512*BB512)*(BJ512+(BR512*CD512)+(BZ512*CH512)),4)","=ROUND(P512/CP512*T512,4)","MO TRM 2017",8,"2020-01-01",null,null,null,null,null,3.1,"Capacity (cubic feet)","MO TRM 2017",8,1570.575,"Ncycles","IL TRM v6 vol2",492,6.5000000000000002E-2,"%CWbase","MO TRM 2017",9,3.5000000000000003E-2,"%CWeff","MO TRM 2017",9,0.25900000000000001,"%DHWbase","MO TRM 2017",9,0.14099999999999999,"%DHWeff","MO TRM 2017",9,0.67600000000000005,"%Dryerbase","MO TRM 2017",9,0.82399999999999995,"%Dryereff","MO TRM 2017",9,0,"%ElectricDHW","MO TRM 2017",9,1,"%ElectricDryer","MO TRM 2017",9,365.25,"Days","IL TRM v6 vol2","492 (actual)",1570.575,"Cycles","IL TRM v6 vol2",492]
["Business Standard","Clothes Washer (Electric DHW; Gas Dryer)",334,"C&I","Misc",null,"per unit",210,"IL TRM v6 vol3",8,538.43010000000004,"Calculated Value",null,null,3.7999999999999999E-2,"IL TRM v6 vol3",9,1.2999999999999999E-2,"Calculated Value",null,null,null,null,11,"MO TRM 2017",7,"MEFeff",2.2000000000000002,"MO TRM 2017",8,"MEFbase",1.7,"MO TRM 2017",8,"=ROUND(((AX513*1/AK513*BB513)*(BF513+(BN513*CD513)+(BV513*CH513)))-(AX513*1/AG513*BB513)*(BJ513+(BR513*CD513)+(BZ513*CH513)),4)","=ROUND(P513/CP513*T513,4)","MO TRM 2017",8,"2020-01-01",null,null,null,null,null,3.1,"Capacity (cubic feet)","MO TRM 2017",8,1570.575,"Ncycles","IL TRM v6 vol2",492,6.5000000000000002E-2,"%CWbase","MO TRM 2017",9,3.5000000000000003E-2,"%CWeff","MO TRM 2017",9,0.25900000000000001,"%DHWbase","MO TRM 2017",9,0.14099999999999999,"%DHWeff","MO TRM 2017",9,0.67600000000000005,"%Dryerbase","MO TRM 2017",9,0.82399999999999995,"%Dryereff","MO TRM 2017",9,1,"%ElectricDHW","MO TRM 2017",9,0,"%ElectricDryer","MO TRM 2017",9,365.25,"Days","IL TRM v6 vol2","492 (actual)",1570.575,"Cycles","IL TRM v6 vol2",492]
["Business Standard","Clothes Washer (Gas DHW; Gas Dryer)",335,"C&I","Misc",null,"per unit",210,"IL TRM v6 vol3",8,108.70140000000001,"Calculated Value",null,null,3.7999999999999999E-2,"IL TRM v6 vol3",46,2.5999999999999999E-3,"Calculated Value",null,null,null,null,11,"MO TRM 2017",7,"MEFeff",2.2000000000000002,"MO TRM 2017",8,"MEFbase",1.7,"MO TRM 2017",8,"=ROUND(((AX514*1/AK514*BB514)*(BF514+(BN514*CD514)+(BV514*CH514)))-(AX514*1/AG514*BB514)*(BJ514+(BR514*CD514)+(BZ514*CH514)),4)","=ROUND(P514/CP514*T514,4)","MO TRM 2017",8,"2020-01-01",null,null,null,null,null,3.1,"Capacity (cubic feet)","MO TRM 2017",8,1570.575,"Ncycles","IL TRM v6 vol2",492,6.5000000000000002E-2,"%CWbase","MO TRM 2017",9,3.5000000000000003E-2,"%CWeff","MO TRM 2017",9,0.25900000000000001,"%DHWbase","MO TRM 2017",9,0.14099999999999999,"%DHWeff","MO TRM 2017",9,0.67600000000000005,"%Dryerbase","MO TRM 2017",9,0.82399999999999995,"%Dryereff","MO TRM 2017",9,0,"%ElectricDHW","MO TRM 2017",9,0,"%ElectricDryer","MO TRM 2017",9,365.25,"Days","IL TRM v6 vol2","492 (actual)",1570.575,"Cycles","IL TRM v6 vol2",492]
["Business Standard","Clothes Dryer Vented Electric, Standard (≥ 4.4 ft3)",336,"C&I","Misc",null,"per unit",152,"IL TRM v6 vol3",46,840.73429999999996,"Calculated Value",null,null,3.7999999999999999E-2,"IL TRM v6 vol3",46,2.1499999999999998E-2,"Calculated Value",null,null,null,null,14,"MO TRM 2017",12,"CEFeff",3.93,"MO TRM 2017",13,"CEFbase",3.11,"MO TRM 2017",13,"=ROUND((AX515/AK515-AX515/AG515)*BB515*BF515,4)","=ROUND(P515/BJ515*T515,4)","MO TRM 2017",13,"2020-01-01",null,null,null,null,null,8.4499999999999993,"Load","MO TRM 2017",13,1483,"Ncycles","MO TRM 2017",14,1,"%Electric","MO TRM 2017",14,1483,"Cycles","IL TRM v6 vol2",490]
["Business Standard","Clothes Dryer Vented Electric, Compact (120V) (< 4.4 ft3)",337,"C&I","Misc",null,"per unit",152,"IL TRM v6 vol3",46,307.28359999999998,"Calculated Value",null,null,3.7999999999999999E-2,"IL TRM v6 vol3",46,7.9000000000000008E-3,"Calculated Value",null,null,null,null,14,"MO TRM 2017",12,"CEFeff",3.8,"MO TRM 2017",13,"CEFbase",3.01,"MO TRM 2017",13,"=ROUND((AX516/AK516-AX516/AG516)*BB516*BF516,4)","=ROUND(P516/BJ516*T516,4)","MO TRM 2017",13,"2020-01-01",null,null,null,null,null,3,"Load","MO TRM 2017",13,1483,"Ncycles","MO TRM 2017",14,1,"%Electric","MO TRM 2017",14,1483,"Cycles","IL TRM v6 vol2",490]
["Business Standard","Clothes Dryer Vented Electric, Compact (240V) (<4.4 ft3)",338,"C&I","Misc",null,"per unit",152,"IL TRM v6 vol3",46,340.10509999999999,"Calculated Value",null,null,3.7999999999999999E-2,"IL TRM v6 vol3",46,8.6999999999999994E-3,"Calculated Value",null,null,null,null,14,"MO TRM 2017",12,"CEFeff",3.45,"MO TRM 2017",13,"CEFbase",2.73,"MO TRM 2017",13,"=ROUND((AX517/AK517-AX517/AG517)*BB517*BF517,4)","=ROUND(P517/BJ517*T517,4)","MO TRM 2017",13,"2020-01-01",null,null,null,null,null,3,"Load","MO TRM 2017",13,1483,"Ncycles","MO TRM 2017",14,1,"%Electric","MO TRM 2017",14,1483,"Cycles","IL TRM v6 vol2",490]
["Business Standard","Clothes Dryer Ventless Electric, Compact (240V) (<4.4 ft3)",339,"C&I","Misc",null,"per unit",152,"IL TRM v6 vol3",46,428.65780000000001,"Calculated Value",null,null,3.7999999999999999E-2,"IL TRM v6 vol3",46,1.0999999999999999E-2,"Calculated Value",null,null,null,null,14,"MO TRM 2017",12,"CEFeff",2.68,"MO TRM 2017",13,"CEFbase",2.13,"MO TRM 2017",13,"=ROUND((AX518/AK518-AX518/AG518)*BB518*BF518,4)","=ROUND(P518/BJ518*T518,4)","MO TRM 2017",13,"2020-01-01",null,null,null,null,null,3,"Load","MO TRM 2017",13,1483,"Ncycles","MO TRM 2017",14,1,"%Electric","MO TRM 2017",14,1483,"Cycles","IL TRM v6 vol2",490]
["Business Standard","Clothes Dryer Vented Gas",340,"C&I","Misc",null,"per unit",152,"IL TRM v6 vol3",46,40.574199999999998,"Calculated Value",null,null,3.7999999999999999E-2,"IL TRM v6 vol3",46,1E-3,"Calculated Value",null,null,null,null,14,"MO TRM 2017",12,"CEFeff",3.48,"MO TRM 2017",13,"CEFbase",2.84,"MO TRM 2017",13,"=ROUND((AX519/AK519-AX519/AG519)*BB519*BF519,4)","=ROUND(P519/BJ519*T519,4)","MO TRM 2017",13,"2020-01-01",null,null,null,null,null,8.4499999999999993,"Load","MO TRM 2017",13,1483,"Ncycles","MO TRM 2017",14,0.05,"%Electric","MO TRM 2017",14,1483,"Cycles","IL TRM v6 vol2",490]
["Business Standard","Combination Oven (Pan Capacity < 15)",341,"C&I","Cooking",null,"per unit",4300,"IL TRM v6 vol2",15,6439.8019000000004,"Calculated Value",null,null,0.36,"IL TRM v6 vol2",15,0.52890000000000004,"Calculated Value",null,null,null,null,12,"IL TRM v6 vol2",15,"ElecEFFConvEE",0.76,"IL TRM v6 vol2",17,"ElecEFFConvBase",0.72,"IL TRM v6 vol2",17,"=ROUND(((AX520*(BB520/AK520-BB520/AG520)*BF520)+(AX520*(BJ520/BN520-BJ520/BR520)*BV520)+((BZ520*(CH520-AX520/CL520)*BF520)-(CT520*(CH520-AX520/DF520)*BF520))+((CD520*(CH520-AX520/CP520)*BV520)-(DJ520*(CH520-AX520/DB520)*BV520)))*DN520/1000,4)","=ROUND(P520/(CH520*DN520)*T520,4)","IL TRM v6 vol2",16,"2020-01-01",null,null,null,null,null,200,"FoodCookedElec (lbs)","IL TRM v6 vol2",16,73.2,"EFOODConvElec (Wh/lb)","IL TRM v6 vol2",16,0.5,"%Conv","IL TRM v6 vol2",17,30.8,"EFOODSteamElec (Wh/lb)","IL TRM v6 vol2",17,0.49,"ElecEFFSteamBase","IL TRM v6 vol2",17,0.55000000000000004,"ElecEFFSteamEE","IL TRM v6 vol2",17,0.5,"%Steam","IL TRM v6 vol2",17,1320,"ElecIDLEConvBase (W)","IL TRM v6 vol2",17,5260,"ElecIDLESteamBase (W)","IL TRM v6 vol2",17,12,"Hours (Daily)","IL TRM v6 vol2",17,79,"ElecPCConvBase (lbs/hr)","IL TRM v6 vol2",17,126,"ElecPCSteamBase (lbs/hr)","IL TRM v6 vol2",17,1298.9000000000001,"ElecIDLEConvEE","IL TRM v6 vol2",17,10,"P (Pan Capacity)","IL TRM v6 vol2",17,119,"ElecPCSteamEE (lbs/hr)","IL TRM v6 vol2",17,177,"ElecPCConvEE (lbs/hr)","IL TRM v6 vol2",17,1970.0000000000002,"ElecIDLESteamEE","IL TRM v6 vol2",17,365.25,"Days","IL TRM v6 vol2",17]
["Business Standard","Combination Oven (Pan Capacity ≥ 15)",342,"C&I","Cooking",null,"per unit",4300,"IL TRM v6 vol2",15,11859.3208,"Calculated Value",null,null,0.36,"IL TRM v6 vol2",15,0.97409999999999997,"Calculated Value",null,null,null,null,12,"IL TRM v6 vol2",15,"ElecEFFConvEE",0.76,"IL TRM v6 vol2",17,"ElecEFFConvBase",0.72,"IL TRM v6 vol2",17,"=ROUND(((AX521*(BB521/AK521-BB521/AG521)*BF521)+(AX521*(BJ521/BN521-BJ521/BR521)*BV521)+((BZ521*(CH521-AX521/CL521)*BF521)-(CT521*(CH521-AX521/DF521)*BF521))+((CD521*(CH521-AX521/CP521)*BV521)-(DJ521*(CH521-AX521/DB521)*BV521)))*DN521/1000,4)","=ROUND(P521/(CH521*DN521)*T521,4)","IL TRM v6 vol2",16,"2020-01-01",null,null,null,null,null,250,"FoodCookedElec (lbs)","IL TRM v6 vol2",16,73.2,"EFOODConvElec (Wh/lb)","IL TRM v6 vol2",16,0.5,"%Conv","IL TRM v6 vol2",17,30.8,"EFOODSteamElec (Wh/lb)","IL TRM v6 vol2",17,0.49,"ElecEFFSteamBase","IL TRM v6 vol2",17,0.55000000000000004,"ElecEFFSteamEE","IL TRM v6 vol2",17,0.5,"%Steam","IL TRM v6 vol2",17,2280,"ElecIDLEConvBase (W)","IL TRM v6 vol2",17,8710,"ElecIDLESteamBase (W)","IL TRM v6 vol2",17,12,"Hours (Daily)","IL TRM v6 vol2",17,166,"ElecPCConvBase (lbs/hr)","IL TRM v6 vol2",17,295,"ElecPCSteamBase (lbs/hr)","IL TRM v6 vol2",17,2098.9,"ElecIDLEConvEE","IL TRM v6 vol2",17,20,"P (Pan Capacity)","IL TRM v6 vol2",17,201,"ElecPCSteamEE (lbs/hr)","IL TRM v6 vol2",17,349,"ElecPCConvEE (lbs/hr)","IL TRM v6 vol2",17,3300.0000000000005,"ElecIDLESteamEE","IL TRM v6 vol2",17,365.25,"Days","IL TRM v6 vol2",17]
["Business Standard","Standard Open Deep-Fat Fryer",343,"C&I","Cooking",null,"per unit",1120,"MO TRM 2017",41,2377.9549999999999,"Calculated Value",null,null,0.36,"IL TRM v6 vol2",49,0.14649999999999999,"Calculated Value",null,null,null,null,12,"MO TRM 2017",41,"ElecIdleESTAR (W)",800,"MO TRM 2017",42,"ElecIdleBase (W)",1050,"MO TRM 2017",42,"=ROUND(((AK522*(AX522-BB522/BF522))-(AG522*(AX522-BB522/BJ522))+(BB522*BN522/BR522)-(BB522*BN522/BV522))*BZ522/1000,4)","=ROUND(P522/(AX522*BZ522)*T522,4)","MO TRM 2017","42, 43","2020-01-01",null,null,null,null,null,16,"Hours (Daily)","MO TRM 2017",42,150,"Food Cooked (lbs per day)","MO TRM 2017",42,65,"ElecPCBase (lb/hr)","MO TRM 2017",42,70,"ElecPCESTAR (lb/hr)","MO TRM 2017",42,167,"EFOODElec (Wh/lb)","MO TRM 2017",42,0.75,"ElecEffBase","MO TRM 2017",43,0.83,"ElecEffESTAR","MO TRM 2017",43,365.25,"Days","MO TRM 2017",42]
["Business Standard","Large Vat Open Deep-Fat Fryer",344,"C&I","Cooking",null,"per unit",1120,"MO TRM 2017",41,2537.8353000000002,"Calculated Value",null,null,0.36,"IL TRM v6 vol2",49,0.2084,"Calculated Value",null,null,null,null,12,"MO TRM 2017",41,"ElecIdleESTAR (W)",1100,"MO TRM 2017",42,"ElecIdleBase (W)",1350,"MO TRM 2017",42,"=ROUND(((AK523*(AX523-BB523/BF523))-(AG523*(AX523-BB523/BJ523))+(BB523*BN523/BR523)-(BB523*BN523/BV523))*BZ523/1000,4)","=ROUND(P523/(AX523*BZ523)*T523,4)","MO TRM 2017","42, 43","2020-01-01",null,null,null,null,null,12,"Hours (Daily)","MO TRM 2017",42,150,"Food Cooked (lbs per day)","MO TRM 2017",42,100,"ElecPCBase (lb/hr)","MO TRM 2017",42,110,"ElecPCESTAR (lb/hr)","MO TRM 2017",42,167,"EFOODElec (Wh/lb)","MO TRM 2017",42,0.7,"ElecEffBase","MO TRM 2017",43,0.8,"ElecEffESTAR","MO TRM 2017",43,365.25,"Days","MO TRM 2017",42]
["Business Standard","ENERGY STAR Hot Holding Cabinet (0 < V <13)",345,"C&I","Cooking",null,"per unit",1783,"Ameren MO TRM 2018",48,709.49810000000002,"Calculated Value",null,null,0.36,"IL TRM v6 vol2",54,4.6600000000000003E-2,"Calculated Value",null,null,null,null,12,"Ameren MO TRM 2018",48,"IdleRateESTAR",150.5,"Ameren MO TRM",66,"IdleRateBase",280,"Ameren MO TRM",66,"=ROUND((AK524-AG524)*AX524*BB524/1000,4)","=ROUND(P524/(AX524*BB524)*T524,4)","Ameren MO TRM",66,"2020-01-01",null,null,null,null,null,15,"Hours (Daily)","Ameren MO TRM",66,365.25,"Days","Ameren MO TRM",66]
["Business Standard","ENERGY STAR Hot Holding Cabinet (13 ≤ V <28)",346,"C&I","Cooking",null,"per unit",1783,"Ameren MO TRM 2018",48,2772.2474999999999,"Calculated Value",null,null,0.36,"IL TRM v6 vol2",54,0.1822,"Calculated Value",null,null,null,null,12,"Ameren MO TRM 2018",48,"IdleRateESTAR",294,"Ameren MO TRM",66,"IdleRateBase",800,"Ameren MO TRM",66,"=ROUND((AK525-AG525)*AX525*BB525/1000,4)","=ROUND(P525/(AX525*BB525)*T525,4)","Ameren MO TRM",66,"2020-01-01",null,null,null,null,null,15,"Hours (Daily)","Ameren MO TRM",66,365.25,"Days","Ameren MO TRM",66]
["Business Standard","ENERGY STAR Hot Holding Cabinet (28 ≤ V)",347,"C&I","Cooking",null,"per unit",1783,"Ameren MO TRM 2018",48,4438.3353999999999,"Calculated Value",null,null,0.36,"IL TRM v6 vol2",54,0.29160000000000003,"Calculated Value",null,null,null,null,12,"Ameren MO TRM 2018",48,"IdleRateESTAR",309.89999999999998,"Ameren MO TRM",66,"IdleRateBase",1120,"Ameren MO TRM",66,"=ROUND((AK526-AG526)*AX526*BB526/1000,4)","=ROUND(P526/(AX526*BB526)*T526,4)","Ameren MO TRM",66,"2020-01-01",null,null,null,null,null,15,"Hours (Daily)","Ameren MO TRM",66,365.25,"Days","Ameren MO TRM",66]
["Business Standard","3 Pan ENERGY STAR Steam Cooker",348,"C&I","Cooking",null,"per unit",2490,"IL TRM v6 vol2",25,30239.2287,"Calculated Value",null,null,0.36,"IL TRM v6 vol2",25,2.4836999999999998,"Calculated Value",null,null,null,null,12,"IL TRM v6 vol2",25,"SteamModeESTAR",0,"IL TRM v6 vol2",27,"SteamModeBase",0.9,"IL TRM v6 vol2",26,"=ROUND((AX527+BB527+BF527)*BJ527/1000,4)","=ROUND(P527/(BJ527*CT527)*T527,4)","IL TRM v6 vol2","26, 30","2020-01-01",null,null,null,null,null,76604.342300000004,"∆IdleEnergy","Calculated",null,5686.1538,"∆CookingEnergy","Calculated",null,500,"∆PreheatEnergy","Calculated",null,365.25,"Days","IL TRM v6 vol2",26,1000,"IdleRateBase (W)","IL TRM v6 vol2",26,400,"IdleRateESTAR (W)","IL TRM v6 vol2",27,23.3,"ProductionBase (lb/hr/pan)","IL TRM v6 vol2",26,16.7,"ProductionESTAR (lb/hr/pan)","IL TRM v6 vol2",28,3,"Pans","IL TRM v6 vol2",28,30.8,"EFOOD (Wh/lb)","IL TRM v6 vol2",27,0.26,"EffBase","IL TRM v6 vol2",27,0.5,"EffESTAR","IL TRM v6 vol2",28,12,"Hours","Ameren MO TRM 2018",35,100,"FoodCooked (lbs)","IL TRM v6 vol2",27,1,"PREnumber","IL TRM v6 vol2",28,500,"PREheat (Wh/preheat)","IL TRM v6 vol2",28,0.25,"PREheat Time (hours)","IL TRM v6 vol2",26]
["Business Standard","4 Pan ENERGY STAR Steam Cooker",349,"C&I","Cooking",null,"per unit",2490,"IL TRM v6 vol2",25,40864.945399999997,"Calculated Value",null,null,0.36,"IL TRM v6 vol2",25,3.3565,"Calculated Value",null,null,null,null,12,"IL TRM v6 vol2",25,"SteamModeESTAR",0,"IL TRM v6 vol2",27,"SteamModeBase",0.9,"IL TRM v6 vol2",26,"=ROUND((AX528+BB528+BF528)*BJ528/1000,4)","=ROUND(P528/(BJ528*CT528)*T528,4)","IL TRM v6 vol2","26, 30","2020-01-01",null,null,null,null,null,105695.96920000001,"∆IdleEnergy","Calculated",null,5686.1538,"∆CookingEnergy","Calculated",null,500,"∆PreheatEnergy","Calculated",null,365.25,"Days","IL TRM v6 vol2",26,1330,"IdleRateBase (W)","IL TRM v6 vol2",26,530,"IdleRateESTAR (W)","IL TRM v6 vol2",27,23.3,"ProductionBase (lb/hr/pan)","IL TRM v6 vol2",26,16.7,"ProductionESTAR (lb/hr/pan)","IL TRM v6 vol2",28,4,"Pans","IL TRM v6 vol2",28,30.8,"EFOOD (Wh/lb)","IL TRM v6 vol2",27,0.26,"EffBase","IL TRM v6 vol2",27,0.5,"EffESTAR","IL TRM v6 vol2",28,12,"Hours","Ameren MO TRM 2018",35,100,"FoodCooked (lbs)","IL TRM v6 vol2",27,1,"PREnumber","IL TRM v6 vol2",28,500,"PREheat (Wh/preheat)","IL TRM v6 vol2",28,0.25,"PREheat Time (hours)","IL TRM v6 vol2",26]
["Business Standard","5 Pan ENERGY STAR Steam Cooker",350,"C&I","Cooking",null,"per unit",2490,"IL TRM v6 vol2",25,51487.374900000003,"Calculated Value",null,null,0.36,"IL TRM v6 vol2",25,4.2289000000000003,"Calculated Value",null,null,null,null,12,"IL TRM v6 vol2",25,"SteamModeESTAR",0,"IL TRM v6 vol2",27,"SteamModeBase",0.9,"IL TRM v6 vol2",26,"=ROUND((AX529+BB529+BF529)*BJ529/1000,4)","=ROUND(P529/(BJ529*CT529)*T529,4)","IL TRM v6 vol2","26, 30","2020-01-01",null,null,null,null,null,134778.5962,"∆IdleEnergy","Calculated",null,5686.1538,"∆CookingEnergy","Calculated",null,500,"∆PreheatEnergy","Calculated",null,365.25,"Days","IL TRM v6 vol2",26,1670,"IdleRateBase (W)","IL TRM v6 vol2",26,670,"IdleRateESTAR (W)","IL TRM v6 vol2",27,23.3,"ProductionBase (lb/hr/pan)","IL TRM v6 vol2",26,16.7,"ProductionESTAR (lb/hr/pan)","IL TRM v6 vol2",28,5,"Pans","IL TRM v6 vol2",28,30.8,"EFOOD (Wh/lb)","IL TRM v6 vol2",27,0.26,"EffBase","IL TRM v6 vol2",27,0.5,"EffESTAR","IL TRM v6 vol2",28,12,"Hours","Ameren MO TRM 2018",35,100,"FoodCooked (lbs)","IL TRM v6 vol2",27,1,"PREnumber","IL TRM v6 vol2",28,500,"PREheat (Wh/preheat)","IL TRM v6 vol2",28,0.25,"PREheat Time (hours)","IL TRM v6 vol2",26]
["Business Standard","6 Pan ENERGY STAR Steam Cooker",351,"C&I","Cooking",null,"per unit",2490,"IL TRM v6 vol2",25,62113.091699999997,"Calculated Value",null,null,0.36,"IL TRM v6 vol2",25,5.1017000000000001,"Calculated Value",null,null,null,null,12,"IL TRM v6 vol2",25,"SteamModeESTAR",0,"IL TRM v6 vol2",27,"SteamModeBase",0.9,"IL TRM v6 vol2",26,"=ROUND((AX530+BB530+BF530)*BJ530/1000,4)","=ROUND(P530/(BJ530*CT530)*T530,4)","IL TRM v6 vol2","26, 30","2020-01-01",null,null,null,null,null,163870.2231,"∆IdleEnergy","Calculated",null,5686.1538,"∆CookingEnergy","Calculated",null,500,"∆PreheatEnergy","Calculated",null,365.25,"Days","IL TRM v6 vol2",26,2000,"IdleRateBase (W)","IL TRM v6 vol2",26,800,"IdleRateESTAR (W)","IL TRM v6 vol2",27,23.3,"ProductionBase (lb/hr/pan)","IL TRM v6 vol2",26,16.7,"ProductionESTAR (lb/hr/pan)","IL TRM v6 vol2",28,6,"Pans","IL TRM v6 vol2",28,30.8,"EFOOD (Wh/lb)","IL TRM v6 vol2",27,0.26,"EffBase","IL TRM v6 vol2",27,0.5,"EffESTAR","IL TRM v6 vol2",28,12,"Hours","Ameren MO TRM 2018",35,100,"FoodCooked (lbs)","IL TRM v6 vol2",27,1,"PREnumber","IL TRM v6 vol2",28,500,"PREheat (Wh/preheat)","IL TRM v6 vol2",28,0.25,"PREheat Time (hours)","IL TRM v6 vol2",26]
["Business Standard","LED <=11 Watt Lamp Replacing Interior Halogen A 28-52 Watt Lamp",352,"C&I","Lighting",null,"per lamp",8,"Program Tracking Data",null,121.91419999999999,"Calculated Value",null,null,0.62,"IL TRM v6 vol2","337 (portfolio weighted average)",2.3300000000000001E-2,"Calculated Value",null,3088,"IL TRM v5 vol2",341,17,"Calculated Value based on HOU and lifetime hours",null,"Watts EE",8,"Program Tracking Data",null,"Watts Base",36,"IL TRM v6 vol2","370+","=ROUND((AK531-AG531)*Z531*AX531/1000,4)","=ROUND((AK531-AG531)*BB531*T531/1000,4)","IL TRM v6 vol2",364368,"2020-01-01",null,null,null,null,null,1.41,"Waste Heat Factor Energy","IL TRM v6 vol2","337 (portfolio weighted average)",1.34,"Waste Heat Factor Demand","IL TRM v6 vol2","337 (portfolio weighted average)"]
["Business Standard","LED 7-20 Watt Lamp Replacing Interior Halogen 53-70 Watt Lamp",353,"C&I","Lighting",null,"per lamp",10,"Program Tracking Data",null,213.34989999999999,"Calculated Value",null,null,0.62,"IL TRM v6 vol2","337 (portfolio weighted average)",4.07E-2,"Calculated Value",null,3088,"IL TRM v5 vol2",341,8,"Calculated Value based on HOU and lifetime hours",null,"Watts EE",14,"Program Tracking Data",null,"Watts Base",63,"IL TRM v6 vol2","370+","=ROUND((AK532-AG532)*Z532*AX532/1000,4)","=ROUND((AK532-AG532)*BB532*T532/1000,4)","IL TRM v6 vol2",364368,"2020-01-01",null,null,null,null,null,1.41,"Waste Heat Factor Energy","IL TRM v6 vol2","337 (portfolio weighted average)",1.34,"Waste Heat Factor Demand","IL TRM v6 vol2","337 (portfolio weighted average)"]
["Business Standard","LED <=14 Watt Lamp Replacing Interior Halogen BR/R 45-65 Watt Lamp",354,"C&I","Lighting",null,"per lamp",20,"Program Tracking Data",null,187.22540000000001,"Calculated Value",null,null,0.62,"IL TRM v6 vol2","337 (portfolio weighted average)",3.5700000000000003E-2,"Calculated Value",null,3088,"IL TRM v5 vol2",341,8,"Calculated Value based on HOU and lifetime hours",null,"Watts EE",12,"Program Tracking Data",null,"Watts Base",55,"IL TRM v6 vol2","370+","=ROUND((AK533-AG533)*Z533*AX533/1000,4)","=ROUND((AK533-AG533)*BB533*T533/1000,4)","IL TRM v6 vol2",364368,"2020-01-01",null,null,null,null,null,1.41,"Waste Heat Factor Energy","IL TRM v6 vol2","337 (portfolio weighted average)",1.34,"Waste Heat Factor Demand","IL TRM v6 vol2","337 (portfolio weighted average)"]
["Business Standard","LED <=13 Watt Lamp Replacing Interior Halogen MR-16 35-50 Watt Lamp",355,"C&I","Lighting",null,"per lamp",15,"Program Tracking Data",null,165.45500000000001,"Calculated Value",null,null,0.62,"IL TRM v6 vol2","337 (portfolio weighted average)",3.1600000000000003E-2,"Calculated Value",null,3088,"IL TRM v5 vol2",341,8,"Calculated Value based on HOU and lifetime hours",null,"Watts EE",12,"Program Tracking Data",null,"Watts Base",50,"IL TRM v6 vol2","370+","=ROUND((AK534-AG534)*Z534*AX534/1000,4)","=ROUND((AK534-AG534)*BB534*T534/1000,4)","IL TRM v6 vol2",364368,"2020-01-01",null,null,null,null,null,1.41,"Waste Heat Factor Energy","IL TRM v6 vol2","337 (portfolio weighted average)",1.34,"Waste Heat Factor Demand","IL TRM v6 vol2","337 (portfolio weighted average)"]
["Business Standard","LED <=20 Watt Lamp Replacing Interior Halogen PAR 48-90 Watt Lamp",356,"C&I","Lighting",null,"per lamp",20,"Program Tracking Data",null,239.4744,"Calculated Value",null,null,0.62,"IL TRM v6 vol2","337 (portfolio weighted average)",4.5699999999999998E-2,"Calculated Value",null,3088,"IL TRM v5 vol2",341,8,"Calculated Value based on HOU and lifetime hours",null,"Watts EE",15,"Program Tracking Data",null,"Watts Base",70,"IL TRM v6 vol2","370+","=ROUND((AK535-AG535)*Z535*AX535/1000,4)","=ROUND((AK535-AG535)*BB535*T535/1000,4)","IL TRM v6 vol2",364368,"2020-01-01",null,null,null,null,null,1.41,"Waste Heat Factor Energy","IL TRM v6 vol2","337 (portfolio weighted average)",1.34,"Waste Heat Factor Demand","IL TRM v6 vol2","337 (portfolio weighted average)"]
["Business Standard","Pool Heater Heat Pump (Uncovered)",357,"C&I","Water Heating"," ","per unit",1000,"MO TRM",239,35272.879999999997,"Calculated Value",null,null,0,"MO TRM 2017",240,0,"Calculated Value",null,null,null,null,15,"MO TRM 2017",239,"EffEE",5,"Program Tracking Data",null,"EffBase",1,"Ameren MO TRM",240,"=ROUND(AX539*(1/AK539-1/AG539),4)","=ROUND(P539*T539,4)","MO TRM",239,"2020-01-01",null,null,null,null,null,44091.1,"QPoolHeating","Program Tracking Data"]
["Business Standard","Pool Heater Heat Pump (Covered)",358,"C&I","Water Heating"," ","per unit",1000,null,null,6206.88,null,null,null,1.811545E-4,"Ameren MO TRM",null,1.1244000000000001,null,null,null,null,null,15,null,null,"EffEE",5,"Program Tracking Data",null,"EffBase",1,"Ameren MO TRM",240,"=ROUND(AX538*(1/AK538-1/AG538),4)","=ROUND(P538*T538,4)",null,null,"2020-01-01",null,null,null,null,null,7758.6,"QPoolHeating","Program Tracking Data"]
["Business Standard","Pool Pump Timer",359,"C&I","Motor",null,"per unit",100,"Ameren MO TRM 2018",93,601.27599999999995,"Calculated Value",null,null,1.379439E-4,"Calculated Value",null,8.2900000000000001E-2,"Calculated Value",null,null,null,null,10,"Ameren MO TRM 2018",93,null,null,null,null,null,null,null,null,"=ROUND(AX540*BB540*0.746,4)","=ROUND(P540*T540,4)","Ameren MO TRM",93,"2020-01-01",null,null,null,null,null,403,"TimeSaved (hrs)","Ameren MO TRM",93,2,"Size (HP)","Program Tracking Data"]
["Business Standard","Packaged DX 135 - 240kbtu",360,"C&I","Cooling",null,"per ton",127,"IL TRM v6 vol2",203,148.2749,"Calculated Value",null,null,0.91300000000000003,"IL TRM v6 vol2",210,0.1585,"Calculated Value",null,null,null,null,15,"IL TRM v6 vol2",203,null,null,null,null,null,null,null,null,"=ROUND(AX541*(1/BB541-1/BF541)*BR541,4)","=ROUND(AX541*(1/BJ541-1/BN541)*T541,4)","IL TRM v6 vol2","204, 209","2020-01-01",null,null,null,null,null,12,"kBtu/hrCool","Actually Installed Values",null,11,"IEERBase","IL TRM v6 vol2",208,12.3,"IEERee","Actually Installed Values",null,10.8,"EERBase","IL TRM v6 vol2",208,12.8,"EERee","Actually Installed Values",null,1286,"EFLH","IL TRM v6 vol2",134]
["Business Standard","Packaged DX 240 - 760kbtu",361,"C&I","Cooling",null,"per ton",38,"IL TRM v6 vol2",203,74.941699999999997,"Calculated Value",null,null,0.91300000000000003,"IL TRM v6 vol2",210,0.1895,"Calculated Value",null,null,null,null,15,"IL TRM v6 vol2",203,null,null,null,null,null,null,null,null,"=ROUND(AX542*(1/BB542-1/BF542)*BR542,4)","=ROUND(AX542*(1/BJ542-1/BN542)*T542,4)","IL TRM v6 vol2","204, 209","2020-01-01",null,null,null,null,null,12,"kBtu/hrCool","Actually Installed Values",null,9.9,"IEERBase","IL TRM v6 vol2",208,10.4,"IEERee","Actually Installed Values",null,9.8000000000000007,"EERBase","IL TRM v6 vol2",208,11.8,"EERee","Actually Installed Values",null,1286,"EFLH","IL TRM v6 vol2",134]
["Business Standard","Packaged DX 65 -135kbtu",362,"C&I","Cooling",null,"per ton",127,"IL TRM v6 vol2",203,102.48520000000001,"Calculated Value",null,null,0.91300000000000003,"IL TRM v6 vol2",210,0.1532,"Calculated Value",null,null,null,null,15,"IL TRM v6 vol2",203,null,null,null,null,null,null,null,null,"=ROUND(AX543*(1/BB543-1/BF543)*BR543,4)","=ROUND(AX543*(1/BJ543-1/BN543)*T543,4)","IL TRM v6 vol2","204, 209","2020-01-01",null,null,null,null,null,12,"kBtu/hrCool","Actually Installed Values",null,11.2,"IEERBase","IL TRM v6 vol2",208,12.1,"IEERee","Actually Installed Values",null,11,"EERBase","IL TRM v6 vol2",208,13,"EERee","Actually Installed Values",null,1286,"EFLH","IL TRM v6 vol2",134]
["Business Standard","Packaged DX >760kbtu",363,"C&I","Cooling",null,"per ton",38,"IL TRM v6 vol2",203,79.5792,"Calculated Value",null,null,0.91300000000000003,"IL TRM v6 vol2",210,0.2006,"Calculated Value",null,null,null,null,15,"IL TRM v6 vol2",203,null,null,null,null,null,null,null,null,"=ROUND(AX544*(1/BB544-1/BF544)*BR544,4)","=ROUND(AX544*(1/BJ544-1/BN544)*T544,4)","IL TRM v6 vol2","204, 209","2020-01-01",null,null,null,null,null,12,"kBtu/hrCool","Actually Installed Values",null,9.6,"IEERBase","IL TRM v6 vol2",208,10.1,"IEERee","Actually Installed Values",null,9.5,"EERBase","IL TRM v6 vol2",208,11.5,"EERee","Actually Installed Values",null,1286,"EFLH","IL TRM v6 vol2",134]
["Business Standard","Packaged DX <65kbtu",364,"C&I","Cooling",null,"per ton",127,"IL TRM v6 vol2",203,84.791200000000003,"Calculated Value",null,null,0.91300000000000003,"IL TRM v6 vol2",210,4.6600000000000003E-2,"Calculated Value",null,null,null,null,15,"IL TRM v6 vol2",203,null,null,null,null,null,null,null,null,"=ROUND(AX545*(1/BJ545-1/BN545)*BR545,4)","=ROUND(AX545*(1/BB545-1/BF545)*T545,4)","IL TRM v6 vol2","204, 209","2020-01-01",null,null,null,null,null,12,"kBtu/hrCool","Actually Installed Values",null,11.2,"EER Base","IL TRM v6 vol2",208,11.760000000000002,"EERee","Actually Installed Values",null,13,"SEERBase","IL TRM v6 vol2",208,14,"SEERee","Actually Installed Values",null,1286,"EFLH","IL TRM v6 vol2",134]
["Business Standard","GSHP <135kbtu; ≥17EER",365,"C&I","HVAC",null,"per ton",180,"Program Tracking Data",null,67.403199999999998,"Calculated Value",null,null,0.91300000000000003,"Calculated Value",null,3.1800000000000002E-2,"Calculated Value",null,null,null,null,25,"IL TRM v6 vol2",165,"EERee",17,"Program Tracking Data",null,"EERBase",16.2,"IL TRM v6 vol2",168,"=ROUND(AX546*(1/AK546-1/AG546)*CH546+BZ546*(1/BJ546-1/BN546)*CD546/3.412,4)","=ROUND(AX546*(1/AK546-1/AG546)*T546,4)","IL TRM v6 vol2","166, 172","2020-01-01",null,null,null,null,null,12,"kBtu/hrCool","Actually Installed Values",null,null,null,null,null,null,null,null,null,3.6,"COPbase","IL TRM v6 vol2",169,3.7,"COPee","Actually Installed Values",null,null,null,null,null,null,null,null,null,12,"kBtu/hrHeat","Actually Installed Values",null,855,"EFLHHeat","IL TRM v6 vol2",134,1286,"EFLHCool","IL TRM v6 vol2",134]
["Business Standard","GSHP <135kbtu; ≥19EER",366,"C&I","HVAC",null,"per ton",180,"Program Tracking Data",null,162.95740000000001,"Calculated Value",null,null,0.91300000000000003,"Calculated Value",null,9.9699999999999997E-2,"Calculated Value",null,null,null,null,25,"IL TRM v6 vol2",165,"EERee",19,"Program Tracking Data",null,"EERBase",16.2,"IL TRM v6 vol2",168,"=ROUND(AX547*(1/AK547-1/AG547)*CH547+BZ547*(1/BJ547-1/BN547)*CD547/3.412,4)","=ROUND(AX547*(1/AK547-1/AG547)*T547,4)","IL TRM v6 vol2","166, 172","2020-01-01",null,null,null,null,null,12,"kBtu/hrCool","Actually Installed Values",null,null,null,null,null,null,null,null,null,3.6,"COPbase","IL TRM v6 vol2",169,3.7,"COPee","Actually Installed Values",null,null,null,null,null,null,null,null,null,12,"kBtu/hrHeat","Actually Installed Values",null,855,"EFLHHeat","IL TRM v6 vol2",134,1286,"EFLHCool","IL TRM v6 vol2",134]
["Business Standard","ASHP 65 - 135kbtu",367,"C&I","HVAC",null,"Per ton",100,"IL TRM v6 vol2",165,194.95869999999999,"Calculated Value",null,null,0.91300000000000003,"Calculated Value",null,0.1014,"Calculated Value",null,null,null,null,15,"IL TRM v6 vol2",165,"EERee",12,"Program Tracking Data",null,"EERBase",10.8,"IL TRM v6 vol2",168,"ROUND(AG373*(1/Y373-1/V373)*BH373+BB373*(1/AP373-1/AS373)*BE373/3.412,4)","ROUND(AG367*(1/Y367-1/V367)*N367,4)","IL TRM v6 vol2","Energy Savings Page 166, Demand Savings Page 172","2020-01-01",null,null,null,null,null,12,"kBtu/hrCool","Actually Installed Values",null,null,null,null,null,null,null,null,null,3.3,"COPbase","IL TRM v6 vol2",169,3.5,"COPee","Actually Installed Values",null,null,null,null,null,null,null,null,null,12,"kBtu/hrHeat","Actually Installed Values",null,855,"EFLHHeat","IL TRM v6 vol2",134,1286,"EFLHCool","IL TRM v6 vol2",134]
["Business Standard","ASHP 135 - 240kbtu",368,"C&I","HVAC",null,"per ton",100,"IL TRM v6 vol2",165,229.31049999999999,"Calculated Value",null,null,0.91300000000000003,"Calculated Value",null,5.7500000000000002E-2,"Calculated Value",null,null,null,null,15,"IL TRM v6 vol2",165,"EERee",11,"Program Tracking Data",null,"EERBase",10.4,"IL TRM v6 vol2",168,"=ROUND(AX549*(1/AK549-1/AG549)*CH549+BZ549*(1/BJ549-1/BN549)*CD549/3.412,4)","=ROUND(AX549*(1/AK549-1/AG549)*T549,4)","IL TRM v6 vol2","Energy Savings Page 166, Demand Savings Page 172","2020-01-01",null,null,null,null,null,12,"kBtu/hrCool","Actually Installed Values",null,null,null,null,null,null,null,null,null,3.2,"COPbase","IL TRM v6 vol2",169,3.8,"COPee","Actually Installed Values",null,null,null,null,null,null,null,null,null,12,"kBtu/hrHeat","Actually Installed Values",null,855,"EFLHHeat","IL TRM v6 vol2",134,1286,"EFLHCool","IL TRM v6 vol2",134]
["Business Standard","ASHP >240kbtu",369,"C&I","HVAC",null,"per ton",100,"IL TRM v6 vol2",165,307.91669999999999,"Calculated Value",null,null,0.91300000000000003,"Calculated Value",null,0.14449999999999999,"Calculated Value",null,null,null,null,15,"IL TRM v6 vol2",165,"EERee",10.6,"Program Tracking Data",null,"EERBase",9.3000000000000007,"IL TRM v6 vol2",168,"=ROUND(AX550*(1/AK550-1/AG550)*CH550+BZ550*(1/BJ550-1/BN550)*CD550/3.412,4)","=ROUND(AX550*(1/AK550-1/AG550)*T550,4)","IL TRM v6 vol2","Energy Savings Page 166, Demand Savings Page 172","2020-01-01",null,null,null,null,null,12,"kBtu/hrCool","Actually Installed Values",null,null,null,null,null,null,null,null,null,3.2,"COPbase","IL TRM v6 vol2",169,3.6,"COPee","Actually Installed Values",null,null,null,null,null,null,null,null,null,12,"kBtu/hrHeat","Actually Installed Values",null,855,"EFLHHeat","IL TRM v6 vol2",134,1286,"EFLHCool","IL TRM v6 vol2",134]
["Business Standard","ASHP <65kbtu",370,"C&I","HVAC",null,"Per ton",100,"IL TRM v6 vol2",165,134.7587,"Calculated Value",null,null,0.91300000000000003,"Calculated Value",null,4.8300000000000003E-2,"Calculated Value",null,null,null,null,15,"IL TRM v6 vol2",165,"EERee",11.760000000000002,"Program Tracking Data",null,"EERBase",11.180000000000003,"IL TRM v6 vol2","Calculated Value","ROUND(AG376*(1/AJ376-1/AM376)*BH376+BB376*(1/AV376-1/AY376)*BE376,4)","ROUND(AG370*(1/Y370-1/V370)*N370,4)","IL TRM v6 vol2","Energy Savings Page 166, Demand Savings Page 172","2020-01-01",null,null,null,null,null,12,"kBtu/hrCool","Actually Installed Values",null,13,"SEERBase","IL TRM v6 vol2",170,14,"SEERee","Actually Installed Values",null,null,null,null,null,null,null,null,null,7.7,"HSPFBase","IL TRM v6 vol2",171,8,"HSPFee","Actually Installed Values",null,12,"kBtu/hrHeat","Actually Installed Values",null,855,"EFLHHeat","IL TRM v6 vol2",134,1286,"EFLHCool","IL TRM v6 vol2",134]
["Business Standard","Kitchen Demand Ventillation Controls",371,"C&I","Cooking",null,"per HP",1988,"IL TRM v6 vol2",72,4966,"Calculated Value",null,null,null,null,null,0.68,"Calculated Value",null,null,null,null,15,"IL TRM v6 vol2",72,null,null,null,null,null,null,null,null,"=ROUND(4966,4)","=ROUND(0.68,4)","IL TRM v6 vol2",73,"2020-01-01"]
["Business Standard","Demand Controlled Ventillation (Gas Heat)",372,"C&I","HVAC",null,"per square feet",0.3,"Program Tracking Data",null,0.42799999999999999,"Calculated Value",null,null,0,"IL TRM v6 vol2",226,0,"Calculated Value",null,null,null,null,10,"IL TRM v6 vol2",226,null,null,null,null,null,null,null,null,"=ROUND(AX553/1000*BB553+AX553/1000*BF553,4)","=ROUND(P553*T553,4)","IL TRM v6 vol2",227,"2020-01-01",null,null,null,null,null,1,"SQFTcond","Actually Installed Values",null,428,"SFcooling","IL TRM v6 vol2",227,0,"SFheat","IL TRM v6 vol2",228]
["Business Standard","Demand Controlled Ventillation (Electric Heat)",373,"C&I","HVAC",null,"per square feet",0.3,"Program Tracking Data",null,0.78,"Calculated Value",null,null,0,"IL TRM v6 vol2",226,0,"Calculated Value",null,null,null,null,10,"IL TRM v6 vol2",226,null,null,null,null,null,null,null,null,"=ROUND(AX554/1000*BB554+AX554/1000*BF554,4)","=ROUND(P554*T554,4)","IL TRM v6 vol2",227,"2020-01-01",null,null,null,null,null,1,"SQFTcond","Actually Installed Values",null,428,"SFcooling","IL TRM v6 vol2",227,352,"SFheat","IL TRM v6 vol2",228]
["Business Standard","Demand Controlled Ventillation (Heat Pump)",374,"C&I","HVAC",null,"per square feet",0.3,"Program Tracking Data",null,0.54500000000000004,"Calculated Value",null,null,0,"IL TRM v6 vol2",226,0,"Calculated Value",null,null,null,null,10,"IL TRM v6 vol2",226,null,null,null,null,null,null,null,null,"=ROUND(AX555/1000*BB555+AX555/1000*BF555,4)","=ROUND(P555*T555,4)","IL TRM v6 vol2",227,"2020-01-01",null,null,null,null,null,1,"SQFTcond","Actually Installed Values",null,428,"SFcooling","IL TRM v6 vol2",227,117,"SFheat","IL TRM v6 vol2",228]
["Business Standard","Heat Pump Water Heater w/ 98% Efficiency 2.9-14.6 kW (10 to 50 MBH)",376,"C&I","Water Heating"," ","per unit",4000,"MO TRM",87,21156,"Calculated Value",null,null,1.811545E-4,"Ameren MO TRM",91,3.8325,"Calculated Value",null,null,null,null,13,"Ameren MO TRM 2018",87,"EFEE",4,"Program Tracking Data",null,"EFBASE",0.94799999999999995,"Ameren MO TRM",88,"=ROUND(((1/AK557-1/AG557)*AX557*BF557*(BJ557-BN557)*1)/3412+BR557-BV557,4)","=ROUND(P557*T557,4)","MO TRM","88,91","2020-01-01",null,null,null,null,null,149421.71926647448,"HotWaterUse (Gallon)","Ameren MO TRM",89,267.78085890049192,"Capacity (gal)","Ameren MO TRM",89,8.33,"γWater","Ameren MO TRM","89,90",125,"Tout","Ameren MO TRM","89,90",57.898000000000003,"TIn","Ameren MO TRM","89,90",10425.227215592167,"kWhCool","Calculated Value",null,8970.821589174504,"kWhHeat","Calculated Value",null,2.8,"COPCool","Ameren MO TRM","89,90",0.88,"COPHeat","Ameren MO TRM","89,90",1,"Location Factor   LF","Ameren MO TRM","89,90",1,"%Cool","Ameren MO TRM","89,90",1,"%ElectricHeat","Ameren MO TRM","89,90",3,"Latent Multiplier (LM)","Ameren MO TRM","89,90"]
["Business Standard","Heat Pump Water Heater w/ 98% Efficiency 14.7-29.3 kW (50 to 100 MBH)",377,"C&I","Water Heating"," ","per unit",7000,"MO TRM",87,52890,"Calculated Value",null,null,1.811545E-4,"Ameren MO TRM",91,9.5813000000000006,"Calculated Value",null,null,null,null,13,"Ameren MO TRM 2018",87,"EFEE",4,"Program Tracking Data",null,"EFBASE",0.98,"Ameren MO TRM",88,"=ROUND(((1/AK559-1/AG559)*AX559*BF559*(BJ559-BN559)*1)/3412+BR559-BV559,4)","=ROUND(P559*T559,4)","MO TRM","88,91","2020-01-01",null,null,null,null,null,389059.7149286035,"HotWaterUse (Gallon)","Ameren MO TRM",89,697.2396324885367,"Capacity (gal)","Ameren MO TRM",89,8.33,"γWater","Ameren MO TRM","89,90",125,"Tout","Ameren MO TRM","89,90",57.898000000000003,"TIn","Ameren MO TRM","89,90",27144.88863115534,"kWhCool","Calculated Value",null,23357.95162372143,"kWhHeat","Calculated Value",null,2.8,"COPCool","Ameren MO TRM","89,90",0.88,"COPHeat","Ameren MO TRM","89,90",1,"Location Factor   LF","Ameren MO TRM","89,90",1,"%Cool","Ameren MO TRM","89,90",1,"%ElectricHeat","Ameren MO TRM","89,90",3,"Latent Multiplier (LM)","Ameren MO TRM","89,90"]
["Business Standard","Heat Pump Water Heater w/ 98% Efficiency 29.4-87.9 kW (100 to 300 MBH)",378,"C&I","Water Heating"," ","per unit",10000,"MO TRM",87,141041,"Calculated Value",null,null,1.811545E-4,"Ameren MO TRM",91,25.5502,"Calculated Value",null,null,null,null,13,"Ameren MO TRM 2018",87,"EFEE",4,"Program Tracking Data",null,"EFBASE",0.98,"Ameren MO TRM",88,"=ROUND(((1/AK561-1/AG561)*AX561*BF561*(BJ561-BN561)*1)/3412+BR561-BV561,4)","=ROUND(P561*T561,4)","MO TRM","88,91","2020-01-01",null,null,null,null,null,1037499.9291594848,"HotWaterUse (Gallon)","Ameren MO TRM",89,1859.3188694614423,"Capacity (gal)","Ameren MO TRM",89,8.33,"γWater","Ameren MO TRM","89,90",125,"Tout","Ameren MO TRM","89,90",57.898000000000003,"TIn","Ameren MO TRM","89,90",72386.882915991271,"kWhCool","Calculated Value",null,62288.312629254913,"kWhHeat","Calculated Value",null,2.8,"COPCool","Ameren MO TRM","89,90",0.88,"COPHeat","Ameren MO TRM","89,90",1,"Location Factor   LF","Ameren MO TRM","89,90",1,"%Cool","Ameren MO TRM","89,90",1,"%ElectricHeat","Ameren MO TRM","89,90",3,"Latent Multiplier (LM)","Ameren MO TRM","89,90"]
["Business Standard","Heat Pump Water Heater w/ 98% Efficiency 88-146.5 kW (300 to 500 MBH)",379,"C&I","Water Heating"," ","per unit",14000,"MO TRM",87,282081,"Calculated Value",null,null,1.811545E-4,"Ameren MO TRM",91,51.100200000000001,"Calculated Value",null,null,null,null,13,"Ameren MO TRM 2018",87,"EFEE",4,"Program Tracking Data",null,"EFBASE",0.98,"Ameren MO TRM",88,"=ROUND(((1/AK563-1/AG563)*AX563*BF563*(BJ563-BN563)*1)/3412+BR563-BV563,4)","=ROUND(P563*T563,4)","MO TRM","88,91","2020-01-01",null,null,null,null,null,2074992.5023024278,"HotWaterUse (Gallon)","Ameren MO TRM",89,3718.6245560975408,"Capacity (gal)","Ameren MO TRM",89,8.33,"γWater","Ameren MO TRM","89,90",125,"Tout","Ameren MO TRM","89,90",57.898000000000003,"TIn","Ameren MO TRM","89,90",144773.25259907221,"kWhCool","Calculated Value",null,124576.1836258454,"kWhHeat","Calculated Value",null,2.8,"COPCool","Ameren MO TRM","89,90",0.88,"COPHeat","Ameren MO TRM","89,90",1,"Location Factor   LF","Ameren MO TRM","89,90",1,"%Cool","Ameren MO TRM","89,90",1,"%ElectricHeat","Ameren MO TRM","89,90",3,"Latent Multiplier (LM)","Ameren MO TRM","89,90"]
["Business Standard","Heat Pump Water Heater w/ 98% Efficiency >146.6 kW (above 500 MBH)",380,"C&I","Water Heating"," ","per unit",18000,"MO TRM",88,423122,"Calculated Value",null,null,1.811545E-4,"Ameren MO TRM",91,76.650499999999994,"Calculated Value",null,null,null,null,13,"Ameren MO TRM 2018",87,"EFEE",4,"Program Tracking Data",null,"EFBASE",0.98,"Ameren MO TRM",88,"=ROUND(((1/AK565-1/AG565)*AX565*BF565*(BJ565-BN565)*1)/3412+BR565-BV565,4)","=ROUND(P565*T565,4)","MO TRM","88,91","2020-01-01",null,null,null,null,null,3112492.431461913,"HotWaterUse (Gallon)","Ameren MO TRM",89,5577.943425558984,"Capacity (gal)","Ameren MO TRM",89,8.33,"γWater","Ameren MO TRM","89,90",125,"Tout","Ameren MO TRM","89,90",57.898000000000003,"TIn","Ameren MO TRM","89,90",217160.13551506354,"kWhCool","Calculated Value",null,186864.49625510038,"kWhHeat","Calculated Value",null,2.8,"COPCool","Ameren MO TRM","89,90",0.88,"COPHeat","Ameren MO TRM","89,90",1,"Location Factor   LF","Ameren MO TRM","89,90",1,"%Cool","Ameren MO TRM","89,90",1,"%ElectricHeat","Ameren MO TRM","89,90",3,"Latent Multiplier (LM)","Ameren MO TRM","89,90"]
["Business Standard","PTAC - Early Replacement",381,"C&I","Cooling"," ","per ton",1047,"IL TRM v6 vol2",184,502.27609999999999,"Calculated Value",null,null,0.91300000000000003,"IL TRM v6 vol2",185,0.35659999999999997,"Calculated Value",null,null,null,null,5,"IL TRM v6 vol2",184,"EERee",11,"Program Tracking Data",null,"EERbase",8.3440000000000012,"IL TRM v6 vol2",186,"=ROUND(AX566*(1/BB566-1/AG566)*BJ566,4)","=ROUND(AX566*(1/BB566-1/AG566)*T566,4)","IL TRM v6 vol2","185, 187","2020-01-01",null,null,null,null,null,12,"kBtucool/hr","Actually Installed Values",null,8.1,"EERexist","Actual value",null,null,null,null,null,1286,"EFLHcool","IL TRM v6 vol2",186]
["Business Standard","PTAC - Early Replacement (future)",382,"C&I","Cooling",null,"per ton",1047,"IL TRM v6 vol2",184,446.56360000000001,"Calculated Value",null,null,0.91300000000000003,"IL TRM v6 vol2",185,0.317,"Calculated Value",null,null,null,null,10,"IL TRM v6 vol2",184,"EERee",11,"Program Tracking Data",null,"EERbase",8.3440000000000012,"IL TRM v6 vol2",186,"=ROUND(AX567*(1/AK567-1/AG567)*BJ567,4)","=ROUND(AX567*(1/AK567-1/AG567)*T567,4)","IL TRM v6 vol2","185, 187","2020-01-01",null,null,null,null,null,12,"kBtucool/hr","Actually Installed Values",null,8.1,"EERexist","Actual value",null,null,null,null,null,1286,"EFLHcool","IL TRM v6 vol2",186]
["Business Standard","PTHP - Early Replacement",383,"C&I","HVAC",null,"per ton",1047,"IL TRM v6 vol2",184,747.60519999999997,"Calculated Value",null,null,0.91300000000000003,"Calculated Value",null,0.35659999999999997,"Calculated Value",null,null,null,null,5,"IL TRM v6 vol2",184,"EERee",11,"Program Tracking Data",null,"EERbase",8.2439999999999998,"IL TRM v6 vol2",186,"=ROUND(AX568*(1/BB568-1/AG568)*BJ568+BF568*(1/BR568-1/BZ568)*BN568/3.412,4)","=ROUND(AX568*(1/BB568-1/AG568)*T568,4)","IL TRM v6 vol2",185187,"2020-01-01",null,null,null,null,null,12,"kBtucool/hr","Actually Installed Values",null,8.1,"EERexist","Actual value",null,12,"kBtuheat/hr","Actually Installed Value",null,1286,"EFLHcool","IL TRM v6 vol2",134,855,"EFLHheat","IL TRM v6 vol2",134,2.6,"COPexist","Actual Value",null,2.5880000000000001,"COPbase","IL TRM v6 vol2",186,3.3,"COPee","Actually Installed Value"]
["Business Standard","PTHP - Early Replacement (future)",384,"C&I","HVAC",null,"per ton",1047,"IL TRM v6 vol2",184,719.68949999999995,"Calculated Value",null,null,0.91300000000000003,"Calculated Value",null,0.33300000000000002,"Calculated Value",null,null,null,null,10,"IL TRM v6 vol2",184,"EERee",11,"Program Tracking Data",null,"EERbase",8.2439999999999998,"IL TRM v6 vol2",186,"=ROUND(AX569*(1/AK569-1/AG569)*BJ569+BF569*(1/BV569-1/BZ569)*BN569/3.412,4)","=ROUND(AX569*(1/AK569-1/AG569)*T569,4)","IL TRM v6 vol2",185187,"2020-01-01",null,null,null,null,null,12,"kBtucool/hr","Actually Installed Values",null,8.1,"EERexist","Actual value",null,12,"kBtuheat/hr","Actually Installed Value",null,1286,"EFLHcool","IL TRM v6 vol2",134,855,"EFLHheat","IL TRM v6 vol2",134,2.6,"COPexist","Actual Value",null,2.5880000000000001,"COPbase","IL TRM v6 vol2",186,3.3,"COPee","Actually Installed Value"]
["R&P - Products & Services","Tuliptree - Years 1-5",421,"All","HVAC",null,"per tree",53.293790338851487,null,null,{"$f":"ROUND(25.8476,4)","v":25.8476},"Arbor Day Foundation",null," ",null,null,null,{"$f":"ROUND(0,4)","v":0},null,null,null,null,null,5,"Arbor Day Foundation","Measure Definition","Tree","Tree","Measure Definition","Measure Definition","No Tree","No Tree","Measure Definition","Measure Definition",{"$f":"cellformula(K357)","v":"=ROUND(25.8476,4)"},{"$f":"cellformula(R357)","v":"=ROUND(0,4)"},null,null,"2020-01-01"]
["R&P - Products & Services","Tuliptree - Years 6-10",422,"All","HVAC",null,"per tree",53.293790338851487,null,null,{"$f":"ROUND(110.7809,4)","v":110.7809},"Arbor Day Foundation",null," ",null,null,null,0,null,null,null,null,null,5,"Arbor Day Foundation","Measure Definition","Tree","Tree","Measure Definition","Measure Definition","No Tree","No Tree","Measure Definition","Measure Definition","=ROUND(110.7809,4)","=ROUND(0,4)",null,null,"2020-01-01"]
["R&P - Products & Services","Tuliptree - Years 11-15",423,"All","HVAC",null,"per tree",53.293790338851487,null,null,{"$f":"ROUND(153.9746,4)","v":153.97460000000001},"Arbor Day Foundation",null," ",null,null,null,0,null,null,null,null,null,5,"Arbor Day Foundation","Measure Definition","Tree","Tree","Measure Definition","Measure Definition","No Tree","No Tree","Measure Definition","Measure Definition","=ROUND(153.9746,4)","=ROUND(0,4)",null,null,"2020-01-01"]
["R&P - Products & Services","Tuliptree - Years 16-20",424,"All","HVAC",null,"per tree",53.293790338851487,null,null,{"$f":"ROUND(153.9746,4)","v":153.97460000000001},"Arbor Day Foundation",null," ",null,null,null,0,null,null,null,null,null,5,"Arbor Day Foundation","Measure Definition","Tree","Tree","Measure Definition","Measure Definition","No Tree","No Tree","Measure Definition","Measure Definition","=ROUND(153.9746,4)","=ROUND(0,4)",null,null,"2020-01-01"]
["R&P - Products & Services","Sugar Maple - Years 1-5",425,"All","HVAC",null,"per tree",53.293790338851487,null,null,{"$f":"ROUND(10.9465,4)","v":10.9465},"Arbor Day Foundation",null," ",null,null,null,0,null,null,null,null,null,5,"Arbor Day Foundation","Measure Definition","Tree","Tree","Measure Definition","Measure Definition","No Tree","No Tree","Measure Definition","Measure Definition","=ROUND(10.9465,4)","=ROUND(0,4)",null,null,"2020-01-01"]
["R&P - Products & Services","Sugar Maple - Years 6-10",426,"All","HVAC",null,"per tree",53.293790338851487,null,null,{"$f":"ROUND(26.0066,4)","v":26.006599999999999},"Arbor Day Foundation",null," ",null,null,null,0,null,null,null,null,null,5,"Arbor Day Foundation","Measure Definition","Tree","Tree","Measure Definition","Measure Definition","No Tree","No Tree","Measure Definition","Measure Definition","=ROUND(26.0066,4)","=ROUND(0,4)",null,null,"2020-01-01"]
["R&P - Products & Services","Sugar Maple - Years 11-15",427,"All","HVAC",null,"per tree",53.293790338851487,null,null,{"$f":"ROUND(43.7378,4)","v":43.7378},"Arbor Day Foundation",null," ",null,null,null,0,null,null,null,null,null,5,"Arbor Day Foundation","Measure Definition","Tree","Tree","Measure Definition","Measure Definition","No Tree","No Tree","Measure Definition","Measure Definition","=ROUND(43.7378,4)","=ROUND(0,4)",null,null,"2020-01-01"]
["R&P - Products & Services","Sugar Maple - Years 16-20",428,"All","HVAC",null,"per tree",53.293790338851487,null,null,{"$f":"ROUND(67.1979,4)","v":67.197900000000004},"Arbor Day Foundation",null," ",null,null,null,0,null,null,null,null,null,5,"Arbor Day Foundation","Measure Definition","Tree","Tree","Measure Definition","Measure Definition","No Tree","No Tree","Measure Definition","Measure Definition","=ROUND(67.1979,4)","=ROUND(0,4)",null,null,"2020-01-01"]
["R&P - Products & Services","Shumard Oak - Years 1-5",429,"All","HVAC",null,"per tree",53.293790338851487,null,null,{"$f":"ROUND(18.5175,4)","v":18.517499999999998},"Arbor Day Foundation",null," ",null,null,null,0,null,null,null,null,null,5,"Arbor Day Foundation","Measure Definition","Tree","Tree","Measure Definition","Measure Definition","No Tree","No Tree","Measure Definition","Measure Definition","=ROUND(18.5175,4)","=ROUND(0,4)",null,null,"2020-01-01"]
["R&P - Products & Services","Shumard Oak- Years 6-10",430,"All","HVAC",null,"per tree",53.293790338851487,null,null,{"$f":"ROUND(41.4775,4)","v":41.477499999999999},"Arbor Day Foundation",null," ",null,null,null,0,null,null,null,null,null,5,"Arbor Day Foundation","Measure Definition","Tree","Tree","Measure Definition","Measure Definition","No Tree","No Tree","Measure Definition","Measure Definition","=ROUND(41.4775,4)","=ROUND(0,4)",null,null,"2020-01-01"]
["R&P - Products & Services","Shumard Oak - Years 11-15",431,"All","HVAC",null,"per tree",53.293790338851487,null,null,{"$f":"ROUND(81.0249,4)","v":81.024900000000002},"Arbor Day Foundation",null," ",null,null,null,0,null,null,null,null,null,5,"Arbor Day Foundation","Measure Definition","Tree","Tree","Measure Definition","Measure Definition","No Tree","No Tree","Measure Definition","Measure Definition","=ROUND(81.0249,4)","=ROUND(0,4)",null,null,"2020-01-01"]
["R&P - Products & Services","Shumard Oak - Years 16-20",432,"All","HVAC",null,"per tree",53.293790338851487,null,null,{"$f":"ROUND(134.6371,4)","v":134.6371},"Arbor Day Foundation",null," ",null,null,null,0,null,null,null,null,null,5,"Arbor Day Foundation","Measure Definition","Tree","Tree","Measure Definition","Measure Definition","No Tree","No Tree","Measure Definition","Measure Definition","=ROUND(134.6371,4)","=ROUND(0,4)",null,null,"2020-01-01"]
["R&P - Products & Services","Short Leaf Pine - Years 1-5",433,"All","HVAC",null,"per tree",53.293790338851487,null,null,{"$f":"ROUND(7.5105,4)","v":7.5105000000000004},"Arbor Day Foundation",null," ",null,null,null,0,null,null,null,null,null,5,"Arbor Day Foundation","Measure Definition","Tree","Tree","Measure Definition","Measure Definition","No Tree","No Tree","Measure Definition","Measure Definition","=ROUND(7.5105,4)","=ROUND(0,4)",null,null,"2020-01-01"]
["R&P - Products & Services","Short Leaf Pine - Years 6-10",434,"All","HVAC",null,"per tree",53.293790338851487,null,null,{"$f":"ROUND(43.44,4)","v":43.44},"Arbor Day Foundation",null," ",null,null,null,0,null,null,null,null,null,5,"Arbor Day Foundation","Measure Definition","Tree","Tree","Measure Definition","Measure Definition","No Tree","No Tree","Measure Definition","Measure Definition","=ROUND(43.44,4)","=ROUND(0,4)",null,null,"2020-01-01"]
["R&P - Products & Services","Short Leaf Pine - Years 11-15",435,"All","HVAC",null,"per tree",53.293790338851487,null,null,{"$f":"ROUND(130.4435,4)","v":130.4435},"Arbor Day Foundation",null," ",null,null,null,0,null,null,null,null,null,5,"Arbor Day Foundation","Measure Definition","Tree","Tree","Measure Definition","Measure Definition","No Tree","No Tree","Measure Definition","Measure Definition","=ROUND(130.4435,4)","=ROUND(0,4)",null,null,"2020-01-01"]
["R&P - Products & Services","Short Leaf Pine - Years 16-20",436,"All","HVAC",null,"per tree",53.293790338851487,null,null,{"$f":"ROUND(228.2325,4)","v":228.23249999999999},"Arbor Day Foundation",null," ",null,null,null,0,null,null,null,null,null,5,"Arbor Day Foundation","Measure Definition","Tree","Tree","Measure Definition","Measure Definition","No Tree","No Tree","Measure Definition","Measure Definition","=ROUND(228.2325,4)","=ROUND(0,4)",null,null,"2020-01-01"]
["R&P - Products & Services","Black Gum - Years 1-5",437,"All","HVAC",null,"per tree",53.293790338851487,null,null,{"$f":"ROUND(10.9465,4)","v":10.9465},"Arbor Day Foundation",null," ",null,null,null,0,null,null,null,null,null,5,"Arbor Day Foundation","Measure Definition","Tree","Tree","Measure Definition","Measure Definition","No Tree","No Tree","Measure Definition","Measure Definition","=ROUND(10.9465,4)","=ROUND(0,4)",null,null,"2020-01-01"]
["R&P - Products & Services","Black Gum - Years 6-10",438,"All","HVAC",null,"per tree",53.293790338851487,null,null,{"$f":"ROUND(26.0066,4)","v":26.006599999999999},"Arbor Day Foundation",null," ",null,null,null,0,null,null,null,null,null,5,"Arbor Day Foundation","Measure Definition","Tree","Tree","Measure Definition","Measure Definition","No Tree","No Tree","Measure Definition","Measure Definition","=ROUND(26.0066,4)","=ROUND(0,4)",null,null,"2020-01-01"]
["R&P - Products & Services","Black Gum - Years 11-15",439,"All","HVAC",null,"per tree",53.293790338851487,null,null,{"$f":"ROUND(43.7378,4)","v":43.7378},"Arbor Day Foundation",null," ",null,null,null,0,null,null,null,null,null,5,"Arbor Day Foundation","Measure Definition","Tree","Tree","Measure Definition","Measure Definition","No Tree","No Tree","Measure Definition","Measure Definition","=ROUND(43.7378,4)","=ROUND(0,4)",null,null,"2020-01-01"]
["R&P - Products & Services","Black Gum - Years 16-20",440,"All","HVAC",null,"per tree",53.293790338851487,null,null,{"$f":"ROUND(67.1979,4)","v":67.197900000000004},"Arbor Day Foundation",null," ",null,null,null,0,null,null,null,null,null,5,"Arbor Day Foundation","Measure Definition","Tree","Tree","Measure Definition","Measure Definition","No Tree","No Tree","Measure Definition","Measure Definition","=ROUND(67.1979,4)","=ROUND(0,4)",null,null,"2020-01-01"]
["Business Standard","Smart Thermostat - Heat by Natural Gas Furnace with AC - Cooling",464,"Small C&I","HVAC","Direct Install","per thermostat",173.89,"WI TRM 2019",201,{"$f":"ROUND(AS377*AW377/BA377*BE377*BI377,4)","v":268.79880000000003},"Calculated Value",null,0,0,"WI TRM 2019",204,0,"Calculated Value",null,null,null,null,10,"WI TRM 2019",201,"To qualify as smart, the thermostat must be certified as an ENERGY STAR Connected Thermostat or be included on the Focus on Energy business smart thermostat qualified products list, which requires the thermostat to have occupancy sensing, learning capability, or other features above and beyond Wi-Fi connectivity, as outlined in the Measure Description section. The Focus on Energy qualified products list serves as an alternate to ENERGY STAR, since the list of ENERGY STAR-qualified thermostats only includes 26 models from eight manufacturers (as of May 2, 2018).",null,null,null,"The baseline condition is a manual or standard programmable thermostat installed in a business with a natural gas furnace with air conditioning, natural gas rooftop unit with air conditioning, or natural gas boiler (no cooling).",null,null,null,{"$f":"_xlfn.FORMULATEXT(K377)","v":"=ROUND(AS377*AW377/BA377*BE377*BI377,4)"},null,"WI TRM 2019",203,"2020-01-01",null,null,null,null,null,986,"EFLHCool","MO TRM 2017 vol2",100,44.3,"CAPCOOL - Average Cooling Capacity (MBH)","WI TRM 2019",207,13,"EFFCOOL - SEER for Furnaces","WI TRM 2019",204,1,"RLFCOOL","WI TRM 2019",204,0.08,"ESFCOOL","IL TRM 7 Volume 3",164]
["Business Standard","Smart Thermostat - Heat by Natural Gas Rooftop Unit - Cooling",465,"Small C&I","HVAC","Direct Install","per thermostat",173.89,"WI TRM 2019",201,{"$f":"ROUND(AS378*AW378/BA378*BE378*BI378,4)","v":910.44129999999996},"Calculated Value",null,0,0,"WI TRM 2019",204,0,"Calculated Value",null,null,null,null,10,"WI TRM 2019",201,"To qualify as smart, the thermostat must be certified as an ENERGY STAR Connected Thermostat or be included on the Focus on Energy business smart thermostat qualified products list, which requires the thermostat to have occupancy sensing, learning capability, or other features above and beyond Wi-Fi connectivity, as outlined in the Measure Description section. The Focus on Energy qualified products list serves as an alternate to ENERGY STAR, since the list of ENERGY STAR-qualified thermostats only includes 26 models from eight manufacturers (as of May 2, 2018).",null,null,null,"The baseline condition is a manual or standard programmable thermostat installed in a business with a natural gas furnace with air conditioning, natural gas rooftop unit with air conditioning, or natural gas boiler (no cooling).",null,null,null,"=ROUND(AS378*AW378/BA378*BE378*BI378,4)",null,"WI TRM 2019",203,"2020-01-01",null,null,null,null,null,986,"EFLHCool","MO TRM 2017 vol2",100,146.19999999999999,"CAPCOOL - Average Cooling Capacity (MBH)","WI TRM 2019",207,11.4,"EFFCOOL - EER for Rooftops","WI TRM 2019",204,0.9,"RLFCOOL","WI TRM 2019",204,0.08,"ESFCOOL","IL TRM 7 Volume 3",164]
["Business Standard","Smart Thermostat - Heat by Natural Gas Furnace with AC - Heating",466,"Small C&I","HVAC","Direct Install","per thermostat",173.89,"WI TRM 2019",201,{"$f":"ROUND(AS379*AW379/(BA379*100)*BE379*BI379*BM379,4)","v":47.832099999999997},"Calculated Value",null,0,0,"WI TRM 2019",204,0,"Calculated Value",null,null,null,null,10,"WI TRM 2019",201,"To qualify as smart, the thermostat must be certified as an ENERGY STAR Connected Thermostat or be included on the Focus on Energy business smart thermostat qualified products list, which requires the thermostat to have occupancy sensing, learning capability, or other features above and beyond Wi-Fi connectivity, as outlined in the Measure Description section. The Focus on Energy qualified products list serves as an alternate to ENERGY STAR, since the list of ENERGY STAR-qualified thermostats only includes 26 models from eight manufacturers (as of May 2, 2018).",null,null,null,"The baseline condition is a manual or standard programmable thermostat installed in a business with a natural gas furnace with air conditioning, natural gas rooftop unit with air conditioning, or natural gas boiler (no cooling).",null,null,null,"=ROUND(AS379*AW379/(BA379*100)*BE379*BI379*BM379,4)",null,"WI TRM 2019, IL TRM 7 Volume 3","203, 161","2020-01-01",null,null,null,null,null,1164,"EFLHHEAT","MO TRM 2017 vol2",100,87,"CAPHEAT - Average Heating Capacity (MBH)","WI TRM 2019",207,0.89600000000000002,"EFFHEAT - % for Furnaces","WI TRM 2019",203,4.5999999999999999E-2,"ESFHEAT","WI TRM 2019",203,3.1399999999999997E-2,"Fe - Furnace Fan Energy Consumption as % of annual fuel consumption","IL TRM 7 Volume 3",162,29.3,"kWh per Therm","IL TRM 7 Volume 3",163]
["Business Standard","Smart Thermostat - Heat by Natural Gas Rooftop Unit - Heating",467,"Small C&I","HVAC","Direct Install","per thermostat",173.89,"WI TRM 2019",201,{"$f":"ROUND(AS380*AW380/(BA380*100)*BE380*BI380*BM380,4)","v":104.2897},"Calculated Value",null,0,0,"WI TRM 2019",204,0,"Calculated Value",null,null,null,null,10,"WI TRM 2019",201,"To qualify as smart, the thermostat must be certified as an ENERGY STAR Connected Thermostat or be included on the Focus on Energy business smart thermostat qualified products list, which requires the thermostat to have occupancy sensing, learning capability, or other features above and beyond Wi-Fi connectivity, as outlined in the Measure Description section. The Focus on Energy qualified products list serves as an alternate to ENERGY STAR, since the list of ENERGY STAR-qualified thermostats only includes 26 models from eight manufacturers (as of May 2, 2018).",null,null,null,"The baseline condition is a manual or standard programmable thermostat installed in a business with a natural gas furnace with air conditioning, natural gas rooftop unit with air conditioning, or natural gas boiler (no cooling).",null,null,null,"=ROUND(AS380*AW380/(BA380*100)*BE380*BI380*BM380,4)",null,"WI TRM 2019, IL TRM 7 Volume 3","203, 161","2020-01-01",null,null,null,null,null,1164,"EFLHHEAT","MO TRM 2017 vol2",100,170,"CAPHEAT - Average Heating Capacity (MBH)","WI TRM 2019",207,0.80300000000000005,"EFFHEAT - % for Rooftops","WI TRM 2019",203,4.5999999999999999E-2,"ESFHEAT","WI TRM 2019",203,3.1399999999999997E-2,"Fe - Furnace Fan Energy Consumption as % of annual fuel consumption","IL TRM 7 Volume 3",162,29.3,"kWh per Therm","IL TRM 7 Volume 3",163]
["Business Standard","ECM Fan Motors w/ Design CFM < 1000",468,"C&I","HVAC","fan-powered terminal boxes, fan coils, and HVAC supply fans on small unitary equipment.","per motor",120,"MN TRM 2019",277,{"$f":"ROUND(AS381+AW381,4)","v":247.68},"Calculated Value",null,null,0.9,"MN TRM 2019",277,{"$f":"BA381*BE381*BI381/1000*O381","v":0.10367999999999999},"Calculated Value",null,null,null,null,20,"MN TRM 2019",277,"This measure includes efficiency gains for an electronically commutated motor (ECM) being applied within fan-powered terminal boxes, fan coils, and HVAC supply fans on small unitary equipment.",null,null,null,"No ECM",null,null,null,"=ROUND(AS381+AW381,4)",{"$f":"_xlfn.FORMULATEXT(R381)","v":"=BA381*BE381*BI381/1000*O381"},"MN TRM 2019",277,"2020-01-01",null,null,null,null,null,{"$f":"BA381*BE381*BI381*BM381/1000","v":113.5872},"Cooling kWh Savings","MN TRM 2019",277,{"$f":"BA381*BE381*BI381*BQ381/1000","v":134.09280000000001},"Heating kWh Savings","MN TRM 2019",277,400,"Use Actual Design CFM (1 ton = 400 CFM), this calculation assumes 1 ton.","https://energy.mo.gov/sites/energy/files/61-why-400-cfm-per-ton.pdf",null,0.32,"Box Size Factor (Watts/CFM)","MN TRM 2019",277,0.9,"Load Factor (LF)","MN TRM 2019",277,986,"EFLHCOOL","MO TRM 2017 Volume 2",100,1164,"EFLHHEAT","MO TRM 2017 Volume 2",100]
["Business Standard","ECM Fan Motors w/ Design CFM ≥ 1000",469,"C&I","HVAC","fan-powered terminal boxes, fan coils, and HVAC supply fans on small unitary equipment.","per motor",120,"MN TRM 2019",277,{"$f":"ROUND(AS382+AW382,4)","v":162.54},"Calculated Value",null,null,0.9,"MN TRM 2019",277,{"$f":"BA382*BE382*BI382/1000*O382","v":6.8040000000000017E-2},"Calculated Value",null,null,null,null,20,"MN TRM 2019",277,"This measure includes efficiency gains for an electronically commutated motor (ECM) being applied within fan-powered terminal boxes, fan coils, and HVAC supply fans on small unitary equipment.",null,null,null,"No ECM",null,null,null,"=ROUND(AS382+AW382,4)",{"$f":"_xlfn.FORMULATEXT(R382)","v":"=BA382*BE382*BI382/1000*O382"},"MN TRM 2019",277,"2020-01-01",null,null,null,null,null,{"$f":"BA382*BE382*BI382*BM382/1000","v":74.541600000000003},"Cooling kWh Savings","MN TRM 2019",277,{"$f":"BA382*BE382*BI382*BQ382/1000","v":87.998400000000004},"Heating kWh Savings","MN TRM 2019",277,400,"Use Actual Design CFM (1 ton = 400 CFM), this calculation assumes 1 ton.","https://energy.mo.gov/sites/energy/files/61-why-400-cfm-per-ton.pdf",null,0.21,"Box Size Factor (Watts/CFM)","MN TRM 2019",277,0.9,"Load Factor (LF)","MN TRM 2019",277,986,"EFLHCOOL","MO TRM 2017 Volume 2",100,1164,"EFLHHEAT","MO TRM 2017 Volume 2",100]
["Business Standard","Programmable Thermostat Setback - Cooling",470,"C&I","HVAC","Used a weighted average of the savings by space type to come up with deemed savings. ","per 1° cooling setback per ton",70.34,"IL TRM v7 vol2",257,{"$f":"ROUND(6.29100899999983,4)","v":6.2910000000000004},"Calculated Value",null,null,null,null,null,0,"Calculated Value",null,null,null,null,2,"IL TRM v7 vol2",257,"1° cooling setback",null,null,null,"No setback",null,null,null,"=ROUND(6.29100899999983,4)",null,null,null,"2020-01-01"]
["Business Standard","Programmable Thermostat Setback - Heating",471,"C&I","HVAC","Used a weighted average of the savings by space type to come up with deemed savings. ","per 1° heating setback per ton",70.34,"IL TRM v7 vol2",257,{"$f":"ROUND(17.270774,4)","v":17.270800000000001},"Calculated Value",null,null,null,null,null,0,"Calculated Value",null,null,null,null,2,"IL TRM v7 vol2",257,"1° heating setback",null,null,null,"No setback",null,null,null,"=ROUND(17.270774,4)",null,null,null,"2020-01-01"]
["Income-Eligible Multi-Family","Residential Washing Machines",472,"Multi-Family - In unit","Appliances",null,"per unit",84,"IL TRM v7 vol 3",9,{"$f":"ROUND((AS385*1/AW385*BA385*(BE385+(BI385*BM385)+(BQ385*BU385)))-(AS385*1/BY385*BA385*(CC385+(CG385*CK385)+(CO385*CS385))),4)","v":142.27670000000001},"Calculated Value",null,{"$f":"K385/U385","v":0.53892689393939397},3.7999999999999999E-2,"IL TRM v7 vol 3",9,{"$f":"ROUND(K385/CW385*DA385,4)","v":2.0500000000000001E-2},"Calculated Value",null,264,"IL TRM v7 vol3",12,14,"IL TRM v7 vol3",8,"Efficient residential washing machine",2.23,"IL TRM v7 vol3",10,"Standard residential washing machine",1.75,"IL TRM v7 vol3",10,"=ROUND((AS385*1/AW385*BA385*(BE385+(BI385*BM385)+(BQ385*BU385)))-(AS385*1/BY385*BA385*(CC385+(CG385*CK385)+(CO385*CS385))),4)",{"$f":"_xlfn.FORMULATEXT(R385)","v":"=ROUND(K385/CW385*DA385,4)"},"IL TRM v7 vol3",10,"2020-01-01",null,null,null,null,null,3.5,"Capacity","IL TRM v7 vol3",10,1.66,"IMEFbase","IL TRM v7 vol3",10,264,"Ncycles","IL TRM v7 vol3",10,8.1000000000000003E-2,"%Cwbase","IL TRM v7 vol3",11,0.26500000000000001,"%DHWbase","IL TRM v7 vol3",11,1,"%Electric_DHW","IL TRM v7",11,0.65400000000000003,"%Dryerbase","IL TRM v7",11,1,"%Electric_dryer","IL TRM v7 vol3",11,2.23,"IMEFeff","IL TRM v7 vol3",10,5.8000000000000003E-2,"%Cweff","IL TRM v7 vol3",11,0.312,"%DHWeff","IL TRM v7 vol3",11,1,"%Electric_DHW","IL TRM v7 vol3",11,0.63,"%Dryereff","IL TRM v7 vol3",11,1,"%Electric_Dryer","IL TRM v7 vol3",11,264,"Hours","IL TRM v7 vol3",12,3.7999999999999999E-2,"CF","IL TRM v7 vol3",12]
["Income-Eligible Multi-Family","Residential Dryers",473,"Multi-Family - In unit","Appliances",null,"per unit",152,"IL TRM v7 vol 3",45,{"$f":"ROUND((AS386/AW386-AS386/BA386)*BE386*BI386,4)","v":160.43680000000001},"Calculated Value",null,{"$f":"K386/U386","v":0.56691448763250885},3.7999999999999999E-2,"IL TRM v7 vol 3",45,{"$f":"ROUND(K386/BM386*BQ386,4)","v":2.1499999999999998E-2},"Calculated Value",null,283,"IL TRM v7 vol3",47,16,"IL TRM v7 vol3",45,"Efficient residential clothes dryer",3.93,"IL TRM v7 vol3",46,"Standard residential clothes dryer",3.11,"IL TRM v7 vol3",46,"=ROUND((AS386/AW386-AS386/BA386)*BE386*BI386,4)","=ROUND(K386/BM386*BQ386,4)","IL TRM v7 vol3",46,"2020-01-01",null,null,null,null,null,8.4499999999999993,"Load","IL TRM v7 vol3",46,3.11,"CEF_base","IL TRM v7 vol3",46,3.93,"CEF_eff","IL TRM v7 vol3",46,283,"N_cycles","IL TRM v7 vol3",46,1,"%Electric","IL TRM v7 vol3",47,283,"Hours","IL TRM v7",47,3.7999999999999999E-2,"CF","IL TRM v7",47]
["Income-Eligible Multi-Family","Dishwasher",474,"Multi-Family","Appliances","In unit","Per unit",75.67,"IL TRM v7 vol 3",19,{"$f":"ROUND((AF387-AB387)*(AS387+(AW387*BA387)),4)","v":37},"Calculated Value",null,{"$f":"R387/O387","v":0.10384615384615385},2.5999999999999999E-2,"IL TRM v7 vol 3",20,{"$f":"ROUND((AF387-AB387)/U387*O387,4)","v":2.7000000000000001E-3},"Calculated Value",null,353,"IL TRM v7 vol3",21,11,"IL TRM v7 vol3",19,"ENERGY STAR Standard (>= 8 places settings + 6 servings pieces)",270,"IL TRM v7 vol3",20,"Standard dishwasher",307,"IL TRM v7 vol3",20,"=ROUND((AF387-AB387)*(AS387+(AW387*BA387)),4)","=ROUND((AF387-AB387)/U387*O387,4)","IL TRM v7 vol3",20,"2020-01-01",null,null,null,null,null,0.44,"%kWh_op","IL TRM v7 vol3",20,0.56000000000000005,"%kWh_heat","IL TRM v7 vol3",0.2,1,"%Electric_DHW","IL TRM v7 vol3",0.2]
["Income-Eligible Multi-Family","1x4 LED retrofit kits (Com Area)",475,"Multi-Family","Lighting","Common Area - DI","per unit",75,"IL TRM v7 vol 3",434,{"$f":"ROUND((AF388-AB388)/1000*U388*AS388*BA388,4)","v":156.52170000000001},"Calculated Value",null,{"$f":"R388/O388","v":3.7560975609756103E-2},0.82,"IL TRM v7 vol 3",397,{"$f":"ROUND((AF388-AB388)/1000*AW388*O388*BA388,4)","v":3.0800000000000001E-2},"Calculated Value",null,5216,"IL TRM v7 vol3",397,6.1,"IL TRM v7 vol3",423,"LED 1X4 Retrofit Kits - LED 1x4 Recessed Light Fixture, 3001-4500 lumens",33.700000000000003,"IL TRM v7 vol3",434,"2x4 T8, T12 or T5 Fluorescents - 18:82; 2-Lamp 34w T12 (BF < 0.85) :2-Lamp 32w T8 (BF < 0.89)",57.9,"IL TRM v7 vol3",434,"=ROUND((AF388-AB388)/1000*U388*AS388*BA388,4)","=ROUND((AF388-AB388)/1000*AW388*O388*BA388,4)","IL TRM v7 vol3",423,"2020-01-01",null,null,null,null,null,1.24,"Waste Heat Factor (energy)","IL TRM v7 vol3",397,1.55,"Waste Heat Factor (demand)","IL TRM v7 vol3",397,1,"ISR","IL TRM v7 vol3",427]
["Income-Eligible Multi-Family","Bathroom Exhaust Fan (Cont)",476,"Multi-Family","HVAC","In unit","Per unit",43.5,"IL TRM v7 vol 3",124,{"$f":"ROUND((AS389*(1/AF389-1/AB389)/1000*U389),4)","v":137.0445},"Calculated Value",null,{"$f":"R389/O389","v":1.5599999999999999E-2},1,"IL TRM v7 vol 3",124,{"$f":"ROUND(AS389*(1/AF389-1/AB389)/1000*O389,4)","v":1.5599999999999999E-2},"Calculated Value",null,8766,"IL TRM v7 vol3",125,19,"IL TRM v7 vol3",124,"ENERGY STAR Most Efficient, Standard Usage (CFM/watts)",13.9,"IL TRM v7 vol3",125,"Standard Fan, standard usage",2.6,"IL TRM v7 vol3",125,"=ROUND((AS389*(1/AF389-1/AB389)/1000*U389),4)","=ROUND(AS389*(1/AF389-1/AB389)/1000*O389,4)","IL TRM v7 vol3",125,"2020-01-01",null,null,null,null,null,50,"CFM","IL TRM v7 vol3",126]
["Income-Eligible Multi-Family","Bathroom Exhaust Fan (Int.)",477,"Multi-Family","HVAC","In unit","Per unit",43.5,"IL TRM v7 vol 3",124,{"$f":"ROUND((AS390*(1/AF390-1/AB390)/1000*U390),4)","v":49.130299999999998},"Calculated Value",null,{"$f":"R390/O390","v":4.5185185185185182E-2},0.13500000000000001,"IL TRM v7 vol 3",125,{"$f":"ROUND(AS390*(1/AF390-1/AB390)/1000*O390,4)","v":6.1000000000000004E-3},"Calculated Value",null,1089,"IL TRM v7 vol3",125,19,"IL TRM v7 vol3",124,"ENERGY STAR Most Efficient, Continuous Usage (CFM/watts)",11.5,"IL TRM v7 vol3",125,"Standard Fan, continuous usage",1.7,"IL TRM v7 vol3",125,"=ROUND((AS390*(1/AF390-1/AB390)/1000*U390),4)","=ROUND(AS390*(1/AF390-1/AB390)/1000*O390,4)","IL TRM v7 vol3",125,"2020-01-01",null,null,null,null,null,90,"CFM","IL TRM v7 vol3",126]
["Income-Eligible Multi-Family","Window AC - Early Replcement",478,"Multi-Family","HVAC",null,"per unit",448,"IL TRM v7 vol 3",34,{"$f":"ROUND((U391*AS391*(1/AF391-1/AB391))/1000,4)","v":169.30090000000001},"Calculated Value",null,{"$f":"K391/U391","v":0.39556285046728973},0.3,"IL TRM v7 vol 3",34,{"$f":"AS391*((1/(AF391*1.01)-1/(AB391*1.01))/1000)*O391","v":0.11749389224636748},"Calculated Value",null,428,"IL TRM v7 vol3",35,4,"IL TRM v7 vol3",34,"ENERGY STAR version 4.0 CEER",12,"IL TRM v7 vol3",33,"Federal Standard CEER",7.7,"IL TRM v7 vol3",33,"=ROUND((U391*AS391*(1/AF391-1/AB391))/1000,4)","=AS391*((1/(AF391*1.01)-1/(AB391*1.01))/1000)*O391","IL TRM v7 vol3",34,"2020-01-01",null,null,null,null,null,8500,"BTU/h","IL TRM v7 vol3",35]
["Income-Eligible Multi-Family","Window AC - Replcement at Fail",479,"Multi-Family","HVAC",null,"per unit",40,"IL TRM v7 vol 3",34,{"$f":"ROUND((U392*AS392*(1/AF392-1/AB392))/1000,4)","v":30.594799999999999},"Calculated Value",null,{"$f":"K392/U392","v":7.1483177570093454E-2},0.3,"IL TRM v7 vol 3",34,{"$f":"AS392*((1/(AF392*1.01)-1/(AB392*1.01))/1000)*O392","v":2.1232627849940948E-2},"Calculated Value",null,428,"IL TRM v7 vol3",35,12,"IL TRM v7 vol3",34,"ENERGY STAR version 4.0 CEER",12,"IL TRM v7 vol3",33,"Federal Standard CEER",10.9,"IL TRM v7 vol3",33,"=ROUND((U392*AS392*(1/AF392-1/AB392))/1000,4)","=AS392*((1/(AF392*1.01)-1/(AB392*1.01))/1000)*O392","IL TRM v7 vol3",34,"2020-01-01",null,null,null,null,null,8500,"BTU/h","IL TRM v7 vol3",35]
["Income-Eligible Multi-Family","Program Thermostat",480,"Multi-Family","HVAC",null,"per unit",30,"IL TRM v7 vol 3",131,{"$f":"ROUND((AS393*AW393*BA393*BE393),4)","v":248.74449999999999},"Calculated Value",null,null,null,null,null,0,"Calculated Value",null,null,null,null,8,"IL TRM v7 vol3",131,"Thermostats having the capability to adjust temperature setpoint according to a schedule without manual intervention.",null,null,null,"Manual-only temperature control.",null,null,null,"=ROUND((AS393*AW393*BA393*BE393),4)","=ROUND(0,4)","IL TRM v7 vol3",132,"2020-01-01",null,null,null,null,null,11022,"Annual household heating for \nelectrically heated homes ","IL TRM v7 vol3\n(Belleville; considering 50% Electric resistance and 50% HP)",132,6.2E-2,"% reduction in total heating energy consumption due to programable thermostat","IL TRM v7 vol3",133,0.65,"Household factor - Multifamily","IL TRM v7 vol3",133,0.56000000000000005,"Effective in-service rate \n(% of thermostats installed and programmed effectively) - Other/Unknown","IL TRM v7 vol3",133]
["Income-Eligible Multi-Family","Smart Thermostat",481,"Multi-Family","HVAC",null,"per unit",125,"IL TRM v7 vol 3",160,{"$f":"ROUND(((AS394*AW394*BA394*BE394)+((BI394*(BM394*BQ394*1/BU394)/1000)*BY394*BE394)),4)","v":697.62750000000005},"Calculated Value",null,{"$f":"IF(R394=0,0,R394/O394)","v":0.21264705882352941},0.34,"IL TRM v7 vol 3",160,{"$f":"ROUND(((BI394*BY394*BQ394*1/CC394*BE394*O394)/1000),4)","v":7.2300000000000003E-2},"Calculated Value",null,null,null,null,11,"IL TRM v7 vol3",160,"Thermostats having the default enabled capability - or the ability to automatically - establish a schedule of temperature setpoints according to driving device inputs above and beyond basic time and temperature data of conventional programable thermostats.",null,null,null,"Manual-only temperature control or programable thermostat",null,null,null,"=ROUND(((AS394*AW394*BA394*BE394)+((BI394*(BM394*BQ394*1/BU394)/1000)*BY394*BE394)),4)",{"$f":"_xlfn.FORMULATEXT(R394)","v":"=ROUND(((BI394*BY394*BQ394*1/CC394*BE394*O394)/1000),4)"},"IL TRM v7 vol3",161,"2020-01-01",null,1325,5249,"MO TRM and Navigant Analysis",null,11022,"Annual household heating for \nelectrically heated homes ","IL TRM v7 vol3\n(Belleville; considering 50% Electric resistance and 50% HP)",161,7.0000000000000007E-2,"% reduction in total heating energy consumption due to smart thermostat (blended baseline)","IL TRM v7 vol3",162,0.65,"Household factor - Multifamily","IL TRM v7 vol3",162,1,"Effective in-service rate \n(% of thermostats installed and programmed effectively for 2-way communication)","IL TRM v7 vol3",162,0.82499999999999996,"Fraction of customers with \nthermostat control air-conditioning","IL TRM v7 vol3",163,987,"IL TRM v7 vol3","IL TRM v7 vol3",163,28000,"Capacity of AC (Btu/hr)","IL TRM v7 vol3",163,9.3000000000000007,"SEER (kBtu/wEh)","IL TRM v7 vol3",163,0.08,"% reduction in total household \ncooling energy consumption","IL TRM v7 vol3",163,8.6862000000000013,"EER","IL TRM v7 vol3 - EER = -0.02 x SEER2 + 1.12 x SEER",165]
["Income-Eligible Multi-Family","Roof Insulation (Research)",482,"Multi-Family","HVAC - Shell",null,"per sq ft",1.36,"MN TRM V2.2",507,{"$f":"ROUND((1/BU395-1/BY395)*AS395*(1-AW395)*24*((AO395*BA395*BI395/(1000*BE395))+(AP395*BQ395/(3412*BM395))),4)","v":3.9367999999999999},"Calculated Value",null,{"$f":"IF(R395=0,0,R395/O395)","v":2.941176470588235E-4},0.68,"IL TRM v7 vol 3",327,{"$f":"ROUND(((1/BU395-1/BY395)*AS395*(1-AW395)*24*(AO395*BA395*BI395/(1000*BE395))/CC395*O395),4)","v":2.0000000000000001E-4},"Calculated Value",null,null,null,null,20,"IL TRM v7 vol3",327,"Insulation added to attic/celling.",null,null,null,"Little or no attic insulation",null,null,null,"=ROUND((1/BU395-1/BY395)*AS395*(1-AW395)*24*((AO395*BA395*BI395/(1000*BE395))+(AP395*BQ395/(3412*BM395))),4)","=ROUND(((1/BU395-1/BY395)*AS395*(1-AW395)*24*(AO395*BA395*BI395/(1000*BE395))/CC395*O395),4)","IL TRM v7 vol3",328,"2020-01-01",null,1325,5249,"MO TRM and Navigant Analysis",null,1,"Area of insulated ceiling/attic (sq. ft)","Rebate unit",null,7.0000000000000007E-2,"Adjustment to account for area of framing ","IL TRM v7 vol3",328,0.75,"Discretionary Use Adjustment \n(reflects the fact that people do not always operate their Ac when conditions may call for it).","IL TRM v7 vol3",329,13,"SEER ","IL TRM v7 vol3",329,1.21,"Adjustment for cooling savings \nto account for inaccuracies in engineering algorithms","IL TRM v7 vol3",329,1,"Efficiency of heating system \n(Resistance heating)","IL TRM v7 vol3",330,0.6,"Adjustment for electric heating savings to account for inaccuracies in engineering algorithms","IL TRM v7 vol3",330,5,"R-value of old attic","IL TRM v7 vol3",328,38,"R-value of new attic","IL TRM v7 vol3",330,987,"Annual full load cooling hours","IL TRM v7 vol3\nEstimated from full load hours of Springfield",331]
["Income-Eligible Multi-Family","ASHP Tune Up ",483,"Multi-Family","HVAC",null,"per ton",35,"IL TRM v7 vol 3",140,{"$f":"ROUND(((AW396*(BA396/1000)*(1/BI396)*BM396)+(BQ396*(BY396/1000)*(1/BU396)*BM396)),4)","v":290.43740000000003},"Calculated Value",null,{"$f":"(BA396/1000)*(1/BE396)*BM396","v":9.1304347826086957E-2},0.68,"IL TRM v7 vol 3",127,{"$f":"ROUND(N396*O396,4)","v":6.2100000000000002E-2},"Calculated Value",null," ",null,null,3,"IL TRM v7 vol3",140,"Check refrigerant charge; Identify and repair leaks if refrigerant charge is low; Measure and record refrigerant pressures; Measure and record temperature drop at indoor coilClean condensate drain line; Clean outdoor coil and straighten fins; Clean indoor and outdoor fan blades; Clean indoor coil with spray-on cleaner and straighten fins; Repair damaged insulation – suction line; Change air filter; Measure and record blower amp draw"," ",null,null,"ASHP system that that does not have a standing maintenance contract or a tune up within in the past 36 months."," ",null,null,"=ROUND(((AW396*(BA396/1000)*(1/BI396)*BM396)+(BQ396*(BY396/1000)*(1/BU396)*BM396)),4)","=ROUND(N396*O396,4)","IL TRM v7 vol3",127,"2020-01-01",null,1325,5249,"MO TRM and Navigant Analysis",null,null,null,null,null,987,"Equivalent Full Load Hours for Mechanical Cooling","IL TRM v7 vol3 and https://www.degreedays.net/#",null,12000,"Unit Cooling Capacity in Btu/hour\nDeemed value (12,000) is equivalent of the Rebate unit (1 Ton)\n","Measure Unit ( 1 Ton)",null,9.2000000000000011,"EER","IL TRM v7 vol3",129,10,"SEER","IL TRM v7 vol3",128,7.0000000000000007E-2,"Deemed % of savings per Tune-up ","IL TRM v7 vol3",141,1680,"Equivalent Full Load Hours for Mechanical Heating\n(FLHKCPL = FLHSpringfield x HDDKCPL/HDDSpringfield x (DTDSpringfield/DTDKCPL)","IL TRM v7 vol3",129,6.8,"HSPF","IL TRM v7 vol3",129,12000,"Unit Heating Capacity in Btu/hour","Measure unit (1 Ton)",null,1967,"Full load hteaing hours - Springfield (FLHSpringfield)","IL TRM v7 vol3 - 5.3.10 ",129,5485,"HDD of Springfield"]
["Income-Eligible Multi-Family","CAC Tune Up ",484,"Multi-Family","HVAC",null,"per ton",35,"IL TRM v7 vol 3",140,{"$f":"ROUND((AW397*(BA397/1000)*(1/BI397)*BM397),4)","v":82.908000000000001},"Calculated Value",null,{"$f":"(BA397/1000)*(1/BE397)*BM397","v":9.1304347826086957E-2},0.68,"IL TRM v7 vol 3",127,{"$f":"ROUND(N397*O397,4)","v":6.2100000000000002E-2},"Calculated Value",null," ",null,null,3,"IL TRM v7 vol3",140,"Check refrigerant charge; Identify and repair leaks if refrigerant charge is low; Measure and record refrigerant pressures; Measure and record temperature drop at indoor coilClean condensate drain line; Clean outdoor coil and straighten fins; Clean indoor and outdoor fan blades; Clean indoor coil with spray-on cleaner and straighten fins; Repair damaged insulation – suction line; Change air filter; Measure and record blower amp draw"," ",null,null,"AC system that that does not have a standing maintenance contract or a tune up within in the past 36 months."," ",null,null,"=ROUND((AW397*(BA397/1000)*(1/BI397)*BM397),4)","=ROUND(N397*O397,4)","IL TRM v7 vol3",127,"2020-01-01",null,1325,5249,"MO TRM and Navigant Analysis",null,null,null,null,null,987,"Equivalent Full Load Hours for Mechanical Cooling\n(FLHKCPL = FLHSpringfield x CDDKCPL/CDDSpringfield x (DTDSpringfield/DTDKCPL)","IL TRM v7 vol3 and https://www.degreedays.net/#",null,12000,"Unit Cooling Capacity in Btu/hour\nDeemed value (12,000) is equivalent of the Rebate unit (1 Ton)\n","Measure Unit ( 1 Ton)",null,9.2000000000000011,"EER","IL TRM v7 vol3",129,10,"SEER","IL TRM v7 vol3",128,7.0000000000000007E-2,"Deemed % of savings per Tune-up ","IL TRM v7 vol3",141,663,"Full load cooling hours - Springfield (FLHSpringfield)","IL TRM v7 vol3",128,1122,"CDD of Springfield",null,null,1671,"CDD of Kansas",null,null,76,"DTD of Springfield (DTDSpringfield)","ACCA Manual J, Weather Data",null,76,"DTD of Kansas","ACCA Manual J, Weather Data"]
["Energy Saving Products","ENERGY STAR Clothes Washers",485,"Single Family","Appliances",null,"per unit",84,"IL TRM v7 vol 3",9,{"$f":"ROUND((AS398*(1/AW398-1/BE398)*BA398),4)","v":113.6502},"Calculated Value",null,{"$f":"K398/U398","v":0.4304931818181818},3.7999999999999999E-2,"IL TRM v7 vol 3",9,{"$f":"ROUND(K398/U398*O398,4)","v":1.6400000000000001E-2},"Calculated Value",null,264,"IL TRM v7 vol3",12,14,"IL TRM v7 vol3",9,"ENERGY STAR Clothes Washer",2.23,"IL TRM v7 vol3",10,"Clothes washer meeting the minimum Federal standards",1.75,"IL TRM v7 vol3",10,"=ROUND((AS398*(1/AW398-1/BE398)*BA398),4)","=ROUND(K398/U398*O398,4)","IL TRM v7 vol3",10,"2020-01-01",null,null,null,null,null,3.5,"Capacity (assumed)","IL TRM v7 vol3",10,1.75,"IMEFbase","IL TRM v7 vol3",10,264,"Ncycles","IL TRM v7 vol3",10,2.23,"IMEF - ENERGY STAR","IL TRM v7 vol3",10]
["Energy Saving Products","ENERGY STAR Clothes Dryers",486,"Single Family","Appliances",null,"per unit",152,"IL TRM v7 vol 3",45,{"$f":"ROUND((AS399/AW399-AS399/BA399)*BE399*BI399,4)","v":160.43680000000001},"Calculated Value",null,{"$f":"K399/U399","v":0.56691448763250885},3.7999999999999999E-2,"IL TRM v7 vol 3",45,{"$f":"ROUND(K399/BM399*BQ399,4)","v":2.1499999999999998E-2},"Calculated Value",null,283,"IL TRM v7 vol3",46,16,"IL TRM v7 vol3",45,"ENERGY STAR Clothes Dryer",3.93,"IL TRM v7 vol3",46,"Clothes dyer meeting the minimum Federal standards",3.11,"IL TRM v7 vol3",46,"=ROUND((AS399/AW399-AS399/BA399)*BE399*BI399,4)","=ROUND(K399/BM399*BQ399,4)","IL TRM v7 vol3",46,"2020-01-01",null,null,null,null,null,8.4499999999999993,"Load - Standard Dryer","IL TRM v7 vol3",46,3.11,"CEF_base","IL TRM v7 vol3",46,3.93,"CEF_eff","IL TRM v7 vol3",46,283,"N_cycles","IL TRM v7 vol3",46,1,"%Electric","IL TRM v7 vol3",47,283,"Hours","IL TRM v7 vol3",46,3.7999999999999999E-2,"CF","IL TRM v7 vol3",45]
["Energy Saving Products","ENERGY STAR Dishwasher",487,"Single Family","Appliances",null,"Per unit",75.67,"IL TRM v7 vol 3",19,{"$f":"ROUND((BI400-BE400)*(AS400+(AW400*BA400)),4)","v":37},"Calculated Value",null,{"$f":"R400/O400","v":0.10384615384615385},2.5999999999999999E-2,"IL TRM v7 vol 3",20,{"$f":"ROUND((BI400-BE400)/U400*O400,4)","v":2.7000000000000001E-3},"Calculated Value",null,353,"IL TRM v7 vol3",21,11,"IL TRM v7 vol3",19,"ENERGY STAR Standard Dishwasher (> 8 place settings + six serving pieces)",270,"IL TRM v7 vol3",20,"Dishwasher meeting minimum Federal standards",307,"IL TRM v7 vol3",20,"=ROUND((BI400-BE400)*(AS400+(AW400*BA400)),4)","=ROUND((BI400-BE400)/U400*O400,4)","IL TRM v7 vol3",20,"2020-01-01",null,null,null,null,null,0.44,"%kWh_op: Percentage of dishwasher \nenergy consumption used for unit operation","IL TRM v7 vol3",20,0.56000000000000005,"%kWh_heat: Percentage of dishwasher \nenergy consumption used for water heating","IL TRM v7 vol3",20,1,"%Electric_DHW","IL TRM v7 vol3",20,{"$f":"AB400","v":270},"kWhBase : Baseline kWh consumption per year","IL TRM v7 vol3",20,{"$f":"AF400","v":307},"kWhEStar : ENERGY STAR kWh consumption per year","IL TRM v7 vol3",20]
["Energy Saving Products","Refrigerator Recycling",488,"Single Family","Appliances",null,"Per unit",170,"IL TRM v7 vol 3",37,{"$f":"ROUND((AS401+(AW401*3.678)+(BA401*485.037)+(BE401*27.149)+(BI401*406.779)+(BM401*161.857)+(BQ401*15.366)+(BU401*-11.07)*BY401),4)","v":1003.4045},"Calculated Value",null,{"$f":"R401/O401","v":0.11446549167237052},1.081,"IL TRM v7 vol 3",40,{"$f":"K401/U401*O401","v":0.12373719649783253},"Calculated Value",null,8766,"IL TRM v7 vol3",40,6.5,"IL TRM v7 vol3",37,"Refrigerator Recycling",null,null,null,"Existing inefficient operational unit having capacity between 10 to 30 cubic feet",null,null,null,"=ROUND((AS401+(AW401*3.678)+(BA401*485.037)+(BE401*27.149)+(BI401*406.779)+(BM401*161.857)+(BQ401*15.366)+(BU401*-11.07)*BY401),4)","=K401/U401*O401","IL TRM v7 vol3",40,"2020-01-01",null,null,null,null,null,83.323999999999998,"Intercept Coefficient","IL TRM v7 vol3",38,22.81,"Average age or retired unit (years) - For AIC's ARO in PY4 ","IL TRM v7 vol3",39,0.45,"Pre-1990 dummy ","IL TRM v7 vol3",39,18.82,"Capacity (cubic feet) of the retired unit","IL TRM v7 vol3",39,0.17,"Side-by-side dummy","IL TRM v7 vol3",39,0.34,"Primary usage type dummy","IL TRM v7 vol3",39,{"$f":"4.3*0.3","v":1.2899999999999998},"Interaction: Located in unconditional space [Assumed 30%] (4.3 x 30%)\nx CDD/365.25 [Belleville]","IL TRM v7 vol3",39,{"$f":"11.99*0.3","v":3.597},"Interaction: Located in unconditional (11.99 x 30%)\nspace [Assumed 30%] x HDD/365.25 [Belleville]","IL TRM v7 vol3",39,0.93,"Part use factor","IL TRM v7 vol3",39]
["Energy Saving Products","Freezer Recycling",489,"Single Family","Appliances",null,"Per unit",170,"IL TRM v7 vol 3",37,{"$f":"ROUND((AS402+(AW402*12.13)+(BA402*156.181)+(BE402*31.839)+(BI402*-19.709)+(BQ402*9.778)+(BU402*-12.755)*BY402),4)","v":1022.7658},"Calculated Value",null,{"$f":"R402/O402","v":0.11667417294090805},1.028,"IL TRM v7 vol 3",40,{"$f":"K402/U402*O402","v":0.11994104978325348},"Calculated Value",null,8766,"IL TRM v7 vol3",40,6.5,"IL TRM v7 vol3",37,"Freezer Recycling",null,null,null,"Existing inefficient operational unit having capacity between 10 to 30 cubic feet",null,null,null,"=ROUND((AS402+(AW402*12.13)+(BA402*156.181)+(BE402*31.839)+(BI402*-19.709)+(BQ402*9.778)+(BU402*-12.755)*BY402),4)","=K402/U402*O402","IL TRM v7 vol3",40,"2020-01-01",null,null,null,null,null,132.12200000000001,"Intercept Coefficient","IL TRM v7 vol3",39,26.92,"Average age or retired unit (years) - For AIC's ARO in PY4 ","IL TRM v7 vol3",40,0.6,"Pre-1990 dummy ","IL TRM v7 vol3",40,15.9,"Capacity (cubic feet) of the retired unit","IL TRM v7 vol3",40,0.48,"Chest Freezer dummy ","IL TRM v7 vol3",40,null,null,null,null,{"$f":"4.3*0.3","v":1.2899999999999998},"Interaction: Located in unconditional space [Assumed 30%] (4.3 x 30%)\nx CDD/365.25 [Belleville]","IL TRM v7 vol3",39,{"$f":"11.99*0.3","v":3.597},"Interaction: Located in unconditional (11.99 x 30%)\nspace [Assumed 30%] x HDD/365.25 [Belleville]","IL TRM v7 vol3",39,0.85,"Part use factor","IL TRM v7 vol3",40]
["Energy Saving Products","Room Air Conditioner Recycling",490,"Single Family","Appliances",null,"Per unit",null,"IL TRM v7 vol 3 (Use Actual)",null,{"$f":"ROUND((AS403*AW403*(1/BA403)/1000),4)","v":371.22449999999998},"Calculated Value",null,{"$f":"R403/O403","v":0.86734696261682231},0.3,"IL TRM v7 vol 3",42,{"$f":"K403/U403*O403","v":0.26020408878504669},"Calculated Value",null,428,"IL TRM v7 vol3",43,4,"IL TRM v7 vol3",42,"Room Air Conditioner Recycling",null,null,null,"Existing inefficient operational unit ",null,null,null,"=ROUND((AS403*AW403*(1/BA403)/1000),4)","=K403/U403*O403","IL TRM v7 vol3",42,"2020-01-01",null,null,null,null,null,428,"Full Load Hours of room air conditioning units [Belleville]","IL TRM v7 vol3",43,8500,"Size of retired unit (Btu/H)","IL TRM v7 vol3",43,9.8000000000000007,"Efficiency of existing unit","IL TRM v7 vol3",43]
["Energy Saving Products","Tier 2 Advanced Power Strips (APS) - Residential Audio Visual",491,"Single Family","Electronics",null,"Per unit",70,"MN TRM",361,{"$f":"ROUND((AS404*AW404*BA404),4)","v":172.8},"Calculated Value",null,{"$f":"R404/O404","v":3.9452054794520554E-2},0.8,"IL TRM v7 vol 3",61,{"$f":"K404/U404*O404","v":3.1561643835616444E-2},"Calculated Value",null,4380,"IL TRM v7 vol3",62,7,"IL TRM v7 vol3",61,"Tier 2 AV APS",null,null,null,"Standard power strip or wall socket",null,null,null,"=ROUND((AS404*AW404*BA404),4)","=K404/U404*O404","IL TRM v7 vol3",61,"2020-01-01",null,null,null,null,null,0.4,"ERP range from field trial is 20-60%. 40% is taken here as mid point.","IL TRM v7 vol3",62,432,"Baseline Energy AV","IL TRM v7 vol3",62,1,"ISR - In Service Rate; Considered Direct Install (100%)","IL TRM v7 vol3",0.62]
["Energy Saving Products","Program Thermostat",492,"Single Family","HVAC",null,"per unit",30,"IL TRM v7 vol 3",131,{"$f":"ROUND((AS405*AW405*BA405*BE405),4)","v":382.68380000000002},"Calculated Value",null,null,null,null,null,0,"Calculated Value",null,null,null,null,8,"IL TRM v7 vol3",131,"Thermostats having the capability to adjust temperature setpoint according to a schedule without manual intervention.",null,null,null,"Manual-only temperature control.",null,null,null,"=ROUND((AS405*AW405*BA405*BE405),4)","=ROUND(0,4)","IL TRM v7 vol3",132,"2020-01-01",null,null,null,null,null,11022,"Annual household heating for \nelectrically heated homes ","IL TRM v7 vol3\n(Belleville; considering 50% Electric resistance and 50% HP)",132,6.2E-2,"% reduction in total heating energy consumption due to programable thermostat","IL TRM v7 vol3",133,1,"Household factor - Single Family","IL TRM v7 vol3",133,0.56000000000000005,"Effective in-service rate \n(% of thermostats installed and programmed effectively) - Other/Unknown","IL TRM v7 vol3",133]
["Energy Saving Products","Heat Pump Water Heaters < 55 gallons; < 2.6 UEF",493,"Single Family","Water Heating",null,"per unit",1030,"IL TRM v7 vol 3",178,{"$f":"ROUND(((AS406*AW406*365.25*BA406*(BE406-BI406)*1/3412)*((1/AF406)-(1/AB406))-CO406+CS406),4)","v":428.95060000000001},"Calculated Value",null,{"$f":"IF(R406=0,0,R406/O406)","v":0.16934488748519541},0.12,"IL TRM v7 vol 3",179,{"$f":"K406/U406*O406","v":2.0321386498223449E-2},"Calculated Value",null,2533,"IL TRM v7 vol3",181,15,"IL TRM v7 vol3",178,"ENERGY STAR Heat Pump Domestic Water heater, < 55 gallon and < 2.6 UEF",{"$f":"0.96-(0.0003*54)","v":0.94379999999999997},"IL TRM v7 vol3",179,"Resistance storage unit with efficiency = 0.96 - (0.0003 x rate volume in gallons)",{"$f":"0.96-(0.0003*50)","v":0.94499999999999995},"IL TRM v7 vol3",179,"=ROUND(((AS406*AW406*365.25*BA406*(BE406-BI406)*1/3412)*((1/AF406)-(1/AB406))-CO406+CS406),4)",{"$f":"_xlfn.FORMULATEXT(R406)","v":"=K406/U406*O406"},"IL TRM v7 vol3",179,"2020-01-01",null,null,null,null,null,17.600000000000001,"GPD (Gallons per day of hot water use per person)","IL TRM v7 vol3",179,2.56,"Average number of  people per household","IL TRM v7 vol3",179,8.33,"Specific weight of water (lb/gallon)","IL TRM v7 vol3",180,125,"Tank temperature (F)","IL TRM v7 vol3",180,54,"Incoming water temperature from well or system","IL TRM v7 vol3",180,1,"Heat capacity of water (1 Btu/lb/ F)","IL TRM v7 vol3",180,0.5,"Location Factor - Unknown","IL TRM v7 vol3",180,0.27,"Portion of reduced waste heat that results in cooling savings","IL TRM v7 vol3",180,2.8,"COPCool","IL TRM v7 vol3",180,1.33,"Latent multiplier to account for latent cooling demand","IL TRM v7 vol3",180,0.49,"Portion of reduced waste heat that results in increased heating load","IL TRM v7 vol3",181,1.28,"COPHeat - Unknown","IL TRM v7 vol3",180,{"$f":"(AS406*AW406*365.25*BA406*(BE406-BI406)*1/3412)*(1-((1/AB406)*BQ406*CG406/CK406))","v":2274.0624740343833},"kWh_heating: Heating cost \nfrom conversion of heat in home to water heat","Equation fom IL TRM v7",180,{"$f":"(AS406*AW406*365.25*BA406*(BE406-BI406)*1/3412)*(1-((1/AB406)*BQ406*BU406/BY406))","v":2706.8511203587504},"kWh_cooling: Cooling savings from conversion of heat in home to water heat","Equation fom IL TRM v7",180]
["Energy Saving Products","Heat Pump Water Heaters < 55 gallons; > 2.6 UEF",494,"Single Family","Water Heating",null,"per unit",1199,"IL TRM v7 vol 3",178,{"$f":"ROUND(((AS407*AW407*365.25*BA407*(BE407-BI407)*1/3412)*((1/AF407)-(1/AB407))-CO407+CS407),4)","v":428.95060000000001},"Calculated Value",null,0.16934488748519541,0.12,"IL TRM v7 vol 3",179,2.0321386498223449E-2,"Calculated Value",null,2533,"IL TRM v7 vol3",181,15,"IL TRM v7 vol3",178,"ENERGY STAR Heat Pump Domestic Water heater, < 55 gallon and > 2.6 UEF",{"$f":"0.96-(0.0003*54)","v":0.94379999999999997},"IL TRM v7 vol3",179,"Resistance storage unit with efficiency = 0.96 - (0.0003 x rate volume in gallons)",{"$f":"0.96-(0.0003*50)","v":0.94499999999999995},"IL TRM v7 vol3",179,"=ROUND(((AS407*AW407*365.25*BA407*(BE407-BI407)*1/3412)*((1/AF407)-(1/AB407))-CO407+CS407),4)","=K407/U407*O407","IL TRM v7 vol3",179,"2020-01-01",null,null,null,null,null,17.600000000000001,"GPD (Gallons per day of hot water use per person)","IL TRM v7 vol3",179,2.56,"Average number of  people per household","IL TRM v7 vol3",179,8.33,"Specific weight of water (lb/gallon)","IL TRM v7 vol3",180,125,"Tank temperature (F)","IL TRM v7 vol3",180,54,"Incoming water temperature from well or system","IL TRM v7 vol3",180,1,"Heat capacity of water (1 Btu/lb/ F)","IL TRM v7 vol3",180,0.5,"Location Factor - Unknown","IL TRM v7 vol3",180,0.27,"Portion of reduced waste heat that results in cooling savings","IL TRM v7 vol3",180,2.8,"COPCool","IL TRM v7 vol3",180,1.33,"Latent multiplier to account for latent cooling demand","IL TRM v7 vol3",180,0.49,"Portion of reduced waste heat that results in increased heating load","IL TRM v7 vol3",181,1.28,"COPHeat - Unknown","IL TRM v7 vol3",180,{"$f":"(AS407*AW407*365.25*BA407*(BE407-BI407)*1/3412)*(1-((1/AB407)*BQ407*CG407/CK407))","v":2274.0624740343833},"kWh_heating: Heating cost \nfrom conversion of heat in home to water heat","Equation fom IL TRM v7",180,{"$f":"(AS407*AW407*365.25*BA407*(BE407-BI407)*1/3412)*(1-((1/AB407)*BQ407*BU407/BY407))","v":2706.8511203587504},"kWh_cooling: Cooling savings from conversion of heat in home to water heat","Equation fom IL TRM v7",180]
["Energy Saving Products","LED Fixtures - Indoor",495,"Single Family","Lighting",null,"per unit",26,"IL TRM v7 vol 3",278,{"$f":"((AS408-AW408)/1000)*BA408*(1-BE408)*U408*BI408","v":62.512955265999999},"Calculated Value",null,6.7508590999999993E-2,0.11899999999999999,"IL TRM v7 vol 3",281,8.0335223289999987E-3,"Calculated Value",null,926,"IL TRM v7 vol3",279,15,"IL TRM v7 vol3",277,"ENERGY STAR LED Fixture",null,null,null,"Non-ENERGY STAR Fixture",null,null,null,"=((AS408-AW408)/1000)*BA408*(1-BE408)*U408*BI408","=K408/U408*O408","IL TRM v7 vol3",278,"2020-01-01",null,null,null,null,null,88.5,"WattBase","IL TRM v7 vol3",278,22.4,"WattEE","IL TRM v7 vol3",278,1,"ISR - In Service Rate","IL TRM v7 vol3",278,{"$f":"(0.7%+6.6%)/2","v":3.6500000000000005E-2},"Leakage - Adjustment to account for the percentage of program bulbs that’s move out of the Utility Jurisdiction (average of ComEd and Ameren)","IL TRM v7 vol3",279,1.06,"WHFe: Waste heat factor","IL TRM v7 vol3",279]
["Energy Saving Products","LED Fixtures - Task/Under Cabinet",496,"Single Family","Lighting",null,"per unit",18,"IL TRM v7 vol 3",278,{"$f":"((AS409-AW409)/1000)*BA409*(1-BE409)*U409*BI409","v":25.05069168},"Calculated Value",null,3.4316015999999998E-2,0.11899999999999999,"IL TRM v7 vol 3",281,4.0836059039999996E-3,"Calculated Value",null,730,"IL TRM v7 vol3",279,15,"IL TRM v7 vol3",277,"ENERGY STAR LED Fixture",null,null,null,"Non-ENERGY STAR Fixture",null,null,null,"=((AS409-AW409)/1000)*BA409*(1-BE409)*U409*BI409","=K409/U409*O409","IL TRM v7 vol3",278,"2020-01-01",null,null,null,null,null,45.2,"WattBase","IL TRM v7 vol3",278,11.6,"WattEE","IL TRM v7 vol3",278,1,"ISR - In Service Rate","IL TRM v7 vol3",278,{"$f":"(0.7%+6.6%)/2","v":3.6500000000000005E-2},"Leakage - Adjustment to account for the percentage of program bulbs that’s move out of the Utility Jurisdiction (average of ComEd and Ameren)","IL TRM v7 vol3",279,1.06,"WHFe: Waste heat factor","IL TRM v7 vol3",279]
["Energy Saving Products","LED Fixtures - Outdoor",497,"Single Family","Lighting",null,"per unit",26,"IL TRM v7 vol 3",278,{"$f":"((AS410-AW410)/1000)*BA410*(1-BE410)*U410*BI410","v":146.17981125},"Calculated Value",null,5.9062549999999991E-2,0.27300000000000002,"IL TRM v7 vol 3",282,1.612407615E-2,"Calculated Value",null,2475,"IL TRM v7 vol3",279,15,"IL TRM v7 vol3",277,"ENERGY STAR LED Fixture",null,null,null,"Non-ENERGY STAR Fixture",null,null,null,"=((AS410-AW410)/1000)*BA410*(1-BE410)*U410*BI410","=K410/U410*O410","IL TRM v7 vol3",278,"2020-01-01",null,null,null,null,null,79.599999999999994,"WattBase","IL TRM v7 vol3",278,18.3,"WattEE","IL TRM v7 vol3",278,1,"ISR - In Service Rate","IL TRM v7 vol3",278,{"$f":"(0.7%+6.6%)/2","v":3.6500000000000005E-2},"Leakage - Adjustment to account for the percentage of program bulbs that’s move out of the Utility Jurisdiction (average of ComEd and Ameren)","IL TRM v7 vol3",279,1,"WHFe: Waste heat factor","IL TRM v7 vol3",279]
["Energy Saving Products","LED Fixtures - Downlight",498,"Single Family","Lighting",null,"per unit",13,"IL TRM v7 vol 3",278,{"$f":"((AS411-AW411)/1000)*BA411*(1-BE411)*U411*BI411","v":49.650985649999996},"Calculated Value",null,5.3618774999999994E-2,0.127,"IL TRM v7 vol 3",282,6.8095844249999992E-3,"Calculated Value",null,926,"IL TRM v7 vol3",279,15,"IL TRM v7 vol3",277,"ENERGY STAR LED Fixture",null,null,null,"Non-ENERGY STAR Fixture",null,null,null,"=((AS411-AW411)/1000)*BA411*(1-BE411)*U411*BI411","=K411/U411*O411","IL TRM v7 vol3",278,"2020-01-01",null,null,null,null,null,72.8,"WattBase","IL TRM v7 vol3",278,20.3,"WattEE","IL TRM v7 vol3",278,1,"ISR - In Service Rate","IL TRM v7 vol3",278,{"$f":"(0.7%+6.6%)/2","v":3.6500000000000005E-2},"Leakage - Adjustment to account for the percentage of program bulbs that’s move out of the Utility Jurisdiction (average of ComEd and Ameren)","IL TRM v7 vol3",279,1.06,"WHFe: Waste heat factor","IL TRM v7 vol3",279]
["Energy Saving Products","LED Nightlights",499,"Single Family","Lighting",null,"per unit",3.35,"IL TRM v7 vol 3",290,{"$f":"(((AS412-AW412)/1000)*BA412*(1-BE412)*U412*BI412)-(((AS412-AW412)/1000)*BA412*U412*BM412/BQ412)","v":17.173700315100003},"Calculated Value",null,0,0,"IL TRM v7 vol 3",290,0,"Calculated Value",null,4380,"IL TRM v7 vol3",291,8,"IL TRM v7 vol3",290,"LED nightlight",null,null,null,"Incandescent/halogen nightlight",null,null,null,"=(((AS412-AW412)/1000)*BA412*(1-BE412)*U412*BI412)-(((AS412-AW412)/1000)*BA412*U412*BM412/BQ412)","=K412/U412*O412","IL TRM v7 vol3",290,"2020-01-01",null,null,null,null,null,7,"WattBase","IL TRM v7 vol3",290,0.3,"WattEE","IL TRM v7 vol3",292,0.98,"ISR - In Service Rate","IL TRM v7 vol3",291,{"$f":"(2%+13.1%)/2","v":7.5499999999999998E-2},"Leakage - Adjustment to account for the percentage of program bulbs that’s move out of the Utility Jurisdiction (average of ComEd and Ameren)","IL TRM v7 vol3",291,1.06,"WHFe: Waste heat factor","IL TRM v7 vol3",292,0.49,"Heating factor","IL TRM v7 vol3",292,1.28,"Efficiency of heating system - Unknown",292]
["Heating, Cooling & Home Comfort","Heating, Cooling & Home Comfort Bonus Incentive",0.11,"Single Family","All",null,null,null,null,null,null,null,null,null,null,null,null,null,null,null,null,null,null,null,null,null,null,null,null,null,null,null,null,null,null,null,null,null,"2020-01-01",null,null,null,null,null,null,null,null,null,null,null,null,null,null,null,null,null,null,null,null,null,null,null,null,null,null,null,null,null,null,null,null,null,null,null,null,null,null,null,null,null,null,null,null,null,null,null,null,null,null,null,null,null,null,null," "]
["Income-Eligible Multi-Family","Income-Eligible Multi-Family Custom Measure",0.12,"Multi-Family","All",null,null,null,null,null,null,null,null,null,null,null,null,null,null,null,null,null,null,null,null,null,null,null,null,null,null,null,null,null,null,null,null,null,"2020-01-01"]
["Home Energy Report","Home Energy Report Custom Measure",0.13,"Single Family","All",null,null,null,null,null,null,null,null,null,null,null,null,null,null,null,null,null,null,null,null,null,null,null,null,null,null,null,null,null,null,null,null,null,"2020-01-01"]
["Income-Eligible Home Energy Report","Income-Eligible Home Energy Report Custom Measure",0.14000000000000001,"Single Family","All",null,null,null,null,null,null,null,null,null,null,null,null,null,null,null,null,null,null,null,null,null,null,null,null,null,null,null,null,null,null,null,null,null,"2020-01-01"]
["Business Custom","Business Custom Measure",0.15,"C&I","All",null,null,null,null,null,null,null,null,null,null,null,null,null,null,null,null,null,null,null,null,null,null,null,null,null,null,null,null,null,null,null,null,null,"2020-01-01"]
["Business Custom","Block Bidding Custom Measure",0.16,"C&I","All",null,null,null,null,null,null,null,null,null,null,null,null,null,null,null,null,null,null,null,null,null,null,null,null,null,null,null,null,null,null,null,null,null,"2020-01-01"]
["Business Process Efficiency","Strategic Energy Management Custom Measure",0.17,"C&I","All",null,null,null,null,null,null,null,null,null,null,null,null,null,null,null,null,null,null,null,null,null,null,null,null,null,null,null,null,null,null,null,null,null,"2020-01-01"]
["Business Process Efficiency","Retrocomissioning Custom Measure",0.18,"C&I","All",null,null,null,null,null,null,null,null,null,null,null,null,null,null,null,null,null,null,null,null,null,null,null,null,null,null,null,null,null,null,null,null,null,"2020-01-01"]
["Business Demand Response","Business Demand Repsonse Custom Measure",0.19,"C&I","All",null,null,null,null,null,null,null,null,null,null,null,null,null,null,null,null,null,null,null,null,null,null,null,null,null,null,null,null,null,null,null,null,null,"2020-01-01"]
["Business Custom","C&I Custom - New Construction",0.2,"C&I","All",null,null,null,null,null,null,null,null,null,null,null,null,null,null,null,null,null,null,null,null,null,null,null,null,null,null,null,null,null,null,null,null,null,"2020-01-01"]
["Business Custom","C&I Custom - New Construction Lighting",0.21,"C&I","All",null,null,null,null,null,null,null,null,null,null,null,null,null,null,null,null,null,null,null,null,null,null,null,null,null,null,null,null,null,null,null,null,null,"2020-01-01"]
["Business Custom","C&I Custom - Peak Load Shift",0.22,"C&I","All",null,null,null,null,null,null,null,null,null,null,null,null,null,null,null,null,null,null,null,null,null,null,null,null,null,null,null,null,null,null,null,null,null,"2020-01-01"]